Workbook

Sheet Intro
A1: Introduction
U3: Version | V3: 1.2
V4: 2016-02-17
U5: Web address | V5: jonova.s3.amazonaws.com/cfa/climate.xlsm
U6: Data | V6: 2015-11-20 | W6: (last systematic update of most climate data)
U7: Contact | V7: David Evans, david.evans@sciencespeak.com
U8: Cite as | V8: Evans, David M.W. "Climate.xlsm spreadsheet in Microsoft Excel for Windows", sciencespeak.com/climate-nd-solar.html, 2014
U9: Project home | V9: http://sciencespeak.com/climate-nd-solar.html
U12: Key to cell colors
V13: You type or copy into this cell (e.g. downloaded data).
V14: You compute this data by clicking a button.
V15: Computed data or fixed text, click cell to see formula or text.
V16: No data possible for this time.
V19: Resets some settngs to factory defaults, deletes some results of computations to make file smaller

Sheet Air Temp Monthly
A1: Global Surface Air Temperature: Monthly
A3: Time | D3: Downloaded Data | Q3: Calculations
A4: Year AD | B4: Month | C4: Decimal Year | D4: Observed change in temperature, Global | E4: Observed change in temperature, Global | F4: Observed change in temperature, Global | G4: Observed change in temperature, Global | H4: Observed change in temperature, Global | I4: Observed change in temperature, Global | J4: Observed change in temperature, Global | K4: Observed change in temperature, Global | L4: Observed change in temperature, Global | M4: Observed change in temperature, Global | N4: Predicted change in temperature, Global | O4: Predicted change in temperature, Global | P4: Predicted change in temperature, Global | Q4: Observed change in temperature, since 1990 | R4: Observed change in temperature, since 1990 | S4: Predicted change in temperature, since1990, Lower Bound | T4: Predicted change in temperature, since1990, Best Estimate | U4: Predicted change in temperature, since1990, Upper Bound | V4: Observed change in temperature, since 1996 | W4: Observed change in temperature, since 1996 | X4: Predicted change in temperature, since1996, Lower Bound | Y4: Predicted change in temperature, since1996, Best Estimate | Z4: Predicted change in temperature, since1996, Upper Bound | AA4: Observed change in temperature, since 1988 | AB4: Observed change in temperature, since 1988 | AC4: Predicted change in temperature, since1988 | AD4: Predicted change in temperature, since1988 | AE4: Predicted change in temperature, since1988 | AF4: UAH 5 year centered averages | AG4: HadCrut4 5 year centered averages | AH4: Midpoints of UAH and HadCrut4 5 year centered averages | AI4: UAH 6 month centered averages | AJ4: RSS 6 month centered averages | AK4: UAH 6 month zeroed, centered averages | AL4: RSS 6 month zeroed, centered averages | AM4: GISTEMP 5 year centered averages | AN4: HadCrut4 6 month centered averages | AO4: GISTEMP 6 month centered averages | AP4: HadCrut4 6 month zeroed, centered averages | AQ4: GISTEMP 6 month zeroed, centered averages | AR4: UAH yearly averages | AS4: RSS yearly averages | AT4: HadCrut4 yearly averages | AU4: GISTEMP yearly averages
A5: Source--> | D5: UAH, Satellites, ongoing | E5: UAH, Satellites, Aug 2013 | F5: RSS, Satellites, ongoing | G5: RSS, Satellites, Aug 2013 | H5: NOAA, Surface thermo's, ongoing | I5: NOAA, Surface thermo's, Aug 2013 | J5: HadCRUT4, Surface thermo's, ongoing | K5: HadCRUT4, Surface thermo's, Aug 2013 | L5: GISTEMP, Surface thermo's, ongoing | M5: GISTEMP, Surface thermo's, Aug 2013 | N5: Hansen 1988, Scenario A | O5: Hansen 1988, Scenario B | P5: Hansen 1988, Scenario C | Q5: UAH, Satellites | R5: HadCRUT4, Surface thermo's | S5: IPCC, 1990 | T5: IPCC, 1990 | U5: IPCC, 1990 | V5: UAH, Satellites | W5: HadCRUT4, Surface thermo's | X5: IPCC, 1990 | Y5: IPCC, 1990 | Z5: IPCC, 1990 | AA5: UAH, Satellites | AB5: HadCRUT4, Surface thermo's | AC5: Hansen 1988, Scenario A | AD5: Hansen 1988, Scenario B | AE5: Hansen 1988, Scenario C | AF5: UAH, Satellites | AG5: HadCRUT4, Surface thermo's | AI5: UAH, Satellites | AJ5: RSS, Satellites | AK5: UAH, Satellites | AL5: RSS, Satellites | AM5: GISTEMP, Surface thermo's | AN5: HadCRUT4, Surface thermo's | AO5: GISTEMP, Surface thermo's | AP5: HadCRUT4, Surface thermo's | AQ5: GISTEMP, Surface thermo's | AR5: UAH, Satellites | AS5: RSS, Satellites | AT5: HadCRUT4, Surface thermo's | AU5: GISTEMP, Surface thermo's
A6: Units --> | D6: deg C | E6: deg C | F6: deg C | G6: deg C | H6: deg C | I6: deg C | J6: deg C | K6: deg C | L6: deg C | M6: deg C | N6: deg C | O6: deg C | P6: deg C | Q6: deg C | R6: deg C | S6: deg C | T6: deg C | U6: deg C | V6: deg C | W6: deg C | X6: deg C | Y6: deg C | Z6: deg C | AA6: deg C | AB6: deg C | AC6: deg C | AD6: deg C | AE6: deg C | AF6: deg C | AG6: deg C | AH6: deg C | AI6: deg C | AJ6: deg C | AK6: deg C | AL6: deg C | AM6: deg C | AN6: deg C | AO6: deg C | AP6: deg C | AQ6: deg C | AR6: deg C | AS6: deg C | AT6: deg C | AU6: deg C
A7: 1850 | B7: 1 | C7: =A7 + B7/12 - 1/24 -> 1850.041667 | J7: -0.702 | K7: -0.69 | AG7: =AVERAGE(J$7:J36) -> -0.3119666667 | AH7: =AG7 + AH$1554 -AG$1554 -> -0.36215
A8: 1850 | B8: 2 | C8: =A8 + B8/12 - 1/24 -> 1850.125 | J8: -0.284 | K8: -0.279 | AG8: =AVERAGE(J$7:J37) -> -0.3024193548 | AH8: =AG8 + AH$1554 -AG$1554 -> -0.3526026882
A9: 1850 | B9: 3 | C9: =A9 + B9/12 - 1/24 -> 1850.208333 | J9: -0.732 | K9: -0.728 | AG9: =AVERAGE(J$7:J38) -> -0.2990625 | AH9: -0.3492458333
A10: 1850 | B10: 4 | C10: 1850.291667 | J10: -0.57 | K10: -0.565 | AG10: =AVERAGE(J$7:J39) -> -0.2937878788 | AH10: -0.3439712121
A11: 1850 | B11: 5 | C11: 1850.375 | J11: -0.325 | K11: -0.322 | AG11: =AVERAGE(J$7:J40) -> -0.2915 | AH11: -0.3416833333
A12: 1850 | B12: 6 | C12: 1850.458333 | J12: -0.213 | K12: -0.215 | AG12: =AVERAGE(J$7:J41) -> -0.2885142857 | AH12: -0.338697619
A13: 1850 | B13: 7 | C13: 1850.541667 | J13: -0.128 | K13: -0.13 | AG13: =AVERAGE(J$7:J42) -> -0.2781944444 | AH13: -0.3283777778
A14: 1850 | B14: 8 | C14: 1850.625 | J14: -0.233 | K14: -0.234 | AG14: =AVERAGE(J$7:J43) -> -0.2754594595 | AH14: -0.3256427928
A15: 1850 | B15: 9 | C15: 1850.708333 | J15: -0.444 | K15: -0.439 | AG15: =AVERAGE(J$7:J44) -> -0.2768947368 | AH15: -0.3270780702
A16: 1850 | B16: 10 | C16: 1850.791667 | J16: -0.452 | K16: -0.455 | AG16: =AVERAGE(J$7:J45) -> -0.2779487179 | AH16: -0.3281320513
A17: 1850 | B17: 11 | C17: 1850.875 | J17: -0.19 | K17: -0.191 | AG17: =AVERAGE(J$7:J46) -> -0.2798 | AH17: -0.3299833333
A18: 1850 | B18: 12 | C18: 1850.958333 | J18: -0.268 | K18: -0.265 | AG18: =AVERAGE(J$7:J47) -> -0.2795121951 | AH18: -0.3296955285
A19: 1851 | B19: 1 | C19: 1851.041667 | J19: -0.303 | K19: -0.295 | AG19: =AVERAGE(J$7:J48) -> -0.2771190476 | AH19: -0.327302381
A20: 1851 | B20: 2 | C20: 1851.125 | J20: -0.362 | K20: -0.346 | AG20: =AVERAGE(J$7:J49) -> -0.2720465116 | AH20: -0.322229845
A21: 1851 | B21: 3 | C21: 1851.208333 | J21: -0.485 | K21: -0.468 | AG21: =AVERAGE(J$7:J50) -> -0.2692272727 | AH21: -0.3194106061
A22: 1851 | B22: 4 | C22: 1851.291667 | J22: -0.445 | K22: -0.441 | AG22: =AVERAGE(J$7:J51) -> -0.2723333333 | AH22: -0.3225166667
A23: 1851 | B23: 5 | C23: 1851.375 | J23: -0.302 | K23: -0.304 | AG23: =AVERAGE(J$7:J52) -> -0.2742173913 | AH23: -0.3244007246
A24: 1851 | B24: 6 | C24: 1851.458333 | J24: -0.189 | K24: -0.189 | AG24: =AVERAGE(J$7:J53) -> -0.2738297872 | AH24: -0.3240131206
A25: 1851 | B25: 7 | C25: 1851.541667 | J25: -0.215 | K25: -0.216 | AG25: =AVERAGE(J$7:J54) -> -0.277375 | AH25: -0.3275583333
A26: 1851 | B26: 8 | C26: 1851.625 | J26: -0.153 | K26: -0.159 | AG26: =AVERAGE(J$7:J55) -> -0.2790612245 | AH26: -0.3292445578
A27: 1851 | B27: 9 | C27: 1851.708333 | J27: -0.108 | K27: -0.111 | AG27: =AVERAGE(J$7:J56) -> -0.27908 | AH27: -0.3292633333
A28: 1851 | B28: 10 | C28: 1851.791667 | J28: -0.063 | K28: -0.054 | AG28: =AVERAGE(J$7:J57) -> -0.2791764706 | AH28: -0.3293598039
A29: 1851 | B29: 11 | C29: 1851.875 | J29: -0.03 | K29: -0.021 | AG29: =AVERAGE(J$7:J58) -> -0.2805192308 | AH29: -0.3307025641
A30: 1851 | B30: 12 | C30: 1851.958333 | J30: -0.067 | K30: -0.056 | AG30: =AVERAGE(J$7:J59) -> -0.2795660377 | AH30: -0.3297493711
A31: 1852 | B31: 1 | C31: 1852.041667 | J31: -0.308 | K31: -0.301 | AG31: =AVERAGE(J$7:J60) -> -0.2783703704 | AH31: -0.3285537037
A32: 1852 | B32: 2 | C32: 1852.125 | J32: -0.477 | K32: -0.455 | AG32: =AVERAGE(J$7:J61) -> -0.2774545455 | AH32: -0.3276378788
A33: 1852 | B33: 3 | C33: 1852.208333 | J33: -0.505 | K33: -0.492 | AG33: =AVERAGE(J$7:J62) -> -0.2754107143 | AH33: -0.3255940476
A34: 1852 | B34: 4 | C34: 1852.291667 | J34: -0.559 | K34: -0.561 | AG34: =AVERAGE(J$7:J63) -> -0.2725964912 | AH34: -0.3227798246
A35: 1852 | B35: 5 | C35: 1852.375 | J35: -0.209 | K35: -0.206 | AG35: =AVERAGE(J$7:J64) -> -0.271137931 | AH35: -0.3213212644
A36: 1852 | B36: 6 | C36: 1852.458333 | J36: -0.038 | K36: -0.04 | AG36: =AVERAGE(J$7:J65) -> -0.2727966102 | AH36: -0.3229799435
A37: 1852 | B37: 7 | C37: 1852.541667 | J37: -0.016 | K37: -0.013 | AG37: =AVERAGE(J7:J66) -> -0.2721166667 | AH37: -0.3223
A38: 1852 | B38: 8 | C38: 1852.625 | J38: -0.195 | K38: -0.205 | AG38: -0.26335 | AH38: -0.3135333333
A39: 1852 | B39: 9 | C39: 1852.708333 | J39: -0.125 | K39: -0.132 | AG39: -0.2652833333 | AH39: -0.3154666667
A40: 1852 | B40: 10 | C40: 1852.791667 | J40: -0.216 | K40: -0.218 | AG40: -0.2581333333 | AH40: -0.3083166667
A41: 1852 | B41: 11 | C41: 1852.875 | J41: -0.187 | K41: -0.193 | AG41: -0.25225 | AH41: -0.3024333333
A42: 1852 | B42: 12 | C42: 1852.958333 | J42: 0.083 | K42: 0.092 | AG42: -0.2524333333 | AH42: -0.3026166667
A43: 1853 | B43: 1 | C43: 1853.041667 | J43: -0.177 | K43: -0.169 | AG43: -0.25155 | AH43: -0.3017333333
A44: 1853 | B44: 2 | C44: 1853.125 | J44: -0.33 | K44: -0.324 | AG44: -0.2538833333 | AH44: -0.3040666667
A45: 1853 | B45: 3 | C45: 1853.208333 | J45: -0.318 | K45: -0.312 | AG45: -0.25265 | AH45: -0.3028333333
A46: 1853 | B46: 4 | C46: 1853.291667 | J46: -0.352 | K46: -0.346 | AG46: -0.2509 | AH46: -0.3010833333
A47: 1853 | B47: 5 | C47: 1853.375 | J47: -0.268 | K47: -0.272 | AG47: -0.2468833333 | AH47: -0.2970666667
A48: 1853 | B48: 6 | C48: 1853.458333 | J48: -0.179 | K48: -0.176 | AG48: -0.24725 | AH48: -0.2974333333
A49: 1853 | B49: 7 | C49: 1853.541667 | J49: -0.059 | K49: -0.06 | AG49: -0.2512833333 | AH49: -0.3014666667
A50: 1853 | B50: 8 | C50: 1853.625 | J50: -0.148 | K50: -0.148 | AG50: -0.2482166667 | AH50: -0.2984
A51: 1853 | B51: 9 | C51: 1853.708333 | J51: -0.409 | K51: -0.404 | AG51: -0.2484 | AH51: -0.2985833333
A52: 1853 | B52: 10 | C52: 1853.791667 | J52: -0.359 | K52: -0.363 | AG52: -0.2488666667 | AH52: -0.29905
A53: 1853 | B53: 11 | C53: 1853.875 | J53: -0.256 | K53: -0.247 | AG53: -0.2476333333 | AH53: -0.2978166667
A54: 1853 | B54: 12 | C54: 1853.958333 | J54: -0.444 | K54: -0.424 | AG54: -0.2445833333 | AH54: -0.2947666667
A55: 1854 | B55: 1 | C55: 1854.041667 | J55: -0.36 | K55: -0.352 | AG55: -0.2462333333 | AH55: -0.2964166667
A56: 1854 | B56: 2 | C56: 1854.125 | J56: -0.28 | K56: -0.274 | AG56: -0.2476 | AH56: -0.2977833333
A57: 1854 | B57: 3 | C57: 1854.208333 | J57: -0.284 | K57: -0.271 | AG57: -0.2501333333 | AH57: -0.3003166667
A58: 1854 | B58: 4 | C58: 1854.291667 | J58: -0.349 | K58: -0.346 | AG58: -0.2559833333 | AH58: -0.3061666667
A59: 1854 | B59: 5 | C59: 1854.375 | J59: -0.23 | K59: -0.228 | AG59: -0.2613333333 | AH59: -0.3115166667
A60: 1854 | B60: 6 | C60: 1854.458333 | J60: -0.215 | K60: -0.209 | AG60: -0.2709666667 | AH60: -0.32115
A61: 1854 | B61: 7 | C61: 1854.541667 | J61: -0.228 | K61: -0.23 | AG61: -0.2771833333 | AH61: -0.3273666667
A62: 1854 | B62: 8 | C62: 1854.625 | J62: -0.163 | K62: -0.167 | AG62: -0.2805833333 | AH62: -0.3307666667
A63: 1854 | B63: 9 | C63: 1854.708333 | J63: -0.115 | K63: -0.114 | AG63: -0.2783666667 | AH63: -0.32855
A64: 1854 | B64: 10 | C64: 1854.791667 | J64: -0.188 | K64: -0.193 | AG64: -0.2771833333 | AH64: -0.3273666667
A65: 1854 | B65: 11 | C65: 1854.875 | J65: -0.369 | K65: -0.366 | AG65: -0.2786333333 | AH65: -0.3288166667
A66: 1854 | B66: 12 | C66: 1854.958333 | J66: -0.232 | K66: -0.229 | AG66: -0.2846 | AH66: -0.3347833333
A67: 1855 | B67: 1 | C67: 1855.041667 | J67: -0.176 | K67: -0.151 | AG67: -0.2891333333 | AH67: -0.3393166667
A68: 1855 | B68: 2 | C68: 1855.125 | J68: -0.4 | K68: -0.393 | AG68: -0.2979333333 | AH68: -0.3481166667
A69: 1855 | B69: 3 | C69: 1855.208333 | J69: -0.303 | K69: -0.298 | AG69: -0.3001333333 | AH69: -0.3503166667
A70: 1855 | B70: 4 | C70: 1855.291667 | J70: -0.217 | K70: -0.219 | AG70: -0.3046 | AH70: -0.3547833333
A71: 1855 | B71: 5 | C71: 1855.375 | J71: -0.336 | K71: -0.339 | AG71: -0.3087833333 | AH71: -0.3589666667
A72: 1855 | B72: 6 | C72: 1855.458333 | J72: -0.16 | K72: -0.163 | AG72: -0.31675 | AH72: =AG72 + AH$1554 -AG$1554 -> -0.3669333333
A73: 1855 | B73: 7 | C73: =A73 + B73/12 - 1/24 -> 1855.541667 | J73: -0.268 | K73: -0.273 | AG73: -0.3240666667 | AH73: -0.37425
A74: 1855 | B74: 8 | C74: 1855.625 | J74: -0.159 | K74: -0.162 | AG74: -0.3299833333 | AH74: -0.3801666667
A75: 1855 | B75: 9 | C75: 1855.708333 | J75: -0.339 | K75: -0.327 | AG75: -0.3362666667 | AH75: -0.38645
A76: 1855 | B76: 10 | C76: 1855.791667 | J76: -0.211 | K76: -0.211 | AG76: -0.3401333333 | AH76: -0.3903166667
A77: 1855 | B77: 11 | C77: 1855.875 | J77: -0.212 | K77: -0.202 | AG77: -0.3428833333 | AH77: -0.3930666667
A78: 1855 | B78: 12 | C78: 1855.958333 | J78: -0.51 | K78: -0.48 | AG78: -0.3492666667 | AH78: -0.39945
A79: 1856 | B79: 1 | C79: 1856.041667 | J79: -0.119 | K79: -0.129 | AG79: -0.35595 | AH79: -0.4061333333
A80: 1856 | B80: 2 | C80: 1856.125 | J80: -0.373 | K80: -0.367 | AG80: -0.3603666667 | AH80: -0.41055
A81: 1856 | B81: 3 | C81: 1856.208333 | J81: -0.513 | K81: -0.51 | AG81: -0.3625666667 | AH81: -0.41275
A82: 1856 | B82: 4 | C82: 1856.291667 | J82: -0.371 | K82: -0.362 | AG82: -0.3614 | AH82: -0.4115833333
A83: 1856 | B83: 5 | C83: 1856.375 | J83: -0.119 | K83: -0.118 | AG83: -0.35875 | AH83: -0.4089333333
A84: 1856 | B84: 6 | C84: 1856.458333 | J84: -0.288 | K84: -0.3 | AG84: -0.3652166667 | AH84: -0.4154
A85: 1856 | B85: 7 | C85: 1856.541667 | J85: -0.297 | K85: -0.311 | AG85: -0.3628166667 | AH85: -0.413
A86: 1856 | B86: 8 | C86: 1856.625 | J86: -0.305 | K86: -0.311 | AG86: -0.3619333333 | AH86: -0.4121166667
A87: 1856 | B87: 9 | C87: 1856.708333 | J87: -0.459 | K87: -0.452 | AG87: -0.3604666667 | AH87: -0.41065
A88: 1856 | B88: 10 | C88: 1856.791667 | J88: -0.384 | K88: -0.382 | AG88: -0.3613 | AH88: -0.4114833333
A89: 1856 | B89: 11 | C89: 1856.875 | J89: -0.608 | K89: -0.605 | AG89: -0.3588666667 | AH89: -0.40905
A90: 1856 | B90: 12 | C90: 1856.958333 | J90: -0.44 | K90: -0.447 | AG90: -0.3602 | AH90: -0.4103833333
A91: 1857 | B91: 1 | C91: 1857.041667 | J91: -0.512 | K91: -0.515 | AG91: -0.3607833333 | AH91: -0.4109666667
A92: 1857 | B92: 2 | C92: 1857.125 | J92: -0.344 | K92: -0.326 | AG92: -0.3617333333 | AH92: -0.4119166667
A93: 1857 | B93: 3 | C93: 1857.208333 | J93: -0.434 | K93: -0.429 | AG93: -0.36075 | AH93: -0.4109333333
A94: 1857 | B94: 4 | C94: 1857.291667 | J94: -0.646 | K94: -0.637 | AG94: -0.3684166667 | AH94: -0.4186
A95: 1857 | B95: 5 | C95: 1857.375 | J95: -0.567 | K95: -0.564 | AG95: -0.3695333333 | AH95: -0.4197166667
A96: 1857 | B96: 6 | C96: 1857.458333 | J96: -0.31 | K96: -0.31 | AG96: -0.36865 | AH96: -0.4188333333
A97: 1857 | B97: 7 | C97: 1857.541667 | J97: -0.544 | K97: -0.54 | AG97: -0.3708333333 | AH97: -0.4210166667
A98: 1857 | B98: 8 | C98: 1857.625 | J98: -0.327 | K98: -0.324 | AG98: -0.371 | AH98: -0.4211833333
A99: 1857 | B99: 9 | C99: 1857.708333 | J99: -0.393 | K99: -0.383 | AG99: -0.3714666667 | AH99: -0.42165
A100: 1857 | B100: 10 | C100: 1857.791667 | J100: -0.467 | K100: -0.467 | AG100: -0.3771333333 | AH100: -0.4273166667
A101: 1857 | B101: 11 | C101: 1857.875 | J101: -0.665 | K101: -0.663 | AG101: =AVERAGE(J71:J130) -> -0.3791 | AH101: -0.4292833333
A102: 1857 | B102: 12 | C102: 1857.958333 | J102: -0.356 | K102: -0.348 | AG102: -0.3783333333 | AH102: -0.4285166667
A103: 1858 | B103: 1 | C103: 1858.041667 | J103: -0.532 | K103: -0.529 | AG103: -0.3807833333 | AH103: -0.4309666667
A104: 1858 | B104: 2 | C104: 1858.125 | J104: -0.707 | K104: -0.699 | AG104: -0.37825 | AH104: -0.4284333333
A105: 1858 | B105: 3 | C105: 1858.208333 | J105: -0.55 | K105: -0.541 | AG105: -0.3788166667 | AH105: -0.429
A106: 1858 | B106: 4 | C106: 1858.291667 | J106: -0.517 | K106: -0.507 | AG106: -0.3769833333 | AH106: -0.4271666667
A107: 1858 | B107: 5 | C107: 1858.375 | J107: -0.651 | K107: -0.644 | AG107: -0.3767666667 | AH107: -0.42695
A108: 1858 | B108: 6 | C108: 1858.458333 | J108: -0.58 | K108: -0.569 | AG108: -0.3817 | AH108: -0.4318833333
A109: 1858 | B109: 7 | C109: 1858.541667 | J109: -0.324 | K109: -0.324 | AG109: -0.3857333333 | AH109: -0.4359166667
A110: 1858 | B110: 8 | C110: 1858.625 | J110: -0.28 | K110: -0.277 | AG110: -0.3985833333 | AH110: -0.4487666667
A111: 1858 | B111: 9 | C111: 1858.708333 | J111: -0.339 | K111: -0.336 | AG111: -0.4008 | AH111: -0.4509833333
A112: 1858 | B112: 10 | C112: 1858.791667 | J112: -0.2 | K112: -0.198 | AG112: -0.4 | AH112: -0.4501833333
A113: 1858 | B113: 11 | C113: 1858.875 | J113: -0.644 | K113: -0.634 | AG113: -0.4004 | AH113: -0.4505833333
A114: 1858 | B114: 12 | C114: 1858.958333 | J114: -0.3 | K114: -0.298 | AG114: -0.4111 | AH114: -0.4612833333
A115: 1859 | B115: 1 | C115: 1859.041667 | J115: -0.307 | K115: -0.304 | AG115: -0.40935 | AH115: -0.4595333333
A116: 1859 | B116: 2 | C116: 1859.125 | J116: -0.192 | K116: -0.177 | AG116: -0.4080833333 | AH116: -0.4582666667
A117: 1859 | B117: 3 | C117: 1859.208333 | J117: -0.334 | K117: -0.315 | AG117: -0.4047833333 | AH117: -0.4549666667
A118: 1859 | B118: 4 | C118: 1859.291667 | J118: -0.203 | K118: -0.189 | AG118: -0.40265 | AH118: -0.4528333333
A119: 1859 | B119: 5 | C119: 1859.375 | J119: -0.31 | K119: -0.301 | AG119: -0.4021666667 | AH119: -0.45235
A120: 1859 | B120: 6 | C120: 1859.458333 | J120: -0.25 | K120: -0.243 | AG120: -0.3991 | AH120: -0.4492833333
A121: 1859 | B121: 7 | C121: 1859.541667 | J121: -0.285 | K121: -0.28 | AG121: -0.3959833333 | AH121: -0.4461666667
A122: 1859 | B122: 8 | C122: 1859.625 | J122: -0.104 | K122: -0.102 | AG122: -0.3999333333 | AH122: -0.4501166667
A123: 1859 | B123: 9 | C123: 1859.708333 | J123: -0.575 | K123: -0.587 | AG123: -0.4070833333 | AH123: -0.4572666667
A124: 1859 | B124: 10 | C124: 1859.791667 | J124: -0.255 | K124: -0.256 | AG124: -0.40655 | AH124: -0.4567333333
A125: 1859 | B125: 11 | C125: 1859.875 | J125: -0.316 | K125: -0.306 | AG125: -0.3997833333 | AH125: -0.4499666667
A126: 1859 | B126: 12 | C126: 1859.958333 | J126: -0.363 | K126: -0.365 | AG126: -0.3942 | AH126: -0.4443833333
A127: 1860 | B127: 1 | C127: 1860.041667 | J127: -0.186 | K127: -0.179 | AG127: -0.3946666667 | AH127: -0.44485
A128: 1860 | B128: 2 | C128: 1860.125 | J128: -0.428 | K128: -0.42 | AG128: -0.3912666667 | AH128: -0.44145
A129: 1860 | B129: 3 | C129: 1860.208333 | J129: -0.643 | K129: -0.621 | AG129: -0.3973833333 | AH129: -0.4475666667
A130: 1860 | B130: 4 | C130: 1860.291667 | J130: -0.335 | K130: -0.328 | AG130: -0.3977166667 | AH130: -0.4479
A131: 1860 | B131: 5 | C131: 1860.375 | J131: -0.29 | K131: -0.283 | AG131: -0.3969333333 | AH131: -0.4471166667
A132: 1860 | B132: 6 | C132: 1860.458333 | J132: -0.307 | K132: -0.293 | AG132: -0.3984 | AH132: -0.4485833333
A133: 1860 | B133: 7 | C133: 1860.541667 | J133: -0.116 | K133: -0.113 | AG133: -0.4072833333 | AH133: -0.4574666667
A134: 1860 | B134: 8 | C134: 1860.625 | J134: -0.193 | K134: -0.192 | AG134: -0.3962333333 | AH134: -0.4464166667
A135: 1860 | B135: 9 | C135: 1860.708333 | J135: -0.229 | K135: -0.233 | AG135: -0.3847833333 | AH135: -0.4349666667
A136: 1860 | B136: 10 | C136: 1860.791667 | J136: -0.198 | K136: -0.188 | AG136: -0.38155 | AH136: =AG136 + AH$1554 -AG$1554 -> -0.4317333333
A137: 1860 | B137: 11 | C137: =A137 + B137/12 - 1/24 -> 1860.875 | J137: -0.508 | K137: -0.502 | AG137: -0.37695 | AH137: -0.4271333333
A138: 1860 | B138: 12 | C138: 1860.958333 | J138: -0.752 | K138: -0.74 | AG138: -0.3714333333 | AH138: -0.4216166667
A139: 1861 | B139: 1 | C139: 1861.041667 | J139: -0.89 | K139: -0.859 | AG139: -0.3684666667 | AH139: -0.41865
A140: 1861 | B140: 2 | C140: 1861.125 | J140: -0.506 | K140: -0.48 | AG140: -0.37 | AH140: -0.4201833333
A141: 1861 | B141: 3 | C141: 1861.208333 | J141: -0.465 | K141: -0.455 | AG141: -0.3706833333 | AH141: -0.4208666667
A142: 1861 | B142: 4 | C142: 1861.291667 | J142: -0.395 | K142: -0.366 | AG142: -0.3704333333 | AH142: -0.4206166667
A143: 1861 | B143: 5 | C143: 1861.375 | J143: -0.761 | K143: -0.736 | AG143: -0.37345 | AH143: -0.4236333333
A144: 1861 | B144: 6 | C144: 1861.458333 | J144: -0.183 | K144: -0.156 | AG144: -0.3682666667 | AH144: -0.41845
A145: 1861 | B145: 7 | C145: 1861.541667 | J145: -0.221 | K145: -0.205 | AG145: -0.3691166667 | AH145: -0.4193
A146: 1861 | B146: 8 | C146: 1861.625 | J146: -0.107 | K146: -0.084 | AG146: -0.3796166667 | AH146: -0.4298
A147: 1861 | B147: 9 | C147: 1861.708333 | J147: -0.331 | K147: -0.321 | AG147: -0.3869166667 | AH147: -0.4371
A148: 1861 | B148: 10 | C148: 1861.791667 | J148: -0.355 | K148: -0.344 | AG148: -0.3898333333 | AH148: -0.4400166667
A149: 1861 | B149: 11 | C149: 1861.875 | J149: -0.424 | K149: -0.426 | AG149: -0.3954166667 | AH149: -0.4456
A150: 1861 | B150: 12 | C150: 1861.958333 | J150: -0.253 | K150: -0.227 | AG150: -0.3977333333 | AH150: -0.4479166667
A151: 1862 | B151: 1 | C151: 1862.041667 | J151: -0.749 | K151: -0.721 | AG151: -0.3962666667 | AH151: -0.44645
A152: 1862 | B152: 2 | C152: 1862.125 | J152: -0.773 | K152: -0.715 | AG152: -0.39395 | AH152: -0.4441333333
A153: 1862 | B153: 3 | C153: 1862.208333 | J153: -0.402 | K153: -0.397 | AG153: -0.3973833333 | AH153: -0.4475666667
A154: 1862 | B154: 4 | C154: 1862.291667 | J154: -0.24 | K154: -0.235 | AG154: -0.3951166667 | AH154: -0.4453
A155: 1862 | B155: 5 | C155: 1862.375 | J155: -0.232 | K155: -0.219 | AG155: -0.40255 | AH155: -0.4527333333
A156: 1862 | B156: 6 | C156: 1862.458333 | J156: -0.338 | K156: -0.335 | AG156: -0.4050833333 | AH156: -0.4552666667
A157: 1862 | B157: 7 | C157: 1862.541667 | J157: -0.34 | K157: -0.342 | AG157: -0.4090666667 | AH157: -0.45925
A158: 1862 | B158: 8 | C158: 1862.625 | J158: -0.694 | K158: -0.686 | AG158: -0.4075166667 | AH158: -0.4577
A159: 1862 | B159: 9 | C159: 1862.708333 | J159: -0.413 | K159: -0.418 | AG159: -0.4104166667 | AH159: -0.4606
A160: 1862 | B160: 10 | C160: 1862.791667 | J160: -0.42 | K160: -0.397 | AG160: -0.41035 | AH160: -0.4605333333
A161: 1862 | B161: 11 | C161: 1862.875 | J161: -0.753 | K161: -0.731 | AG161: -0.4085 | AH161: -0.4586833333
A162: 1862 | B162: 12 | C162: 1862.958333 | J162: -0.889 | K162: -0.822 | AG162: -0.408 | AH162: -0.4581833333
A163: 1863 | B163: 1 | C163: 1863.041667 | J163: 0.131 | K163: 0.147 | AG163: -0.4073833333 | AH163: -0.4575666667
A164: 1863 | B164: 2 | C164: 1863.125 | J164: -0.02 | K164: -0.024 | AG164: -0.4075833333 | AH164: -0.4577666667
A165: 1863 | B165: 3 | C165: 1863.208333 | J165: -0.356 | K165: -0.37 | AG165: =AVERAGE(J135:J194) -> -0.4078166667 | AH165: -0.458
A166: 1863 | B166: 4 | C166: 1863.291667 | J166: -0.241 | K166: -0.214 | AG166: -0.40525 | AH166: -0.4554333333
A167: 1863 | B167: 5 | C167: 1863.375 | J167: -0.32 | K167: -0.325 | AG167: -0.4064833333 | AH167: -0.4566666667
A168: 1863 | B168: 6 | C168: 1863.458333 | J168: -0.402 | K168: -0.39 | AG168: -0.4012 | AH168: -0.4513833333
A169: 1863 | B169: 7 | C169: 1863.541667 | J169: -0.416 | K169: -0.425 | AG169: -0.3943 | AH169: -0.4444833333
A170: 1863 | B170: 8 | C170: 1863.625 | J170: -0.321 | K170: -0.319 | AG170: -0.3788166667 | AH170: -0.429
A171: 1863 | B171: 9 | C171: 1863.708333 | J171: -0.324 | K171: -0.349 | AG171: -0.3739166667 | AH171: -0.4241
A172: 1863 | B172: 10 | C172: 1863.791667 | J172: -0.381 | K172: -0.385 | AG172: -0.3760833333 | AH172: -0.4262666667
A173: 1863 | B173: 11 | C173: 1863.875 | J173: -0.333 | K173: -0.327 | AG173: -0.3738833333 | AH173: -0.4240666667
A174: 1863 | B174: 12 | C174: 1863.958333 | J174: -0.351 | K174: -0.312 | AG174: -0.37 | AH174: -0.4201833333
A175: 1864 | B175: 1 | C175: 1864.041667 | J175: -0.937 | K175: -0.893 | AG175: -0.36515 | AH175: -0.4153333333
A176: 1864 | B176: 2 | C176: 1864.125 | J176: -0.63 | K176: -0.601 | AG176: -0.3610166667 | AH176: -0.4112
A177: 1864 | B177: 3 | C177: 1864.208333 | J177: -0.509 | K177: -0.52 | AG177: -0.3635833333 | AH177: -0.4137666667
A178: 1864 | B178: 4 | C178: 1864.291667 | J178: -0.538 | K178: -0.542 | AG178: -0.3618166667 | AH178: -0.412
A179: 1864 | B179: 5 | C179: 1864.375 | J179: -0.449 | K179: -0.423 | AG179: -0.36285 | AH179: -0.4130333333
A180: 1864 | B180: 6 | C180: 1864.458333 | J180: -0.162 | K180: -0.17 | AG180: -0.3608 | AH180: -0.4109833333
A181: 1864 | B181: 7 | C181: 1864.541667 | J181: -0.146 | K181: -0.134 | AG181: -0.3622 | AH181: -0.4123833333
A182: 1864 | B182: 8 | C182: 1864.625 | J182: -0.31 | K182: -0.298 | AG182: -0.3548 | AH182: -0.4049833333
A183: 1864 | B183: 9 | C183: 1864.708333 | J183: -0.439 | K183: -0.429 | AG183: -0.34155 | AH183: -0.3917333333
A184: 1864 | B184: 10 | C184: 1864.791667 | J184: -0.701 | K184: -0.712 | AG184: -0.34675 | AH184: -0.3969333333
A185: 1864 | B185: 11 | C185: 1864.875 | J185: -0.468 | K185: -0.457 | AG185: -0.3469333333 | AH185: -0.3971166667
A186: 1864 | B186: 12 | C186: 1864.958333 | J186: -0.602 | K186: -0.574 | AG186: -0.3521 | AH186: -0.4022833333
A187: 1865 | B187: 1 | C187: 1865.041667 | J187: -0.093 | K187: -0.124 | AG187: -0.3513833333 | AH187: -0.4015666667
A188: 1865 | B188: 2 | C188: 1865.125 | J188: -0.602 | K188: -0.605 | AG188: -0.3495666667 | AH188: -0.39975
A189: 1865 | B189: 3 | C189: 1865.208333 | J189: -0.639 | K189: -0.617 | AG189: -0.34175 | AH189: -0.3919333333
A190: 1865 | B190: 4 | C190: 1865.291667 | J190: -0.224 | K190: -0.2 | AG190: -0.33645 | AH190: -0.3866333333
A191: 1865 | B191: 5 | C191: 1865.375 | J191: -0.26 | K191: -0.258 | AG191: -0.3324333333 | AH191: -0.3826166667
A192: 1865 | B192: 6 | C192: 1865.458333 | J192: -0.27 | K192: -0.253 | AG192: -0.3250333333 | AH192: -0.3752166667
A193: 1865 | B193: 7 | C193: 1865.541667 | J193: -0.128 | K193: -0.119 | AG193: -0.3206166667 | AH193: -0.3708
A194: 1865 | B194: 8 | C194: 1865.625 | J194: -0.207 | K194: -0.214 | AG194: -0.3345333333 | AH194: -0.3847166667
A195: 1865 | B195: 9 | C195: 1865.708333 | J195: -0.075 | K195: -0.052 | AG195: -0.3419666667 | AH195: -0.39215
A196: 1865 | B196: 10 | C196: 1865.791667 | J196: -0.272 | K196: -0.296 | AG196: -0.3372 | AH196: -0.3873833333
A197: 1865 | B197: 11 | C197: 1865.875 | J197: -0.191 | K197: -0.198 | AG197: -0.3393666667 | AH197: -0.38955
A198: 1865 | B198: 12 | C198: 1865.958333 | J198: -0.338 | K198: -0.322 | AG198: -0.3351833333 | AH198: -0.3853666667
A199: 1866 | B199: 1 | C199: 1866.041667 | J199: 0.039 | K199: 0.034 | AG199: -0.3314166667 | AH199: -0.3816
A200: 1866 | B200: 2 | C200: 1866.125 | J200: -0.212 | K200: -0.201 | AG200: -0.3220333333 | AH200: =AG200 + AH$1554 -AG$1554 -> -0.3722166667
A201: 1866 | B201: 3 | C201: =A201 + B201/12 - 1/24 -> 1866.208333 | J201: -0.595 | K201: -0.61 | AG201: -0.3173 | AH201: -0.3674833333
... 1859 more rows

Sheet Air Temp Yearly
A1: Global Surface Air Temperature: Yearly
A3: Time | B3: Downloaded Data | O3: Calculations
A4: Year AD | B4: Change in temperature, NH 30°N+, Un-smoothed | C4: Change in temperature, NH 30°N+ 50 yr smoothing | D4: Change in temperature, NH 30°N+, Un-smoothed | E4: Change in temperature, NH 30°N+ 50 yr smoothing | F4: Change in temperature, NH 30°N+, Un-smoothed | G4: Change in temperature, NH 30°N+ 50 yr smoothing | H4: Observed temperature, Central England | I4: Observed temperature, Central England | J4: Change in temperature, NH | K4: Change in temperature, NH | L4: Change in temperature, NH | M4: Change in temperature, NH | N4: Change in temperature, Global | O4: Change in temperature, Global | P4: Change in temperature, Global | Q4: Change in temperature, Global | R4: Change in temperature, NH 30°N+ 25 yr smoothing | S4: Change in temperature, Central England | T4: Change in temperature, Central England | U4: HadCrut4 41 year centered averages | V4: HadCrut4 5 year centered averages
A5: Source--> | B5: Christiansen and Ljungqvist 2012 | C5: Christiansen and Ljungqvist 2012 | D5: Christiansen and Ljungqvist 2012 | E5: Christiansen and Ljungqvist 2012 | F5: Christiansen and Ljungqvist 2011 | G5: Christiansen and Ljungqvist 2011 | H5: HadCET, Surface thermo's, ongoing | I5: HadCET, Surface thermo's, Aug 2013 | J5: Loehle 2008 | K5: Moberg 2005 | L5: Mann 1999 | M5: Keigwin 1996 | N5: Ratpac-A | O5: Satellites, UAH | P5: Surface thermo's, HadCRUT4 | Q5: Surface thermo's, GISTEMP | R5: Christiansen and Ljungqvist 2012 | S5: HadCET, Surface thermo's, ongoing | T5: HadCET, Surface thermo's, Aug 2013 | U5: HadCET, Surface thermo's, ongoing | V5: HadCET, Surface thermo's, ongoing
A6: From--> | B6: 0 AD | C6: 0 AD | D6: 1500 AD | E6: 1500 AD | F6: 1000 AD | G6: 1000 AD | H6: 1659 | I6: 1659 | J6: 16 AD | K6: 1 AD | L6: 1000 AD | M6: 1000 AD | N6: 1958 | O6: 1979 | P6: 1850 | Q6: 1880 | R6: 1500 AD | S6: 1659 | T6: 1659 | U6: 1659 | V6: 1659
A7: # proxies -> | B7: 32 | C7: 32 | D7: 91 | E7: 91 | F7: 40 | G7: 40 | H7: - | I7: - | J7: 18 | K7: 18 | L7: See notes | M7: See notes | N7: See notes | O7: n.a. | P7: n.a. | Q7: n.a. | R7: 91 | S7: - | T7: - | U7: - | V7: -
A8: # proxies with annual resolution--> | B8: 11 | C8: 11 | D8: 65 | E8: 65 | F8: 21 | G8: 21 | H8: - | I8: - | J8: 1 | K8: 8 | O8: From "Air Temperature Monthly" sheet | P8: From "Air Temperature Monthly" sheet | Q8: From "Air Temperature Monthly" sheet | R8: 65 | S8: - | T8: - | U8: - | V8: -
A9: Units --> | B9: deg C | C9: deg C | D9: deg C | E9: deg C | F9: deg C | G9: deg C | H9: deg C | I9: deg C | J9: deg C | K9: deg C | L9: deg C | M9: deg C | N9: deg C | O9: deg C | P9: deg C | Q9: deg C | R9: deg C | S9: deg C | T9: deg C | U9: deg C | V9: deg C
A10: 0 | B10: -0.9 | C10: 0.04
A11: 1 | B11: -0.29 | C11: 0.04 | K11: -0.393
A12: 2 | B12: 0.11 | C12: 0.05 | K12: -0.3096
A13: 3 | B13: -0.06 | C13: 0.05 | K13: -0.2433
A14: 4 | B14: 0.15 | C14: 0.05 | K14: -0.2441
A15: 5 | B15: 0.2 | C15: 0.05 | K15: -0.3075
A16: 6 | B16: -0.04 | C16: 0.06 | K16: -0.4219
A17: 7 | B17: 0.47 | C17: 0.06 | K17: -0.5659
A18: 8 | B18: -0.33 | C18: 0.06 | K18: -0.5974
A19: 9 | B19: -0.25 | C19: 0.06 | K19: -0.5496
A20: 10 | B20: -0.32 | C20: 0.07 | K20: -0.5243
A21: 11 | B21: -0.3 | C21: 0.07 | K21: -0.5166
A22: 12 | B22: -0.15 | C22: 0.07 | K22: -0.5136
A23: 13 | B23: -0.25 | C23: 0.08 | K23: -0.5654
A24: 14 | B24: 0.32 | C24: 0.08 | K24: -0.7616
A25: 15 | B25: -0.04 | C25: 0.08 | K25: -0.9735
A26: 16 | B26: -0.22 | C26: 0.08 | J26: -0.2358 | K26: -0.9226
A27: 17 | B27: 0.46 | C27: 0.08 | J27: -0.2361 | K27: -0.6152
A28: 18 | B28: 0.37 | C28: 0.09 | J28: -0.2316 | K28: -0.3817
A29: 19 | B29: 0.7 | C29: 0.09 | J29: -0.2226 | K29: -0.4368
A30: 20 | B30: 0.09 | C30: 0.09 | J30: -0.224 | K30: -0.5955
A31: 21 | B31: -0.39 | C31: 0.09 | J31: -0.2178 | K31: -0.6284
A32: 22 | B32: -0.03 | C32: 0.1 | J32: -0.212 | K32: -0.5746
A33: 23 | B33: 0.06 | C33: 0.1 | J33: -0.2089 | K33: -0.4853
A34: 24 | B34: 0 | C34: 0.1 | J34: -0.2171 | K34: -0.3549
A35: 25 | B35: 0.54 | C35: 0.1 | J35: -0.2132 | K35: -0.1812
A36: 26 | B36: -0.1 | C36: 0.1 | J36: -0.2066 | K36: -0.0669
A37: 27 | B37: -0.01 | C37: 0.1 | J37: -0.2018 | K37: -0.1533
A38: 28 | B38: 0.13 | C38: 0.11 | J38: -0.1986 | K38: -0.3617
A39: 29 | B39: 0.03 | C39: 0.11 | J39: -0.1951 | K39: -0.4838
A40: 30 | B40: -0.18 | C40: 0.11 | J40: -0.1666 | K40: -0.4547
A41: 31 | B41: -0.02 | C41: 0.11 | J41: -0.165 | K41: -0.3789
A42: 32 | B42: 0.59 | C42: 0.11 | J42: -0.1627 | K42: -0.2315
A43: 33 | B43: 0.64 | C43: 0.11 | J43: -0.1641 | K43: -0.0807
A44: 34 | B44: 0.81 | C44: 0.11 | J44: -0.161 | K44: -0.0009
A45: 35 | B45: 0.6 | C45: 0.11 | J45: -0.1746 | K45: -0.0121
A46: 36 | B46: -0.27 | C46: 0.11 | J46: -0.1692 | K46: -0.208
A47: 37 | B47: 0.81 | C47: 0.12 | J47: -0.1627 | K47: -0.4335
A48: 38 | B48: 0.19 | C48: 0.12 | J48: -0.1571 | K48: -0.365
A49: 39 | B49: 0.2 | C49: 0.12 | J49: -0.1558 | K49: -0.229
A50: 40 | B50: 0.26 | C50: 0.12 | J50: -0.1522 | K50: -0.2266
A51: 41 | B51: 0.44 | C51: 0.12 | J51: -0.1476 | K51: -0.2815
A52: 42 | B52: 0.81 | C52: 0.12 | J52: -0.1471 | K52: -0.3838
A53: 43 | B53: 0.88 | C53: 0.12 | J53: -0.1474 | K53: -0.4867
A54: 44 | B54: 0.17 | C54: 0.12 | J54: -0.1466 | K54: -0.5718
A55: 45 | B55: -0.15 | C55: 0.12 | J55: -0.1441 | K55: -0.5898
A56: 46 | B56: -0.41 | C56: 0.12 | J56: -0.1394 | K56: -0.5806
A57: 47 | B57: -0.13 | C57: 0.11 | J57: -0.1364 | K57: -0.5518
A58: 48 | B58: -0.42 | C58: 0.11 | J58: -0.1352 | K58: -0.4779
A59: 49 | B59: -0.14 | C59: 0.11 | J59: -0.1335 | K59: -0.3688
A60: 50 | B60: -0.07 | C60: 0.11 | J60: -0.097 | K60: -0.3038
A61: 51 | B61: -0.37 | C61: 0.11 | J61: -0.0958 | K61: -0.3726
A62: 52 | B62: -0.68 | C62: 0.11 | J62: -0.0935 | K62: -0.5025
A63: 53 | B63: 0.41 | C63: 0.11 | J63: -0.0935 | K63: -0.5053
A64: 54 | B64: -0.1 | C64: 0.11 | J64: -0.0943 | K64: -0.3733
A65: 55 | B65: 0.27 | C65: 0.11 | J65: -0.0968 | K65: -0.3843
A66: 56 | B66: 0.01 | C66: 0.1 | J66: -0.0988 | K66: -0.493
A67: 57 | B67: -0.18 | C67: 0.1 | J67: -0.102 | K67: -0.4863
A68: 58 | B68: 0.05 | C68: 0.1 | J68: -0.1053 | K68: -0.4631
A69: 59 | B69: 0.05 | C69: 0.1 | J69: -0.1096 | K69: -0.4557
A70: 60 | B70: 0.18 | C70: 0.1 | J70: -0.1117 | K70: -0.4164
A71: 61 | B71: 0.31 | C71: 0.1 | J71: -0.1161 | K71: -0.3838
A72: 62 | B72: 0.13 | C72: 0.09 | J72: -0.1152 | K72: -0.3856
A73: 63 | B73: 0.52 | C73: 0.09 | J73: -0.1184 | K73: -0.4164
A74: 64 | B74: 0.73 | C74: 0.09 | J74: -0.1213 | K74: -0.4998
A75: 65 | B75: 0.95 | C75: 0.09 | J75: -0.1208 | K75: -0.5659
A76: 66 | B76: 0.15 | C76: 0.08 | J76: -0.1226 | K76: -0.5378
A77: 67 | B77: 0.28 | C77: 0.08 | J77: -0.1251 | K77: -0.5402
A78: 68 | B78: -0.44 | C78: 0.08 | J78: -0.1288 | K78: -0.5882
A79: 69 | B79: 0.39 | C79: 0.08 | J79: -0.1298 | K79: -0.6314
A80: 70 | B80: 0.25 | C80: 0.08 | J80: -0.1306 | K80: -0.6478
A81: 71 | B81: 0.28 | C81: 0.07 | J81: -0.131 | K81: -0.6195
A82: 72 | B82: -0.02 | C82: 0.07 | J82: -0.1286 | K82: -0.5086
A83: 73 | B83: 0.37 | C83: 0.07 | J83: -0.1262 | K83: -0.4506
A84: 74 | B84: 0.21 | C84: 0.07 | J84: -0.125 | K84: -0.4654
A85: 75 | B85: 0.21 | C85: 0.06 | J85: -0.1241 | K85: -0.4546
A86: 76 | B86: 0 | C86: 0.06 | J86: -0.1221 | K86: -0.3788
A87: 77 | B87: 0.21 | C87: 0.06 | J87: -0.1207 | K87: -0.2938
A88: 78 | B88: -0.6 | C88: 0.06 | J88: -0.1156 | K88: -0.2459
A89: 79 | B89: 0.3 | C89: 0.06 | J89: -0.1117 | K89: -0.2144
A90: 80 | B90: 0.49 | C90: 0.05 | J90: -0.1058 | K90: -0.189
A91: 81 | B91: -0.01 | C91: 0.05 | J91: -0.1019 | K91: -0.2348
A92: 82 | B92: 0.03 | C92: 0.05 | J92: -0.0975 | K92: -0.3591
A93: 83 | B93: -0.28 | C93: 0.05 | J93: -0.0901 | K93: -0.4867
A94: 84 | B94: -0.13 | C94: 0.05 | J94: -0.0834 | K94: -0.5625
A95: 85 | B95: -0.84 | C95: 0.05 | J95: -0.0772 | K95: -0.6237
A96: 86 | B96: -0.1 | C96: 0.04 | J96: -0.0712 | K96: -0.6787
A97: 87 | B97: -0.41 | C97: 0.04 | J97: -0.0648 | K97: -0.6368
A98: 88 | B98: -0.06 | C98: 0.04 | J98: -0.0592 | K98: -0.3971
A99: 89 | B99: -0.01 | C99: 0.04 | J99: -0.054 | K99: -0.1764
A100: 90 | B100: 0.28 | C100: 0.04 | J100: -0.0466 | K100: -0.1596
A101: 91 | B101: -0.13 | C101: 0.04 | J101: -0.0413 | K101: -0.2154
A102: 92 | B102: -0.03 | C102: 0.04 | J102: -0.0338 | K102: -0.266
A103: 93 | B103: -0.22 | C103: 0.04 | J103: -0.0235 | K103: -0.3524
A104: 94 | B104: -0.32 | C104: 0.04 | J104: -0.0161 | K104: -0.3934
A105: 95 | B105: 0.08 | C105: 0.04 | J105: -0.0043 | K105: -0.2988
A106: 96 | B106: -0.23 | C106: 0.04 | J106: 0.0078 | K106: -0.1631
A107: 97 | B107: 0.03 | C107: 0.03 | J107: 0.0252 | K107: -0.161
A108: 98 | B108: -0.19 | C108: 0.03 | J108: 0.0391 | K108: -0.2395
A109: 99 | B109: 0.16 | C109: 0.03 | J109: 0.0521 | K109: -0.3811
A110: 100 | B110: 0.04 | C110: 0.03 | J110: 0.0634 | K110: -0.5429
A111: 101 | B111: -0.6 | C111: 0.03 | J111: 0.0692 | K111: -0.4989
A112: 102 | B112: -0.21 | C112: 0.03 | J112: 0.0739 | K112: -0.3473
A113: 103 | B113: 0.15 | C113: 0.03 | J113: 0.0758 | K113: -0.2829
A114: 104 | B114: 0.04 | C114: 0.04 | J114: 0.0775 | K114: -0.2581
A115: 105 | B115: -0.1 | C115: 0.04 | J115: 0.0815 | K115: -0.2461
A116: 106 | B116: -0.19 | C116: 0.04 | J116: 0.0798 | K116: -0.2552
A117: 107 | B117: 0.83 | C117: 0.04 | J117: 0.0779 | K117: -0.2878
A118: 108 | B118: 0.23 | C118: 0.04 | J118: 0.0758 | K118: -0.4534
A119: 109 | B119: 0.06 | C119: 0.04 | J119: 0.0743 | K119: -0.5698
A120: 110 | B120: 0.06 | C120: 0.04 | J120: 0.0738 | K120: -0.3844
A121: 111 | B121: -0.02 | C121: 0.04 | J121: 0.0733 | K121: -0.2801
A122: 112 | B122: -0.26 | C122: 0.04 | J122: 0.069 | K122: -0.372
A123: 113 | B123: 0.25 | C123: 0.04 | J123: 0.0651 | K123: -0.3426
A124: 114 | B124: -0.29 | C124: 0.04 | J124: 0.0598 | K124: -0.2199
A125: 115 | B125: -0.18 | C125: 0.04 | J125: 0.0548 | K125: -0.1638
A126: 116 | B126: 0.63 | C126: 0.04 | J126: 0.0504 | K126: -0.2379
A127: 117 | B127: 0.35 | C127: 0.04 | J127: 0.0482 | K127: -0.3896
A128: 118 | B128: 0.31 | C128: 0.04 | J128: 0.0438 | K128: -0.4587
A129: 119 | B129: -0.22 | C129: 0.04 | J129: 0.0393 | K129: -0.3825
A130: 120 | B130: 0.22 | C130: 0.04 | J130: 0.0355 | K130: -0.2335
A131: 121 | B131: 0.26 | C131: 0.04 | J131: 0.0265 | K131: -0.1916
A132: 122 | B132: 0.39 | C132: 0.04 | J132: 0.0155 | K132: -0.3419
A133: 123 | B133: -0.01 | C133: 0.04 | J133: 0.0058 | K133: -0.4281
A134: 124 | B134: -0.47 | C134: 0.04 | J134: -0.0058 | K134: -0.2966
A135: 125 | B135: 0.01 | C135: 0.04 | J135: -0.0124 | K135: -0.222
A136: 126 | B136: 0.25 | C136: 0.04 | J136: -0.0234 | K136: -0.2841
A137: 127 | B137: 0.15 | C137: 0.04 | J137: -0.0325 | K137: -0.2824
A138: 128 | B138: -0.16 | C138: 0.04 | J138: -0.0415 | K138: -0.1788
A139: 129 | B139: 0.29 | C139: 0.04 | J139: -0.0492 | K139: -0.106
A140: 130 | B140: 0.38 | C140: 0.04 | J140: -0.0521 | K140: -0.1202
A141: 131 | B141: 0.57 | C141: 0.04 | J141: -0.0536 | K141: -0.1869
A142: 132 | B142: 0.13 | C142: 0.04 | J142: -0.0541 | K142: -0.2509
A143: 133 | B143: 0.21 | C143: 0.04 | J143: -0.0538 | K143: -0.3068
A144: 134 | B144: -0.3 | C144: 0.04 | J144: -0.0545 | K144: -0.3106
A145: 135 | B145: 0.37 | C145: 0.03 | J145: -0.0524 | K145: -0.3025
A146: 136 | B146: 0.2 | C146: 0.03 | J146: -0.0506 | K146: -0.3333
A147: 137 | B147: 0.07 | C147: 0.03 | J147: -0.0485 | K147: -0.321
A148: 138 | B148: 0.12 | C148: 0.03 | J148: -0.0471 | K148: -0.2568
A149: 139 | B149: 0.23 | C149: 0.03 | J149: -0.0442 | K149: -0.292
A150: 140 | B150: 0.25 | C150: 0.03 | J150: -0.0426 | K150: -0.3688
A151: 141 | B151: 0.14 | C151: 0.03 | J151: -0.0376 | K151: -0.3948
A152: 142 | B152: -0.37 | C152: 0.02 | J152: -0.0311 | K152: -0.4377
A153: 143 | B153: -0.17 | C153: 0.02 | J153: -0.0239 | K153: -0.4898
A154: 144 | B154: 0.15 | C154: 0.02 | J154: -0.0176 | K154: -0.4924
A155: 145 | B155: 0.01 | C155: 0.02 | J155: -0.0119 | K155: -0.5067
A156: 146 | B156: -0.49 | C156: 0.02 | J156: -0.0074 | K156: -0.5304
A157: 147 | B157: 0.37 | C157: 0.02 | J157: -0.0008 | K157: -0.4636
A158: 148 | B158: 0.22 | C158: 0.02 | J158: -0.0026 | K158: -0.2806
A159: 149 | B159: 0.63 | C159: 0.01 | J159: 0.0015 | K159: -0.2671
A160: 150 | B160: -0.35 | C160: 0.01 | J160: 0.0076 | K160: -0.508
A161: 151 | B161: -0.32 | C161: 0.01 | J161: 0.0151 | K161: -0.6866
A162: 152 | B162: -0.34 | C162: 0.01 | J162: 0.0206 | K162: -0.611
A163: 153 | B163: -0.31 | C163: 0.01 | J163: 0.025 | K163: -0.4179
A164: 154 | B164: 0.08 | C164: 0.01 | J164: 0.024 | K164: -0.2947
A165: 155 | B165: 0.04 | C165: 0.01 | J165: 0.0219 | K165: -0.2106
A166: 156 | B166: 0.06 | C166: 0 | J166: 0.0197 | K166: -0.118
A167: 157 | B167: -0.37 | C167: 0 | J167: 0.0174 | K167: -0.1161
A168: 158 | B168: -0.2 | C168: 0 | J168: 0.0149 | K168: -0.2142
A169: 159 | B169: -0.1 | C169: 0 | J169: 0.0097 | K169: -0.2747
A170: 160 | B170: 0.35 | C170: 0 | J170: 0.0025 | K170: -0.2591
A171: 161 | B171: 0.54 | C171: 0 | J171: -0.0019 | K171: -0.2156
A172: 162 | B172: 0.21 | C172: 0 | J172: -0.0083 | K172: -0.1945
A173: 163 | B173: 0 | C173: 0 | J173: -0.011 | K173: -0.2474
A174: 164 | B174: -0.17 | C174: 0 | J174: -0.0135 | K174: -0.3998
A175: 165 | B175: 0.01 | C175: 0 | J175: -0.015 | K175: -0.4509
A176: 166 | B176: -0.65 | C176: 0 | J176: -0.0164 | K176: -0.33
A177: 167 | B177: -0.01 | C177: 0 | J177: -0.0186 | K177: -0.3069
A178: 168 | B178: -0.18 | C178: 0 | J178: -0.0169 | K178: -0.4336
A179: 169 | B179: -0.35 | C179: 0 | J179: -0.0124 | K179: -0.4444
A180: 170 | B180: -0.28 | C180: 0 | J180: -0.0081 | K180: -0.3686
A181: 171 | B181: 0.01 | C181: 0 | J181: -0.0014 | K181: -0.426
A182: 172 | B182: -0.09 | C182: 0 | J182: 0.0036 | K182: -0.5333
A183: 173 | B183: 0.07 | C183: 0 | J183: 0.0078 | K183: -0.5736
A184: 174 | B184: -0.44 | C184: 0.01 | J184: 0.0105 | K184: -0.6416
A185: 175 | B185: -0.37 | C185: 0.01 | J185: 0.0115 | K185: -0.7074
A186: 176 | B186: -0.5 | C186: 0.01 | J186: 0.0097 | K186: -0.6821
A187: 177 | B187: -0.55 | C187: 0.01 | J187: 0.0067 | K187: -0.596
A188: 178 | B188: 0.12 | C188: 0.01 | J188: -0.0002 | K188: -0.5643
A189: 179 | B189: -0.06 | C189: 0.01 | J189: -0.0091 | K189: -0.5352
A190: 180 | B190: -0.28 | C190: 0.01 | J190: -0.0227 | K190: -0.4924
A191: 181 | B191: -0.47 | C191: 0.02 | J191: -0.0338 | K191: -0.4768
A192: 182 | B192: -0.02 | C192: 0.02 | J192: -0.0453 | K192: -0.4095
A193: 183 | B193: 0.21 | C193: 0.02 | J193: -0.055 | K193: -0.326
A194: 184 | B194: -0.33 | C194: 0.02 | J194: -0.0649 | K194: -0.2583
A195: 185 | B195: 0.61 | C195: 0.02 | J195: -0.0749 | K195: -0.2111
A196: 186 | B196: -0.02 | C196: 0.03 | J196: -0.0853 | K196: -0.2171
A197: 187 | B197: 0.3 | C197: 0.03 | J197: -0.0962 | K197: -0.25
A198: 188 | B198: -0.07 | C198: 0.03 | J198: -0.1081 | K198: -0.3283
A199: 189 | B199: 0.53 | C199: 0.03 | J199: -0.1177 | K199: -0.4233
A200: 190 | B200: 0.09 | C200: 0.03 | J200: -0.1306 | K200: -0.404
A201: 191 | B201: 0.68 | C201: 0.03 | J201: -0.1397 | K201: -0.295
... 1832 more rows

Sheet Air Temp Ice
A1: Surface Air Temperature: Ice Cores
B3: Downloaded Data | F3: Calculations
B4: Years before 1950 | C4: Reconstructed change in Antarctic temperature | D4: Years before 2001 | E4: Reconstructed change in Antarctic temperature | F4: Year AD | G4: Change in global temperature, estimated from change in Antarctic temperature | H4: Change in global temperature, estimated from change in Antarctic temperature, smoothed (200 year centered) | I4: Year AD
A5: Dataset--> | B5: Dome C (EPICA) | C5: Dome C (EPICA) | D5: Vostok | E5: Vostok | F5: Dome C (EPICA) | G5: Dome C (EPICA) | H5: Dome C (EPICA) | I5: Vostok
A6: Units--> | B6: years | C6: deg C | D6: years | E6: deg C | F6: year AD | G6: deg C | H6: deg C | I6: year AD
B7: 801662 | C7: -8.824926773 | D7: 422766 | E7: 0.23 | F7: =1950 - B7 -> -799712 | G7: =C7 * airIce_globalToAntarctic -> -4.412463387 | I7: =2001 - D7 -> -420765
B8: 800589 | C8: -8.920601052 | D8: 422135 | E8: 0.08 | F8: =1950 - B8 -> -798639 | G8: -4.460300526 | I8: -420134
B9: 799501 | C9: -8.877276573 | D9: 421507 | E9: 0.15 | F9: -797551 | G9: -4.438638286 | I9: -419506
B10: 798443 | C10: -8.535508178 | D10: 420888 | E10: 0.32 | F10: =1950 - B10 -> -796493 | G10: -4.267754089 | I10: -418887
B11: 797408 | C11: -8.733299975 | D11: 420281 | E11: 0.54 | F11: -795458 | G11: -4.366649987 | I11: -418280
B12: 796449 | C12: -8.525941178 | D12: 419682 | E12: 0.51 | F12: -794499 | G12: -4.262970589 | I12: -417681
B13: 795556 | C13: -8.227708382 | D13: 419095 | E13: 0.94 | F13: -793606 | G13: -4.113854191 | I13: -417094
B14: 794708 | C14: -7.330286194 | D14: 418526 | E14: 1.27 | F14: -792758 | G14: -3.665143097 | I14: -416525
B15: 793876 | C15: -6.514470163 | D15: 417969 | E15: 1.4 | F15: -791926 | G15: -3.257235081 | I15: -415968
B16: 793079 | C16: -5.906898609 | D16: 417419 | E16: 1.43 | F16: -791129 | G16: -2.953449304 | I16: -415418
B17: 792331 | C17: -5.605842845 | D17: 416872 | E17: 1.36 | F17: -790381 | G17: -2.802921423 | I17: -414871
B18: 791618 | C18: -5.05458373 | D18: 416327 | E18: 1.32 | F18: -789668 | G18: -2.527291865 | I18: -414326
B19: 790937 | C19: -4.269647045 | D19: 415781 | E19: 1.13 | F19: -788987 | G19: -2.134823522 | I19: -413780
B20: 790282 | C20: -3.69636933 | D20: 415235 | E20: 1.16 | F20: -788332 | G20: -1.848184665 | I20: -413234
B21: 789635 | C21: -3.087140956 | D21: 414692 | E21: 1.07 | F21: -787685 | G21: -1.543570478 | I21: -412691
B22: 789019 | C22: -2.588467925 | D22: 414147 | E22: 0.85 | F22: -787069 | G22: -1.294233963 | I22: -412146
B23: 788442 | C23: -2.365610217 | D23: 413601 | E23: 0.8 | F23: -786492 | G23: -1.182805109 | I23: -411600
B24: 787885 | C24: -1.746951676 | D24: 413062 | E24: 1.08 | F24: -785935 | G24: -0.8734758381 | I24: -411061
B25: 787298 | C25: -0.5416531435 | D25: 412533 | E25: 1.15 | F25: -785348 | G25: -0.2708265718 | I25: -410532
B26: 786706 | C26: -0.626160954 | D26: 412009 | E26: 1.23 | F26: -784756 | G26: -0.313080477 | I26: -410008
B27: 786105 | C27: -1.042711804 | D27: 411492 | E27: 1.34 | F27: -784155 | G27: -0.5213559022 | I27: -409491
B28: 785470 | C28: -1.052642789 | D28: 410979 | E28: 1.27 | F28: -783520 | G28: -0.5263213945 | I28: -408978
B29: 784830 | C29: -1.147844921 | D29: 410483 | E29: 2.13 | F29: -782880 | G29: -0.5739224605 | I29: -408482
B30: 784173 | C30: -1.707016281 | D30: 409995 | E30: 1.64 | F30: -782223 | G30: -0.8535081407 | I30: -407994
B31: 783528 | C31: -1.698586814 | D31: 409496 | E31: 1.28 | F31: -781578 | G31: -0.8492934072 | I31: -407495
B32: 782856 | C32: -2.043295777 | D32: 408992 | E32: 1.12 | F32: -780906 | G32: -1.021647888 | I32: -406991
B33: 782180 | C33: -1.839817761 | D33: 408485 | E33: 0.94 | F33: -780230 | G33: -0.9199088807 | I33: -406484
B34: 781519 | C34: -2.277548185 | D34: 407977 | E34: 0.85 | F34: -779569 | G34: -1.138774092 | I34: -405976
B35: 780863 | C35: -2.36965185 | D35: 407469 | E35: 0.71 | F35: -778913 | G35: -1.184825925 | I35: -405468
B36: 780209 | C36: -2.167858247 | D36: 406957 | E36: 0.49 | F36: -778259 | G36: -1.083929124 | I36: -404956
B37: 779549 | C37: -2.134427106 | D37: 406441 | E37: 0.31 | F37: -777599 | G37: -1.067213553 | I37: -404440
B38: 778873 | C38: -2.170692145 | D38: 405923 | E38: 0.18 | F38: -776923 | G38: -1.085346072 | I38: -403922
B39: 778201 | C39: -2.338501572 | D39: 405401 | E39: -0.1 | F39: -776251 | G39: -1.169250786 | I39: -403400
B40: 777536 | C40: -2.670985374 | D40: 404874 | E40: -0.28 | F40: -775586 | G40: -1.335492687 | I40: -402873
B41: 776861 | C41: -2.695588013 | D41: 404346 | E41: -0.37 | F41: -774911 | G41: -1.347794007 | I41: -402345
B42: 776159 | C42: -2.691466575 | D42: 403815 | E42: -0.58 | F42: -774209 | G42: -1.345733287 | I42: -401814
B43: 775442 | C43: -2.958481197 | D43: 403276 | E43: -1.01 | F43: -773492 | G43: -1.479240599 | I43: -401275
B44: 774703 | C44: -3.4746863 | D44: 402728 | E44: -1.23 | F44: -772753 | G44: -1.73734315 | I44: -400727
B45: 773957 | C45: -3.821475253 | D45: 402179 | E45: -1.26 | F45: -772007 | G45: -1.910737627 | I45: -400178
B46: 773239 | C46: -4.129001742 | D46: 401636 | E46: -1.09 | F46: -771289 | G46: -2.064500871 | I46: -399635
B47: 772553 | C47: -4.522243531 | D47: 401097 | E47: -1.17 | F47: -770603 | G47: -2.261121765 | I47: -399096
B48: 771907 | C48: -4.322617233 | D48: 400553 | E48: -1.58 | F48: -769957 | G48: -2.161308616 | I48: -398552
B49: 771249 | C49: -3.934397246 | D49: 400003 | E49: -1.64 | F49: -769299 | G49: -1.967198623 | I49: -398002
B50: 770559 | C50: -3.798025354 | D50: 399455 | E50: -1.65 | F50: -768609 | G50: -1.899012677 | I50: -397454
B51: 769831 | C51: -3.844902714 | D51: 398909 | E51: -1.68 | F51: -767881 | G51: -1.922451357 | I51: -396908
B52: 769072 | C52: -4.538439906 | D52: 398361 | E52: -1.92 | F52: -767122 | G52: -2.269219953 | I52: -396360
B53: 768299 | C53: -5.334949056 | D53: 397808 | E53: -2.13 | F53: -766349 | G53: -2.667474528 | I53: -395807
B54: 767558 | C54: -6.002786353 | D54: 397253 | E54: -2.2 | F54: -765608 | G54: -3.001393177 | I54: -395252
B55: 766880 | C55: -6.395360156 | D55: 396694 | E55: -2.54 | F55: -764930 | G55: -3.197680078 | I55: -394693
B56: 766238 | C56: -6.217578919 | D56: 396126 | E56: -2.8 | F56: -764288 | G56: -3.10878946 | I56: -394125
B57: 765628 | C57: -5.556853022 | D57: 395543 | E57: -3.43 | F57: -763678 | G57: -2.778426511 | I57: -393542
B58: 765016 | C58: -5.098900656 | D58: 394935 | E58: -4.23 | F58: -763066 | G58: -2.549450328 | I58: -392934
B59: 764399 | C59: -4.759856587 | D59: 394297 | E59: -5.02 | F59: -762449 | G59: -2.379928294 | I59: -392296
B60: 763761 | C60: -4.724098727 | D60: 393636 | E60: -5.4 | F60: -761811 | G60: -2.362049363 | I60: -391635
B61: 763083 | C61: -5.163094756 | D61: 392972 | E61: -5.31 | F61: -761133 | G61: -2.581547378 | I61: -390971
B62: 762387 | C62: -5.776098623 | D62: 392317 | E62: -5.17 | F62: -760437 | G62: -2.888049312 | I62: -390316
B63: 761692 | C63: -6.721026579 | D63: 391658 | E63: -5.6 | F63: -759742 | G63: -3.36051329 | I63: -389657
B64: 761022 | C64: -7.330197878 | D64: 390999 | E64: -5.36 | F64: -759072 | G64: -3.665098939 | I64: -388998
B65: 760417 | C65: -7.268437641 | D65: 390349 | E65: -5.34 | F65: -758467 | G65: -3.63421882 | I65: -388348
B66: 759838 | C66: -7.122119609 | D66: 389700 | E66: -5.44 | F66: -757888 | G66: -3.561059804 | I66: -387699
B67: 759282 | C67: -6.425624986 | D67: 389061 | E67: -5.07 | F67: -757332 | G67: -3.212812493 | I67: -387060
B68: 758757 | C68: -6.072490146 | D68: 388435 | E68: -5.02 | F68: -756807 | G68: -3.036245073 | I68: -386434
B69: 758265 | C69: -5.765758977 | D69: 387804 | E69: -5.4 | F69: -756315 | G69: -2.882879489 | I69: -385803
B70: 757758 | C70: -5.298143879 | D70: 387167 | E70: -5.46 | F70: -755808 | G70: -2.64907194 | I70: -385166
B71: 757220 | C71: -5.087080999 | D71: 386528 | E71: -5.65 | F71: -755270 | G71: =C71 * airIce_globalToAntarctic -> -2.543540499 | I71: =2001 - D71 -> -384527
B72: 756643 | C72: -5.498389762 | D72: 385894 | E72: -5.36 | F72: -754693 | G72: -2.749194881 | I72: -383893
B73: 756060 | C73: -6.24707894 | D73: 385288 | E73: -4.54 | F73: -754110 | G73: -3.12353947 | I73: -383287
B74: 755475 | C74: -7.216708816 | D74: 384710 | E74: -4.1 | F74: -753525 | G74: -3.608354408 | I74: -382709
B75: 754886 | C75: -7.540962733 | D75: 384159 | E75: -3.24 | F75: =1950 - B75 -> -752936 | G75: -3.770481366 | I75: -382158
B76: 754300 | C76: -7.792717549 | D76: 383641 | E76: -2.5 | F76: -752350 | G76: -3.896358775 | I76: -381640
B77: 753716 | C77: -7.966349032 | D77: 383134 | E77: -2.72 | F77: -751766 | G77: -3.983174516 | I77: -381133
B78: 753139 | C78: -8.243503173 | D78: 382622 | E78: -2.92 | F78: -751189 | G78: -4.121751586 | I78: -380621
B79: 752561 | C79: -8.370780653 | D79: 382095 | E79: -3.72 | F79: -750611 | G79: -4.185390326 | I79: -380094
B80: 751990 | C80: -8.417083398 | D80: 381551 | E80: -4.05 | F80: -750040 | G80: -4.208541699 | I80: -379550
B81: 751428 | C81: -8.594557206 | D81: 380997 | E81: -4.32 | F81: -749478 | G81: -4.297278603 | I81: -378996
B82: 750878 | C82: -8.581645683 | D82: 380435 | E82: -4.68 | F82: -748928 | G82: -4.290822841 | I82: -378434
B83: 750322 | C83: -8.498771882 | D83: 379864 | E83: -4.88 | F83: -748372 | G83: -4.249385941 | I83: -377863
B84: 749766 | C84: -8.319057196 | D84: 379297 | E84: -4.63 | F84: =1950 - B84 -> -747816 | G84: -4.159528598 | I84: -377296
B85: 749203 | C85: -8.439433627 | D85: 378743 | E85: -4.29 | F85: -747253 | G85: -4.219716813 | I85: -376742
B86: 748642 | C86: -8.599191378 | D86: 378210 | E86: -3.72 | F86: -746692 | G86: -4.299595689 | I86: -376209
B87: 748091 | C87: -8.692178535 | D87: 377702 | E87: -2.99 | F87: -746141 | G87: -4.346089267 | I87: -375701
B88: 747520 | C88: -8.629371946 | D88: 377204 | E88: -3.27 | F88: -745570 | G88: -4.314685973 | I88: -375203
B89: 746947 | C89: -8.622836102 | D89: 376690 | E89: -4.07 | F89: -744997 | G89: -4.311418051 | I89: -374689
B90: 746375 | C90: -8.562374242 | D90: 376155 | E90: -4.55 | F90: -744425 | G90: -4.281187121 | I90: -374154
B91: 745782 | C91: -8.564288673 | D91: 375604 | E91: -5.08 | F91: -743832 | G91: -4.282144337 | I91: -373603
B92: 745171 | C92: -8.407421656 | D92: 375042 | E92: -5.26 | F92: -743221 | G92: -4.203710828 | I92: -373041
B93: 744545 | C93: -8.671842044 | D93: 374478 | E93: -5.33 | F93: -742595 | G93: -4.335921022 | I93: -372477
B94: 743934 | C94: -8.838089454 | D94: 373909 | E94: -5.66 | F94: -741984 | G94: -4.419044727 | I94: -371908
B95: 743325 | C95: -8.946589736 | D95: 373331 | E95: -5.9 | F95: -741375 | G95: -4.473294868 | I95: -371330
B96: 742707 | C96: -8.597399321 | D96: 372746 | E96: -6.15 | F96: -740757 | G96: -4.29869966 | I96: -370745
B97: 742086 | C97: -8.474105022 | D97: 372149 | E97: -6.58 | F97: -740136 | G97: -4.237052511 | I97: -370148
B98: 741465 | C98: -8.25391143 | D98: 371545 | E98: -6.67 | F98: -739515 | G98: -4.126955715 | I98: -369544
B99: 740867 | C99: -8.243219679 | D99: 370960 | E99: -5.74 | F99: -738917 | G99: -4.121609839 | I99: -368959
B100: 740294 | C100: -8.078346292 | D100: 370403 | E100: -5.42 | F100: -738344 | G100: -4.039173146 | I100: -368402
B101: 739778 | C101: -7.160640052 | D101: 369858 | E101: -5.23 | F101: -737828 | G101: -3.580320026 | I101: -367857
B102: 739277 | C102: -6.271213958 | D102: 369331 | E102: -4.54 | F102: -737327 | G102: -3.135606979 | I102: -367330
B103: 738799 | C103: -5.624440591 | D103: 368829 | E103: -4.03 | F103: -736849 | G103: -2.812220296 | I103: -366828
B104: 738294 | C104: -5.376683594 | D104: 368329 | E104: -4.46 | F104: -736344 | G104: -2.688341797 | I104: -366328
B105: 737809 | C105: -4.763218456 | D105: 367816 | E105: -4.97 | F105: -735859 | G105: -2.381609228 | I105: -365815
B106: 737354 | C106: -4.523618144 | D106: 367297 | E106: -4.86 | F106: -735404 | G106: -2.261809072 | I106: -365296
B107: 736837 | C107: -4.474532271 | D107: 366784 | E107: -4.84 | F107: -734887 | G107: -2.237266135 | I107: -364783
B108: 736355 | C108: -4.028160432 | D108: 366267 | E108: -5.13 | F108: -734405 | G108: -2.014080216 | I108: -364266
B109: 735855 | C109: -3.718570852 | D109: 365743 | E109: -5.4 | F109: -733905 | G109: -1.859285426 | I109: -363742
B110: 735336 | C110: -3.99249375 | D110: 365208 | E110: -5.88 | F110: -733386 | G110: -1.996246875 | I110: -363207
B111: 734843 | C111: -4.150062192 | D111: 364659 | E111: -6.21 | F111: -732893 | G111: -2.075031096 | I111: -362658
B112: 734327 | C112: -3.948890887 | D112: 364114 | E112: -5.84 | F112: -732377 | G112: -1.974445443 | I112: -362113
B113: 733803 | C113: -3.932453912 | D113: 363580 | E113: -5.72 | F113: -731853 | G113: -1.966226956 | I113: -361579
B114: 733241 | C114: -3.791145256 | D114: 363042 | E114: -6.2 | F114: -731291 | G114: -1.895572628 | I114: -361041
B115: 732602 | C115: -4.195637153 | D115: 362503 | E115: -5.9 | F115: -730652 | G115: -2.097818577 | I115: -360502
B116: 731946 | C116: -4.849097395 | D116: 361973 | E116: -5.79 | F116: -729996 | G116: -2.424548698 | I116: -359972
B117: 731331 | C117: -5.28454557 | D117: 361440 | E117: -6.24 | F117: -729381 | G117: -2.642272785 | I117: -359439
B118: 730709 | C118: -5.225655843 | D118: 360904 | E118: -6.05 | F118: -728759 | G118: -2.612827922 | I118: -358903
B119: 730050 | C119: -5.305909065 | D119: 360376 | E119: -5.89 | F119: -728100 | G119: -2.652954533 | I119: -358375
B120: 729369 | C120: -5.686920689 | D120: 359855 | E120: -5.8 | F120: -727419 | G120: -2.843460344 | I120: -357854
B121: 728662 | C121: -5.826300405 | D121: 359327 | E121: -6.41 | F121: -726712 | G121: -2.913150203 | I121: -357326
B122: 727948 | C122: -6.050017265 | D122: 358786 | E122: -6.64 | F122: -725998 | G122: -3.025008632 | I122: -356785
B123: 727213 | C123: -5.964830386 | D123: 358247 | E123: -6.39 | F123: -725263 | G123: -2.982415193 | I123: -356246
B124: 726535 | C124: -6.101884906 | D124: 357712 | E124: -6.58 | F124: -724585 | G124: -3.050942453 | I124: -355711
B125: 725802 | C125: -5.072451994 | D125: 357167 | E125: -7.01 | F125: -723852 | G125: -2.536225997 | I125: -355166
B126: 724982 | C126: -5.181263654 | D126: 356612 | E126: -7.24 | F126: -723032 | G126: -2.590631827 | I126: -354611
B127: 724233 | C127: -5.752378263 | D127: 356060 | E127: -6.94 | F127: -722283 | G127: -2.876189131 | I127: -354059
B128: 723478 | C128: -7.141913832 | D128: 355512 | E128: -7.13 | F128: -721528 | G128: -3.570956916 | I128: -353511
B129: 722534 | C129: -8.322706648 | D129: 354958 | E129: -7.41 | F129: -720584 | G129: -4.161353324 | I129: -352957
B130: 721643 | C130: -8.770289812 | D130: 354400 | E130: -7.46 | F130: -719693 | G130: -4.385144906 | I130: -352399
B131: 720764 | C131: -7.895461844 | D131: 353838 | E131: -7.71 | F131: -718814 | G131: -3.947730922 | I131: -351837
B132: 720001 | C132: -7.131910317 | D132: 353273 | E132: -7.71 | F132: -718051 | G132: -3.565955159 | I132: -351272
B133: 719147 | C133: -6.915889249 | D133: 352710 | E133: -7.77 | F133: -717197 | G133: -3.457944625 | I133: -350709
B134: 718378 | C134: -6.473121429 | D134: 352150 | E134: -7.64 | F134: -716428 | G134: -3.236560715 | I134: -350149
B135: 717625 | C135: -6.225863261 | D135: 351596 | E135: -7.57 | F135: -715675 | G135: =C135 * airIce_globalToAntarctic -> -3.112931631 | I135: =2001 - D135 -> -349595
B136: 716860 | C136: -5.590118235 | D136: 351044 | E136: -7.64 | F136: -714910 | G136: -2.795059117 | I136: -349043
B137: 716162 | C137: -5.257182024 | D137: 350493 | E137: -7.64 | F137: -714212 | G137: -2.628591012 | I137: -348492
B138: 715479 | C138: -5.203913804 | D138: 349945 | E138: -7.61 | F138: =1950 - B138 -> -713529 | G138: -2.601956902 | I138: -347944
B139: 714808 | C139: -4.234130993 | D139: 349404 | E139: -7.32 | F139: -712858 | G139: -2.117065496 | I139: -347403
B140: 714092 | C140: -4.020296258 | D140: 348877 | E140: -7.02 | F140: -712142 | G140: -2.010148129 | I140: -346876
B141: 713410 | C141: -3.899234173 | D141: 348357 | E141: -7.05 | F141: -711460 | G141: -1.949617087 | I141: -346356
B142: 712743 | C142: -4.289144739 | D142: 347841 | E142: -6.92 | F142: -710793 | G142: -2.144572369 | I142: -345840
B143: 712087 | C143: -4.194264672 | D143: 347330 | E143: -6.83 | F143: -710137 | G143: -2.097132336 | I143: -345329
B144: 711436 | C144: -4.052687705 | D144: 346823 | E144: -6.84 | F144: -709486 | G144: -2.026343852 | I144: -344822
B145: 710806 | C145: -3.996611828 | D145: 346319 | E145: -6.76 | F145: -708856 | G145: -1.998305914 | I145: -344318
B146: 710178 | C146: -4.061651319 | D146: 345821 | E146: -6.65 | F146: -708228 | G146: -2.03082566 | I146: -343820
B147: 709591 | C147: -3.884515297 | D147: 345327 | E147: -6.58 | F147: -707641 | G147: -1.942257648 | I147: -343326
B148: 709011 | C148: -4.016678969 | D148: 344839 | E148: -6.43 | F148: -707061 | G148: -2.008339485 | I148: -342838
B149: 708436 | C149: -3.495922706 | D149: 344348 | E149: -6.84 | F149: -706486 | G149: -1.747961353 | I149: -342347
B150: 707870 | C150: -3.556354762 | D150: 343853 | E150: -6.76 | F150: -705920 | G150: -1.778177381 | I150: -341852
B151: 707312 | C151: -3.670451646 | D151: 343364 | E151: -6.64 | F151: -705362 | G151: -1.835225823 | I151: -341363
B152: 706780 | C152: -3.702690317 | D152: 342879 | E152: -6.59 | F152: -704830 | G152: -1.851345158 | I152: -340878
B153: 706270 | C153: -3.749518524 | D153: 342401 | E153: -6.32 | F153: -704320 | G153: -1.874759262 | I153: -340400
B154: 705770 | C154: -3.464578545 | D154: 341930 | E154: -6.26 | F154: -703820 | G154: -1.732289272 | I154: -339929
B155: 705287 | C155: -3.211772561 | D155: 341462 | E155: -6.31 | F155: -703337 | G155: -1.605886281 | I155: -339461
B156: 704825 | C156: -3.206104016 | D156: 340984 | E156: -6.88 | F156: -702875 | G156: -1.603052008 | I156: -338983
B157: 704384 | C157: -3.050142736 | D157: 340490 | E157: -7.44 | F157: -702434 | G157: -1.525071368 | I157: -338489
B158: 703956 | C158: -2.776351003 | D158: 339993 | E158: -7.13 | F158: -702006 | G158: -1.388175502 | I158: -337992
B159: 703529 | C159: -2.452674477 | D159: 339505 | E159: -6.98 | F159: -701579 | G159: -1.226337238 | I159: -337504
B160: 703114 | C160: -2.3593966 | D160: 339015 | E160: -7.4 | F160: -701164 | G160: -1.1796983 | I160: -337014
B161: 702719 | C161: -2.494849955 | D161: 338521 | E161: -7.3 | F161: -700769 | G161: -1.247424977 | I161: -336520
B162: 702339 | C162: -2.398117785 | D162: 338033 | E162: -7.16 | F162: -700389 | G162: -1.199058892 | I162: -336032
B163: 701952 | C163: -2.023565502 | D163: 337544 | E163: -7.42 | F163: -700002 | G163: -1.011782751 | I163: -335543
B164: 701564 | C164: -1.767679667 | D164: 337055 | E164: -7.3 | F164: -699614 | G164: -0.8838398333 | I164: -335054
B165: 701177 | C165: -2.1597718 | D165: 336567 | E165: -7.43 | F165: -699227 | G165: -1.0798859 | I165: -334566
B166: 700784 | C166: -2.309710993 | D166: 336081 | E166: -7.28 | F166: -698834 | G166: -1.154855496 | I166: -334080
B167: 700404 | C167: -2.445070243 | D167: 335595 | E167: -7.58 | F167: -698454 | G167: -1.222535121 | I167: -333594
B168: 700027 | C168: -2.749427632 | D168: 335100 | E168: -7.87 | F168: -698077 | G168: -1.374713816 | I168: -333099
B169: 699665 | C169: -2.492152563 | D169: 334600 | E169: -7.93 | F169: -697715 | G169: -1.246076282 | I169: -332599
B170: 699317 | C170: -2.547866225 | D170: 334101 | E170: -7.94 | F170: -697367 | G170: -1.273933113 | I170: -332100
B171: 698974 | C171: -2.256366499 | D171: 333602 | E171: -8.04 | F171: -697024 | G171: -1.12818325 | I171: -331601
B172: 698634 | C172: -1.91673283 | D172: 333106 | E172: -7.86 | F172: -696684 | G172: -0.9583664152 | I172: -331105
B173: 698299 | C173: -1.842010628 | D173: 332624 | E173: -7.3 | F173: -696349 | G173: -0.921005314 | I173: -330623
B174: 697970 | C174: -1.882673177 | D174: 332164 | E174: -6.63 | F174: -696020 | G174: -0.9413365884 | I174: -330163
B175: 697637 | C175: -1.941189972 | D175: 331725 | E175: -6.06 | F175: -695687 | G175: -0.9705949861 | I175: -329724
B176: 697310 | C176: -1.686028972 | D176: 331300 | E176: -5.76 | F176: -695360 | G176: -0.843014486 | I176: -329299
B177: 696992 | C177: -1.859814355 | D177: 330883 | E177: -5.67 | F177: -695042 | G177: -0.9299071773 | I177: -328882
B178: 696673 | C178: -2.069194562 | D178: 330476 | E178: -5.11 | F178: -694723 | G178: -1.034597281 | I178: -328475
B179: 696351 | C179: -1.851884344 | D179: 330081 | E179: -4.9 | F179: -694401 | G179: -0.9259421721 | I179: -328080
B180: 696030 | C180: -1.770004918 | D180: 329694 | E180: -4.56 | F180: -694080 | G180: -0.8850024591 | I180: -327693
B181: 695713 | C181: -1.921330493 | D181: 329318 | E181: -4.21 | F181: -693763 | G181: -0.9606652467 | I181: -327317
B182: 695392 | C182: -1.828751806 | D182: 328955 | E182: -3.68 | F182: -693442 | G182: -0.9143759029 | I182: -326954
B183: 695072 | C183: -1.937600924 | D183: 328602 | E183: -3.41 | F183: -693122 | G183: -0.9688004619 | I183: -326601
B184: 694761 | C184: -1.998046742 | D184: 328258 | E184: -3.03 | F184: -692811 | G184: -0.9990233709 | I184: -326257
B185: 694439 | C185: -2.08248845 | D185: 327924 | E185: -2.64 | F185: -692489 | G185: -1.041244225 | I185: -325923
B186: 694129 | C186: -1.816786463 | D186: 327597 | E186: -2.55 | F186: -692179 | G186: -0.9083932315 | I186: -325596
B187: 693830 | C187: -1.861479194 | D187: 327273 | E187: -2.41 | F187: -691880 | G187: -0.9307395971 | I187: -325272
B188: 693514 | C188: -1.545146517 | D188: 326952 | E188: -2.39 | F188: -691564 | G188: -0.7725732584 | I188: -324951
B189: 693188 | C189: -1.596177931 | D189: 326639 | E189: -1.73 | F189: -691238 | G189: -0.7980889657 | I189: -324638
B190: 692871 | C190: -2.041268235 | D190: 326342 | E190: -0.96 | F190: -690921 | G190: -1.020634118 | I190: -324341
B191: 692539 | C191: -2.393145519 | D191: 326061 | E191: -0.25 | F191: -690589 | G191: -1.19657276 | I191: -324060
B192: 692210 | C192: -2.498013882 | D192: 325789 | E192: 0.05 | F192: -690260 | G192: -1.249006941 | I192: -323788
B193: 691888 | C193: -2.699570259 | D193: 325527 | E193: 0.68 | F193: -689938 | G193: -1.349785129 | I193: -323526
B194: 691562 | C194: -2.753136081 | D194: 325278 | E194: 1.59 | F194: -689612 | G194: -1.376568041 | I194: -323277
B195: 691219 | C195: -2.514016315 | D195: 325039 | E195: 1.74 | F195: -689269 | G195: -1.257008157 | I195: -323038
B196: 690880 | C196: -2.586727516 | D196: 324804 | E196: 2 | F196: -688930 | G196: -1.293363758 | I196: -322803
B197: 690540 | C197: -3.054966367 | D197: 324574 | E197: 2.34 | F197: -688590 | G197: -1.527483183 | I197: -322573
B198: 690193 | C198: -3.04705588 | D198: 324349 | E198: 2.65 | F198: -688243 | G198: -1.52352794 | I198: -322348
B199: 689836 | C199: -3.14175583 | D199: 324129 | E199: 2.86 | F199: -687886 | G199: =C199 * airIce_globalToAntarctic -> -1.570877915 | I199: =2001 - D199 -> -322128
B200: 689486 | C200: -3.349672662 | D200: 323911 | E200: 2.84 | F200: -687536 | G200: -1.674836331 | I200: -321910
B201: 689136 | C201: -3.704503948 | D201: 323695 | E201: 2.99 | F201: -687186 | G201: -1.852251974 | I201: -321694
... 5598 more rows

Sheet Ocean Temp
A1: Global Ocean Temperature
A3: Time | D3: Downloaded Data | F3: Calculations
A4: Year AD | B4: Quarter | C4: Decimal year | D4: Observed change in heat content, 0 - 700m | E4: Observed change in heat content, 0 - 2,000m | F4: Observed change in temperature, 0 - 700m | G4: Observed change in temperature, 0 - 700m | H4: Observed change in temperature, 0 - 700m, from Q2 2003 | I4: Modelled change in temperature, 0 - 700m, from Q2 2003 | J4: Observed change in temperature, 0 - 700m, from Q1 2005 | K4: Observed change in heat content 700m - 2,000m | L4: Observed change in temperature, 700m - 2,000m, from Q1 2005
A5: Start--> | D5: Q1 1955 | E5: Q1 2005 | F5: Q1 1955 | G5: Q2 2003 | H5: Q2 2003 | I5: Q2 2003 | J5: Q2 2003 | K5: Q1 2005 | L5: Q1 2005
A6: Source--> | D6: Various | E6: Argo | F6: Non-Argo | G6: Argo | H6: Argo | I6: Models | J6: Argo | K6: Argo | L6: Argo
A7: Units --> | D7: 10^22 Joules | E7: 10^22 Joules | F7: deg C | G7: deg C | H7: deg C | I7: deg C | J7: deg C | K7: 10^22 Joules | L7: deg C
A8: 1955 | B8: 1 | C8: =A8 + B8 * 0.25 - 0.125 -> 1955.125 | D8: -2.870669 | F8: =D8 * 0.0105 -> -0.0301420245
A9: 1955 | B9: 2 | C9: =A9 + B9 * 0.25 - 0.125 -> 1955.375 | D9: -0.112888 | F9: =D9 * 0.0105 -> -0.001185324
A10: 1955 | B10: 3 | C10: 1955.625 | D10: -1.814083 | F10: -0.0190478715
A11: 1955 | B11: 4 | C11: 1955.875 | D11: -8.006949 | F11: -0.0840729645
A12: 1956 | B12: 1 | C12: 1956.125 | D12: -2.414768 | F12: -0.025355064
A13: 1956 | B13: 2 | C13: 1956.375 | D13: -4.435912 | F13: -0.046577076
A14: 1956 | B14: 3 | C14: 1956.625 | D14: -2.657124 | F14: -0.027899802
A15: 1956 | B15: 4 | C15: 1956.875 | D15: -0.925602 | F15: -0.009718821
A16: 1957 | B16: 1 | C16: 1957.125 | D16: -4.126613 | F16: -0.0433294365
A17: 1957 | B17: 2 | C17: 1957.375 | D17: -5.5812 | F17: -0.0586026
A18: 1957 | B18: 3 | C18: 1957.625 | D18: -3.82883 | F18: -0.040202715
A19: 1957 | B19: 4 | C19: 1957.875 | D19: -4.916474 | F19: -0.051622977
A20: 1958 | B20: 1 | C20: 1958.125 | D20: -0.855497 | F20: -0.0089827185
A21: 1958 | B21: 2 | C21: 1958.375 | D21: -1.357916 | F21: -0.014258118
A22: 1958 | B22: 3 | C22: 1958.625 | D22: -0.407367 | F22: -0.0042773535
A23: 1958 | B23: 4 | C23: 1958.875 | D23: -3.510767 | F23: -0.0368630535
A24: 1959 | B24: 1 | C24: 1959.125 | D24: -4.33201 | F24: -0.045486105
A25: 1959 | B25: 2 | C25: 1959.375 | D25: -0.125907 | F25: -0.0013220235
A26: 1959 | B26: 3 | C26: 1959.625 | D26: -2.352136 | F26: -0.024697428
A27: 1959 | B27: 4 | C27: 1959.875 | D27: -1.947549 | F27: -0.0204492645
A28: 1960 | B28: 1 | C28: 1960.125 | D28: -2.228227 | F28: -0.0233963835
A29: 1960 | B29: 2 | C29: 1960.375 | D29: -1.15004 | F29: -0.01207542
A30: 1960 | B30: 3 | C30: 1960.625 | D30: -0.156131 | F30: -0.0016393755
A31: 1960 | B31: 4 | C31: 1960.875 | D31: -2.23387 | F31: -0.023455635
A32: 1961 | B32: 1 | C32: 1961.125 | D32: -2.596117 | F32: -0.0272592285
A33: 1961 | B33: 2 | C33: 1961.375 | D33: -2.191756 | F33: -0.023013438
A34: 1961 | B34: 3 | C34: 1961.625 | D34: -0.904012 | F34: -0.009492126
A35: 1961 | B35: 4 | C35: 1961.875 | D35: -2.766685 | F35: -0.0290501925
A36: 1962 | B36: 1 | C36: 1962.125 | D36: -1.934748 | F36: -0.020314854
A37: 1962 | B37: 2 | C37: 1962.375 | D37: -3.028738 | F37: -0.031801749
A38: 1962 | B38: 3 | C38: 1962.625 | D38: 1.394506 | F38: 0.014642313
A39: 1962 | B39: 4 | C39: 1962.875 | D39: -0.732579 | F39: -0.0076920795
A40: 1963 | B40: 1 | C40: 1963.125 | D40: -2.489086 | F40: -0.026135403
A41: 1963 | B41: 2 | C41: 1963.375 | D41: -1.974558 | F41: -0.020732859
A42: 1963 | B42: 3 | C42: 1963.625 | D42: -3.880683 | F42: -0.0407471715
A43: 1963 | B43: 4 | C43: 1963.875 | D43: -0.741971 | F43: -0.0077906955
A44: 1964 | B44: 1 | C44: 1964.125 | D44: -2.540313 | F44: -0.0266732865
A45: 1964 | B45: 2 | C45: 1964.375 | D45: -0.999268 | F45: -0.010492314
A46: 1964 | B46: 3 | C46: 1964.625 | D46: -3.550237 | F46: -0.0372774885
A47: 1964 | B47: 4 | C47: 1964.875 | D47: -5.396096 | F47: -0.056659008
A48: 1965 | B48: 1 | C48: 1965.125 | D48: -3.407796 | F48: -0.035781858
A49: 1965 | B49: 2 | C49: 1965.375 | D49: -3.65106 | F49: -0.03833613
A50: 1965 | B50: 3 | C50: 1965.625 | D50: -2.26 | F50: -0.02373
A51: 1965 | B51: 4 | C51: 1965.875 | D51: -2.920431 | F51: -0.0306645255
A52: 1966 | B52: 1 | C52: 1966.125 | D52: -4.449895 | F52: -0.0467238975
A53: 1966 | B53: 2 | C53: 1966.375 | D53: -3.879088 | F53: -0.040730424
A54: 1966 | B54: 3 | C54: 1966.625 | D54: -2.689776 | F54: -0.028242648
A55: 1966 | B55: 4 | C55: 1966.875 | D55: -4.756363 | F55: -0.0499418115
A56: 1967 | B56: 1 | C56: 1967.125 | D56: -4.570902 | F56: -0.047994471
A57: 1967 | B57: 2 | C57: 1967.375 | D57: -3.258875 | F57: -0.0342181875
A58: 1967 | B58: 3 | C58: 1967.625 | D58: -4.820662 | F58: -0.050616951
A59: 1967 | B59: 4 | C59: 1967.875 | D59: -4.795085 | F59: -0.0503483925
A60: 1968 | B60: 1 | C60: 1968.125 | D60: -7.422575 | F60: -0.0779370375
A61: 1968 | B61: 2 | C61: 1968.375 | D61: -4.560177 | F61: -0.0478818585
A62: 1968 | B62: 3 | C62: 1968.625 | D62: -3.969478 | F62: -0.041679519
A63: 1968 | B63: 4 | C63: 1968.875 | D63: -6.957784 | F63: -0.073056732
A64: 1969 | B64: 1 | C64: 1969.125 | D64: -3.020569 | F64: -0.0317159745
A65: 1969 | B65: 2 | C65: 1969.375 | D65: -4.898119 | F65: -0.0514302495
A66: 1969 | B66: 3 | C66: 1969.625 | D66: -4.474476 | F66: -0.046981998
A67: 1969 | B67: 4 | C67: 1969.875 | D67: -5.531948 | F67: -0.058085454
A68: 1970 | B68: 1 | C68: 1970.125 | D68: -7.44103 | F68: -0.078130815
A69: 1970 | B69: 2 | C69: 1970.375 | D69: -5.943489 | F69: -0.0624066345
A70: 1970 | B70: 3 | C70: 1970.625 | D70: -3.995159 | F70: -0.0419491695
A71: 1970 | B71: 4 | C71: 1970.875 | D71: -3.814105 | F71: -0.0400481025
A72: 1971 | B72: 1 | C72: 1971.125 | D72: -4.959378 | F72: -0.052073469
A73: 1971 | B73: 2 | C73: =A73 + B73 * 0.25 - 0.125 -> 1971.375 | D73: -3.910183 | F73: =D73 * 0.0105 -> -0.0410569215
A74: 1971 | B74: 3 | C74: 1971.625 | D74: -3.727275 | F74: -0.0391363875
A75: 1971 | B75: 4 | C75: 1971.875 | D75: -2.47277 | F75: -0.025964085
A76: 1972 | B76: 1 | C76: 1972.125 | D76: -4.091771 | F76: -0.0429635955
A77: 1972 | B77: 2 | C77: 1972.375 | D77: -2.54613 | F77: -0.026734365
A78: 1972 | B78: 3 | C78: 1972.625 | D78: -7.319351 | F78: -0.0768531855
A79: 1972 | B79: 4 | C79: 1972.875 | D79: -6.997663 | F79: -0.0734754615
A80: 1973 | B80: 1 | C80: 1973.125 | D80: -6.992906 | F80: -0.073425513
A81: 1973 | B81: 2 | C81: 1973.375 | D81: -3.276274 | F81: -0.034400877
A82: 1973 | B82: 3 | C82: 1973.625 | D82: -1.011778 | F82: -0.010623669
A83: 1973 | B83: 4 | C83: 1973.875 | D83: -2.796067 | F83: -0.0293587035
A84: 1974 | B84: 1 | C84: 1974.125 | D84: -4.533091 | F84: -0.0475974555
A85: 1974 | B85: 2 | C85: 1974.375 | D85: -3.247772 | F85: -0.034101606
A86: 1974 | B86: 3 | C86: 1974.625 | D86: -2.193655 | F86: -0.0230333775
A87: 1974 | B87: 4 | C87: 1974.875 | D87: -1.12579 | F87: -0.011820795
A88: 1975 | B88: 1 | C88: 1975.125 | D88: -2.142686 | F88: -0.022498203
A89: 1975 | B89: 2 | C89: 1975.375 | D89: -2.137013 | F89: -0.0224386365
A90: 1975 | B90: 3 | C90: 1975.625 | D90: -1.747955 | F90: -0.0183535275
A91: 1975 | B91: 4 | C91: 1975.875 | D91: -0.17834 | F91: -0.00187257
A92: 1976 | B92: 1 | C92: 1976.125 | D92: -2.743946 | F92: -0.028811433
A93: 1976 | B93: 2 | C93: 1976.375 | D93: -0.842684 | F93: -0.008848182
A94: 1976 | B94: 3 | C94: 1976.625 | D94: -3.662868 | F94: -0.038460114
A95: 1976 | B95: 4 | C95: 1976.875 | D95: -3.163476 | F95: -0.033216498
A96: 1977 | B96: 1 | C96: 1977.125 | D96: 0.753658 | F96: 0.007913409
A97: 1977 | B97: 2 | C97: 1977.375 | D97: 1.487195 | F97: 0.0156155475
A98: 1977 | B98: 3 | C98: 1977.625 | D98: -0.29661 | F98: -0.003114405
A99: 1977 | B99: 4 | C99: 1977.875 | D99: -1.816407 | F99: -0.0190722735
A100: 1978 | B100: 1 | C100: 1978.125 | D100: 0.659256 | F100: 0.006922188
A101: 1978 | B101: 2 | C101: 1978.375 | D101: 0.186941 | F101: 0.0019628805
A102: 1978 | B102: 3 | C102: 1978.625 | D102: -1.20887 | F102: -0.012693135
A103: 1978 | B103: 4 | C103: 1978.875 | D103: 0.569558 | F103: 0.005980359
A104: 1979 | B104: 1 | C104: 1979.125 | D104: 0.24465 | F104: 0.002568825
A105: 1979 | B105: 2 | C105: 1979.375 | D105: -1.640448 | F105: -0.017224704
A106: 1979 | B106: 3 | C106: 1979.625 | D106: -1.909762 | F106: -0.020052501
A107: 1979 | B107: 4 | C107: 1979.875 | D107: -0.532718 | F107: -0.005593539
A108: 1980 | B108: 1 | C108: 1980.125 | D108: 1.621559 | F108: 0.0170263695
A109: 1980 | B109: 2 | C109: 1980.375 | D109: 1.813644 | F109: 0.019043262
A110: 1980 | B110: 3 | C110: 1980.625 | D110: -0.058621 | F110: -0.0006155205
A111: 1980 | B111: 4 | C111: 1980.875 | D111: 0.985672 | F111: 0.010349556
A112: 1981 | B112: 1 | C112: 1981.125 | D112: 0.466168 | F112: 0.004894764
A113: 1981 | B113: 2 | C113: 1981.375 | D113: 0.533019 | F113: 0.0055966995
A114: 1981 | B114: 3 | C114: 1981.625 | D114: -1.49033 | F114: -0.015648465
A115: 1981 | B115: 4 | C115: 1981.875 | D115: 0.979648 | F115: 0.010286304
A116: 1982 | B116: 1 | C116: 1982.125 | D116: -1.497396 | F116: -0.015722658
A117: 1982 | B117: 2 | C117: 1982.375 | D117: -1.675871 | F117: -0.0175966455
A118: 1982 | B118: 3 | C118: 1982.625 | D118: -5.024016 | F118: -0.052752168
A119: 1982 | B119: 4 | C119: 1982.875 | D119: -1.026103 | F119: -0.0107740815
A120: 1983 | B120: 1 | C120: 1983.125 | D120: -3.626007 | F120: -0.0380730735
A121: 1983 | B121: 2 | C121: 1983.375 | D121: 2.378227 | F121: 0.0249713835
A122: 1983 | B122: 3 | C122: 1983.625 | D122: -6.587368 | F122: -0.069167364
A123: 1983 | B123: 4 | C123: 1983.875 | D123: -3.216753 | F123: -0.0337759065
A124: 1984 | B124: 1 | C124: 1984.125 | D124: 2.502179 | F124: 0.0262728795
A125: 1984 | B125: 2 | C125: 1984.375 | D125: -2.455978 | F125: -0.025787769
A126: 1984 | B126: 3 | C126: 1984.625 | D126: -2.656893 | F126: -0.0278973765
A127: 1984 | B127: 4 | C127: 1984.875 | D127: 0.773232 | F127: 0.008118936
A128: 1985 | B128: 1 | C128: 1985.125 | D128: 1.784006 | F128: 0.018732063
A129: 1985 | B129: 2 | C129: 1985.375 | D129: 1.808964 | F129: 0.018994122
A130: 1985 | B130: 3 | C130: 1985.625 | D130: 0.248777 | F130: 0.0026121585
A131: 1985 | B131: 4 | C131: 1985.875 | D131: -3.403632 | F131: -0.035738136
A132: 1986 | B132: 1 | C132: 1986.125 | D132: -0.832693 | F132: -0.0087432765
A133: 1986 | B133: 2 | C133: 1986.375 | D133: 1.70314 | F133: 0.01788297
A134: 1986 | B134: 3 | C134: 1986.625 | D134: -1.31332 | F134: -0.01378986
A135: 1986 | B135: 4 | C135: 1986.875 | D135: -3.706717 | F135: -0.0389205285
A136: 1987 | B136: 1 | C136: 1987.125 | D136: -0.207786 | F136: -0.002181753
A137: 1987 | B137: 2 | C137: =A137 + B137 * 0.25 - 0.125 -> 1987.375 | D137: -1.371921 | F137: =D137 * 0.0105 -> -0.0144051705
A138: 1987 | B138: 3 | C138: 1987.625 | D138: -2.150277 | F138: -0.0225779085
A139: 1987 | B139: 4 | C139: 1987.875 | D139: 0.158229 | F139: 0.0016614045
A140: 1988 | B140: 1 | C140: 1988.125 | D140: 0.584472 | F140: 0.006136956
A141: 1988 | B141: 2 | C141: 1988.375 | D141: 0.316734 | F141: 0.003325707
A142: 1988 | B142: 3 | C142: 1988.625 | D142: 1.238749 | F142: 0.0130068645
A143: 1988 | B143: 4 | C143: 1988.875 | D143: 2.213401 | F143: 0.0232407105
A144: 1989 | B144: 1 | C144: 1989.125 | D144: 1.054477 | F144: 0.0110720085
A145: 1989 | B145: 2 | C145: 1989.375 | D145: 2.184499 | F145: 0.0229372395
A146: 1989 | B146: 3 | C146: 1989.625 | D146: 0.722182 | F146: 0.007582911
A147: 1989 | B147: 4 | C147: 1989.875 | D147: -0.347525 | F147: -0.0036490125
A148: 1990 | B148: 1 | C148: 1990.125 | D148: 1.21432 | F148: 0.01275036
A149: 1990 | B149: 2 | C149: 1990.375 | D149: -1.216034 | F149: -0.012768357
A150: 1990 | B150: 3 | C150: 1990.625 | D150: -1.483189 | F150: -0.0155734845
A151: 1990 | B151: 4 | C151: 1990.875 | D151: 2.194469 | F151: 0.0230419245
A152: 1991 | B152: 1 | C152: 1991.125 | D152: 2.197155 | F152: 0.0230701275
A153: 1991 | B153: 2 | C153: 1991.375 | D153: 3.209013 | F153: 0.0336946365
A154: 1991 | B154: 3 | C154: 1991.625 | D154: 2.128846 | F154: 0.022352883
A155: 1991 | B155: 4 | C155: 1991.875 | D155: 3.047556 | F155: 0.031999338
A156: 1992 | B156: 1 | C156: 1992.125 | D156: 0.985267 | F156: 0.0103453035
A157: 1992 | B157: 2 | C157: 1992.375 | D157: 1.039358 | F157: 0.010913259
A158: 1992 | B158: 3 | C158: 1992.625 | D158: 0.746549 | F158: 0.0078387645
A159: 1992 | B159: 4 | C159: 1992.875 | D159: -0.484774 | F159: -0.005090127
A160: 1993 | B160: 1 | C160: 1993.125 | D160: 1.901373 | F160: 0.0199644165
A161: 1993 | B161: 2 | C161: 1993.375 | D161: 0.014944 | F161: 0.000156912
A162: 1993 | B162: 3 | C162: 1993.625 | D162: 0.072173 | F162: 0.0007578165
A163: 1993 | B163: 4 | C163: 1993.875 | D163: 0.746779 | F163: 0.0078411795
A164: 1994 | B164: 1 | C164: 1994.125 | D164: 1.721586 | F164: 0.018076653
A165: 1994 | B165: 2 | C165: 1994.375 | D165: -0.640411 | F165: -0.0067243155
A166: 1994 | B166: 3 | C166: 1994.625 | D166: 2.212865 | F166: 0.0232350825
A167: 1994 | B167: 4 | C167: 1994.875 | D167: 2.744318 | F167: 0.028815339
A168: 1995 | B168: 1 | C168: 1995.125 | D168: 3.309005 | F168: 0.0347445525
A169: 1995 | B169: 2 | C169: 1995.375 | D169: 2.082141 | F169: 0.0218624805
A170: 1995 | B170: 3 | C170: 1995.625 | D170: 0.500147 | F170: 0.0052515435
A171: 1995 | B171: 4 | C171: 1995.875 | D171: 3.164881 | F171: 0.0332312505
A172: 1996 | B172: 1 | C172: 1996.125 | D172: 4.492706 | F172: 0.047173413
A173: 1996 | B173: 2 | C173: 1996.375 | D173: 7.236955 | F173: 0.0759880275
A174: 1996 | B174: 3 | C174: 1996.625 | D174: 2.027039 | F174: 0.0212839095
A175: 1996 | B175: 4 | C175: 1996.875 | D175: 4.419283 | F175: 0.0464024715
A176: 1997 | B176: 1 | C176: 1997.125 | D176: 4.525184 | F176: 0.047514432
A177: 1997 | B177: 2 | C177: 1997.375 | D177: 3.687088 | F177: 0.038714424
A178: 1997 | B178: 3 | C178: 1997.625 | D178: 2.090838 | F178: 0.021953799
A179: 1997 | B179: 4 | C179: 1997.875 | D179: 2.676821 | F179: 0.0281066205
A180: 1998 | B180: 1 | C180: 1998.125 | D180: 3.046107 | F180: 0.0319841235
A181: 1998 | B181: 2 | C181: 1998.375 | D181: 5.32325 | F181: 0.055894125
A182: 1998 | B182: 3 | C182: 1998.625 | D182: 3.689378 | F182: 0.038738469
A183: 1998 | B183: 4 | C183: 1998.875 | D183: 5.156275 | F183: 0.0541408875
A184: 1999 | B184: 1 | C184: 1999.125 | D184: 5.388621 | F184: 0.0565805205
A185: 1999 | B185: 2 | C185: 1999.375 | D185: 5.638433 | F185: 0.0592035465
A186: 1999 | B186: 3 | C186: 1999.625 | D186: 6.149937 | F186: 0.0645743385
A187: 1999 | B187: 4 | C187: 1999.875 | D187: 6.595028 | F187: 0.069247794
A188: 2000 | B188: 1 | C188: 2000.125 | D188: 4.844887 | F188: 0.0508713135
A189: 2000 | B189: 2 | C189: 2000.375 | D189: 5.757782 | F189: 0.060456711
A190: 2000 | B190: 3 | C190: 2000.625 | D190: 7.14543 | F190: 0.075027015
A191: 2000 | B191: 4 | C191: 2000.875 | D191: 4.938114 | F191: 0.051850197
A192: 2001 | B192: 1 | C192: 2001.125 | D192: 3.076658 | F192: 0.032304909
A193: 2001 | B193: 2 | C193: 2001.375 | D193: 2.730675 | F193: 0.0286720875
A194: 2001 | B194: 3 | C194: 2001.625 | D194: 3.21216 | F194: 0.03372768
A195: 2001 | B195: 4 | C195: 2001.875 | D195: 7.447564 | F195: 0.078199422
A196: 2002 | B196: 1 | C196: 2002.125 | D196: 5.505122 | F196: 0.057803781
A197: 2002 | B197: 2 | C197: 2002.375 | D197: 7.580072 | F197: 0.079590756
A198: 2002 | B198: 3 | C198: 2002.625 | D198: 7.701444 | F198: 0.080865162
A199: 2002 | B199: 4 | C199: 2002.875 | D199: 6.368651 | F199: 0.0668708355
A200: 2003 | B200: 1 | C200: 2003.125 | D200: 8.746294 | F200: 0.091836087
A201: 2003 | B201: 2 | C201: =A201 + B201 * 0.25 - 0.125 -> 2003.375 | D201: 9.989262 | F201: =D201 * 0.0105 -> 0.104887251 | G201: =D201 * 0.0105 -> 0.104887251 | H201: =(D201-$D$201) * 0.0105 -> 0 | I201: =(C201 - $C$201) * 0.007 -> 0 | J201: =(D201-$D$208) * 0.0105 -> 0.0203322525
... 79 more rows

Sheet Solar Daily
A1: Solar: Daily
A3: Time | B3: Downloaded Data
A4: Decimal Year AD | B4: Observed TSI (1-AU)
A5: Source--> | B5: ACRIM, Satellites
A6: Units --> | B6: W / m2
A7: 1978.877 | B7: 1361.6006
A8: 1978.879 | B8: 1361.2335
A9: 1978.882 | B9: 1361.1442
A10: 1978.888 | B10: 1361.8884
A11: 1978.89 | B11: 1362.0173
A12: 1978.893 | B12: 1362.0273
A13: 1978.896 | B13: 1362.0471
A14: 1978.899 | B14: 1361.8884
A15: 1978.901 | B15: 1362.2852
A16: 1978.904 | B16: 1362.4837
A17: 1978.91 | B17: 1361.938
A18: 1978.912 | B18: 1362.2059
A19: 1978.915 | B19: 1362.3547
A20: 1978.921 | B20: 1361.938
A21: 1978.923 | B21: 1362.0074
A22: 1978.926 | B22: 1361.9876
A23: 1978.932 | B23: 1362.1761
A24: 1978.934 | B24: 1362.6722
A25: 1978.937 | B25: 1362.6722
A26: 1978.943 | B26: 1360.7473
A27: 1978.945 | B27: 1360.7175
A28: 1978.948 | B28: 1360.6878
A29: 1978.953 | B29: 1360.6382
A30: 1978.956 | B30: 1361.6105
A31: 1978.959 | B31: 1362.1761
A32: 1978.962 | B32: 1362.1563
A33: 1978.964 | B33: 1361.7296
A34: 1978.967 | B34: 1362.1463
A35: 1978.97 | B35: 1362.3051
A36: 1978.975 | B36: 1361.7594
A37: 1978.978 | B37: 1362.4142
A38: 1978.981 | B38: 1362.6424
A39: 1978.986 | B39: 1362.5333
A40: 1978.989 | B40: 1362.9103
A41: 1978.992 | B41: 1362.9599
A42: 1978.997 | B42: 1361.9876
A43: 1979 | B43: 1362.1761
A44: 1979.003 | B44: 1362.3448
A45: 1979.008 | B45: 1362.0967
A46: 1979.011 | B46: 1362.9798
A47: 1979.014 | B47: 1363.0691
A48: 1979.019 | B48: 1362.821
A49: 1979.022 | B49: 1363.1286
A50: 1979.025 | B50: 1362.8607
A51: 1979.03 | B51: 1362.3845
A52: 1979.033 | B52: 1363.2378
A53: 1979.036 | B53: 1363.2278
A54: 1979.041 | B54: 1362.6424
A55: 1979.044 | B55: 1363.0294
A56: 1979.047 | B56: 1363.2477
A57: 1979.052 | B57: 1362.3547
A58: 1979.055 | B58: 1362.8706
A59: 1979.057 | B59: 1362.5631
A60: 1979.063 | B60: 1362.0074
A61: 1979.068 | B61: 1362.444
A62: 1979.074 | B62: 1362.5631
A63: 1979.079 | B63: 1363.1981
A64: 1979.085 | B64: 1363.6545
A65: 1979.09 | B65: 1363.1485
A66: 1979.096 | B66: 1362.8607
A67: 1979.101 | B67: 1362.9996
A68: 1979.107 | B68: 1363.2179
A69: 1979.11 | B69: 1363.4957
A70: 1979.112 | B70: 1363.1683
A71: 1979.118 | B71: 1362.7516
A72: 1979.121 | B72: 1363.5652
A73: 1979.123 | B73: 1363.4858
A74: 1979.129 | B74: 1362.4738
A75: 1979.131 | B75: 1362.7119
A76: 1979.134 | B76: 1362.1662
A77: 1979.14 | B77: 1361.7693
A78: 1979.142 | B78: 1362.7119
A79: 1979.145 | B79: 1363.2278
A80: 1979.151 | B80: 1363.0691
A81: 1979.156 | B81: 1363.3171
A82: 1979.162 | B82: 1363.1683
A83: 1979.164 | B83: 1363.6247
A84: 1979.167 | B84: 1363.7239
A85: 1979.173 | B85: 1363.337
A86: 1979.175 | B86: 1363.972
A87: 1979.178 | B87: 1363.9025
A88: 1979.184 | B88: 1363.0889
A89: 1979.186 | B89: 1363.4957
A90: 1979.189 | B90: 1363.6644
A91: 1979.195 | B91: 1363.595
A92: 1979.197 | B92: 1364.1704
A93: 1979.2 | B93: 1364.0811
A94: 1979.205 | B94: 1363.4759
A95: 1979.208 | B95: 1363.6942
A96: 1979.211 | B96: 1363.6346
A97: 1979.216 | B97: 1363.1981
A98: 1979.219 | B98: 1363.4064
A99: 1979.222 | B99: 1363.466
A100: 1979.227 | B100: 1363.2179
A101: 1979.23 | B101: 1363.5652
A102: 1979.233 | B102: 1363.4957
A103: 1979.238 | B103: 1363.4362
A104: 1979.241 | B104: 1363.8827
A105: 1979.244 | B105: 1363.7835
A106: 1979.249 | B106: 1362.9699
A107: 1979.255 | B107: 1362.821
A108: 1979.26 | B108: 1362.9798
A109: 1979.266 | B109: 1363.6247
A110: 1979.271 | B110: 1363.4759
A111: 1979.274 | B111: 1362.7913
A112: 1979.277 | B112: 1363.0592
A113: 1979.285 | B113: 1362.9699
A114: 1979.288 | B114: 1362.9897
A115: 1979.29 | B115: 1362.9798
A116: 1979.293 | B116: 1363.0492
A117: 1979.296 | B117: 1363.2378
A118: 1979.299 | B118: 1363.5057
A119: 1979.307 | B119: 1363.5453
A120: 1979.31 | B120: 1363.2774
A121: 1979.315 | B121: 1363.1981
A122: 1979.318 | B122: 1363.1286
A123: 1979.321 | B123: 1362.9897
A124: 1979.323 | B124: 1363.0492
A125: 1979.326 | B125: 1362.9897
A126: 1979.332 | B126: 1362.3448
A127: 1979.337 | B127: 1362.9996
A128: 1979.34 | B128: 1363.2973
A129: 1979.342 | B129: 1363.5652
A130: 1979.348 | B130: 1363.4164
A131: 1979.351 | B131: 1363.4263
A132: 1979.353 | B132: 1363.1187
A133: 1979.359 | B133: 1362.4936
A134: 1979.364 | B134: 1362.5631
A135: 1979.367 | B135: 1362.9004
A136: 1979.37 | B136: 1362.9203
A137: 1979.375 | B137: 1363.0393
A138: 1979.381 | B138: 1363.3171
A139: 1979.384 | B139: 1363.4461
A140: 1979.386 | B140: 1363.3866
A141: 1979.392 | B141: 1363.0393
A142: 1979.395 | B142: 1363.4164
A143: 1979.397 | B143: 1363.585
A144: 1979.403 | B144: 1363.337
A145: 1979.406 | B145: 1363.5751
A146: 1979.408 | B146: 1363.5156
A147: 1979.411 | B147: 1362.9203
A148: 1979.414 | B148: 1363.2278
A149: 1979.416 | B149: 1363.1088
A150: 1979.419 | B150: 1362.3547
A151: 1979.425 | B151: 1361.6601
A152: 1979.427 | B152: 1361.6006
A153: 1979.43 | B153: 1361.6601
A154: 1979.436 | B154: 1361.7494
A155: 1979.438 | B155: 1361.7098
A156: 1979.441 | B156: 1361.3724
A157: 1979.447 | B157: 1361.3327
A158: 1979.449 | B158: 1361.7494
A159: 1979.452 | B159: 1362.0868
A160: 1979.458 | B160: 1362.186
A161: 1979.46 | B161: 1362.3845
A162: 1979.463 | B162: 1362.5531
A163: 1979.469 | B163: 1362.4936
A164: 1979.471 | B164: 1362.692
A165: 1979.474 | B165: 1362.8409
A166: 1979.479 | B166: 1362.5134
A167: 1979.482 | B167: 1362.692
A168: 1979.485 | B168: 1362.9004
A169: 1979.488 | B169: 1362.8806
A170: 1979.49 | B170: 1362.7913
A171: 1979.493 | B171: 1362.8111
A172: 1979.496 | B172: 1362.8806
A173: 1979.501 | B173: 1362.1364
A174: 1979.504 | B174: 1362.1662
A175: 1979.507 | B175: 1362.1463
A176: 1979.512 | B176: 1362.0868
A177: 1979.515 | B177: 1362.2555
A178: 1979.518 | B178: 1362.4241
A179: 1979.521 | B179: 1362.1959
A180: 1979.523 | B180: 1362.2555
A181: 1979.526 | B181: 1362.4738
A182: 1979.529 | B182: 1362.6325
A183: 1979.534 | B183: 1363.2179
A184: 1979.537 | B184: 1363.1981
A185: 1979.54 | B185: 1363.0989
A186: 1979.545 | B186: 1362.9401
A187: 1979.548 | B187: 1362.9401
A188: 1979.551 | B188: 1362.8409
A189: 1979.556 | B189: 1362.6821
A190: 1979.559 | B190: 1362.9699
A191: 1979.562 | B191: 1363.0691
A192: 1979.564 | B192: 1363.0492
A193: 1979.567 | B193: 1362.9302
A194: 1979.57 | B194: 1363.337
A195: 1979.573 | B195: 1363.2973
A196: 1979.578 | B196: 1363.1385
A197: 1979.581 | B197: 1363.2774
A198: 1979.584 | B198: 1363.2675
A199: 1979.589 | B199: 1362.9996
A200: 1979.592 | B200: 1362.9699
A201: 1979.594 | B201: 1363.0889
... 11967 more rows

Sheet Solar Monthly
A1: Solar: Monthly
A3: Time | D3: Downloaded Data | K3: Custom Data | M3: Calculations
A4: Year AD | B4: Month | C4: Decimal Year | D4: Observed TSI (1-AU) | E4: Observed TSI (1-AU) | F4: Reconstructed TSI (1-AU) | G4: Observed Sunspot # | H4: Observed Sunspot # | I4: f10.7 Solar Radio Flux | J4: f10.7 Solar Radio Flux | K4: Test Data Monthly TSI | L4: Reconstructed TSI, 1-year smoothed | M4: Changes in Reconstructed TSI (1-AU) | N4: Changes in Observed TSI (1-AU) | O4: Changes in Observed TSI (1-AU) | P4: Changes in Observed Sunspot # | Q4: Changes in Observed Sunspot # | R4: Changes in Observed f10.7 (earth-distance) | S4: Changes in f10.7, 11-y smoothed | T4: Changes in f10.7, 11-y smoothed, scaled as TSI | U4: Changes in Observed f10.7 (earth-distance) | V4: Changes in Observed TSI (1-AU) | W4: Changes in Observed TSI (1-AU) | X4: Changes in Test Data Monthly TSI | Y4: Changes in Reconstructed TSI, 1-y smoothed | Z4: Changes in Reconstructed TSI, 11-y smoothed | AA4: Changes in Reconstructed TSI, 11-y smoothed, 11-y delayed
A5: Source--> | D5: PMOD, Satellites, ongoing | E5: PMOD, Satellites, Aug 2013 | F5: Lean 2000, WLS Background | G5: SIDC/SILSO (V1), ongoing | H5: SIDC, Aug 2013 | I5: Space Weather Canada, ongoing | J5: Space Weather Canada, Aug 2013 | K5: You | L5: Leif Svalgaard | M5: Lean 2000, WLS Background | N5: PMOD, Satellites, ongoing | O5: PMOD, Satellites, Aug 2013 | P5: SIDC/SILSO (V1), ongoing | Q5: SIDC, Aug 2013 | R5: Changes in Observed f10.7 (earth-distance) | S5: Changes in Reconstructed TSI, 11-y smoothed | T5: Changes in Reconstructed TSI, 11-y smoothed | U5: Space Weather Canada, Aug 2013 | V5: ACRIM, Satellites, ongoing | W5: ACRIM, Satellites, Aug 2013 | X5: You | Y5: Leif Svalgaard | Z5: Leif Svalgaard | AA5: Leif Svalgaard
A6: Units --> | D6: W / m2 | E6: W / m2 | F6: W / m2 | G6: 1 | H6: 1 | I6: ? | J6: ? | K6: ? | L6: W / m2 | M6: W / m2 | N6: W / m2 | O6: W / m2 | P6: 1 | Q6: 1 | R6: ? | S6: W / m2 | T6: W / m2 | U6: ? | V6: W / m2 | W6: W / m2 | X6: ? | Y6: W / m2 | Z6: W / m2 | AA6: W / m2
A7: 1610 | B7: 1 | C7: =A7 + B7/12 - 1/24 -> 1610.041667
A8: 1610 | B8: 2 | C8: 1610.125
A9: 1610 | B9: 3 | C9: 1610.208333
A10: 1610 | B10: 4 | C10: 1610.291667
A11: 1610 | B11: 5 | C11: 1610.375
A12: 1610 | B12: 6 | C12: 1610.458333
A13: 1610 | B13: 7 | C13: 1610.541667 | L13: 1360.888346 | Y13: =L13 - svalgaard_background -> 0.118346
A14: 1610 | B14: 8 | C14: 1610.625 | L14: 1360.802128 | Y14: 0.032128
A15: 1610 | B15: 9 | C15: 1610.708333 | L15: 1360.888346 | Y15: 0.118346
A16: 1610 | B16: 10 | C16: 1610.791667 | L16: 1360.888346 | Y16: 0.118346
A17: 1610 | B17: 11 | C17: 1610.875 | L17: 1360.888346 | Y17: 0.118346
A18: 1610 | B18: 12 | C18: 1610.958333 | L18: 1360.888346 | Y18: 0.118346
A19: 1611 | B19: 1 | C19: 1611.041667 | L19: 1360.888346 | Y19: 0.118346
A20: 1611 | B20: 2 | C20: 1611.125 | L20: 1360.888346 | Y20: 0.118346
A21: 1611 | B21: 3 | C21: 1611.208333 | L21: 1360.888346 | Y21: 0.118346
A22: 1611 | B22: 4 | C22: 1611.291667 | L22: 1361.007972 | Y22: 0.237972
A23: 1611 | B23: 5 | C23: 1611.375 | L23: 1361.08952 | Y23: 0.31952
A24: 1611 | B24: 6 | C24: 1611.458333 | L24: 1361.124965 | Y24: 0.354965
A25: 1611 | B25: 7 | C25: 1611.541667 | L25: 1361.141729 | Y25: 0.371729
A26: 1611 | B26: 8 | C26: 1611.625 | L26: 1361.363261 | Y26: 0.593261
A27: 1611 | B27: 9 | C27: 1611.708333 | L27: 1361.497137 | Y27: 0.727137
A28: 1611 | B28: 10 | C28: 1611.791667 | L28: 1361.426178 | Y28: 0.656178
A29: 1611 | B29: 11 | C29: 1611.875 | L29: 1361.459356 | Y29: 0.689356
A30: 1611 | B30: 12 | C30: 1611.958333 | L30: 1361.516616 | Y30: 0.746616
A31: 1612 | B31: 1 | C31: 1612.041667 | L31: 1361.57866 | Y31: 0.80866
A32: 1612 | B32: 2 | C32: 1612.125 | L32: 1361.615446 | Y32: 0.845446
A33: 1612 | B33: 3 | C33: 1612.208333 | L33: 1361.644425 | Y33: 0.874425
A34: 1612 | B34: 4 | C34: 1612.291667 | L34: 1361.670382 | Y34: 0.900382
A35: 1612 | B35: 5 | C35: 1612.375 | L35: 1361.755605 | Y35: 0.985605
A36: 1612 | B36: 6 | C36: 1612.458333 | L36: 1361.831764 | Y36: 1.061764
A37: 1612 | B37: 7 | C37: 1612.541667 | L37: 1361.904275 | Y37: 1.134275
A38: 1612 | B38: 8 | C38: 1612.625 | L38: 1361.908696 | Y38: 1.138696
A39: 1612 | B39: 9 | C39: 1612.708333 | L39: 1361.926383 | Y39: 1.156383
A40: 1612 | B40: 10 | C40: 1612.791667 | L40: 1361.974686 | Y40: 1.204686
A41: 1612 | B41: 11 | C41: 1612.875 | L41: 1362.219208 | Y41: 1.449208
A42: 1612 | B42: 12 | C42: 1612.958333 | L42: 1362.234057 | Y42: 1.464057
A43: 1613 | B43: 1 | C43: 1613.041667 | L43: 1362.211903 | Y43: 1.441903
A44: 1613 | B44: 2 | C44: 1613.125 | L44: 1362.154425 | Y44: 1.384425
A45: 1613 | B45: 3 | C45: 1613.208333 | L45: 1362.147599 | Y45: 1.377599
A46: 1613 | B46: 4 | C46: 1613.291667 | L46: 1362.164364 | Y46: 1.394364
A47: 1613 | B47: 5 | C47: 1613.375 | L47: 1362.182614 | Y47: 1.412614
A48: 1613 | B48: 6 | C48: 1613.458333 | L48: 1362.150154 | Y48: 1.380154
A49: 1613 | B49: 7 | C49: 1613.541667 | L49: 1362.118202 | Y49: 1.348202
A50: 1613 | B50: 8 | C50: 1613.625 | L50: 1362.100112 | Y50: 1.330112
A51: 1613 | B51: 9 | C51: 1613.708333 | L51: 1362.160773 | Y51: 1.390773
A52: 1613 | B52: 10 | C52: 1613.791667 | L52: 1362.172411 | Y52: 1.402411
A53: 1613 | B53: 11 | C53: 1613.875 | L53: 1362.172411 | Y53: 1.402411
A54: 1613 | B54: 12 | C54: 1613.958333 | L54: 1361.73184 | Y54: 0.96184
A55: 1614 | B55: 1 | C55: 1614.041667 | L55: 1361.685857 | Y55: 0.915857
A56: 1614 | B56: 2 | C56: 1614.125 | L56: 1361.674362 | Y56: 0.904362
A57: 1614 | B57: 3 | C57: 1614.208333 | L57: 1361.901401 | Y57: 1.131401
A58: 1614 | B58: 4 | C58: 1614.291667 | L58: 1362.282195 | Y58: 1.512195
A59: 1614 | B59: 5 | C59: 1614.375 | L59: 1362.282195 | Y59: 1.512195
A60: 1614 | B60: 6 | C60: 1614.458333 | L60: 1362.282195 | Y60: 1.512195
A61: 1614 | B61: 7 | C61: 1614.541667 | L61: 1362.282195 | Y61: 1.512195
A62: 1614 | B62: 8 | C62: 1614.625 | L62: 1362.282195 | Y62: 1.512195
A63: 1614 | B63: 9 | C63: 1614.708333 | L63: 1362.497738 | Y63: 1.727738
A64: 1614 | B64: 10 | C64: 1614.791667 | L64: 1362.497738 | Y64: 1.727738
A65: 1614 | B65: 11 | C65: 1614.875 | L65: 1362.497738 | Y65: 1.727738
A66: 1614 | B66: 12 | C66: 1614.958333 | L66: 1362.497738 | Y66: 1.727738
A67: 1615 | B67: 1 | C67: 1615.041667 | L67: 1362.497738 | Y67: 1.727738
A68: 1615 | B68: 2 | C68: 1615.125 | L68: 1362.205557 | Y68: 1.435557
A69: 1615 | B69: 3 | C69: 1615.208333 | L69: 1362.205557 | Y69: 1.435557
A70: 1615 | B70: 4 | C70: 1615.291667 | L70: 1362.205557 | Y70: 1.435557
A71: 1615 | B71: 5 | C71: =A71 + B71/12 - 1/24 -> 1615.375 | L71: 1361.697831 | Y71: 0.927831
A72: 1615 | B72: 6 | C72: 1615.458333 | L72: 1361.697831 | Y72: 0.927831
A73: 1615 | B73: 7 | C73: 1615.541667 | L73: 1361.697831 | Y73: 0.927831
A74: 1615 | B74: 8 | C74: 1615.625 | L74: 1361.516296 | Y74: 0.746296
A75: 1615 | B75: 9 | C75: 1615.708333 | L75: 1361.447035 | Y75: 0.677035
A76: 1615 | B76: 10 | C76: 1615.791667 | L76: 1361.056183 | Y76: 0.286183
A77: 1615 | B77: 11 | C77: 1615.875 | L77: 1361.011445 | Y77: =L77 - svalgaard_background -> 0.241445
A78: 1615 | B78: 12 | C78: 1615.958333 | L78: 1360.975384 | Y78: 0.205384
A79: 1616 | B79: 1 | C79: 1616.041667 | L79: 1360.975384 | Y79: 0.205384 | Z79: =AVERAGE(Y13:Y145) -> 0.4373768271
A80: 1616 | B80: 2 | C80: 1616.125 | L80: 1360.975384 | Y80: 0.205384 | Z80: =AVERAGE(Y14:Y146) -> 0.4364044436
A81: 1616 | B81: 3 | C81: 1616.208333 | L81: 1360.86775 | Y81: 0.09775 | Z81: 0.4360803158
A82: 1616 | B82: 4 | C82: 1616.291667 | L82: 1360.86775 | Y82: 0.09775 | Z82: 0.4351079323
A83: 1616 | B83: 5 | C83: 1616.375 | L83: 1360.821424 | Y83: 0.051424 | Z83: 0.4341355489
A84: 1616 | B84: 6 | C84: 1616.458333 | L84: 1360.831826 | Y84: 0.061826 | Z84: 0.4331631654
A85: 1616 | B85: 7 | C85: 1616.541667 | L85: 1360.831826 | Y85: 0.061826 | Z85: 0.432190782
A86: 1616 | B86: 8 | C86: 1616.625 | L86: 1360.831826 | Y86: 0.061826 | Z86: 0.4312183985
A87: 1616 | B87: 9 | C87: 1616.708333 | L87: 1360.803852 | Y87: 0.033852 | Z87: 0.430246015
A88: 1616 | B88: 10 | C88: 1616.791667 | L88: 1360.712319 | Y88: -0.057681 | Z88: 0.4292736316
A89: 1616 | B89: 11 | C89: 1616.875 | L89: 1360.712319 | Y89: -0.057681 | Z89: 0.4274018045
A90: 1616 | B90: 12 | C90: 1616.958333 | L90: 1360.662025 | Y90: -0.107975 | Z90: 0.4249168346
A91: 1617 | B91: 1 | C91: 1617.041667 | L91: 1360.608139 | Y91: -0.161861 | Z91: 0.4221653609
A92: 1617 | B92: 2 | C92: 1617.125 | L92: 1360.595206 | Y92: -0.174794 | Z92: 0.4192878421
A93: 1617 | B93: 3 | C93: 1617.208333 | L93: 1360.586584 | Y93: -0.183416 | Z93: 0.4147446692
A94: 1617 | B94: 4 | C94: 1617.291667 | L94: 1360.580426 | Y94: -0.189574 | Z94: 0.4091949098
A95: 1617 | B95: 5 | C95: 1617.375 | L95: 1360.575808 | Y95: -0.194192 | Z95: 0.4041786767
A96: 1617 | B96: 6 | C96: 1617.458333 | L96: 1360.575808 | Y96: -0.194192 | Z96: 0.398912985
A97: 1617 | B97: 7 | C97: 1617.541667 | L97: 1360.572215 | Y97: -0.197785 | Z97: 0.3932167669
A98: 1617 | B98: 8 | C98: 1617.625 | L98: 1360.569341 | Y98: -0.200659 | Z98: 0.3870540526
A99: 1617 | B99: 9 | C99: 1617.708333 | L99: 1360.573913 | Y99: -0.196087 | Z99: 0.3806147519
A100: 1617 | B100: 10 | C100: 1617.791667 | L100: 1360.571376 | Y100: -0.198624 | Z100: 0.3739575639
A101: 1617 | B101: 11 | C101: 1617.875 | L101: 1360.569231 | Y101: -0.200769 | Z101: 0.3671052105
A102: 1617 | B102: 12 | C102: 1617.958333 | L102: 1360.557624 | Y102: -0.212376 | Z102: 0.3596120827
A103: 1618 | B103: 1 | C103: 1618.041667 | L103: 1360.560719 | Y103: -0.209281 | Z103: 0.3515463308
A104: 1618 | B104: 2 | C104: 1618.125 | L104: 1360.560719 | Y104: -0.209281 | Z104: 0.3429353835
A105: 1618 | B105: 3 | C105: 1618.208333 | L105: 1360.560719 | Y105: -0.209281 | Z105: 0.3342911955
A106: 1618 | B106: 4 | C106: 1618.291667 | L106: 1360.560719 | Y106: -0.209281 | Z106: 0.3255140226
A107: 1618 | B107: 5 | C107: 1618.375 | L107: 1360.560719 | Y107: -0.209281 | Z107: 0.3163736692
A108: 1618 | B108: 6 | C108: 1618.458333 | L108: 1360.560719 | Y108: -0.209281 | Z108: 0.3053948045
A109: 1618 | B109: 7 | C109: 1618.541667 | L109: 1360.577299 | Y109: -0.192701 | Z109: 0.2943042932
A110: 1618 | B110: 8 | C110: 1618.625 | L110: 1360.580119 | Y110: -0.189881 | Z110: 0.282948188
A111: 1618 | B111: 9 | C111: 1618.708333 | L111: 1360.583449 | Y111: -0.186551 | Z111: 0.2721322932
A112: 1618 | B112: 10 | C112: 1618.791667 | L112: 1360.579831 | Y112: -0.190169 | Z112: 0.2613677218
A113: 1618 | B113: 11 | C113: 1618.875 | L113: 1360.583869 | Y113: -0.186131 | Z113: 0.250217797
A114: 1618 | B114: 12 | C114: 1618.958333 | L114: 1360.58892 | Y114: -0.18108 | Z114: 0.2389270526
A115: 1619 | B115: 1 | C115: 1619.041667 | L115: 1360.586174 | Y115: -0.183826 | Z115: 0.2283531805
A116: 1619 | B116: 2 | C116: 1619.125 | L116: 1360.60506 | Y116: -0.16494 | Z116: 0.2184457368
A117: 1619 | B117: 3 | C117: 1619.208333 | L117: 1360.615324 | Y117: -0.154676 | Z117: 0.2089529624
A118: 1619 | B118: 4 | C118: 1619.291667 | L118: 1360.629693 | Y118: -0.140307 | Z118: 0.1991449098
A119: 1619 | B119: 5 | C119: 1619.375 | L119: 1360.651247 | Y119: -0.118753 | Z119: 0.189335782
A120: 1619 | B120: 6 | C120: 1619.458333 | L120: 1360.687171 | Y120: -0.082829 | Z120: 0.1798831955
A121: 1619 | B121: 7 | C121: 1619.541667 | L121: 1360.759019 | Y121: -0.010981 | Z121: 0.1739605338
A122: 1619 | B122: 8 | C122: 1619.625 | L122: 1360.759019 | Y122: -0.010981 | Z122: 0.1683504586
A123: 1619 | B123: 9 | C123: 1619.708333 | L123: 1360.759019 | Y123: -0.010981 | Z123: 0.163029391
A124: 1619 | B124: 10 | C124: 1619.791667 | L124: 1360.759019 | Y124: -0.010981 | Z124: 0.1564199248
A125: 1619 | B125: 11 | C125: 1619.875 | L125: 1360.759019 | Y125: -0.010981 | Z125: 0.1471740226
A126: 1619 | B126: 12 | C126: 1619.958333 | L126: 1360.759019 | Y126: -0.010981 | Z126: 0.1384118195
A127: 1620 | B127: 1 | C127: 1620.041667 | L127: 1360.759019 | Y127: -0.010981 | Z127: 0.1298515714
A128: 1620 | B128: 2 | C128: 1620.125 | L128: 1360.759019 | Y128: -0.010981 | Z128: 0.1213669549
A129: 1620 | B129: 3 | C129: 1620.208333 | L129: 1360.759019 | Y129: -0.010981 | Z129: 0.1127693083
A130: 1620 | B130: 4 | C130: 1620.291667 | L130: 1360.759019 | Y130: -0.010981 | Z130: 0.1025111429
A131: 1620 | B131: 5 | C131: 1620.375 | L131: 1360.759019 | Y131: -0.010981 | Z131: 0.09238345865
A132: 1620 | B132: 6 | C132: 1620.458333 | L132: 1360.759019 | Y132: -0.010981 | Z132: 0.08219593233
A133: 1620 | B133: 7 | C133: 1620.541667 | L133: 1360.759019 | Y133: -0.010981 | Z133: 0.07172999248
A134: 1620 | B134: 8 | C134: 1620.625 | L134: 1360.759019 | Y134: -0.010981 | Z134: 0.0610637594
A135: 1620 | B135: 9 | C135: =A135 + B135/12 - 1/24 -> 1620.708333 | L135: 1360.759019 | Y135: -0.010981 | Z135: 0.05267167669
A136: 1620 | B136: 10 | C136: 1620.791667 | L136: 1360.759019 | Y136: -0.010981 | Z136: 0.04416739098
A137: 1620 | B137: 11 | C137: 1620.875 | L137: 1360.759019 | Y137: -0.010981 | Z137: 0.03521264662
A138: 1620 | B138: 12 | C138: 1620.958333 | L138: 1360.759019 | Y138: -0.010981 | Z138: 0.02967314286
A139: 1621 | B139: 1 | C139: 1621.041667 | L139: 1360.759019 | Y139: -0.010981 | Z139: 0.02375798496
A140: 1621 | B140: 2 | C140: 1621.125 | L140: 1360.759019 | Y140: -0.010981 | Z140: 0.01777218797
A141: 1621 | B141: 3 | C141: 1621.208333 | L141: 1360.759019 | Y141: =L141 - svalgaard_background -> -0.010981 | Z141: 0.01293190977
A142: 1621 | B142: 4 | C142: 1621.291667 | L142: 1360.759019 | Y142: -0.010981 | Z142: 0.008531360902
A143: 1621 | B143: 5 | C143: 1621.375 | L143: 1360.759019 | Y143: -0.010981 | Z143: 0.006858864662
A144: 1621 | B144: 6 | C144: 1621.458333 | L144: 1360.759019 | Y144: -0.010981 | Z144: =AVERAGE(Y78:Y210) -> 0.005189616541
A145: 1621 | B145: 7 | C145: 1621.541667 | L145: 1360.759019 | Y145: -0.010981 | Z145: 0.003821218045
A146: 1621 | B146: 8 | C146: 1621.625 | L146: 1360.759019 | Y146: -0.010981 | Z146: 0.002412300752
A147: 1621 | B147: 9 | C147: 1621.708333 | L147: 1360.759019 | Y147: -0.010981 | Z147: 0.000935774436
A148: 1621 | B148: 10 | C148: 1621.791667 | L148: 1360.759019 | Y148: -0.010981 | Z148: 8.368421044e-05
A149: 1621 | B149: 11 | C149: 1621.875 | L149: 1360.759019 | Y149: -0.010981 | Z149: -0.0007362406016
A150: 1621 | B150: 12 | C150: 1621.958333 | L150: 1360.759019 | Y150: -0.010981 | Z150: -0.001104165414
A151: 1622 | B151: 1 | C151: 1622.041667 | L151: 1360.759019 | Y151: -0.010981 | Z151: -0.001269390978
A152: 1622 | B152: 2 | C152: 1622.125 | L152: 1360.759019 | Y152: -0.010981 | Z152: -0.001407601504
A153: 1622 | B153: 3 | C153: 1622.208333 | L153: 1360.759019 | Y153: -0.010981 | Z153: -0.001480984962
A154: 1622 | B154: 4 | C154: 1622.291667 | L154: 1360.759019 | Y154: -0.010981 | Z154: -0.001398255639
A155: 1622 | B155: 5 | C155: 1622.375 | L155: 1360.759019 | Y155: -0.010981 | Z155: -0.0006273082708
A156: 1622 | B156: 6 | C156: 1622.458333 | L156: 1360.759019 | Y156: -0.010981 | Z156: 0.0004075714285
A157: 1622 | B157: 7 | C157: 1622.541667 | L157: 1360.759019 | Y157: -0.010981 | Z157: 0.001984984962
A158: 1622 | B158: 8 | C158: 1622.625 | L158: 1360.759019 | Y158: -0.010981 | Z158: 0.003938744361
A159: 1622 | B159: 9 | C159: 1622.708333 | L159: 1360.759019 | Y159: -0.010981 | Z159: 0.006079774436
A160: 1622 | B160: 10 | C160: 1622.791667 | L160: 1360.759019 | Y160: -0.010981 | Z160: 0.008155729323
A161: 1622 | B161: 11 | C161: 1622.875 | L161: 1360.759019 | Y161: -0.010981 | Z161: 0.01038312782
A162: 1622 | B162: 12 | C162: 1622.958333 | L162: 1360.759019 | Y162: -0.010981 | Z162: 0.01264524812
A163: 1623 | B163: 1 | C163: 1623.041667 | L163: 1360.759019 | Y163: -0.010981 | Z163: 0.01490736842
A164: 1623 | B164: 2 | C164: 1623.125 | L164: 1360.759019 | Y164: -0.010981 | Z164: 0.01715598496
A165: 1623 | B165: 3 | C165: 1623.208333 | L165: 1360.759019 | Y165: -0.010981 | Z165: 0.01957342857
A166: 1623 | B166: 4 | C166: 1623.291667 | L166: 1360.759019 | Y166: -0.010981 | Z166: 0.02186658647
A167: 1623 | B167: 5 | C167: 1623.375 | L167: 1360.759019 | Y167: -0.010981 | Z167: 0.02406614286
A168: 1623 | B168: 6 | C168: 1623.458333 | L168: 1360.759019 | Y168: -0.010981 | Z168: 0.02619420301
A169: 1623 | B169: 7 | C169: 1623.541667 | L169: 1360.759019 | Y169: -0.010981 | Z169: 0.02822945865
A170: 1623 | B170: 8 | C170: 1623.625 | L170: 1360.759019 | Y170: -0.010981 | Z170: 0.03018934586
A171: 1623 | B171: 9 | C171: 1623.708333 | L171: 1360.759019 | Y171: -0.010981 | Z171: 0.03212221053
A172: 1623 | B172: 10 | C172: 1623.791667 | L172: 1360.759019 | Y172: -0.010981 | Z172: 0.03410418045
A173: 1623 | B173: 11 | C173: 1623.875 | L173: 1360.759019 | Y173: -0.010981 | Z173: 0.03614752632
A174: 1623 | B174: 12 | C174: 1623.958333 | L174: 1360.759019 | Y174: -0.010981 | Z174: 0.03803826316
A175: 1624 | B175: 1 | C175: 1624.041667 | L175: 1360.759019 | Y175: -0.010981 | Z175: 0.039929
A176: 1624 | B176: 2 | C176: 1624.125 | L176: 1360.701541 | Y176: -0.068459 | Z176: 0.04169507519
A177: 1624 | B177: 3 | C177: 1624.208333 | L177: 1360.715911 | Y177: -0.054089 | Z177: 0.04323646617
A178: 1624 | B178: 4 | C178: 1624.291667 | L178: 1360.715911 | Y178: -0.054089 | Z178: 0.04455654135
A179: 1624 | B179: 5 | C179: 1624.375 | L179: 1360.681424 | Y179: -0.088576 | Z179: 0.04590381955
A180: 1624 | B180: 6 | C180: 1624.458333 | L180: 1360.680945 | Y180: -0.089055 | Z180: 0.04722073684
A181: 1624 | B181: 7 | C181: 1624.541667 | L181: 1360.743829 | Y181: -0.026171 | Z181: 0.04849967669
A182: 1624 | B182: 8 | C182: 1624.625 | L182: 1360.800512 | Y182: 0.030512 | Z182: 0.04979926316
A183: 1624 | B183: 9 | C183: 1624.708333 | L183: 1360.837573 | Y183: 0.067573 | Z183: 0.05014653383
A184: 1624 | B184: 10 | C184: 1624.791667 | L184: 1360.856302 | Y184: 0.086302 | Z184: 0.04960632331
A185: 1624 | B185: 11 | C185: 1624.875 | L185: 1360.867797 | Y185: 0.097797 | Z185: 0.04895807519
A186: 1624 | B186: 12 | C186: 1624.958333 | L186: 1360.915217 | Y186: 0.145217 | Z186: 0.04814776692
A187: 1625 | B187: 1 | C187: 1625.041667 | L187: 1360.944126 | Y187: 0.174126 | Z187: 0.04706735338
A188: 1625 | B188: 2 | C188: 1625.125 | L188: 1360.939717 | Y188: 0.169717 | Z188: 0.04544672932
A189: 1625 | B189: 3 | C189: 1625.208333 | L189: 1360.96666 | Y189: 0.19666 | Z189: 0.04382610526
A190: 1625 | B190: 4 | C190: 1625.291667 | L190: 1361.022342 | Y190: 0.252342 | Z190: 0.0422054812
A191: 1625 | B191: 5 | C191: 1625.375 | L191: 1361.05249 | Y191: 0.28249 | Z191: 0.04058485714
A192: 1625 | B192: 6 | C192: 1625.458333 | L192: 1361.116822 | Y192: 0.346822 | Z192: 0.03909696992
A193: 1625 | B193: 7 | C193: 1625.541667 | L193: 1361.143682 | Y193: 0.373682 | Z193: 0.03760908271
A194: 1625 | B194: 8 | C194: 1625.625 | L194: 1361.153741 | Y194: 0.383741 | Z194: 0.03612119549
A195: 1625 | B195: 9 | C195: 1625.708333 | L195: 1361.138708 | Y195: 0.368708 | Z195: 0.03463330827
A196: 1625 | B196: 10 | C196: 1625.791667 | L196: 1361.133402 | Y196: 0.363402 | Z196: 0.03316754135
A197: 1625 | B197: 11 | C197: 1625.875 | L197: 1361.150756 | Y197: 0.380756 | Z197: 0.03179541353
A198: 1625 | B198: 12 | C198: 1625.958333 | L198: 1361.142797 | Y198: 0.372797 | Z198: 0.03059480451
A199: 1626 | B199: 1 | C199: =A199 + B199/12 - 1/24 -> 1626.041667 | L199: 1361.105768 | Y199: 0.335768 | Z199: 0.02939419549
A200: 1626 | B200: 2 | C200: 1626.125 | L200: 1361.079129 | Y200: 0.309129 | Z200: 0.02814690977
A201: 1626 | B201: 3 | C201: 1626.208333 | L201: 1361.08941 | Y201: 0.31941 | Z201: 0.02689962406
... 1903 more rows

Sheet Solar Yearly
A1: Solar: Yearly
B3: Downloaded Data | P3: Calculations
B4: Year AD | C4: Reconstructed TSI | D4: Reconstructed TSI | E4: Year AD | F4: Reconstructed TSI | G4: Years before 1950 | H4: Reconstructed Changes in TSI | I4: Years before 1950 | J4: Reconstructed Changes in TSI | K4: Years before 1950 | L4: Reconstructed SSN | M4: Year AD | N4: Annual Open Solar Flux | O4: Annual Open Solar Flux | P4: Changes in Reconstructed TSI | Q4: Changes in Reconstructed TSI | R4: Changes in Reconstructed TSI | S4: Changes in Reconstructed TSI, 11 year smoothed | T4: Year AD | U4: Year AD | V4: Year AD | W4: Reconstructed TSI, smoothed (200 year centered)
A5: Dataset--> | B5: Lean 2000 Yearly WLS Background | D5: SORCE/TIM TSI Historical Reconstruction | E5: Delaygue and Bard 2010 | G5: Steinhilber 2009 | I5: Steinhilber 2012 | K5: Solanki 2004 | M5: Lockwood 2009 | N5: Lockwood 2009 Inferred | O5: Lockwood 2009 Observed | P5: Delaygue and Bard, 2010 | Q5: Lean 2000, WLS Background | R5: SORCE/TIM TSI Historical Reconstruction | S5: SORCE/TIM TSI Historical Reconstruction | T5: Steinhilber 2009 | U5: Steinhilber 2012 | V5: Solanki 2004 | W5: Steinhilber 2009
A6: Extent-> | C6: 400 years | D6: 400+ years | F6: 1,300 years | H6: 9,360 years | J6: 9,360 years | L6: 11,450 years | N6: 336 years | O6: 37 years | P6: 1,300 years | Q6: 400 years | R6: 400+ years | S6: 400+ years
A7: Units--> | B7: year AD | C7: W / m2 | D7: W / m2 | E7: year AD | F7: W / m2 | G7: years | H7: W / m2 | I7: years | J7: W / m2 | K7: years | L7: 1 | M7: year AD | N7: 10^14 Wb | O7: 10^14 Wb | P7: W / m2 | Q7: W / m2 | R7: W / m2 | S7: W / m2 | T7: year AD | U7: year AD | V7: year AD | W7: W / m2
B8: 1610.5 | C8: 1365.5469 | D8: 1359.8655 | E8: 695 | F8: 1364.67 | G8: 9312.5 | H8: -0.03 | I8: 9389 | J8: -0.38 | K8: 11405 | L8: 37.4 | M8: 1675.5 | N8: 0.061783232 | P8: =F8 - 1364.87 -> -0.2 | Q8: =C8 - Lean2000Y_background -> 0.0302 | R8: =D8 - SorceTIMY_background -> -0.8645 | T8: =1950 - G8 -> -7362.5 | U8: =1950 - I8 -> -7439 | V8: =1950 - K8 -> -9455 | W8: =AVERAGE(H$8:H28) -> -0.2204761905
B9: 1611.5 | C9: 1365.53 | D9: 1360.2017 | E9: 704 | F9: 1364.74 | G9: 9307.5 | H9: 0.11 | I9: 9367 | J9: -0.38 | K9: 11395 | L9: 57.1 | M9: 1676.5 | N9: 0.061783232 | P9: -0.13 | Q9: 0.0133 | R9: -0.5283 | T9: =1950 - G9 -> -7357.5 | U9: =1950 - I9 -> -7417 | V9: =1950 - K9 -> -9445 | W9: =AVERAGE(H$8:H29) -> -0.2231818182
B10: 1612.5 | C10: 1365.9279 | D10: 1360.4352 | E10: 712 | F10: 1364.81 | G10: 9302.5 | H10: 0.21 | I10: 9345 | J10: -0.18 | K10: 11385 | L10: 89 | M10: 1677.5 | N10: 0.061783232 | P10: -0.06 | Q10: 0.4112 | R10: -0.2948 | T10: =1950 - G10 -> -7352.5 | U10: -7395 | V10: -9435 | W10: =AVERAGE(H$8:H30) -> -0.2234782609
B11: 1613.5 | C11: 1366.0399 | D11: 1360.7561 | E11: 721 | F11: 1365.12 | G11: 9297.5 | H11: 0.2 | I11: 9323 | J11: -0.01 | K11: 11375 | L11: 92.5 | M11: 1678.5 | N11: 0.061783232 | P11: 0.25 | Q11: 0.5232 | R11: 0.0261 | T11: -7347.5 | U11: -7373 | V11: -9425 | W11: =AVERAGE(H$8:H31) -> -0.2216666667
B12: 1614.5 | C12: 1366.1143 | D12: 1360.9097 | E12: 730 | F12: 1364.99 | G12: 9292.5 | H12: 0.07 | I12: 9301 | J12: -0.14 | K12: 11365 | L12: 75.2 | M12: 1679.5 | N12: 0.061783232 | P12: 0.12 | Q12: 0.5976 | R12: 0.1797 | T12: -7342.5 | U12: -7351 | V12: -9415 | W12: =AVERAGE(H$8:H32) -> -0.2204
B13: 1615.5 | C13: 1365.8314 | D13: 1360.8426 | E13: 738 | F13: 1365.16 | G13: 9287.5 | H13: -0.15 | I13: 9279 | J13: -0.37 | K13: 11355 | L13: 60.6 | M13: 1680.5 | N13: 0.061783232 | P13: 0.29 | Q13: 0.3147 | R13: 0.1126 | S13: =AVERAGE(R8:R18) -> -0.3925727273 | T13: -7337.5 | U13: -7329 | V13: -9405 | W13: =AVERAGE(H$8:H33) -> -0.2219230769
B14: 1616.5 | C14: 1365.4148 | D14: 1360.4492 | E14: 746 | F14: 1365.38 | G14: 9282.5 | H14: -0.4 | I14: 9257 | J14: -0.38 | K14: 11345 | L14: 43.3 | M14: 1681.5 | N14: 0.061783232 | P14: 0.51 | Q14: -0.1019 | R14: -0.2808 | S14: =AVERAGE(R9:R19) -> -0.371 | T14: -7332.5 | U14: -7307 | V14: -9395 | W14: =AVERAGE(H$8:H34) -> -0.227037037
B15: 1617.5 | C15: 1365.2889 | D15: 1360.1065 | E15: 755 | F15: 1365.36 | G15: 9277.5 | H15: -0.59 | I15: 9235 | J15: -0.27 | K15: 11335 | L15: 37.7 | M15: 1682.5 | N15: 0.061783232 | P15: 0.49 | Q15: -0.2278 | R15: -0.6235 | S15: -0.3800363636 | T15: -7327.5 | U15: -7285 | V15: -9385 | W15: =AVERAGE(H$8:H35) -> -0.2328571429
B16: 1618.5 | C16: 1365.2783 | D16: 1360.0017 | E16: 770 | F16: 1365.12 | G16: 9272.5 | H16: -0.64 | I16: 9213 | J16: -0.05 | K16: 11325 | L16: 57.1 | M16: 1683.5 | N16: 0.061783232 | P16: 0.25 | Q16: -0.2384 | R16: -0.7283 | S16: -0.4101 | T16: -7322.5 | U16: -7263 | V16: -9375 | W16: =AVERAGE(H$8:H36) -> -0.2362068966
B17: 1619.5 | C17: 1365.3684 | D17: 1360.0425 | E17: 785 | F17: 1364.45 | G17: 9267.5 | H17: -0.59 | I17: 9191 | J17: -0.11 | K17: 11315 | L17: 71.8 | M17: 1684.5 | N17: 0.061783232 | P17: -0.42 | Q17: -0.1483 | R17: -0.6875 | S17: -0.4726636364 | T17: -7317.5 | U17: -7241 | V17: -9365 | W17: =AVERAGE(H$8:H37) -> -0.236
B18: 1620.5 | C18: 1365.3645 | D18: 1360.101 | E18: 797 | F18: 1364.94 | G18: 9262.5 | H18: -0.52 | I18: 9169 | J18: -0.12 | K18: 11305 | L18: 51.9 | M18: 1685.5 | N18: 0.061783232 | P18: 0.07 | Q18: -0.1522 | R18: -0.629 | S18: -0.5394727273 | T18: -7312.5 | U18: -7219 | V18: -9355 | W18: =AVERAGE(H$8:H38) -> -0.2338709677
B19: 1621.5 | C19: 1365.3607 | D19: 1360.1028 | E19: 809 | F19: 1364.92 | G19: 9257.5 | H19: -0.46 | I19: 9147 | J19: 0.04 | K19: 11295 | L19: 42.3 | M19: 1686.5 | N19: 0.061783232 | P19: 0.05 | Q19: -0.156 | R19: -0.6272 | S19: -0.5919909091 | T19: -7307.5 | U19: -7197 | V19: -9345 | W19: =AVERAGE(H$8:H39) -> -0.2315625
B20: 1622.5 | C20: 1365.3568 | D20: 1360.1023 | E20: 819 | F20: 1364.89 | G20: 9252.5 | H20: -0.37 | I20: 9125 | J20: -0.12 | K20: 11285 | L20: 54.8 | M20: 1687.5 | N20: 0.061783232 | P20: 0.02 | Q20: -0.1599 | R20: -0.6277 | S20: -0.6182090909 | T20: -7302.5 | U20: -7175 | V20: -9335 | W20: =AVERAGE(H$8:H40) -> -0.2306060606
B21: 1623.5 | C21: 1365.353 | D21: 1360.1045 | E21: 831 | F21: 1365.04 | G21: 9247.5 | H21: -0.28 | I21: 9103 | J21: -0.11 | K21: 11275 | L21: 65 | M21: 1688.5 | N21: 0.061783232 | P21: 0.17 | Q21: -0.1637 | R21: -0.6255 | S21: -0.6151090909 | T21: -7297.5 | U21: -7153 | V21: -9325 | W21: =AVERAGE(H$8:H41) -> -0.2302941176
B22: 1624.5 | C22: 1365.3121 | D22: 1360.0679 | E22: 843 | F22: 1365 | G22: 9242.5 | H22: -0.18 | I22: 9081 | J22: -0.07 | K22: 11265 | L22: 50.3 | M22: 1689.5 | N22: 0.061783232 | P22: 0.13 | Q22: -0.2046 | R22: -0.6621 | S22: -0.6007090909 | T22: -7292.5 | U22: -7131 | V22: -9315 | W22: =AVERAGE(H$8:H42) -> -0.2291428571
B23: 1625.5 | C23: 1365.5303 | D23: 1360.1748 | E23: 854 | F23: 1364.89 | G23: 9237.5 | H23: -0.11 | I23: 9059 | J23: -0.15 | K23: 11255 | L23: 38.1 | M23: 1690.5 | N23: 0.061783232 | P23: 0.02 | Q23: 0.0136 | R23: -0.5552 | S23: -0.5983363636 | T23: -7287.5 | U23: -7109 | V23: -9305 | W23: =AVERAGE(H$8:H43) -> -0.2261111111
B24: 1626.5 | C24: 1365.4191 | D24: 1360.2649 | E24: 864 | F24: 1364.98 | G24: 9232.5 | H24: -0.09 | I24: 9037 | J24: -0.1 | K24: 11245 | L24: 36.4 | M24: 1691.5 | N24: 0.061783232 | P24: 0.11 | Q24: -0.0976 | R24: -0.4651 | S24: -0.6072363636 | T24: -7282.5 | U24: -7087 | V24: -9295 | W24: =AVERAGE(H$8:H44) -> -0.2208108108
B25: 1627.5 | C25: 1365.3418 | D25: 1360.1608 | E25: 874 | F25: 1364.96 | G25: 9227.5 | H25: -0.11 | I25: 9015 | J25: -0.3 | K25: 11235 | L25: 28.4 | M25: 1692.5 | N25: 0.061783232 | P25: 0.09 | Q25: -0.1749 | R25: -0.5692 | S25: -0.6170909091 | T25: -7277.5 | U25: -7065 | V25: -9285 | W25: =AVERAGE(H$8:H45) -> -0.2142105263
B26: 1628.5 | C26: 1365.3518 | D26: 1360.1406 | E26: 884 | F26: 1364.85 | G26: 9222.5 | H26: -0.17 | I26: 8993 | J26: -0.52 | K26: 11225 | L26: 23.4 | M26: 1693.5 | N26: 0.061783232 | P26: -0.02 | Q26: -0.1649 | R26: -0.5894 | S26: -0.6232727273 | T26: -7272.5 | U26: -7043 | V26: -9275 | W26: =AVERAGE(H$8:H46) -> -0.2071794872
B27: 1629.5 | C27: 1365.2922 | D27: 1360.1601 | E27: 895 | F27: 1364.92 | G27: 9217.5 | H27: -0.24 | I27: 8971 | J27: -0.64 | K27: 11215 | L27: 25 | M27: 1694.5 | N27: 0.061783232 | P27: 0.05 | Q27: -0.2245 | R27: -0.5699 | S27: -0.6279090909 | T27: -7267.5 | U27: -7021 | V27: -9265 | W27: =AVERAGE(H$8:H47) -> -0.2015
B28: 1630.5 | C28: 1365.1428 | D28: 1360.0686 | E28: 905 | F28: 1364.82 | G28: 9212.5 | H28: -0.29 | I28: 8949 | J28: -0.33 | K28: 11205 | L28: 20.3 | M28: 1695.5 | N28: 0.061783232 | P28: -0.05 | Q28: -0.3739 | R28: -0.6614 | S28: -0.6328909091 | T28: -7262.5 | U28: -6999 | V28: -9255 | W28: =AVERAGE(H$8:H48) -> -0.1982926829
B29: 1631.5 | C29: 1365.1515 | D29: 1360.0031 | E29: 914 | F29: 1365.03 | G29: 9207.5 | H29: -0.28 | I29: 8927 | J29: -0.28 | K29: 11195 | L29: 14.5 | M29: 1696.5 | N29: 0.061783232 | P29: 0.16 | Q29: -0.3652 | R29: -0.7269 | S29: -0.6487636364 | T29: -7257.5 | U29: -6977 | V29: -9245 | W29: =AVERAGE(H9:H49) -> -0.2029268293
B30: 1632.5 | C30: 1365.1183 | D30: 1359.9944 | E30: 924 | F30: 1364.92 | G30: 9202.5 | H30: -0.23 | I30: 8905 | J30: -0.16 | K30: 11185 | L30: 12.3 | M30: 1697.5 | N30: 0.061783232 | P30: 0.05 | Q30: -0.3984 | R30: -0.7356 | S30: -0.6775727273 | T30: -7252.5 | U30: -6955 | V30: -9235 | W30: =AVERAGE(H10:H50) -> -0.2146341463
B31: 1633.5 | C31: 1365.2158 | D31: 1360.0343 | E31: 933 | F31: 1364.95 | G31: 9197.5 | H31: -0.18 | I31: 8883 | J31: 0.04 | K31: 11175 | L31: 7.2 | M31: 1698.5 | N31: 0.061783232 | P31: 0.08 | Q31: -0.3009 | R31: -0.6957 | S31: -0.6738909091 | T31: -7247.5 | U31: -6933 | V31: -9225 | W31: -0.2304878049
B32: 1634.5 | C32: 1365.1362 | D32: 1360.0535 | E32: 943 | F32: 1365.24 | G32: 9192.5 | H32: -0.19 | I32: 8861 | J32: 0.04 | K32: 11165 | L32: 3.2 | M32: 1699.5 | N32: 0.061783232 | P32: 0.37 | Q32: -0.3805 | R32: -0.6765 | S32: -0.6350636364 | T32: -7242.5 | U32: -6911 | V32: -9215 | W32: -0.2443902439
B33: 1635.5 | C33: 1365.1411 | D33: 1360.0131 | E33: 954 | F33: 1364.95 | G33: 9187.5 | H33: -0.26 | I33: 8839 | J33: -0.09 | K33: 11155 | L33: 6.5 | M33: 1700.5 | N33: 0.061783232 | P33: 0.08 | Q33: -0.3756 | R33: -0.7169 | S33: -0.6136727273 | T33: -7237.5 | U33: -6889 | V33: -9205 | W33: -0.252195122
B34: 1636.5 | C34: 1365.108 | D34: 1360.0002 | E34: 964 | F34: 1365.03 | G34: 9182.5 | H34: -0.36 | I34: 8817 | J34: 0.09 | K34: 11145 | L34: 12.6 | M34: 1701.5 | N34: 0.072274192 | P34: 0.16 | Q34: -0.4087 | R34: -0.7298 | S34: -0.6158 | T34: -7232.5 | U34: -6867 | V34: -9195 | W34: -0.252195122
B35: 1637.5 | C35: 1365.1046 | D35: 1359.948 | E35: 974 | F35: 1364.81 | G35: 9177.5 | H35: -0.39 | I35: 8795 | J35: 0.21 | K35: 11135 | L35: 15.8 | M35: 1702.5 | N35: 0.080830924 | P35: -0.06 | Q35: -0.4121 | R35: -0.782 | S35: -0.6017363636 | T35: -7227.5 | U35: -6845 | V35: -9185 | W35: -0.2453658537
B36: 1638.5 | C36: 1365.571 | D36: 1360.2013 | E36: 985 | F36: 1365.01 | G36: 9172.5 | H36: -0.33 | I36: 8773 | J36: 0.01 | K36: 11125 | L36: 16.2 | M36: 1703.5 | N36: 0.10484674 | P36: 0.14 | Q36: 0.0543 | R36: -0.5287 | S36: -0.5780636364 | T36: -7222.5 | U36: -6823 | V36: -9175 | W36: -0.2348780488
B37: 1639.5 | C37: 1365.6241 | D37: 1360.5677 | E37: 995 | F37: 1364.83 | G37: 9167.5 | H37: -0.23 | I37: 8751 | J37: 0.05 | K37: 11115 | L37: 16.1 | M37: 1704.5 | N37: 0.13298661 | P37: -0.04 | Q37: 0.1074 | R37: -0.1623 | S37: -0.5706727273 | T37: -7217.5 | U37: -6801 | V37: -9165 | W37: -0.2248780488
B38: 1640.5 | C38: 1365.1936 | D38: 1360.3954 | E38: 1005 | F38: 1364.7 | G38: 9162.5 | H38: -0.17 | I38: 8729 | J38: 0.15 | K38: 11105 | L38: 16.9 | M38: 1705.5 | N38: 0.15567023 | P38: -0.17 | Q38: -0.3231 | R38: -0.3346 | S38: -0.572 | T38: -7212.5 | U38: -6779 | V38: -9155 | W38: -0.2175609756
B39: 1641.5 | C39: 1365.0815 | D39: 1360.0452 | E39: 1015 | F39: 1364.98 | G39: 9157.5 | H39: -0.16 | I39: 8707 | J39: 0.13 | K39: 11095 | L39: 16.6 | M39: 1706.5 | N39: 0.14940868 | P39: 0.11 | Q39: -0.4352 | R39: -0.6848 | S39: -0.5745454545 | T39: -7207.5 | U39: -6757 | V39: -9145 | W39: -0.2124390244
B40: 1642.5 | C40: 1365.4006 | D40: 1360.1578 | E40: 1025 | F40: 1364.92 | G40: 9152.5 | H40: -0.2 | I40: 8685 | J40: 0.1 | K40: 11085 | L40: 15.3 | M40: 1707.5 | N40: 0.16429251 | P40: =F40 - 1364.87 -> 0.05 | Q40: -0.1161 | R40: -0.5722 | S40: -0.5762272727 | T40: -7202.5 | U40: -6735 | V40: -9135 | W40: -0.2087804878
B41: 1643.5 | C41: 1365.1824 | D41: 1360.2548 | E41: 1035 | F41: 1364.71 | G41: 9147.5 | H41: -0.22 | I41: 8663 | J41: 0.06 | K41: 11075 | L41: 12.4 | M41: 1708.5 | N41: 0.17310668 | P41: -0.16 | Q41: -0.3343 | R41: -0.4752 | S41: -0.5732363636 | T41: -7197.5 | U41: -6713 | V41: -9125 | W41: -0.2070731707
B42: 1644.5 | C42: 1365.1272 | D42: 1360.1156 | E42: 1045 | F42: 1364.49 | G42: 9142.5 | H42: -0.19 | I42: 8641 | J42: 0.11 | K42: 11065 | L42: 8.5 | M42: 1709.5 | N42: 0.18034813 | P42: -0.38 | Q42: -0.3895 | R42: -0.6144 | S42: -0.5933272727 | T42: -7192.5 | U42: -6691 | V42: -9115 | W42: -0.2075609756
B43: 1645.5 | C43: 1365.0454 | D43: 1360.0389 | E43: 1058 | F43: 1364.63 | G43: 9137.5 | H43: -0.12 | I43: 8619 | J43: -0.08 | K43: 11055 | L43: 7.9 | M43: 1710.5 | N43: 0.20236037 | P43: -0.24 | Q43: -0.4713 | R43: -0.6911 | S43: -0.6467636364 | T43: -7187.5 | U43: -6669 | V43: -9105 | W43: -0.2092682927
B44: 1646.5 | C44: 1365.0449 | D44: 1359.9851 | E44: 1070 | F44: 1364.74 | G44: 9132.5 | H44: -0.03 | I44: 8597 | J44: -0.2 | K44: 11045 | L44: 8.9 | M44: 1711.5 | N44: 0.23903927 | P44: -0.13 | Q44: -0.4718 | R44: -0.7449 | S44: -0.6847363636 | T44: -7182.5 | U44: -6647 | V44: -9095 | W44: -0.2097560976
B45: 1647.5 | C45: 1365.0443 | D45: 1359.9817 | E45: 1082 | F45: 1364.98 | G45: 9127.5 | H45: 0.03 | I45: 8575 | J45: -0.22 | K45: 11035 | L45: 14 | M45: 1712.5 | N45: 0.28839699 | P45: 0.11 | Q45: -0.4724 | R45: -0.7483 | S45: -0.6893818182 | T45: -7177.5 | U45: -6625 | V45: -9085 | W45: -0.206097561
B46: 1648.5 | C46: 1365.0424 | D46: 1359.9809 | E46: 1096 | F46: 1364.99 | G46: 9122.5 | H46: 0.06 | I46: 8553 | J46: -0.26 | K46: 11025 | L46: 26.7 | M46: 1713.5 | N46: 0.34418835 | P46: 0.12 | Q46: -0.4743 | R46: -0.7491 | S46: -0.7037090909 | T46: -7172.5 | U46: -6603 | V46: -9075 | W46: -0.1975609756
B47: 1649.5 | C47: 1365.0399 | D47: 1359.9803 | E47: 1110 | F47: 1365 | G47: 9117.5 | H47: 0.02 | I47: 8531 | J47: -0.19 | K47: 11015 | L47: 32.5 | M47: 1714.5 | N47: 0.40299081 | P47: 0.13 | Q47: -0.4768 | R47: -0.7497 | S47: -0.7280909091 | T47: -7167.5 | U47: -6581 | V47: -9065 | W47: -0.1848780488
B48: 1650.5 | C48: 1365.0389 | D48: 1359.9799 | E48: 1121 | F48: 1364.77 | G48: 9112.5 | H48: -0.07 | I48: 8509 | J48: -0.19 | K48: 11005 | L48: 25.8 | M48: 1715.5 | N48: 0.47681948 | P48: -0.1 | Q48: -0.4778 | R48: -0.7501 | S48: -0.7400363636 | T48: -7162.5 | U48: -6559 | V48: -9055 | W48: -0.1702439024
B49: 1651.5 | C49: 1365.0383 | D49: 1359.9777 | E49: 1132 | F49: 1365.24 | G49: 9107.5 | H49: -0.22 | I49: 8487 | J49: 0.06 | K49: 10995 | L49: 21.9 | M49: 1716.5 | N49: 0.57894036 | P49: 0.37 | Q49: -0.4784 | R49: -0.7523 | S49: -0.7450454545 | T49: -7157.5 | U49: -6537 | V49: -9045 | W49: -0.1565853659
B50: 1652.5 | C50: 1365.0657 | D50: 1359.9941 | E50: 1145 | F50: 1365.18 | G50: 9102.5 | H50: -0.37 | I50: 8465 | J50: -0.03 | K50: 10985 | L50: 23.9 | M50: 1717.5 | N50: 0.70414257 | P50: 0.31 | Q50: -0.451 | R50: -0.7359 | S50: -0.7452636364 | T50: -7152.5 | U50: -6515 | V50: -9035 | W50: -0.1465853659
B51: 1653.5 | C51: 1365.0439 | D51: 1360.0002 | E51: 1156 | F51: 1365.11 | G51: 9097.5 | H51: -0.44 | I51: 8443 | J51: -0.33 | K51: 10975 | L51: 31.8 | M51: 1718.5 | N51: 0.70710104 | P51: 0.24 | Q51: -0.4728 | R51: -0.7298 | S51: -0.7454090909 | T51: -7147.5 | U51: -6493 | V51: -9025 | W51: -0.1412195122
B52: 1654.5 | C52: 1365.0358 | D52: 1359.9866 | E52: 1167 | F52: 1364.86 | G52: 9092.5 | H52: -0.37 | I52: 8421 | J52: -0.19 | K52: 10965 | L52: 43.6 | M52: 1719.5 | N52: 0.88505227 | P52: -0.01 | Q52: -0.4809 | R52: -0.7434 | S52: -0.7456545455 | T52: -7142.5 | U52: -6471 | V52: -9015 | W52: -0.1392682927
B53: 1655.5 | C53: 1365.026 | D53: 1359.9842 | E53: 1177 | F53: 1364.93 | G53: 9087.5 | H53: -0.25 | I53: 8399 | J53: -0.49 | K53: 10955 | L53: 57 | M53: 1720.5 | N53: 0.95630207 | P53: 0.06 | Q53: -0.4907 | R53: -0.7458 | S53: -0.7451181818 | T53: -7137.5 | U53: -6449 | V53: -9005 | W53: -0.1382926829
B54: 1656.5 | C54: 1365.0249 | D54: 1359.9838 | E54: 1188 | F54: 1364.98 | G54: 9082.5 | H54: -0.15 | I54: 8377 | J54: -0.62 | K54: 10945 | L54: 81.1 | M54: 1721.5 | N54: 0.93551576 | P54: 0.11 | Q54: -0.4918 | R54: -0.7462 | S54: -0.7441090909 | T54: -7132.5 | U54: -6427 | V54: -8995 | W54: -0.1365853659
B55: 1657.5 | C55: 1365.0199 | D55: 1359.9827 | E55: 1199 | F55: 1364.92 | G55: 9077.5 | H55: -0.12 | I55: 8355 | J55: -0.92 | K55: 10935 | L55: 105.8 | M55: 1722.5 | N55: 0.88984111 | P55: 0.05 | Q55: -0.4968 | R55: -0.7473 | S55: -0.7436181818 | T55: -7127.5 | U55: -6405 | V55: -8985 | W55: -0.133902439
B56: 1658.5 | C56: 1365.0145 | D56: 1359.9801 | E56: 1209 | F56: 1364.89 | G56: 9072.5 | H56: -0.16 | I56: 8333 | J56: -0.44 | K56: 10925 | L56: 93.8 | M56: 1723.5 | N56: 0.84908213 | P56: 0.02 | Q56: -0.5022 | R56: -0.7499 | S56: -0.7449727273 | T56: -7122.5 | U56: -6383 | V56: -8975 | W56: -0.132195122
B57: 1659.5 | C57: 1365.0125 | D57: 1359.9782 | E57: 1218 | F57: 1364.9 | G57: 9067.5 | H57: -0.23 | I57: 8311 | J57: -0.55 | K57: 10915 | L57: 77.6 | M57: 1724.5 | N57: 0.9745157 | P57: 0.03 | Q57: -0.5042 | R57: -0.7518 | S57: -0.7468909091 | T57: -7117.5 | U57: -6361 | V57: -8965 | W57: -0.1334146341
B58: 1660.5 | C58: 1365.0259 | D58: 1359.9862 | E58: 1228 | F58: 1364.85 | G58: 9062.5 | H58: -0.29 | I58: 8289 | J58: -0.37 | K58: 10905 | L58: 70.4 | M58: 1725.5 | N58: 1.0922224 | P58: -0.02 | Q58: -0.4908 | R58: -0.7438 | S58: -0.7475818182 | T58: -7112.5 | U58: -6339 | V58: -8955 | W58: -0.1373170732
B59: 1661.5 | C59: 1365.0178 | D59: 1359.991 | E59: 1238 | F59: 1364.76 | G59: 9057.5 | H59: -0.31 | I59: 8267 | J59: -0.05 | K59: 10895 | L59: 67.2 | M59: 1726.5 | N59: 1.3487511 | P59: -0.11 | Q59: -0.4989 | R59: -0.739 | S59: -0.7480545455 | T59: -7107.5 | U59: -6317 | V59: -8945 | W59: -0.1417073171
B60: 1662.5 | C60: 1365.0125 | D60: 1359.9831 | E60: 1249 | F60: 1365.07 | G60: 9052.5 | H60: -0.31 | I60: 8245 | J60: -0.18 | K60: 10885 | L60: 64 | M60: 1727.5 | N60: 1.5481181 | P60: 0.2 | Q60: -0.5042 | R60: -0.7469 | S60: -0.7484909091 | T60: -7102.5 | U60: -6295 | V60: -8935 | W60: -0.1446341463
B61: 1663.5 | C61: 1365.0125 | D61: 1359.9792 | E61: 1259 | F61: 1364.9 | G61: 9047.5 | H61: -0.3 | I61: 8223 | J61: 0.15 | K61: 10875 | L61: 57.1 | M61: 1728.5 | N61: 1.819555 | P61: 0.03 | Q61: -0.5042 | R61: -0.7508 | S61: -0.7488272727 | T61: -7097.5 | U61: -6273 | V61: -8925 | W61: -0.1446341463
B62: 1664.5 | C62: 1365.0126 | D62: 1359.9791 | E62: 1267 | F62: 1364.64 | G62: 9042.5 | H62: -0.3 | I62: 8201 | J62: -0.18 | K62: 10865 | L62: 49.2 | M62: 1729.5 | N62: 1.6789931 | P62: -0.23 | Q62: -0.5041 | R62: -0.7509 | S62: -0.7489272727 | T62: -7092.5 | U62: -6251 | V62: -8915 | W62: -0.1429268293
B63: 1665.5 | C63: 1365.0127 | D63: 1359.979 | E63: 1276 | F63: 1364.67 | G63: 9037.5 | H63: -0.25 | I63: 8179 | J63: -0.27 | K63: 10855 | L63: 44.5 | M63: 1730.5 | N63: 1.8451208 | P63: -0.2 | Q63: -0.504 | R63: -0.751 | S63: -0.7489 | T63: -7087.5 | U63: -6229 | V63: -8905 | W63: -0.142195122
B64: 1666.5 | C64: 1365.0127 | D64: 1359.979 | E64: 1286 | F64: 1364.78 | G64: 9032.5 | H64: -0.13 | I64: 8157 | J64: -0.62 | K64: 10845 | L64: 45.3 | M64: 1731.5 | N64: 1.5014885 | P64: -0.09 | Q64: -0.504 | R64: -0.751 | S64: -0.7492727273 | T64: -7082.5 | U64: -6207 | V64: -8895 | W64: -0.1446341463
B65: 1667.5 | C65: 1365.0125 | D65: 1359.979 | E65: 1296 | F65: 1364.84 | G65: 9027.5 | H65: 0.06 | I65: 8135 | J65: -0.18 | K65: 10835 | L65: 58.7 | M65: 1732.5 | N65: 1.2740185 | P65: -0.03 | Q65: -0.5042 | R65: -0.751 | S65: -0.7498636364 | T65: -7077.5 | U65: -6185 | V65: -8885 | W65: -0.1514634146
B66: 1668.5 | C66: 1365.0122 | D66: 1359.979 | E66: 1305 | F66: 1364.52 | G66: 9022.5 | H66: 0.24 | I66: 8113 | J66: -0.22 | K66: 10825 | L66: 76.2 | M66: 1733.5 | N66: 1.1616908 | P66: -0.35 | Q66: -0.5045 | R66: -0.751 | S66: -0.7500727273 | T66: -7072.5 | U66: -6163 | V66: -8875 | W66: -0.1609756098
B67: 1669.5 | C67: 1365.0122 | D67: 1359.979 | E67: 1313 | F67: 1364.61 | G67: 9017.5 | H67: 0.35 | I67: 8091 | J67: -0.1 | K67: 10815 | L67: 73.1 | M67: 1734.5 | N67: 1.0416304 | P67: -0.26 | Q67: -0.5045 | R67: -0.751 | S67: -0.7500181818 | T67: -7067.5 | U67: -6141 | V67: -8865 | W67: -0.1709756098
B68: 1670.5 | C68: 1365.0122 | D68: 1359.9785 | E68: 1322 | F68: 1364.64 | G68: 9012.5 | H68: 0.36 | I68: 8069 | J68: -0.16 | K68: 10805 | L68: 64.3 | M68: 1735.5 | N68: 1.1640273 | P68: -0.23 | Q68: -0.5045 | R68: -0.7515 | S68: -0.7500272727 | T68: -7062.5 | U68: -6119 | V68: -8855 | W68: -0.1790243902
B69: 1671.5 | C69: 1365.0183 | D69: 1359.9821 | E69: 1330 | F69: 1364.44 | G69: 9007.5 | H69: 0.27 | I69: 8047 | J69: -0.02 | K69: 10795 | L69: 59.5 | M69: 1736.5 | N69: 1.4775162 | P69: -0.43 | Q69: -0.4984 | R69: -0.7479 | S69: -0.7494272727 | T69: -7057.5 | U69: -6097 | V69: -8845 | W69: -0.1836585366
B70: 1672.5 | C70: 1365.0148 | D70: 1359.9845 | E70: 1337 | F70: 1364.59 | G70: 9002.5 | H70: 0.13 | I70: 8025 | J70: -0.24 | K70: 10785 | L70: 54.9 | M70: 1737.5 | N70: 1.4187496 | P70: -0.28 | Q70: -0.5019 | R70: -0.7455 | S70: -0.7486090909 | T70: -7052.5 | U70: -6075 | V70: -8835 | W70: -0.1831707317
B71: 1673.5 | C71: 1365.0122 | D71: 1359.9808 | E71: 1345 | F71: 1364.82 | G71: 8997.5 | H71: -0.01 | I71: 8003 | J71: -0.18 | K71: 10775 | L71: 53.3 | M71: 1738.5 | N71: 1.2373748 | P71: -0.05 | Q71: -0.5045 | R71: -0.7492 | S71: -0.7483818182 | T71: -7047.5 | U71: -6053 | V71: -8825 | W71: -0.1768292683
B72: 1674.5 | C72: 1365.0135 | D72: 1359.9798 | E72: 1354 | F72: 1365.04 | G72: 8992.5 | H72: -0.1 | I72: 7981 | J72: -0.27 | K72: 10765 | L72: 48.6 | M72: 1739.5 | N72: 1.4542276 | P72: =F72 - 1364.87 -> 0.17 | Q72: =C72 - Lean2000Y_background -> -0.5032 | R72: =D72 - SorceTIMY_background -> -0.7502 | S72: -0.7483272727 | T72: -7042.5 | U72: -6031 | V72: -8815 | W72: -0.166097561
B73: 1675.5 | C73: 1365.012 | D73: 1359.979 | E73: 1363 | F73: 1365.04 | G73: 8987.5 | H73: -0.15 | I73: 7959 | J73: -0.4 | K73: 10755 | L73: 40 | M73: 1740.5 | N73: 1.2904885 | P73: 0.17 | Q73: -0.5047 | R73: -0.751 | S73: -0.7480454545 | T73: -7037.5 | U73: =1950 - I73 -> -6009 | V73: =1950 - K73 -> -8805 | W73: -0.1548780488
B74: 1676.5 | C74: 1365.0239 | D74: 1359.9856 | E74: 1371 | F74: 1365.2 | G74: 8982.5 | H74: -0.19 | I74: 7937 | J74: -0.62 | K74: 10745 | L74: 32.8 | M74: 1741.5 | N74: 1.4598959 | P74: 0.33 | Q74: -0.4928 | R74: -0.7444 | S74: -0.7476727273 | T74: =1950 - G74 -> -7032.5 | U74: -5987 | V74: -8795 | W74: -0.1456097561
B75: 1677.5 | C75: 1365.0134 | D75: 1359.988 | E75: 1379 | F75: 1364.91 | G75: 8977.5 | H75: -0.25 | I75: 7915 | J75: -0.52 | K75: 10735 | L75: 30.7 | M75: 1742.5 | N75: 1.3576469 | P75: 0.04 | Q75: -0.5033 | R75: -0.742 | S75: -0.7479363636 | T75: -7027.5 | U75: -5965 | V75: -8785 | W75: -0.1392682927
B76: 1678.5 | C76: 1365.0128 | D76: 1359.9815 | E76: 1388 | F76: 1364.82 | G76: 8972.5 | H76: -0.32 | I76: 7893 | J76: -0.15 | K76: 10725 | L76: 38.4 | M76: 1743.5 | N76: 1.0965284 | P76: -0.05 | Q76: -0.5039 | R76: -0.7485 | S76: -0.7485 | T76: -7022.5 | U76: -5943 | V76: -8775 | W76: -0.1341463415
B77: 1679.5 | C77: 1365.0115 | D77: 1359.9796 | E77: 1396 | F77: 1364.82 | G77: 8967.5 | H77: -0.38 | I77: 7871 | J77: -0.15 | K77: 10715 | L77: 49.3 | M77: 1744.5 | N77: 0.98156974 | P77: -0.05 | Q77: -0.5052 | R77: -0.7504 | S77: -0.7481909091 | T77: -7017.5 | U77: -5921 | V77: -8765 | W77: -0.1280487805
B78: 1680.5 | C78: 1365.017 | D78: 1359.9821 | E78: 1406 | F78: 1364.72 | G78: 8962.5 | H78: -0.39 | I78: 7849 | J78: -0.48 | K78: 10705 | L78: 44.3 | M78: 1745.5 | N78: 0.94891998 | P78: -0.15 | Q78: -0.4997 | R78: -0.7479 | S78: =AVERAGE(R73:R83) -> -0.7477272727 | T78: -7012.5 | U78: -5899 | V78: -8755 | W78: -0.1190243902
B79: 1681.5 | C79: 1365.0115 | D79: 1359.9826 | E79: 1416 | F79: 1364.52 | G79: 8957.5 | H79: -0.35 | I79: 7827 | J79: -0.46 | K79: 10695 | L79: 29.7 | M79: 1746.5 | N79: 0.96544772 | P79: -0.35 | Q79: -0.5052 | R79: -0.7474 | S79: -0.7475 | T79: -7007.5 | U79: -5877 | V79: -8745 | W79: -0.1073170732
B80: 1682.5 | C80: 1365.0115 | D80: 1359.9792 | E80: 1425 | F80: 1364.54 | G80: 8952.5 | H80: -0.28 | I80: 7805 | J80: -0.13 | K80: 10685 | L80: 23.6 | M80: 1747.5 | N80: 1.01174 | P80: -0.33 | Q80: -0.5052 | R80: -0.7508 | S80: -0.7478454545 | T80: -7002.5 | U80: -5855 | V80: -8735 | W80: -0.0956097561
B81: 1683.5 | C81: 1365.0115 | D81: 1359.9783 | E81: 1435 | F81: 1364.54 | G81: 8947.5 | H81: -0.2 | I81: 7783 | J81: -0.18 | K81: 10675 | L81: 24.4 | M81: 1748.5 | N81: 1.5473466 | P81: -0.33 | Q81: -0.5052 | R81: -0.7517 | S81: -0.7484454545 | T81: -6997.5 | U81: -5833 | V81: -8725 | W81: -0.08585365854
B82: 1684.5 | C82: 1365.0211 | D82: 1359.9842 | E82: 1445 | F82: 1364.39 | G82: 8942.5 | H82: -0.15 | I82: 7761 | J82: -0.14 | K82: 10665 | L82: 34.1 | M82: 1749.5 | N82: 1.9172627 | P82: -0.48 | Q82: -0.4956 | R82: -0.7458 | S82: -0.7484 | T82: -6992.5 | U82: -5811 | V82: -8715 | W82: -0.07926829268
B83: 1685.5 | C83: 1365.0117 | D83: 1359.9849 | E83: 1456 | F83: 1364.3 | G83: 8937.5 | H83: -0.16 | I83: 7739 | J83: -0.1 | K83: 10655 | L83: 43.9 | M83: 1750.5 | N83: 1.934049 | P83: -0.57 | Q83: -0.505 | R83: -0.7451 | S83: -0.7483272727 | T83: -6987.5 | U83: -5789 | V83: -8705 | W83: -0.0756097561
B84: 1686.5 | C84: 1365.0159 | D84: 1359.9815 | E84: 1468 | F84: 1364.49 | G84: 8932.5 | H84: -0.22 | I84: 7717 | J84: -0.16 | K84: 10645 | L84: 32.9 | M84: 1751.5 | N84: 1.7407828 | P84: -0.38 | Q84: -0.5008 | R84: -0.7485 | S84: -0.7485181818 | T84: -6982.5 | U84: -5767 | V84: -8695 | W84: -0.07512195122
B85: 1687.5 | C85: 1365.0126 | D85: 1359.9818 | E85: 1479 | F85: 1364.39 | G85: 8927.5 | H85: -0.31 | I85: 7695 | J85: -0.11 | K85: 10635 | L85: 23.9 | M85: 1752.5 | N85: 1.6026803 | P85: -0.48 | Q85: -0.5041 | R85: -0.7482 | S85: -0.7486727273 | T85: -6977.5 | U85: -5745 | V85: -8685 | W85: -0.07780487805
B86: 1688.5 | C86: 1365.0159 | D86: 1359.9814 | E86: 1490 | F86: 1364.58 | G86: 8922.5 | H86: -0.36 | I86: 7673 | J86: -0.49 | K86: 10625 | L86: 36.7 | M86: 1753.5 | N86: 1.5501003 | P86: -0.29 | Q86: -0.5008 | R86: -0.7486 | S86: -0.7484090909 | T86: -6972.5 | U86: -5723 | V86: -8675 | W86: -0.08365853659
B87: 1689.5 | C87: 1365.0146 | D87: 1359.982 | E87: 1502 | F87: 1364.59 | G87: 8917.5 | H87: -0.35 | I87: 7651 | J87: -0.57 | K87: 10615 | L87: 57.6 | M87: 1754.5 | N87: 1.4201361 | P87: -0.28 | Q87: -0.5021 | R87: -0.748 | S87: -0.7479363636 | T87: -6967.5 | U87: -5701 | V87: -8665 | W87: -0.09170731707
B88: 1690.5 | C88: 1365.0143 | D88: 1359.9804 | E88: 1512 | F88: 1364.67 | G88: 8912.5 | H88: -0.31 | I88: 7629 | J88: -0.14 | K88: 10605 | L88: 59 | M88: 1755.5 | N88: 1.3273131 | P88: -0.2 | Q88: -0.5024 | R88: -0.7496 | S88: -0.7478181818 | T88: -6962.5 | U88: -5679 | V88: -8655 | W88: -0.1002439024
B89: 1691.5 | C89: 1365.0157 | D89: 1359.98 | E89: 1523 | F89: 1364.49 | G89: 8907.5 | H89: -0.26 | I89: 7607 | J89: -0.26 | K89: 10595 | L89: 45.2 | M89: 1756.5 | N89: 1.3415538 | P89: -0.38 | Q89: -0.501 | R89: -0.75 | S89: -0.7476 | T89: -6957.5 | U89: -5657 | V89: -8645 | W89: -0.1068292683
B90: 1692.5 | C90: 1365.0172 | D90: 1359.9809 | E90: 1533 | F90: 1364.57 | G90: 8902.5 | H90: -0.2 | I90: 7585 | J90: -0.58 | K90: 10585 | L90: 35.1 | M90: 1757.5 | N90: 1.5268746 | P90: -0.3 | Q90: -0.4995 | R90: -0.7491 | S90: -0.7469454545 | T90: -6952.5 | U90: -5635 | V90: -8635 | W90: -0.1095121951
B91: 1693.5 | C91: 1365.0177 | D91: 1359.9821 | E91: 1544 | F91: 1364.63 | G91: 8897.5 | H91: -0.11 | I91: 7563 | J91: -0.92 | K91: 10575 | L91: 30.6 | M91: 1758.5 | N91: 1.6882119 | P91: -0.24 | Q91: -0.499 | R91: -0.7479 | S91: -0.7461636364 | T91: -6947.5 | U91: -5613 | V91: -8625 | W91: -0.1065853659
B92: 1694.5 | C92: 1365.0179 | D92: 1359.9835 | E92: 1555 | F92: 1364.75 | G92: 8892.5 | H92: 0 | I92: 7541 | J92: -0.28 | K92: 10565 | L92: 27.4 | M92: 1759.5 | N92: 1.45214 | P92: -0.12 | Q92: -0.4988 | R92: -0.7465 | S92: -0.7452090909 | T92: -6942.5 | U92: -5591 | V92: -8615 | W92: -0.09731707317
B93: 1695.5 | C93: 1365.0186 | D93: 1359.9855 | E93: 1567 | F93: 1364.71 | G93: 8887.5 | H93: 0.09 | I93: 7519 | J93: -0.39 | K93: 10555 | L93: 24.2 | M93: 1760.5 | N93: 1.4832183 | P93: -0.16 | Q93: -0.4981 | R93: -0.7445 | S93: -0.7440363636 | T93: -6937.5 | U93: -5569 | V93: -8605 | W93: -0.08292682927
B94: 1696.5 | C94: 1365.0178 | D94: 1359.9873 | E94: 1577 | F94: 1364.7 | G94: 8882.5 | H94: 0.13 | I94: 7497 | J94: -0.35 | K94: 10545 | L94: 27.1 | M94: 1761.5 | N94: 2.098951 | P94: -0.17 | Q94: -0.4989 | R94: -0.7427 | S94: -0.7424 | T94: -6932.5 | U94: -5547 | V94: -8595 | W94: =AVERAGE(H74:H114) -> -0.0656097561
B95: 1697.5 | C95: 1365.0178 | D95: 1359.9887 | E95: 1586 | F95: 1364.68 | G95: 8877.5 | H95: 0.11 | I95: 7475 | J95: -0.34 | K95: 10535 | L95: 34.9 | M95: 1762.5 | N95: 2.0694466 | P95: -0.19 | Q95: -0.4989 | R95: -0.7413 | S95: -0.7406363636 | T95: -6927.5 | U95: -5525 | V95: -8585 | W95: -0.04804878049
B96: 1698.5 | C96: 1365.0179 | D96: 1359.9904 | E96: 1596 | F96: 1364.73 | G96: 8872.5 | H96: 0.09 | I96: 7453 | J96: -0.38 | K96: 10525 | L96: 42.2 | M96: 1763.5 | N96: 1.9049034 | P96: -0.14 | Q96: -0.4988 | R96: -0.7396 | S96: -0.7381727273 | T96: -6922.5 | U96: -5503 | V96: -8575 | W96: -0.03170731707
B97: 1699.5 | C97: 1365.0184 | D97: 1359.9919 | E97: 1605 | F97: 1365.09 | G97: 8867.5 | H97: 0.09 | I97: 7431 | J97: -0.64 | K97: 10515 | L97: 41.4 | M97: 1764.5 | N97: 1.8352618 | P97: 0.22 | Q97: -0.4983 | R97: -0.7381 | S97: -0.7345 | T97: -6917.5 | U97: -5481 | V97: -8565 | W97: -0.01682926829
B98: 1700.5 | C98: 1365.0216 | D98: 1359.9949 | E98: 1615 | F98: 1365.05 | G98: 8862.5 | H98: 0.14 | I98: 7409 | J98: -0.86 | K98: 10505 | L98: 32 | M98: 1765.5 | N98: 1.5151829 | P98: 0.18 | Q98: -0.4951 | R98: -0.7351 | S98: -0.7297363636 | T98: -6912.5 | U98: -5459 | V98: -8555 | W98: -0.001463414634
B99: 1701.5 | C99: 1365.0236 | D99: 1359.9984 | E99: 1626 | F99: 1364.92 | G99: 8857.5 | H99: 0.19 | I99: 7387 | J99: -0.84 | K99: 10495 | L99: 25.4 | M99: 1766.5 | N99: 1.5555393 | P99: 0.05 | Q99: -0.4931 | R99: -0.7316 | S99: -0.7253090909 | T99: -6907.5 | U99: -5437 | V99: -8545 | W99: 0.01536585366
B100: 1702.5 | C100: 1365.0266 | D100: 1359.9994 | E100: 1638 | F100: 1364.83 | G100: 8852.5 | H100: 0.17 | I100: 7365 | J100: -0.2 | K100: 10485 | L100: 22.7 | M100: 1767.5 | N100: 1.9464927 | P100: -0.04 | Q100: -0.4901 | R100: -0.7306 | S100: -0.7207 | T100: -6902.5 | U100: -5415 | V100: -8535 | W100: 0.03292682927
B101: 1703.5 | C101: 1365.0444 | D101: 1360.008 | E101: 1649 | F101: 1364.62 | G101: 8847.5 | H101: 0.09 | I101: 7343 | J101: -0.33 | K101: 10475 | L101: 22.8 | M101: 1768.5 | N101: 2.6980271 | P101: -0.25 | Q101: -0.4723 | R101: -0.722 | S101: -0.7155727273 | T101: -6897.5 | U101: -5393 | V101: -8525 | W101: 0.04902439024
B102: 1704.5 | C102: 1365.0594 | D102: 1360.0225 | E102: 1661 | F102: 1364.7 | G102: 8842.5 | H102: -0.03 | I102: 7321 | J102: -0.39 | K102: 10465 | L102: 29.7 | M102: 1769.5 | N102: 3.2812116 | P102: -0.17 | Q102: -0.4573 | R102: -0.7075 | S102: -0.7110727273 | T102: -6892.5 | U102: -5371 | V102: -8515 | W102: 0.06146341463
B103: 1705.5 | C103: 1365.0752 | D103: 1360.0359 | E103: 1673 | F103: 1364.52 | G103: 8837.5 | H103: -0.15 | I103: 7299 | J103: -0.47 | K103: 10455 | L103: 44.8 | M103: 1770.5 | N103: 3.5859274 | P103: -0.35 | Q103: -0.4415 | R103: -0.6941 | S103: -0.7066272727 | T103: -6887.5 | U103: -5349 | V103: -8505 | W103: 0.06926829268
B104: 1706.5 | C104: 1365.0637 | D104: 1360.0342 | E104: 1685 | F104: 1364.51 | G104: 8832.5 | H104: -0.23 | I104: 7277 | J104: -0.45 | K104: 10445 | L104: 57.7 | M104: 1771.5 | N104: 3.4234886 | P104: =F104 - 1364.87 -> -0.36 | Q104: -0.453 | R104: -0.6958 | S104: -0.702 | T104: -6882.5 | U104: -5327 | V104: -8495 | W104: 0.07390243902
B105: 1707.5 | C105: 1365.0802 | D105: 1360.038 | E105: 1692 | F105: 1364.41 | G105: 8827.5 | H105: -0.24 | I105: 7255 | J105: -0.45 | K105: 10435 | L105: 48.5 | M105: 1772.5 | N105: 3.2461757 | P105: -0.46 | Q105: -0.4365 | R105: -0.692 | S105: -0.6967727273 | T105: -6877.5 | U105: -5305 | V105: -8485 | W105: 0.07731707317
B106: 1708.5 | C106: 1365.0658 | D106: 1360.0451 | E106: 1698 | F106: 1364.78 | G106: 8822.5 | H106: -0.18 | I106: 7233 | J106: -0.92 | K106: 10425 | L106: 34.6 | M106: 1773.5 | N106: 2.7211141 | P106: -0.09 | Q106: -0.4509 | R106: -0.6849 | S106: -0.6905 | T106: -6872.5 | U106: -5283 | V106: -8475 | W106: 0.08146341463
B107: 1709.5 | C107: 1365.0614 | D107: 1360.0399 | E107: 1705 | F107: 1364.49 | G107: 8817.5 | H107: -0.09 | I107: 7211 | J107: -0.47 | K107: 10415 | L107: 32.8 | M107: 1774.5 | N107: 2.4332758 | P107: -0.38 | Q107: -0.4553 | R107: -0.6901 | S107: -0.6838727273 | T107: -6867.5 | U107: -5261 | V107: -8465 | W107: 0.08658536585
B108: 1710.5 | C108: 1365.0634 | D108: 1360.0408 | E108: 1714 | F108: 1364.58 | G108: 8812.5 | H108: 0 | I108: 7189 | J108: -0.38 | K108: 10405 | L108: 30.9 | M108: 1775.5 | N108: 1.9528398 | P108: -0.29 | Q108: -0.4533 | R108: -0.6892 | S108: -0.6768727273 | T108: -6862.5 | U108: -5239 | V108: -8455 | W108: 0.09243902439
B109: 1711.5 | C109: 1365.0739 | D109: 1360.0458 | E109: 1722 | F109: 1364.86 | G109: 8807.5 | H109: 0.09 | I109: 7167 | J109: -0.61 | K109: 10395 | L109: 28.8 | M109: 1776.5 | N109: 1.8317947 | P109: -0.01 | Q109: -0.4428 | R109: -0.6842 | S109: -0.6679636364 | T109: -6857.5 | U109: -5217 | V109: -8445 | W109: 0.09926829268
B110: 1712.5 | C110: 1365.0798 | D110: 1360.0559 | E110: 1731 | F110: 1364.97 | G110: 8802.5 | H110: 0.16 | I110: 7145 | J110: -0.47 | K110: 10385 | L110: 31.8 | M110: 1777.5 | N110: 1.9975018 | P110: 0.1 | Q110: -0.4369 | R110: -0.6741 | S110: -0.6531090909 | T110: -6852.5 | U110: -5195 | V110: -8435 | W110: 0.1068292683
B111: 1713.5 | C111: 1365.0863 | D111: 1360.0684 | E111: 1739 | F111: 1365.22 | G111: 8797.5 | H111: 0.25 | I111: 7123 | J111: -0.39 | K111: 10375 | L111: 33 | M111: 1778.5 | N111: 2.4822326 | P111: 0.35 | Q111: -0.4304 | R111: -0.6616 | S111: -0.6390636364 | T111: -6847.5 | U111: -5173 | V111: -8425 | W111: 0.1136585366
B112: 1714.5 | C112: 1365.1023 | D112: 1360.0809 | E112: 1747 | F112: 1365.23 | G112: 8792.5 | H112: 0.37 | I112: 7101 | J112: -0.1 | K112: 10365 | L112: 29.6 | M112: 1779.5 | N112: 2.3953933 | P112: 0.36 | Q112: -0.4144 | R112: -0.6491 | S112: -0.6194363636 | T112: -6842.5 | U112: -5151 | V112: -8415 | W112: 0.1175609756
B113: 1715.5 | C113: 1365.1294 | D113: 1360.0995 | E113: 1755 | F113: 1364.84 | G113: 8787.5 | H113: 0.49 | I113: 7079 | J113: -0.16 | K113: 10355 | L113: 35.3 | M113: 1780.5 | N113: 2.0715103 | P113: -0.03 | Q113: -0.3873 | R113: -0.6305 | S113: -0.5920636364 | T113: -6837.5 | U113: -5129 | V113: -8405 | W113: 0.117804878
B114: 1716.5 | C114: 1365.1694 | D114: 1360.1339 | E114: 1763 | F114: 1365.01 | G114: 8782.5 | H114: 0.56 | I114: 7057 | J114: -0.06 | K114: 10345 | L114: 49.9 | M114: 1781.5 | N114: 2.2581736 | P114: 0.14 | Q114: -0.3473 | R114: -0.5961 | S114: -0.5674545455 | T114: -6832.5 | U114: -5107 | V114: -8395 | W114: 0.116097561
B115: 1717.5 | C115: 1365.2294 | D115: 1360.1976 | E115: 1770 | F115: 1365.21 | G115: 8777.5 | H115: 0.53 | I115: 7035 | J115: -0.06 | K115: 10335 | L115: 52.7 | M115: 1782.5 | N115: 2.1841363 | P115: 0.34 | Q115: -0.2873 | R115: -0.5324 | S115: -0.5460272727 | T115: -6827.5 | U115: -5085 | V115: -8385 | W115: 0.1158536585
B116: 1718.5 | C116: 1365.1707 | D116: 1360.1925 | E116: 1778 | F116: 1365.12 | G116: 8772.5 | H116: 0.42 | I116: 7013 | J116: -0.1 | K116: 10325 | L116: 52.8 | M116: 1783.5 | N116: 1.9232697 | P116: 0.25 | Q116: -0.346 | R116: -0.5375 | S116: -0.5308727273 | T116: -6822.5 | U116: -5063 | V116: -8375 | W116: 0.1190243902
B117: 1719.5 | C117: 1365.3429 | D117: 1360.261 | E117: 1785 | F117: 1365.3 | G117: 8767.5 | H117: 0.29 | I117: 6991 | J117: -0.17 | K117: 10315 | L117: 59 | M117: 1784.5 | N117: 1.7623146 | P117: 0.43 | Q117: -0.1738 | R117: -0.469 | S117: -0.5141454545 | T117: -6817.5 | U117: -5041 | V117: -8365 | W117: 0.1243902439
B118: 1720.5 | C118: 1365.2859 | D118: 1360.341 | E118: 1795 | F118: 1364.75 | G118: 8762.5 | H118: 0.25 | I118: 6969 | J118: -0.29 | K118: 10305 | L118: 64.3 | M118: 1785.5 | N118: 1.8096598 | P118: -0.12 | Q118: -0.2308 | R118: -0.389 | S118: -0.4947454545 | T118: -6812.5 | U118: -5019 | V118: -8355 | W118: 0.1292682927
B119: 1721.5 | C119: 1365.288 | D119: 1360.3115 | E119: 1805 | F119: 1364.61 | G119: 8757.5 | H119: 0.3 | I119: 6947 | J119: -0.29 | K119: 10295 | L119: 61.9 | M119: 1786.5 | N119: 2.2514605 | P119: -0.26 | Q119: -0.2287 | R119: -0.4185 | S119: -0.4687818182 | T119: -6807.5 | U119: -4997 | V119: -8345 | W119: 0.1312195122
B120: 1722.5 | C120: 1365.2209 | D120: 1360.2815 | E120: 1815 | F120: 1364.69 | G120: 8752.5 | H120: 0.37 | I120: 6925 | J120: -0.35 | K120: 10285 | L120: 50.5 | M120: 1787.5 | N120: 2.616342 | P120: -0.18 | Q120: -0.2958 | R120: -0.4485 | S120: -0.4369636364 | T120: -6802.5 | U120: -4975 | V120: -8335 | W120: 0.1302439024
B121: 1723.5 | C121: 1365.1837 | D121: 1360.2226 | E121: 1823 | F121: 1364.77 | G121: 8747.5 | H121: 0.38 | I121: 6903 | J121: -0.29 | K121: 10275 | L121: 47.2 | M121: 1788.5 | N121: 2.7201224 | P121: -0.1 | Q121: -0.333 | R121: -0.5074 | S121: -0.3987363636 | T121: -6797.5 | U121: -4953 | V121: -8325 | W121: 0.1292682927
B122: 1724.5 | C122: 1365.2681 | D122: 1360.2524 | E122: 1830 | F122: 1364.76 | G122: 8742.5 | H122: 0.31 | I122: 6881 | J122: -0.36 | K122: 10265 | L122: 49.5 | M122: 1789.5 | N122: 2.4371973 | P122: -0.11 | Q122: -0.2486 | R122: -0.4776 | S122: -0.3644454545 | T122: -6792.5 | U122: -4931 | V122: -8315 | W122: 0.1314634146
B123: 1725.5 | C123: 1365.2574 | D123: 1360.2943 | E123: 1839 | F123: 1365.01 | G123: 8737.5 | H123: 0.17 | I123: 6859 | J123: -0.26 | K123: 10255 | L123: 42.6 | M123: 1790.5 | N123: 2.218583 | P123: 0.14 | Q123: -0.2593 | R123: -0.4357 | S123: -0.333 | T123: -6787.5 | U123: -4909 | V123: -8305 | W123: 0.1387804878
B124: 1726.5 | C124: 1365.4274 | D124: 1360.3851 | E124: 1847 | F124: 1365.03 | G124: 8732.5 | H124: 0.03 | I124: 6837 | J124: -0.1 | K124: 10245 | L124: 26.1 | M124: 1791.5 | N124: 1.9897712 | P124: 0.16 | Q124: -0.0893 | R124: -0.3449 | S124: -0.3160090909 | T124: -6782.5 | U124: -4887 | V124: -8295 | W124: 0.1509756098
B125: 1727.5 | C125: 1365.4327 | D125: 1360.4839 | E125: 1855 | F125: 1365.09 | G125: 8727.5 | H125: -0.08 | I125: 6815 | J125: -0.08 | K125: 10235 | L125: 15.6 | M125: 1792.5 | N125: 1.7572603 | P125: 0.22 | Q125: -0.084 | R125: -0.2461 | S125: -0.3169272727 | T125: -6777.5 | U125: -4865 | V125: -8285 | W125: 0.166097561
B126: 1728.5 | C126: 1365.6237 | D126: 1360.6181 | E126: 1862 | F126: 1365.21 | G126: 8722.5 | H126: -0.14 | I126: 6793 | J126: -0.01 | K126: 10225 | L126: 11.5 | M126: 1793.5 | N126: 1.6627554 | P126: 0.34 | Q126: 0.107 | R126: -0.1119 | S126: -0.3159454545 | T126: -6772.5 | U126: -4843 | V126: -8275 | W126: 0.1804878049
B127: 1729.5 | C127: 1365.3479 | D127: 1360.5697 | E127: 1869 | F127: 1365.15 | G127: 8717.5 | H127: -0.15 | I127: 6771 | J127: -0.12 | K127: 10215 | L127: 8.7 | M127: 1794.5 | N127: 1.7785472 | P127: 0.28 | Q127: -0.1688 | R127: -0.1603 | S127: -0.3180909091 | T127: -6767.5 | U127: -4821 | V127: -8265 | W127: 0.1904878049
B128: 1730.5 | C128: 1365.6605 | D128: 1360.6069 | E128: 1875 | F128: 1364.96 | G128: 8712.5 | H128: -0.11 | I128: 6749 | J128: -0.03 | K128: 10205 | L128: 10.3 | M128: 1795.5 | N128: 1.9224467 | P128: 0.09 | Q128: 0.1438 | R128: -0.1231 | S128: -0.3190636364 | T128: -6762.5 | U128: -4799 | V128: -8255 | W128: 0.1941463415
B129: 1731.5 | C129: 1365.1812 | D129: 1360.5279 | E129: 1885 | F129: 1365.14 | G129: 8707.5 | H129: -0.03 | I129: 6727 | J129: -0.36 | K129: 10195 | L129: 10.4 | M129: 1796.5 | N129: 1.8463422 | P129: 0.27 | Q129: -0.3355 | R129: -0.2021 | S129: -0.3056363636 | T129: -6757.5 | U129: -4777 | V129: -8245 | W129: 0.1909756098
B130: 1732.5 | C130: 1365.309 | D130: 1360.3014 | E130: 1892 | F130: 1364.92 | G130: 8702.5 | H130: 0.05 | I130: 6705 | J130: -0.09 | K130: 10185 | L130: 7.5 | M130: 1797.5 | N130: 1.7265573 | P130: 0.05 | Q130: -0.2077 | R130: -0.4286 | S130: -0.2965454545 | T130: -6752.5 | U130: -4755 | V130: -8235 | W130: 0.1824390244
B131: 1733.5 | C131: 1365.1984 | D131: 1360.2923 | E131: 1899 | F131: 1364.72 | G131: 8697.5 | H131: 0.08 | I131: 6683 | J131: -0.11 | K131: 10175 | L131: 8.9 | M131: 1798.5 | N131: 1.6713314 | P131: -0.15 | Q131: -0.3183 | R131: -0.4377 | S131: -0.3100636364 | T131: -6747.5 | U131: -4733 | V131: -8225 | W131: 0.1712195122
B132: 1734.5 | C132: 1365.2086 | D132: 1360.199 | E132: 1906 | F132: 1364.94 | G132: 8692.5 | H132: 0.05 | I132: 6661 | J132: -0.34 | K132: 10165 | L132: 9 | M132: 1799.5 | N132: 1.6283334 | P132: 0.07 | Q132: -0.3081 | R132: -0.531 | S132: -0.3250545455 | T132: -6742.5 | U132: -4711 | V132: -8215 | W132: 0.1585365854
B133: 1735.5 | C133: 1365.3386 | D133: 1360.2417 | E133: 1912 | F133: 1364.93 | G133: 8687.5 | H133: 0.01 | I133: 6639 | J133: -0.38 | K133: 10155 | L133: 4.8 | M133: 1800.5 | N133: 1.5948383 | P133: 0.06 | Q133: -0.1781 | R133: -0.4883 | S133: -0.3385636364 | T133: -6737.5 | U133: -4689 | V133: -8205 | W133: 0.143902439
B134: 1736.5 | C134: 1365.5486 | D134: 1360.442 | E134: 1920 | F134: 1364.96 | G134: 8682.5 | H134: 0.02 | I134: 6617 | J134: -0.17 | K134: 10145 | L134: 5.7 | M134: 1801.5 | N134: 2.0289464 | P134: 0.09 | Q134: 0.0319 | R134: -0.288 | S134: -0.3535909091 | T134: -6732.5 | U134: -4667 | V134: -8195 | W134: 0.1275609756
B135: 1737.5 | C135: 1365.3827 | D135: 1360.4851 | E135: 1928 | F135: 1365.23 | G135: 8677.5 | H135: 0.12 | I135: 6595 | J135: -0.24 | K135: 10135 | L135: 13.7 | M135: 1802.5 | N135: 1.9782778 | P135: 0.36 | Q135: -0.134 | R135: -0.2449 | S135: -0.3563909091 | T135: -6727.5 | U135: -4645 | V135: -8185 | W135: 0.1112195122
B136: 1738.5 | C136: 1365.337 | D136: 1360.3352 | E136: 1935 | F136: 1365.01 | G136: 8672.5 | H136: 0.24 | I136: 6573 | J136: -0.01 | K136: 10125 | L136: 16 | M136: 1803.5 | N136: 1.6814569 | P136: =F136 - 1364.87 -> 0.14 | Q136: =C136 - Lean2000Y_background -> -0.1797 | R136: =D136 - SorceTIMY_background -> -0.3948 | S136: -0.3562909091 | T136: -6722.5 | U136: -4623 | V136: -8175 | W136: 0.09804878049
B137: 1739.5 | C137: 1365.5795 | D137: 1360.4532 | E137: 1944 | F137: 1365.39 | G137: 8667.5 | H137: 0.31 | I137: 6551 | J137: -0.16 | K137: 10115 | L137: 8.7 | M137: 1804.5 | N137: 1.585454 | P137: 0.52 | Q137: 0.0628 | R137: -0.2768 | S137: -0.3615818182 | T137: -6717.5 | U137: =1950 - I137 -> -4601 | V137: =1950 - K137 -> -8165 | W137: 0.09024390244
B138: 1740.5 | C138: 1365.2811 | D138: 1360.4211 | E138: 1950 | F138: 1365.3 | G138: 8662.5 | H138: 0.29 | I138: 6529 | J138: -0.01 | K138: 10105 | L138: 6.6 | M138: 1805.5 | N138: 1.4970055 | P138: 0.43 | Q138: -0.2356 | R138: -0.3089 | S138: -0.3613818182 | T138: =1950 - G138 -> -6712.5 | U138: -4579 | V138: -8155 | W138: 0.08780487805
B139: 1741.5 | C139: 1365.6107 | D139: 1360.4416 | E139: 1961 | F139: 1365.24 | G139: 8657.5 | H139: 0.22 | I139: 6507 | J139: -0.21 | K139: 10095 | L139: 17.4 | M139: 1806.5 | N139: 1.4407946 | P139: 0.37 | Q139: 0.094 | R139: -0.2884 | S139: -0.3647727273 | T139: -6707.5 | U139: -4557 | V139: -8145 | W139: 0.08682926829
B140: 1742.5 | C140: 1365.3247 | D140: 1360.4971 | E140: 1969 | F140: 1365.5 | G140: 8652.5 | H140: 0.15 | I140: 6485 | J140: -0.18 | K140: 10085 | L140: 32 | M140: 1807.5 | N140: 1.2228037 | P140: 0.63 | Q140: -0.192 | R140: -0.2329 | S140: -0.3887545455 | T140: -6702.5 | U140: -4535 | V140: -8135 | W140: 0.08365853659
B141: 1743.5 | C141: 1365.2698 | D141: 1360.3025 | E141: 1975 | F141: 1364.72 | G141: 8647.5 | H141: 0.13 | I141: 6463 | J141: -0.14 | K141: 10075 | L141: 36 | M141: 1808.5 | N141: 1.1268189 | P141: -0.15 | Q141: -0.2469 | R141: -0.4275 | S141: -0.3956545455 | T141: -6697.5 | U141: -4513 | V141: -8125 | W141: 0.07707317073
B142: 1744.5 | C142: 1365.2137 | D142: 1360.2341 | E142: 1982 | F142: 1365.13 | G142: 8642.5 | H142: 0.18 | I142: 6441 | J142: 0.01 | K142: 10065 | L142: 37.1 | M142: 1809.5 | N142: 1.0800582 | P142: 0.26 | Q142: -0.303 | R142: -0.4959 | S142: =AVERAGE(R137:R147) -> -0.3631909091 | T142: -6692.5 | U142: -4491 | V142: -8115 | W142: 0.06902439024
B143: 1745.5 | C143: 1365.2164 | D143: 1360.2012 | G143: 8637.5 | H143: 0.27 | I143: 6419 | J143: -0.18 | K143: 10055 | L143: 44.4 | M143: 1810.5 | N143: 1.0120408 | Q143: -0.3003 | R143: -0.5288 | S143: -0.3395 | T143: -6687.5 | U143: -4469 | V143: -8105 | W143: 0.06292682927
B144: 1746.5 | C144: 1365.2223 | D144: 1360.2044 | G144: 8632.5 | H144: 0.35 | I144: 6397 | J144: -0.41 | K144: 10045 | L144: 42.5 | M144: 1811.5 | N144: 0.96985157 | Q144: -0.2944 | R144: -0.5256 | S144: -0.3220454545 | T144: -6682.5 | U144: -4447 | V144: -8095 | W144: 0.06146341463
B145: 1747.5 | C145: 1365.2305 | D145: 1360.1782 | G145: 8627.5 | H145: 0.39 | I145: 6375 | J145: -0.37 | K145: 10035 | L145: 33.2 | M145: 1812.5 | N145: 0.95142193 | Q145: -0.2862 | R145: -0.5518 | S145: -0.3167545455 | T145: -6677.5 | U145: -4425 | V145: -8085 | W145: 0.06487804878
B146: 1748.5 | C146: 1365.6548 | D146: 1360.4092 | G146: 8622.5 | H146: 0.35 | I146: 6353 | J146: -0.22 | K146: 10025 | L146: 33.8 | M146: 1813.5 | N146: 0.97185929 | Q146: 0.1381 | R146: -0.3208 | S146: -0.3191454545 | T146: -6672.5 | U146: -4403 | V146: -8075 | W146: 0.07146341463
B147: 1749.5 | C147: 1365.6749 | D147: 1360.6923 | G147: 8617.5 | H147: 0.23 | I147: 6331 | J147: -0.14 | K147: 10015 | L147: 37 | M147: 1814.5 | N147: 0.9834805 | Q147: 0.1582 | R147: -0.0377 | S147: -0.3103727273 | T147: -6667.5 | U147: -4381 | V147: -8065 | W147: 0.07853658537
B148: 1750.5 | C148: 1365.6385 | D148: 1360.7138 | G148: 8612.5 | H148: 0.06 | I148: 6309 | J148: -0.37 | K148: 10005 | L148: 42.9 | M148: 1815.5 | N148: 1.0102053 | Q148: 0.1218 | R148: -0.0162 | S148: -0.3026090909 | T148: -6662.5 | U148: -4359 | V148: -8055 | W148: 0.08414634146
B149: 1751.5 | C149: 1365.468 | D149: 1360.6131 | G149: 8607.5 | H149: -0.13 | I149: 6287 | J149: -0.59 | K149: 9995 | L149: 61.3 | M149: 1816.5 | N149: 1.1402019 | Q149: -0.0487 | R149: -0.1169 | S149: -0.2925545455 | T149: -6657.5 | U149: -4337 | V149: -8045 | W149: 0.08682926829
B150: 1752.5 | C150: 1365.4402 | D150: 1360.4998 | G150: 8602.5 | H150: -0.26 | I150: 6265 | J150: -0.84 | K150: 9985 | L150: 67.8 | M150: 1817.5 | N150: 1.1350375 | Q150: -0.0765 | R150: -0.2302 | S150: -0.2781636364 | T150: -6652.5 | U150: -4315 | V150: -8035 | W150: 0.08609756098
B151: 1753.5 | C151: 1365.422 | D151: 1360.4708 | G151: 8597.5 | H151: -0.3 | I151: 6243 | J151: -0.27 | K151: 9975 | L151: 53.7 | M151: 1818.5 | N151: 1.0474026 | Q151: -0.0947 | R151: -0.2592 | S151: -0.2627454545 | T151: -6647.5 | U151: -4293 | V151: -8025 | W151: 0.08243902439
B152: 1754.5 | C152: 1365.3351 | D152: 1360.399 | G152: 8592.5 | H152: -0.27 | I152: 6221 | J152: -0.28 | K152: 9965 | L152: 45.9 | M152: 1819.5 | N152: 1.0011206 | Q152: -0.1816 | R152: -0.331 | S152: -0.3031454545 | T152: -6642.5 | U152: -4271 | V152: -8015 | W152: 0.07780487805
B153: 1755.5 | C153: 1365.322 | D153: 1360.3195 | G153: 8587.5 | H153: -0.23 | I153: 6199 | J153: -0.35 | K153: 9955 | L153: 46 | M153: 1820.5 | N153: 0.92923349 | Q153: -0.1947 | R153: -0.4105 | S153: -0.3757363636 | T153: -6637.5 | U153: -4249 | V153: -8005 | W153: 0.07365853659
B154: 1756.5 | C154: 1365.3501 | D154: 1360.3118 | G154: 8582.5 | H154: -0.18 | I154: 6177 | J154: -0.32 | K154: 9945 | L154: 50.6 | M154: 1821.5 | N154: 0.87048704 | Q154: -0.1666 | R154: -0.4182 | S154: -0.3863909091 | T154: -6632.5 | U154: -4227 | V154: -7995 | W154: 0.07048780488
B155: 1757.5 | C155: 1365.4734 | D155: 1360.3627 | G155: 8577.5 | H155: -0.11 | I155: 6155 | J155: -0.38 | K155: 9935 | L155: 51.3 | M155: 1822.5 | N155: 0.91044186 | Q155: -0.0433 | R155: -0.3673 | S155: -0.3817272727 | T155: -6627.5 | U155: -4205 | V155: -7985 | W155: 0.06731707317
B156: 1758.5 | C156: 1365.5867 | D156: 1360.3478 | G156: 8572.5 | H156: -0.01 | I156: 6133 | J156: -0.16 | K156: 9925 | L156: 37 | M156: 1823.5 | N156: 0.94888662 | Q156: 0.07 | R156: -0.3822 | S156: -0.3743363636 | T156: -6622.5 | U156: -4183 | V156: -7975 | W156: 0.06243902439
B157: 1759.5 | C157: 1365.6501 | D157: 1359.9648 | G157: 8567.5 | H157: 0.1 | I157: 6111 | J157: -0.25 | K157: 9915 | L157: 23.6 | M157: 1824.5 | N157: 1.1029225 | Q157: 0.1334 | R157: -0.7652 | S157: -0.3667636364 | T157: -6617.5 | U157: -4161 | V157: -7965 | W157: 0.05536585366
B158: 1760.5 | C158: 1365.6254 | D158: 1359.8938 | G158: 8562.5 | H158: 0.19 | I158: 6089 | J158: -0.2 | K158: 9905 | L158: 22.3 | M158: 1825.5 | N158: 1.287335 | Q158: 0.1087 | R158: -0.8362 | S158: -0.3740272727 | T158: -6612.5 | U158: -4139 | V158: -7955 | W158: =AVERAGE(H138:H178) -> 0.04731707317
B159: 1761.5 | C159: 1365.7898 | D159: 1360.5966 | G159: 8557.5 | H159: 0.21 | I159: 6067 | J159: 0.03 | K159: 9895 | L159: 23 | M159: 1826.5 | N159: 1.547501 | Q159: 0.2731 | R159: -0.1334 | S159: -0.3702090909 | T159: -6607.5 | U159: -4117 | V159: -7945 | W159: 0.04073170732
B160: 1762.5 | C160: 1365.6514 | D160: 1360.6644 | G160: 8552.5 | H160: 0.17 | I160: 6045 | J160: 0.1 | K160: 9885 | L160: 26.2 | M160: 1827.5 | N160: 1.8858599 | Q160: 0.1347 | R160: -0.0656 | S160: -0.3576 | T160: -6602.5 | U160: -4095 | V160: -7935 | W160: 0.03658536585
B161: 1763.5 | C161: 1365.5811 | D161: 1360.5811 | G161: 8547.5 | H161: 0.1 | I161: 6023 | J161: -0.12 | K161: 9875 | L161: 28.8 | M161: 1828.5 | N161: 2.1368854 | Q161: 0.0644 | R161: -0.1489 | S161: -0.3147727273 | T161: -6597.5 | U161: -4073 | V161: -7925 | W161: 0.03487804878
B162: 1764.5 | C162: 1365.5573 | D162: 1360.5541 | G162: 8542.5 | H162: 0.05 | I162: 6001 | J162: 0.01 | K162: 9865 | L162: 27 | M162: 1829.5 | N162: 2.1884037 | Q162: 0.0406 | R162: -0.1759 | S162: -0.2482090909 | T162: -6592.5 | U162: -4051 | V162: -7915 | W162: 0.0343902439
B163: 1765.5 | C163: 1365.4065 | D163: 1360.3191 | G163: 8537.5 | H163: 0.06 | I163: 5979 | J163: -0.23 | K163: 9855 | L163: 36.8 | M163: 1830.5 | N163: 2.2473528 | Q163: -0.1102 | R163: -0.4109 | S163: -0.1261818182 | T163: -6587.5 | U163: -4029 | V163: -7905 | W163: 0.03341463415
B164: 1766.5 | C164: 1365.3759 | D164: 1360.3615 | G164: 8532.5 | H164: 0.11 | I164: 5957 | J164: -0.06 | K164: 9845 | L164: 50.1 | M164: 1831.5 | N164: 2.1069224 | Q164: -0.1408 | R164: -0.3685 | S164: -0.01485454545 | T164: -6582.5 | U164: -4007 | V164: -7895 | W164: 0.03170731707
B165: 1767.5 | C165: 1365.5817 | D165: 1360.4505 | G165: 8527.5 | H165: 0.17 | I165: 5935 | J165: -0.12 | K165: 9835 | L165: 46.3 | M165: 1832.5 | N165: 1.8726772 | Q165: 0.065 | R165: -0.2795 | S165: 0.03067272727 | T165: -6577.5 | U165: -3985 | V165: -7885 | W165: 0.03
B166: 1768.5 | C166: 1365.8346 | D166: 1360.8338 | G166: 8522.5 | H166: 0.19 | I166: 5913 | J166: -0.46 | K166: 9825 | L166: 39.7 | M166: 1833.5 | N166: 1.6989569 | Q166: 0.3179 | R166: 0.1038 | S166: 0.04570909091 | T166: -6572.5 | U166: -3963 | V166: -7875 | W166: 0.02926829268
B167: 1769.5 | C167: 1366.0194 | D167: 1361.08 | G167: 8517.5 | H167: 0.15 | I167: 5891 | J167: -0.44 | K167: 9815 | L167: 47.4 | M167: 1834.5 | N167: 1.7817554 | Q167: 0.5027 | R167: 0.35 | S167: 0.05662727273 | T167: -6567.5 | U167: -3941 | V167: -7865 | W167: 0.03024390244
B168: 1770.5 | C168: 1366.022 | D168: 1361.3071 | G168: 8512.5 | H168: 0.08 | I168: 5869 | J168: -0.37 | K168: 9805 | L168: 58.9 | M168: 1835.5 | N168: 2.2885296 | Q168: 0.5053 | R168: 0.5771 | S168: 0.04561818182 | T168: -6562.5 | U168: -3919 | V168: -7855 | W168: 0.03341463415
B169: 1771.5 | C169: 1365.9155 | D169: 1361.1184 | G169: 8507.5 | H169: 0 | I169: 5847 | J169: -0.25 | K169: 9795 | L169: 53.9 | M169: 1836.5 | N169: 3.2359282 | Q169: 0.3988 | R169: 0.3884 | S169: 0.05161818182 | T169: -6557.5 | U169: -3897 | V169: -7845 | W169: 0.03853658537
B170: 1772.5 | C170: 1365.8433 | D170: 1361.0974 | G170: 8502.5 | H170: -0.06 | I170: 5825 | J170: 0.02 | K170: 9785 | L170: 44.5 | M170: 1837.5 | N170: 3.8593668 | Q170: 0.3266 | R170: 0.3674 | S170: 0.05947272727 | T170: -6552.5 | U170: -3875 | V170: -7835 | W170: 0.0456097561
B171: 1773.5 | C171: 1365.6243 | D171: 1360.8298 | G171: 8497.5 | H171: -0.1 | I171: 5803 | J171: 0.14 | K171: 9775 | L171: 42 | M171: 1838.5 | N171: 3.6827312 | Q171: 0.1076 | R171: 0.0998 | S171: 0.09453636364 | T171: -6547.5 | U171: -3853 | V171: -7825 | W171: 0.05341463415
B172: 1774.5 | C172: 1365.5862 | D172: 1360.7012 | G172: 8492.5 | H172: -0.11 | I172: 5781 | J172: 0.17 | K172: 9765 | L172: 44.4 | M172: 1839.5 | N172: 3.4721061 | Q172: 0.0695 | R172: -0.0288 | S172: 0.06083636364 | T172: -6542.5 | U172: -3831 | V172: -7815 | W172: 0.06073170732
B173: 1775.5 | C173: 1365.4493 | D173: 1360.433 | G173: 8487.5 | H173: -0.12 | I173: 5759 | J173: -0.02 | K173: 9755 | L173: 47.3 | M173: 1840.5 | N173: 3.3691069 | Q173: -0.0674 | R173: -0.297 | S173: -0.01856363636 | T173: -6537.5 | U173: -3809 | V173: -7805 | W173: 0.06536585366
B174: 1776.5 | C174: 1365.5039 | D174: 1360.3851 | G174: 8482.5 | H174: -0.12 | I174: 5737 | J174: -0.1 | K174: 9745 | L174: 49 | M174: 1841.5 | N174: 3.0458584 | Q174: -0.0128 | R174: -0.3449 | S174: -0.1107818182 | T174: -6532.5 | U174: -3787 | V174: -7795 | W174: 0.06658536585
B175: 1777.5 | C175: 1365.6656 | D175: 1360.4479 | G175: 8477.5 | H175: -0.11 | I175: 5715 | J175: -0.18 | K175: 9735 | L175: 50.9 | M175: 1842.5 | N175: 2.7847375 | Q175: 0.1489 | R175: -0.2821 | S175: -0.1662727273 | T175: -6527.5 | U175: -3765 | V175: -7785 | W175: 0.06341463415
B176: 1778.5 | C176: 1365.8955 | D176: 1360.8362 | G176: 8472.5 | H176: -0.08 | I176: 5693 | J176: -0.08 | K176: 9725 | L176: 52.1 | M176: 1843.5 | N176: 2.5552921 | Q176: 0.3788 | R176: 0.1062 | S176: -0.2447909091 | T176: -6522.5 | U176: -3743 | V176: -7775 | W176: 0.05634146341
B177: 1779.5 | C177: 1365.9534 | D177: 1360.4631 | G177: 8467.5 | H177: -0.05 | I177: 5671 | J177: -0.09 | K177: 9715 | L177: 48.2 | M177: 1844.5 | N177: 2.3891661 | Q177: 0.4367 | R177: -0.2669 | S177: -0.2944909091 | T177: -6517.5 | U177: -3721 | V177: -7765 | W177: 0.04658536585
B178: 1780.5 | C178: 1365.7753 | D178: 1360.2066 | G178: 8462.5 | H178: -0.02 | I178: 5649 | J178: -0.03 | K178: 9705 | L178: 39.9 | M178: 1845.5 | N178: 2.4215844 | Q178: 0.2586 | R178: -0.5234 | S178: -0.3243727273 | T178: -6512.5 | U178: -3699 | V178: -7755 | W178: 0.03512195122
B179: 1781.5 | C179: 1365.8868 | D179: 1360.2927 | G179: 8457.5 | H179: 0.02 | I179: 5627 | J179: -0.11 | K179: 9695 | L179: 34.4 | M179: 1846.5 | N179: 2.5277984 | Q179: 0.3701 | R179: -0.4373 | S179: -0.3137636364 | T179: -6507.5 | U179: -3677 | V179: -7745 | W179: 0.02243902439
B180: 1782.5 | C180: 1365.6217 | D180: 1360.508 | G180: 8452.5 | H180: 0.05 | I180: 5605 | J180: -0.52 | K180: 9685 | L180: 33.8 | M180: 1847.5 | N180: 2.5953715 | Q180: 0.105 | R180: -0.222 | S180: -0.2842727273 | T180: -6502.5 | U180: -3655 | V180: -7735 | W180: 0.009756097561
B181: 1783.5 | C181: 1365.5284 | D181: 1360.2337 | G181: 8447.5 | H181: 0.08 | I181: 5583 | J181: -0.92 | K181: 9675 | L181: 35.9 | M181: 1848.5 | N181: 3.0481808 | Q181: 0.0117 | R181: -0.4963 | S181: -0.2375909091 | T181: -6497.5 | U181: -3633 | V181: -7725 | W181: -0.002195121951
B182: 1784.5 | C182: 1365.3966 | D182: 1360.2831 | G182: 8442.5 | H182: 0.11 | I182: 5561 | J182: -0.41 | K182: 9665 | L182: 39.8 | M182: 1849.5 | N182: 3.2176292 | Q182: -0.1201 | R182: -0.4469 | S182: -0.2708181818 | T182: -6492.5 | U182: -3611 | V182: -7715 | W182: -0.01292682927
B183: 1785.5 | C183: 1365.4558 | D183: 1360.3725 | G183: 8437.5 | H183: 0.14 | I183: 5539 | J183: -0.18 | K183: 9655 | L183: 48.7 | M183: 1850.5 | N183: 2.913203 | Q183: -0.0609 | R183: -0.3575 | S183: -0.2864909091 | T183: -6487.5 | U183: -3589 | V183: -7705 | W183: -0.02341463415
B184: 1786.5 | C184: 1365.7682 | D184: 1360.5497 | G184: 8432.5 | H184: 0.2 | I184: 5517 | J184: 0.08 | K184: 9645 | L184: 57.3 | M184: 1851.5 | N184: 2.8025046 | Q184: 0.2515 | R184: -0.1803 | S184: -0.2778 | T184: -6482.5 | U184: -3567 | V184: -7695 | W184: -0.03536585366
B185: 1787.5 | C185: 1365.9337 | D185: 1360.7095 | G185: 8427.5 | H185: 0.28 | I185: 5495 | J185: -0.04 | K185: 9635 | L185: 51.7 | M185: 1852.5 | N185: 2.7442892 | Q185: 0.417 | R185: -0.0205 | S185: -0.2732818182 | T185: -6477.5 | U185: -3545 | V185: -7685 | W185: -0.04926829268
B186: 1788.5 | C186: 1365.8801 | D186: 1360.9614 | G186: 8422.5 | H186: 0.36 | I186: 5473 | J186: -0.45 | K186: 9625 | L186: 48.1 | M186: 1853.5 | N186: 2.5587396 | Q186: 0.3634 | R186: 0.2314 | S186: -0.2980272727 | T186: -6472.5 | U186: -3523 | V186: -7675 | W186: -0.06390243902
B187: 1789.5 | C187: 1365.8595 | D187: 1360.4707 | G187: 8417.5 | H187: 0.39 | I187: 5451 | J187: -0.65 | K187: 9615 | L187: 51.9 | M187: 1854.5 | N187: 2.2882904 | Q187: 0.3428 | R187: -0.2593 | S187: -0.2971181818 | T187: -6467.5 | U187: -3501 | V187: -7665 | W187: -0.07682926829
B188: 1790.5 | C188: 1365.7604 | D188: 1360.2907 | G188: 8412.5 | H188: 0.36 | I188: 5429 | J188: -0.38 | K188: 9605 | L188: 48.7 | M188: 1855.5 | N188: 2.0789972 | Q188: 0.2437 | R188: -0.4393 | S188: -0.2761 | T188: -6462.5 | U188: -3479 | V188: -7655 | W188: -0.08682926829
B189: 1791.5 | C189: 1365.6101 | D189: 1360.3022 | G189: 8407.5 | H189: 0.27 | I189: 5407 | J189: 0.01 | K189: 9595 | L189: 48.9 | M189: 1856.5 | N189: 1.9626528 | Q189: 0.0934 | R189: -0.4278 | S189: -0.2672454545 | T189: -6457.5 | U189: -3457 | V189: -7645 | W189: -0.09463414634
B190: 1792.5 | C190: 1365.5961 | D190: 1360.3424 | G190: 8402.5 | H190: 0.16 | I190: 5385 | J190: 0.12 | K190: 9585 | L190: 57.2 | M190: 1857.5 | N190: 2.0450631 | Q190: 0.0794 | R190: -0.3876 | S190: -0.2811727273 | T190: -6452.5 | U190: -3435 | V190: -7635 | W190: -0.102195122
B191: 1793.5 | C191: 1365.5756 | D191: 1360.2358 | G191: 8397.5 | H191: 0.06 | I191: 5363 | J191: 0.13 | K191: 9575 | L191: 61 | M191: 1858.5 | N191: 2.3904896 | Q191: 0.0589 | R191: -0.4942 | S191: -0.3105818182 | T191: -6447.5 | U191: -3413 | V191: -7625 | W191: -0.1112195122
B192: 1794.5 | C192: 1365.4816 | D192: 1360.2437 | G192: 8392.5 | H192: 0 | I192: 5341 | J192: 0.08 | K192: 9565 | L192: 49.3 | M192: 1859.5 | N192: 2.7965851 | Q192: -0.0351 | R192: -0.4863 | S192: -0.3647181818 | T192: -6442.5 | U192: -3391 | V192: -7615 | W192: -0.1207317073
B193: 1795.5 | C193: 1365.3645 | D193: 1360.5143 | G193: 8387.5 | H193: -0.08 | I193: 5319 | J193: -0.56 | K193: 9555 | L193: 27.8 | M193: 1860.5 | N193: 3.0252157 | Q193: -0.1522 | R193: -0.2157 | S193: -0.3793636364 | T193: -6437.5 | U193: -3369 | V193: -7605 | W193: -0.1285365854
B194: 1796.5 | C194: 1365.3348 | D194: 1360.4699 | G194: 8382.5 | H194: -0.18 | I194: 5297 | J194: -0.72 | K194: 9545 | L194: 13.2 | M194: 1861.5 | N194: 2.9160016 | Q194: -0.1819 | R194: -0.2601 | S194: -0.3551454545 | T194: -6432.5 | U194: -3347 | V194: -7595 | W194: -0.1326829268
B195: 1797.5 | C195: 1365.2817 | D195: 1360.3965 | G195: 8377.5 | H195: -0.31 | I195: 5275 | J195: -0.63 | K195: 9535 | L195: 5.5 | M195: 1862.5 | N195: 2.5963025 | Q195: -0.235 | R195: -0.3335 | S195: -0.3240818182 | T195: -6427.5 | U195: -3325 | V195: -7585 | W195: -0.133902439
B196: 1798.5 | C196: 1365.2567 | D196: 1360.386 | G196: 8372.5 | H196: -0.4 | I196: 5253 | J196: -0.37 | K196: 9525 | L196: 4.5 | M196: 1863.5 | N196: 2.3861333 | Q196: -0.26 | R196: -0.344 | S196: -0.3123454545 | T196: -6422.5 | U196: -3303 | V196: -7575 | W196: -0.1336585366
B197: 1799.5 | C197: 1365.2629 | D197: 1360.3659 | G197: 8367.5 | H197: -0.41 | I197: 5231 | J197: -0.33 | K197: 9515 | L197: 12.8 | M197: 1864.5 | N197: 2.2751499 | Q197: -0.2538 | R197: -0.3641 | S197: -0.2957363636 | T197: -6417.5 | U197: -3281 | V197: -7565 | W197: -0.1336585366
B198: 1800.5 | C198: 1365.3035 | D198: 1360.3096 | G198: 8362.5 | H198: -0.37 | I198: 5209 | J198: -0.15 | K198: 9505 | L198: 17.7 | M198: 1865.5 | N198: 2.1440667 | Q198: -0.2132 | R198: -0.4204 | S198: -0.2837363636 | T198: -6412.5 | U198: -3259 | V198: -7555 | W198: -0.1346341463
B199: 1801.5 | C199: 1365.5757 | D199: 1360.5571 | G199: 8357.5 | H199: -0.33 | I199: 5187 | J199: 0.12 | K199: 9495 | L199: 12.8 | M199: 1866.5 | N199: 2.0120417 | Q199: 0.059 | R199: -0.1729 | S199: -0.2899454545 | T199: -6407.5 | U199: -3237 | V199: -7545 | W199: -0.136097561
B200: 1802.5 | C200: 1365.4541 | D200: 1360.6439 | G200: 8352.5 | H200: -0.31 | I200: 5165 | J200: 0.14 | K200: 9485 | L200: 8.1 | M200: 1867.5 | N200: 1.8692892 | Q200: =C200 - Lean2000Y_background -> -0.0626 | R200: =D200 - SorceTIMY_background -> -0.0861 | S200: -0.3059727273 | T200: -6402.5 | U200: -3215 | V200: -7535 | W200: -0.1375609756
B201: 1803.5 | C201: 1365.3218 | D201: 1360.4715 | G201: 8347.5 | H201: -0.32 | I201: 5143 | J201: 0.26 | K201: 9475 | L201: 3.1 | M201: 1868.5 | N201: 2.058402 | Q201: -0.1949 | R201: -0.2585 | S201: -0.3206727273 | T201: -6397.5 | U201: =1950 - I201 -> -3193 | V201: =1950 - K201 -> -7525 | W201: -0.1380487805
... 1686 more rows

Sheet Magnetic
A1: Magnetic
B3: Downloaded Data | G3: Calculations
B4: Year AD | C4: North Polar Field Strength - Raw | D4: South Polar Field Strength - Raw | E4: North Polar Field Strength - Smoothed | F4: South Polar Field Strength - Smoothed | G4: Average Polar Field Strength - Raw | H4: Average Polar Field Strength - Smoothed | I4: Magnitude of Average Polar Field Strength - Smoothed
A5: Dataset--> | B5: Wilcox Observatory WSO | G5: Wilcox Observatory WSO
A6: Extent-> | B6: 40 years
A7: Units--> | C7: G | D7: G | E7: G | F7: G | G7: G | H7: G | I7: G
B8: 1976.416338 | C8: 0.89 | D8: -1.26 | E8: 1.11 | F8: -0.92 | G8: =(C8-D8)*0.5 -> 1.075 | H8: =(E8-F8)*0.5 -> 1.015 | I8: =ABS((E8-F8)*0.5) -> 1.015
B9: 1976.444115 | C9: 0.99 | D9: -1.21 | E9: 1.09 | F9: -0.92 | G9: =(C9-D9)*0.5 -> 1.1 | H9: =(E9-F9)*0.5 -> 1.005 | I9: =ABS((E9-F9)*0.5) -> 1.005
B10: 1976.471893 | C10: 1.07 | D10: -1.14 | E10: 1.08 | F10: -0.93 | G10: 1.105 | H10: 1.005 | I10: 1.005
B11: 1976.499671 | C11: 1.17 | D11: -1.07 | E11: 1.06 | F11: -0.93 | G11: 1.12 | H11: 0.995 | I11: 0.995
B12: 1976.527449 | C12: 1.19 | D12: -0.99 | E12: 1.05 | F12: -0.93 | G12: 1.09 | H12: 0.99 | I12: 0.99
B13: 1976.555226 | C13: 1.28 | D13: -0.97 | E13: 1.04 | F13: -0.94 | G13: 1.125 | H13: 0.99 | I13: 0.99
B14: 1976.583004 | C14: 1.35 | D14: -0.94 | E14: 1.03 | F14: -0.94 | G14: =(C14-D14)*0.5 -> 1.145 | H14: =(E14-F14)*0.5 -> 0.985 | I14: 0.985
B15: 1976.608004 | C15: 1.39 | D15: -0.81 | E15: 1.02 | F15: -0.95 | G15: 1.1 | H15: 0.985 | I15: 0.985
B16: 1976.635782 | C16: 1.18 | D16: -0.8 | E16: 1 | F16: -0.95 | G16: 0.99 | H16: 0.975 | I16: 0.975
B17: 1976.66356 | C17: 1.17 | D17: -0.66 | E17: 0.99 | F17: -0.95 | G17: 0.915 | H17: 0.97 | I17: 0.97
B18: 1976.68856 | C18: 1.21 | D18: -0.62 | E18: 0.98 | F18: -0.96 | G18: 0.915 | H18: 0.97 | I18: 0.97
B19: 1976.716338 | C19: 1.32 | D19: -0.56 | E19: 0.97 | F19: -0.96 | G19: 0.94 | H19: 0.965 | I19: 0.965
B20: 1976.744115 | C20: 1.29 | D20: -0.62 | E20: 0.97 | F20: -0.96 | G20: 0.955 | H20: 0.965 | I20: 0.965
B21: 1976.771893 | C21: 1.22 | D21: -0.67 | E21: 0.96 | F21: -0.97 | G21: 0.945 | H21: 0.965 | I21: 0.965
B22: 1976.799671 | C22: 1.13 | D22: -0.69 | E22: 0.95 | F22: -0.97 | G22: 0.91 | H22: 0.96 | I22: 0.96
B23: 1976.827449 | C23: 1.03 | D23: -0.82 | E23: 0.94 | F23: -0.97 | G23: 0.925 | H23: 0.955 | I23: 0.955
B24: 1976.852449 | C24: 0.95 | D24: -0.88 | E24: 0.93 | F24: -0.98 | G24: 0.915 | H24: 0.955 | I24: 0.955
B25: 1976.880226 | C25: 0.88 | D25: -0.95 | E25: 0.93 | F25: -0.98 | G25: 0.915 | H25: 0.955 | I25: 0.955
B26: 1976.908004 | C26: 0.86 | D26: -1.07 | E26: 0.92 | F26: -0.98 | G26: 0.965 | H26: 0.95 | I26: 0.95
B27: 1976.935782 | C27: 0.89 | D27: -1.07 | E27: 0.91 | F27: -0.98 | G27: 0.98 | H27: 0.945 | I27: 0.945
B28: 1976.96356 | C28: 0.86 | D28: -1.1 | E28: 0.91 | F28: -0.98 | G28: 0.98 | H28: 0.945 | I28: 0.945
B29: 1976.991338 | C29: 0.75 | D29: -1.11 | E29: 0.9 | F29: -0.99 | G29: 0.93 | H29: 0.945 | I29: 0.945
B30: 1977.016338 | C30: 0.58 | D30: -1.12 | E30: 0.9 | F30: -0.99 | G30: 0.85 | H30: 0.945 | I30: 0.945
B31: 1977.044115 | C31: 0.52 | D31: -0.97 | E31: 0.89 | F31: -0.99 | G31: 0.745 | H31: 0.94 | I31: 0.94
B32: 1977.071893 | C32: 0.44 | D32: -0.81 | E32: 0.89 | F32: -0.99 | G32: 0.625 | H32: 0.94 | I32: 0.94
B33: 1977.096893 | C33: 0.52 | D33: -1.04 | E33: 0.89 | F33: -1 | G33: 0.78 | H33: 0.945 | I33: 0.945
B34: 1977.124671 | C34: 0.55 | D34: -1.12 | E34: 0.88 | F34: -1 | G34: 0.835 | H34: 0.94 | I34: 0.94
B35: 1977.152449 | C35: 0.58 | D35: -1.27 | E35: 0.88 | F35: -1 | G35: 0.925 | H35: 0.94 | I35: 0.94
B36: 1977.185782 | C36: 0.53 | D36: -1.39 | E36: 0.88 | F36: -1 | G36: 0.96 | H36: 0.94 | I36: 0.94
B37: 1977.21356 | C37: 0.62 | D37: -1.34 | E37: 0.87 | F37: -1.01 | G37: 0.98 | H37: 0.94 | I37: 0.94
B38: 1977.241338 | C38: 0.56 | D38: -1.35 | E38: 0.87 | F38: -1.01 | G38: 0.955 | H38: 0.94 | I38: 0.94
B39: 1977.266338 | C39: 0.61 | D39: -1.32 | E39: 0.87 | F39: -1.01 | G39: 0.965 | H39: 0.94 | I39: 0.94
B40: 1977.294115 | C40: 0.6 | D40: -1.36 | E40: 0.87 | F40: -1.02 | G40: 0.98 | H40: 0.945 | I40: 0.945
B41: 1977.321893 | C41: 0.69 | D41: -1.24 | E41: 0.87 | F41: -1.02 | G41: 0.965 | H41: 0.945 | I41: 0.945
B42: 1977.349671 | C42: 0.76 | D42: -1.15 | E42: 0.86 | F42: -1.03 | G42: 0.955 | H42: 0.945 | I42: 0.945
B43: 1977.377449 | C43: 0.84 | D43: -1.19 | E43: 0.86 | F43: -1.03 | G43: 1.015 | H43: 0.945 | I43: 0.945
B44: 1977.405226 | C44: 0.93 | D44: -1.23 | E44: 0.86 | F44: -1.04 | G44: 1.08 | H44: 0.95 | I44: 0.95
B45: 1977.430226 | C45: 0.98 | D45: -1.16 | E45: 0.86 | F45: -1.04 | G45: 1.07 | H45: 0.95 | I45: 0.95
B46: 1977.458004 | C46: 0.96 | D46: -1.09 | E46: 0.86 | F46: -1.05 | G46: 1.025 | H46: 0.955 | I46: 0.955
B47: 1977.485782 | C47: 1.04 | D47: -1.03 | E47: 0.86 | F47: -1.06 | G47: 1.035 | H47: 0.96 | I47: 0.96
B48: 1977.51356 | C48: 1.1 | D48: -0.91 | E48: 0.86 | F48: -1.06 | G48: 1.005 | H48: 0.96 | I48: 0.96
B49: 1977.541338 | C49: 1.13 | D49: -0.89 | E49: 0.86 | F49: -1.07 | G49: 1.01 | H49: 0.965 | I49: 0.965
B50: 1977.569115 | C50: 1.12 | D50: -0.84 | E50: 0.86 | F50: -1.07 | G50: 0.98 | H50: 0.965 | I50: 0.965
B51: 1977.594115 | C51: 1.13 | D51: -0.82 | E51: 0.86 | F51: -1.08 | G51: 0.975 | H51: 0.97 | I51: 0.97
B52: 1977.621893 | C52: 1.15 | D52: -0.66 | E52: 0.86 | F52: -1.09 | G52: 0.905 | H52: 0.975 | I52: 0.975
B53: 1977.649671 | C53: 1.07 | D53: -0.67 | E53: 0.86 | F53: -1.09 | G53: 0.87 | H53: 0.975 | I53: 0.975
B54: 1977.674671 | C54: 1.1 | D54: -0.67 | E54: 0.86 | F54: -1.1 | G54: 0.885 | H54: 0.98 | I54: 0.98
B55: 1977.702449 | C55: 1.09 | D55: -0.71 | E55: 0.87 | F55: -1.1 | G55: 0.9 | H55: 0.985 | I55: 0.985
B56: 1977.730226 | C56: 1.14 | D56: -0.76 | E56: 0.87 | F56: -1.11 | G56: 0.95 | H56: 0.99 | I56: 0.99
B57: 1977.758004 | C57: 1.13 | D57: -0.71 | E57: 0.87 | F57: -1.11 | G57: 0.92 | H57: 0.99 | I57: 0.99
B58: 1977.785782 | C58: 1.17 | D58: -0.68 | E58: 0.87 | F58: -1.11 | G58: 0.925 | H58: 0.99 | I58: 0.99
B59: 1977.81356 | C59: 1.15 | D59: -0.72 | E59: 0.87 | F59: -1.12 | G59: 0.935 | H59: 0.995 | I59: 0.995
B60: 1977.83856 | C60: 1.08 | D60: -0.82 | E60: 0.88 | F60: -1.12 | G60: 0.95 | H60: 1 | I60: 1
B61: 1977.866338 | C61: 1.06 | D61: -0.92 | E61: 0.88 | F61: -1.12 | G61: 0.99 | H61: 1 | I61: 1
B62: 1977.894115 | C62: 1.06 | D62: -0.95 | E62: 0.88 | F62: -1.12 | G62: 1.005 | H62: 1 | I62: 1
B63: 1977.921893 | C63: 1.04 | D63: -1.03 | E63: 0.88 | F63: -1.12 | G63: 1.035 | H63: 1 | I63: 1
B64: 1977.949671 | C64: 0.9 | D64: -1.09 | E64: 0.89 | F64: -1.12 | G64: 0.995 | H64: 1.005 | I64: 1.005
B65: 1977.977449 | C65: 0.8 | D65: -1.18 | E65: 0.89 | F65: -1.11 | G65: 0.99 | H65: 1 | I65: 1
B66: 1978.002449 | C66: 0.56 | D66: -1.29 | E66: 0.89 | F66: -1.11 | G66: 0.925 | H66: 1 | I66: 1
B67: 1978.030226 | C67: 0.49 | D67: -1.37 | E67: 0.89 | F67: -1.11 | G67: 0.93 | H67: 1 | I67: 1
B68: 1978.058004 | C68: 0.52 | D68: -1.44 | E68: 0.89 | F68: -1.1 | G68: 0.98 | H68: 0.995 | I68: 0.995
B69: 1978.083004 | C69: 0.52 | D69: -1.46 | E69: 0.89 | F69: -1.1 | G69: 0.99 | H69: 0.995 | I69: 0.995
B70: 1978.110782 | C70: 0.56 | D70: -1.52 | E70: 0.89 | F70: -1.09 | G70: 1.04 | H70: 0.99 | I70: 0.99
B71: 1978.13856 | C71: 0.48 | D71: -1.52 | E71: 0.89 | F71: -1.08 | G71: 1 | H71: 0.985 | I71: 0.985
B72: 1978.171893 | C72: 0.5 | D72: -1.58 | E72: 0.89 | F72: -1.07 | G72: 1.04 | H72: 0.98 | I72: 0.98
B73: 1978.199671 | C73: 0.49 | D73: -1.57 | E73: 0.89 | F73: -1.07 | G73: 1.03 | H73: 0.98 | I73: =ABS((E73-F73)*0.5) -> 0.98
B74: 1978.227449 | C74: 0.54 | D74: -1.57 | E74: 0.89 | F74: -1.06 | G74: 1.055 | H74: 0.975 | I74: 0.975
B75: 1978.252449 | C75: 0.55 | D75: -1.49 | E75: 0.88 | F75: -1.05 | G75: 1.02 | H75: 0.965 | I75: 0.965
B76: 1978.280226 | C76: 0.5 | D76: -1.51 | E76: 0.88 | F76: -1.04 | G76: 1.005 | H76: 0.96 | I76: 0.96
B77: 1978.308004 | C77: 0.58 | D77: -1.33 | E77: 0.88 | F77: -1.02 | G77: 0.955 | H77: 0.95 | I77: 0.95
B78: 1978.335782 | C78: 0.66 | D78: -1.25 | E78: 0.87 | F78: -1.01 | G78: =(C78-D78)*0.5 -> 0.955 | H78: =(E78-F78)*0.5 -> 0.94 | I78: 0.94
B79: 1978.36356 | C79: 0.7 | D79: -1.17 | E79: 0.86 | F79: -1 | G79: 0.935 | H79: 0.93 | I79: 0.93
B80: 1978.391338 | C80: 0.74 | D80: -1.16 | E80: 0.86 | F80: -0.99 | G80: 0.95 | H80: 0.925 | I80: 0.925
B81: 1978.416338 | C81: 0.86 | D81: -1.12 | E81: 0.85 | F81: -0.98 | G81: 0.99 | H81: 0.915 | I81: 0.915
B82: 1978.444115 | C82: 0.93 | D82: -1 | E82: 0.84 | F82: -0.96 | G82: 0.965 | H82: 0.9 | I82: 0.9
B83: 1978.471893 | C83: 0.99 | D83: -0.93 | E83: 0.84 | F83: -0.95 | G83: 0.96 | H83: 0.895 | I83: 0.895
B84: 1978.499671 | C84: 1.04 | D84: -0.7 | E84: 0.83 | F84: -0.94 | G84: 0.87 | H84: 0.885 | I84: 0.885
B85: 1978.527449 | C85: 1.15 | D85: -0.71 | E85: 0.82 | F85: -0.92 | G85: 0.93 | H85: 0.87 | I85: 0.87
B86: 1978.555226 | C86: 1.14 | D86: -0.58 | E86: 0.81 | F86: -0.91 | G86: 0.86 | H86: 0.86 | I86: 0.86
B87: 1978.583004 | C87: 1.09 | D87: -0.46 | E87: 0.8 | F87: -0.89 | G87: 0.775 | H87: 0.845 | I87: 0.845
B88: 1978.608004 | C88: 1.14 | D88: -0.42 | E88: 0.79 | F88: -0.88 | G88: 0.78 | H88: 0.835 | I88: 0.835
B89: 1978.635782 | C89: 1.18 | D89: -0.47 | E89: 0.78 | F89: -0.86 | G89: 0.825 | H89: 0.82 | I89: 0.82
B90: 1978.66356 | C90: 1.17 | D90: -0.42 | E90: 0.77 | F90: -0.85 | G90: 0.795 | H90: 0.81 | I90: 0.81
B91: 1978.68856 | C91: 1.13 | D91: -0.36 | E91: 0.76 | F91: -0.84 | G91: 0.745 | H91: 0.8 | I91: 0.8
B92: 1978.716338 | C92: 1.17 | D92: -0.34 | E92: 0.75 | F92: -0.82 | G92: 0.755 | H92: 0.785 | I92: 0.785
B93: 1978.744115 | C93: 1.13 | D93: -0.38 | E93: 0.74 | F93: -0.81 | G93: 0.755 | H93: 0.775 | I93: 0.775
B94: 1978.771893 | C94: 1.05 | D94: -0.32 | E94: 0.73 | F94: -0.79 | G94: 0.685 | H94: 0.76 | I94: 0.76
B95: 1978.799671 | C95: 1.07 | D95: -0.31 | E95: 0.72 | F95: -0.78 | G95: 0.69 | H95: 0.75 | I95: 0.75
B96: 1978.827449 | C96: 1.06 | D96: -0.44 | E96: 0.7 | F96: -0.76 | G96: 0.75 | H96: 0.73 | I96: 0.73
B97: 1978.852449 | C97: 1.07 | D97: -0.46 | E97: 0.69 | F97: -0.75 | G97: 0.765 | H97: 0.72 | I97: 0.72
B98: 1978.880226 | C98: 0.84 | D98: -0.49 | E98: 0.68 | F98: -0.73 | G98: 0.665 | H98: 0.705 | I98: 0.705
B99: 1978.908004 | C99: 0.72 | D99: -0.49 | E99: 0.67 | F99: -0.72 | G99: 0.605 | H99: 0.695 | I99: 0.695
B100: 1978.935782 | C100: 0.65 | D100: -0.64 | E100: 0.66 | F100: -0.7 | G100: 0.645 | H100: 0.68 | I100: 0.68
B101: 1978.96356 | C101: 0.52 | D101: -0.73 | E101: 0.65 | F101: -0.69 | G101: 0.625 | H101: 0.67 | I101: 0.67
B102: 1978.991338 | C102: 0.46 | D102: -0.74 | E102: 0.64 | F102: -0.68 | G102: 0.6 | H102: 0.66 | I102: 0.66
B103: 1979.016338 | C103: 0.42 | D103: -0.95 | E103: 0.63 | F103: -0.66 | G103: 0.685 | H103: 0.645 | I103: 0.645
B104: 1979.044115 | C104: 0.14 | D104: -1.02 | E104: 0.62 | F104: -0.65 | G104: 0.58 | H104: 0.635 | I104: 0.635
B105: 1979.071893 | C105: 0.13 | D105: -0.89 | E105: 0.6 | F105: -0.63 | G105: 0.51 | H105: 0.615 | I105: 0.615
B106: 1979.096893 | C106: 0.1 | D106: -0.88 | E106: 0.59 | F106: -0.62 | G106: 0.49 | H106: 0.605 | I106: 0.605
B107: 1979.124671 | C107: 0.09 | D107: -0.9 | E107: 0.58 | F107: -0.61 | G107: 0.495 | H107: 0.595 | I107: 0.595
B108: 1979.152449 | C108: -0.09 | D108: -0.99 | E108: 0.57 | F108: -0.59 | G108: 0.45 | H108: 0.58 | I108: 0.58
B109: 1979.185782 | C109: -0.06 | D109: -0.98 | E109: 0.55 | F109: -0.58 | G109: 0.46 | H109: 0.565 | I109: 0.565
B110: 1979.21356 | C110: 0 | D110: -1.06 | E110: 0.54 | F110: -0.57 | G110: 0.53 | H110: 0.555 | I110: 0.555
B111: 1979.241338 | C111: -0.06 | D111: -1.03 | E111: 0.53 | F111: -0.56 | G111: 0.485 | H111: 0.545 | I111: 0.545
B112: 1979.266338 | C112: -0.04 | D112: -0.91 | E112: 0.52 | F112: -0.54 | G112: 0.435 | H112: 0.53 | I112: 0.53
B113: 1979.294115 | C113: -0.03 | D113: -0.83 | E113: 0.5 | F113: -0.53 | G113: 0.4 | H113: 0.515 | I113: 0.515
B114: 1979.321893 | C114: -0.02 | D114: -0.78 | E114: 0.49 | F114: -0.52 | G114: 0.38 | H114: 0.505 | I114: 0.505
B115: 1979.349671 | C115: -0.01 | D115: -0.67 | E115: 0.47 | F115: -0.51 | G115: 0.33 | H115: 0.49 | I115: 0.49
B116: 1979.377449 | C116: 0.27 | D116: -0.63 | E116: 0.46 | F116: -0.5 | G116: 0.45 | H116: 0.48 | I116: 0.48
B117: 1979.405226 | C117: 0.37 | D117: -0.64 | E117: 0.44 | F117: -0.48 | G117: 0.505 | H117: 0.46 | I117: 0.46
B118: 1979.430226 | C118: 0.43 | D118: -0.55 | E118: 0.43 | F118: -0.47 | G118: 0.49 | H118: 0.45 | I118: 0.45
B119: 1979.458004 | C119: 0.58 | D119: -0.51 | E119: 0.41 | F119: -0.46 | G119: 0.545 | H119: 0.435 | I119: 0.435
B120: 1979.485782 | C120: 0.77 | D120: -0.47 | E120: 0.4 | F120: -0.45 | G120: 0.62 | H120: 0.425 | I120: 0.425
B121: 1979.51356 | C121: 0.82 | D121: -0.37 | E121: 0.38 | F121: -0.43 | G121: 0.595 | H121: 0.405 | I121: 0.405
B122: 1979.541338 | C122: 0.91 | D122: -0.29 | E122: 0.36 | F122: -0.42 | G122: 0.6 | H122: 0.39 | I122: 0.39
B123: 1979.569115 | C123: 0.99 | D123: -0.15 | E123: 0.34 | F123: -0.41 | G123: 0.57 | H123: 0.375 | I123: 0.375
B124: 1979.594115 | C124: 0.95 | D124: -0.17 | E124: 0.32 | F124: -0.4 | G124: 0.56 | H124: 0.36 | I124: 0.36
B125: 1979.621893 | C125: 0.82 | D125: -0.2 | E125: 0.3 | F125: -0.38 | G125: 0.51 | H125: 0.34 | I125: 0.34
B126: 1979.649671 | C126: 0.7 | D126: -0.21 | E126: 0.28 | F126: -0.37 | G126: 0.455 | H126: 0.325 | I126: 0.325
B127: 1979.674671 | C127: 0.7 | D127: 0.14 | E127: 0.26 | F127: -0.36 | G127: 0.28 | H127: 0.31 | I127: 0.31
B128: 1979.702449 | C128: 0.66 | D128: 0.01 | E128: 0.23 | F128: -0.34 | G128: 0.325 | H128: 0.285 | I128: 0.285
B129: 1979.730226 | C129: 0.68 | D129: 0.01 | E129: 0.21 | F129: -0.33 | G129: 0.335 | H129: 0.27 | I129: 0.27
B130: 1979.758004 | C130: 0.69 | D130: -0.11 | E130: 0.19 | F130: -0.31 | G130: 0.4 | H130: 0.25 | I130: 0.25
B131: 1979.785782 | C131: 0.62 | D131: 0.11 | E131: 0.16 | F131: -0.3 | G131: 0.255 | H131: 0.23 | I131: 0.23
B132: 1979.81356 | C132: 0.49 | D132: 0.06 | E132: 0.13 | F132: -0.28 | G132: 0.215 | H132: 0.205 | I132: 0.205
B133: 1979.83856 | C133: 0.43 | D133: -0.02 | E133: 0.1 | F133: -0.27 | G133: 0.225 | H133: 0.185 | I133: 0.185
B134: 1979.866338 | C134: 0.46 | D134: 0.19 | E134: 0.08 | F134: -0.25 | G134: 0.135 | H134: 0.165 | I134: 0.165
B135: 1979.894115 | C135: 0.18 | D135: 0.09 | E135: 0.05 | F135: -0.24 | G135: 0.045 | H135: 0.145 | I135: 0.145
B136: 1979.921893 | C136: -0.06 | D136: 0.03 | E136: 0.02 | F136: -0.22 | G136: -0.045 | H136: 0.12 | I136: 0.12
B137: 1979.949671 | C137: -0.16 | D137: -0.02 | E137: -0.01 | F137: -0.21 | G137: -0.07 | H137: 0.1 | I137: =ABS((E137-F137)*0.5) -> 0.1
B138: 1979.977449 | C138: -0.32 | D138: -0.01 | E138: -0.04 | F138: -0.19 | G138: -0.155 | H138: 0.075 | I138: 0.075
B139: 1980.002449 | C139: -0.34 | D139: -0.17 | E139: -0.08 | F139: -0.18 | G139: -0.085 | H139: 0.05 | I139: 0.05
B140: 1980.030226 | C140: -0.5 | D140: -0.33 | E140: -0.11 | F140: -0.16 | G140: -0.085 | H140: 0.025 | I140: 0.025
B141: 1980.058004 | C141: -0.48 | D141: -0.37 | E141: -0.14 | F141: -0.15 | G141: -0.055 | H141: 0.005 | I141: 0.005
B142: 1980.083004 | C142: -0.49 | D142: -0.42 | E142: -0.17 | F142: -0.13 | G142: =(C142-D142)*0.5 -> -0.035 | H142: =(E142-F142)*0.5 -> -0.02 | I142: 0.02
B143: 1980.110782 | C143: -0.36 | D143: -0.5 | E143: -0.2 | F143: -0.12 | G143: 0.07 | H143: -0.04 | I143: 0.04
B144: 1980.13856 | C144: -0.42 | D144: -0.49 | E144: -0.23 | F144: -0.1 | G144: 0.035 | H144: -0.065 | I144: 0.065
B145: 1980.169115 | C145: -0.68 | D145: -0.43 | E145: -0.26 | F145: -0.09 | G145: -0.125 | H145: -0.085 | I145: 0.085
B146: 1980.196893 | C146: -0.94 | D146: -0.46 | E146: -0.29 | F146: -0.07 | G146: -0.24 | H146: -0.11 | I146: 0.11
B147: 1980.224671 | C147: -0.81 | D147: -0.48 | E147: -0.32 | F147: -0.06 | G147: -0.165 | H147: -0.13 | I147: 0.13
B148: 1980.249671 | C148: -0.66 | D148: -0.41 | E148: -0.35 | F148: -0.04 | G148: -0.125 | H148: -0.155 | I148: 0.155
B149: 1980.277449 | C149: -0.44 | D149: -0.32 | E149: -0.37 | F149: -0.02 | G149: -0.06 | H149: -0.175 | I149: 0.175
B150: 1980.305226 | C150: -0.48 | D150: -0.25 | E150: -0.4 | F150: 0 | G150: -0.115 | H150: -0.2 | I150: 0.2
B151: 1980.333004 | C151: -0.52 | D151: -0.26 | E151: -0.42 | F151: 0.01 | G151: -0.13 | H151: -0.215 | I151: 0.215
B152: 1980.360782 | C152: -0.61 | D152: -0.26 | E152: -0.44 | F152: 0.03 | G152: -0.175 | H152: -0.235 | I152: 0.235
B153: 1980.38856 | C153: -0.65 | D153: -0.2 | E153: -0.46 | F153: 0.05 | G153: -0.225 | H153: -0.255 | I153: 0.255
B154: 1980.416338 | C154: -0.48 | D154: -0.08 | E154: -0.48 | F154: 0.07 | G154: -0.2 | H154: -0.275 | I154: 0.275
B155: 1980.441338 | C155: -0.41 | D155: 0.01 | E155: -0.5 | F155: 0.09 | G155: -0.21 | H155: -0.295 | I155: 0.295
B156: 1980.469115 | C156: -0.41 | D156: 0.12 | E156: -0.51 | F156: 0.11 | G156: -0.265 | H156: -0.31 | I156: 0.31
B157: 1980.496893 | C157: -0.47 | D157: 0.15 | E157: -0.52 | F157: 0.13 | G157: -0.31 | H157: -0.325 | I157: 0.325
B158: 1980.524671 | C158: -0.27 | D158: 0.23 | E158: -0.54 | F158: 0.15 | G158: -0.25 | H158: -0.345 | I158: 0.345
B159: 1980.552449 | C159: -0.3 | D159: 0.33 | E159: -0.54 | F159: 0.18 | G159: -0.315 | H159: -0.36 | I159: 0.36
B160: 1980.580226 | C160: -0.39 | D160: 0.38 | E160: -0.55 | F160: 0.2 | G160: -0.385 | H160: -0.375 | I160: 0.375
B161: 1980.605226 | C161: -0.28 | D161: 0.42 | E161: -0.56 | F161: 0.22 | G161: -0.35 | H161: -0.39 | I161: 0.39
B162: 1980.633004 | C162: -0.22 | D162: 0.43 | E162: -0.56 | F162: 0.24 | G162: -0.325 | H162: -0.4 | I162: 0.4
B163: 1980.660782 | C163: -0.24 | D163: 0.43 | E163: -0.56 | F163: 0.27 | G163: -0.335 | H163: -0.415 | I163: 0.415
B164: 1980.685782 | C164: -0.48 | D164: 0.51 | E164: -0.56 | F164: 0.29 | G164: -0.495 | H164: -0.425 | I164: 0.425
B165: 1980.71356 | C165: -0.41 | D165: 0.57 | E165: -0.56 | F165: 0.31 | G165: -0.49 | H165: -0.435 | I165: 0.435
B166: 1980.741338 | C166: -0.53 | D166: 0.63 | E166: -0.56 | F166: 0.34 | G166: -0.58 | H166: -0.45 | I166: 0.45
B167: 1980.769115 | C167: -0.57 | D167: 0.61 | E167: -0.56 | F167: 0.36 | G167: -0.59 | H167: -0.46 | I167: 0.46
B168: 1980.796893 | C168: -0.69 | D168: 0.51 | E168: -0.55 | F168: 0.38 | G168: -0.6 | H168: -0.465 | I168: 0.465
B169: 1980.824671 | C169: -0.58 | D169: 0.52 | E169: -0.54 | F169: 0.41 | G169: -0.55 | H169: -0.475 | I169: 0.475
B170: 1980.849671 | C170: -0.67 | D170: 0.58 | E170: -0.54 | F170: 0.43 | G170: -0.625 | H170: -0.485 | I170: 0.485
B171: 1980.877449 | C171: -0.71 | D171: 0.61 | E171: -0.53 | F171: 0.45 | G171: -0.66 | H171: -0.49 | I171: 0.49
B172: 1980.905226 | C172: -0.76 | D172: 0.57 | E172: -0.52 | F172: 0.47 | G172: -0.665 | H172: -0.495 | I172: 0.495
B173: 1980.933004 | C173: -0.8 | D173: 0.56 | E173: -0.51 | F173: 0.49 | G173: -0.68 | H173: -0.5 | I173: 0.5
B174: 1980.960782 | C174: -0.76 | D174: 0.55 | E174: -0.5 | F174: 0.51 | G174: -0.655 | H174: -0.505 | I174: 0.505
B175: 1980.98856 | C175: -0.71 | D175: 0.51 | E175: -0.5 | F175: 0.53 | G175: -0.61 | H175: -0.515 | I175: 0.515
B176: 1981.01356 | C176: -0.62 | D176: 0.48 | E176: -0.49 | F176: 0.54 | G176: -0.55 | H176: -0.515 | I176: 0.515
B177: 1981.041338 | C177: -0.54 | D177: 0.37 | E177: -0.48 | F177: 0.56 | G177: -0.455 | H177: -0.52 | I177: 0.52
B178: 1981.069115 | C178: -0.4 | D178: 0.32 | E178: -0.47 | F178: 0.57 | G178: -0.36 | H178: -0.52 | I178: 0.52
B179: 1981.094115 | C179: -0.38 | D179: 0.31 | E179: -0.46 | F179: 0.59 | G179: -0.345 | H179: -0.525 | I179: 0.525
B180: 1981.121893 | C180: -0.34 | D180: 0.35 | E180: -0.45 | F180: 0.6 | G180: -0.345 | H180: -0.525 | I180: 0.525
B181: 1981.149671 | C181: -0.3 | D181: 0.35 | E181: -0.45 | F181: 0.61 | G181: -0.325 | H181: -0.53 | I181: 0.53
B182: 1981.183004 | C182: -0.26 | D182: 0.3 | E182: -0.44 | F182: 0.62 | G182: -0.28 | H182: -0.53 | I182: 0.53
B183: 1981.210782 | C183: -0.16 | D183: 0.26 | E183: -0.43 | F183: 0.63 | G183: -0.21 | H183: -0.53 | I183: 0.53
B184: 1981.23856 | C184: -0.21 | D184: 0.57 | E184: -0.43 | F184: 0.63 | G184: -0.39 | H184: -0.53 | I184: 0.53
B185: 1981.26356 | C185: -0.27 | D185: 0.58 | E185: -0.42 | F185: 0.64 | G185: -0.425 | H185: -0.53 | I185: 0.53
B186: 1981.291338 | C186: -0.21 | D186: 0.59 | E186: -0.42 | F186: 0.65 | G186: -0.4 | H186: -0.535 | I186: 0.535
B187: 1981.319115 | C187: -0.18 | D187: 0.62 | E187: -0.42 | F187: 0.65 | G187: -0.4 | H187: -0.535 | I187: 0.535
B188: 1981.346893 | C188: -0.19 | D188: 0.7 | E188: -0.41 | F188: 0.65 | G188: -0.445 | H188: -0.53 | I188: 0.53
B189: 1981.374671 | C189: -0.32 | D189: 0.79 | E189: -0.41 | F189: 0.65 | G189: -0.555 | H189: -0.53 | I189: 0.53
B190: 1981.402449 | C190: -0.3 | D190: 0.88 | E190: -0.41 | F190: 0.65 | G190: -0.59 | H190: -0.53 | I190: 0.53
B191: 1981.427449 | C191: -0.31 | D191: 0.88 | E191: -0.41 | F191: 0.65 | G191: -0.595 | H191: -0.53 | I191: 0.53
B192: 1981.455226 | C192: -0.32 | D192: 0.97 | E192: -0.41 | F192: 0.65 | G192: -0.645 | H192: -0.53 | I192: 0.53
B193: 1981.483004 | C193: -0.46 | D193: 0.97 | E193: -0.41 | F193: 0.65 | G193: -0.715 | H193: -0.53 | I193: 0.53
B194: 1981.510782 | C194: -0.51 | D194: 0.95 | E194: -0.41 | F194: 0.64 | G194: -0.73 | H194: -0.525 | I194: 0.525
B195: 1981.53856 | C195: -0.54 | D195: 0.81 | E195: -0.42 | F195: 0.64 | G195: -0.675 | H195: -0.53 | I195: 0.53
B196: 1981.566338 | C196: -0.53 | D196: 0.73 | E196: -0.42 | F196: 0.63 | G196: -0.63 | H196: -0.525 | I196: 0.525
B197: 1981.591338 | C197: -0.56 | D197: 0.67 | E197: -0.42 | F197: 0.62 | G197: -0.615 | H197: -0.52 | I197: 0.52
B198: 1981.619115 | C198: -0.61 | D198: 0.6 | E198: -0.43 | F198: 0.62 | G198: -0.605 | H198: -0.525 | I198: 0.525
B199: 1981.646893 | C199: -0.6 | D199: 0.55 | E199: -0.44 | F199: 0.61 | G199: -0.575 | H199: -0.525 | I199: 0.525
B200: 1981.671893 | C200: -0.49 | D200: 0.51 | E200: -0.44 | F200: 0.6 | G200: -0.5 | H200: -0.52 | I200: 0.52
B201: 1981.699671 | C201: -0.5 | D201: 0.4 | E201: -0.45 | F201: 0.59 | G201: -0.45 | H201: -0.52 | I201: =ABS((E201-F201)*0.5) -> 0.52
... 1188 more rows

Sheet CO2
A1: CO2: Yearly and Monthly
A3: Time | B3: Downloaded Data | E3: Calculations | O3: Time | P3: Downloaded Data
A4: Year AD | B4: Yearly Emissions of CO2 from fossil fuel consumption & cement production | C4: CO2 Levels, at Mauna Loa | D4: CO2 Levels, at Law Dome (Antartica) | E4: Yearly increase in Emissions | F4: Yearly Emissions of CO2 from fossil fuel consumption & cement production | G4: Cumulative Emissions of CO2 from fossil fuel consumption & cement production | H4: Cumulative % of Emissions | I4: CO2 Levels, at Mauna Loa, extrapolated using Law Dome data before 1959 | J4: Yearly increase in CO2 Levels, at Mauna Loa | K4: Log of CO2 Levels, at Mauna Loa | O4: Year AD | P4: CO2 Levels, at Mauna Loa | Q4: CO2 Levels, at Mauna Loa
A5: Source--> | B5: CDIAC, US DOE | C5: Scripps | D5: CDIAC, US DOE | P5: Measured | Q5: Seasonally adjusted
A6: Units --> | B6: Mt of C | C6: ppm | D6: ppm | E6: Mt of C | F6: Mt of C | G6: Mt of C | H6: % | I6: ppm | J6: ppm | K6: ppm | P6: ppm | Q6: ppm
A7: 1 | D7: 276.7 | E7: 0 | F7: 0 | I7: =D7 + co2_offsetToMaunaLoaFromLawDome -> 277.592 | O7: 1958.2027 | P7: 315.7 | Q7: 314.41
A8: 2 | D8: 276.8 | E8: 0 | F8: 0 | I8: 277.692 | O8: 1958.2877 | P8: 317.45 | Q8: 315.15
A9: 3 | D9: 276.8 | E9: 0 | F9: 0 | I9: 277.692 | O9: 1958.3699 | P9: 317.51 | Q9: 314.72
A10: 4 | D10: 276.9 | E10: 0 | F10: 0 | I10: 277.792 | O10: 1958.4548 | P10: =(P9+P11)/2 -> 316.685 | Q10: =(Q9+Q11)/2 -> 314.93
A11: 5 | D11: 276.9 | E11: 0 | F11: 0 | I11: 277.792 | O11: 1958.537 | P11: 315.86 | Q11: 315.14
A12: 6 | D12: 277 | E12: 0 | F12: 0 | I12: 277.892 | O12: 1958.6219 | P12: 314.93 | Q12: 316.15
A13: 7 | D13: 277.1 | E13: 0 | F13: 0 | I13: 277.992 | O13: 1958.7068 | P13: 313.19 | Q13: 316.07
A14: 8 | D14: 277.1 | E14: 0 | F14: 0 | I14: 277.992 | O14: 1958.789 | P14: =(P13+P15)/2 -> 313.26 | Q14: =(Q13+Q15)/2 -> 315.655
A15: 9 | D15: 277.2 | E15: 0 | F15: 0 | I15: 278.092 | O15: 1958.874 | P15: 313.33 | Q15: 315.24
A16: 10 | D16: 277.2 | E16: 0 | F16: 0 | I16: 278.092 | O16: 1958.9562 | P16: 314.67 | Q16: 315.47
A17: 11 | D17: 277.3 | E17: 0 | F17: 0 | I17: 278.192 | O17: 1959.0411 | P17: 315.63 | Q17: 315.61
A18: 12 | D18: 277.3 | E18: 0 | F18: 0 | I18: 278.192 | O18: 1959.126 | P18: 316.38 | Q18: 315.75
A19: 13 | D19: 277.4 | E19: 0 | F19: 0 | I19: 278.292 | O19: 1959.2027 | P19: 316.71 | Q19: 315.41
A20: 14 | D20: 277.4 | E20: 0 | F20: 0 | I20: 278.292 | O20: 1959.2877 | P20: 317.72 | Q20: 315.41
A21: 15 | D21: 277.5 | E21: 0 | F21: 0 | I21: 278.392 | O21: 1959.3699 | P21: 318.29 | Q21: 315.5
A22: 16 | D22: 277.5 | E22: 0 | F22: 0 | I22: 278.392 | O22: 1959.4548 | P22: 318.15 | Q22: 316.02
A23: 17 | D23: 277.6 | E23: 0 | F23: 0 | I23: 278.492 | O23: 1959.537 | P23: 316.54 | Q23: 315.82
A24: 18 | D24: 277.6 | E24: 0 | F24: 0 | I24: 278.492 | O24: 1959.6219 | P24: 314.8 | Q24: 316.02
A25: 19 | D25: 277.6 | E25: 0 | F25: 0 | I25: 278.492 | O25: 1959.7068 | P25: 313.84 | Q25: 316.72
A26: 20 | D26: 277.7 | E26: 0 | F26: 0 | I26: 278.592 | O26: 1959.789 | P26: 313.26 | Q26: 316.28
A27: 21 | D27: 277.7 | E27: 0 | F27: 0 | I27: 278.592 | O27: 1959.874 | P27: 314.8 | Q27: 316.71
A28: 22 | D28: 277.7 | E28: 0 | F28: 0 | I28: 278.592 | O28: 1959.9562 | P28: 315.58 | Q28: 316.39
A29: 23 | D29: 277.8 | E29: 0 | F29: 0 | I29: 278.692 | O29: 1960.041 | P29: 316.43 | Q29: 316.42
A30: 24 | D30: 277.8 | E30: 0 | F30: 0 | I30: 278.692 | O30: 1960.1257 | P30: 316.97 | Q30: 316.35
A31: 25 | D31: 277.8 | E31: 0 | F31: 0 | I31: 278.692 | O31: 1960.2049 | P31: 317.58 | Q31: 316.26
A32: 26 | D32: 277.9 | E32: 0 | F32: 0 | I32: 278.792 | O32: 1960.2896 | P32: 319.02 | Q32: 316.68
A33: 27 | D33: 277.9 | E33: 0 | F33: 0 | I33: 278.792 | O33: 1960.3716 | P33: 320.03 | Q33: 317.23
A34: 28 | D34: 277.9 | E34: 0 | F34: 0 | I34: 278.792 | O34: 1960.4563 | P34: 319.59 | Q34: 317.47
A35: 29 | D35: 277.9 | E35: 0 | F35: 0 | I35: 278.792 | O35: 1960.5383 | P35: 318.18 | Q35: 317.48
A36: 30 | D36: 277.9 | E36: 0 | F36: 0 | I36: 278.792 | O36: 1960.623 | P36: 315.91 | Q36: 317.16
A37: 31 | D37: 277.9 | E37: 0 | F37: 0 | I37: 278.792 | O37: 1960.7077 | P37: 314.16 | Q37: 317.06
A38: 32 | D38: 277.9 | E38: 0 | F38: 0 | I38: 278.792 | O38: 1960.7896 | P38: 313.83 | Q38: 316.85
A39: 33 | D39: 277.9 | E39: 0 | F39: 0 | I39: 278.792 | O39: 1960.8743 | P39: 315 | Q39: 316.91
A40: 34 | D40: 277.9 | E40: 0 | F40: 0 | I40: 278.792 | O40: 1960.9563 | P40: 316.19 | Q40: 317
A41: 35 | D41: 277.9 | E41: 0 | F41: 0 | I41: 278.792 | O41: 1961.0411 | P41: 316.93 | Q41: 316.91
A42: 36 | D42: 277.9 | E42: 0 | F42: 0 | I42: 278.792 | O42: 1961.126 | P42: 317.7 | Q42: 317.07
A43: 37 | D43: 277.9 | E43: 0 | F43: 0 | I43: 278.792 | O43: 1961.2027 | P43: 318.54 | Q43: 317.24
A44: 38 | D44: 277.8 | E44: 0 | F44: 0 | I44: 278.692 | O44: 1961.2877 | P44: 319.48 | Q44: 317.15
A45: 39 | D45: 277.8 | E45: 0 | F45: 0 | I45: 278.692 | O45: 1961.3699 | P45: 320.58 | Q45: 317.77
A46: 40 | D46: 277.8 | E46: 0 | F46: 0 | I46: 278.692 | O46: 1961.4548 | P46: 319.77 | Q46: 317.62
A47: 41 | D47: 277.8 | E47: 0 | F47: 0 | I47: 278.692 | O47: 1961.537 | P47: 318.57 | Q47: 317.84
A48: 42 | D48: 277.8 | E48: 0 | F48: 0 | I48: 278.692 | O48: 1961.6219 | P48: 316.79 | Q48: 318.02
A49: 43 | D49: 277.7 | E49: 0 | F49: 0 | I49: 278.592 | O49: 1961.7068 | P49: 314.8 | Q49: 317.7
A50: 44 | D50: 277.7 | E50: 0 | F50: 0 | I50: 278.592 | O50: 1961.789 | P50: 315.38 | Q50: 318.41
A51: 45 | D51: 277.7 | E51: 0 | F51: 0 | I51: 278.592 | O51: 1961.874 | P51: 316.1 | Q51: 318.03
A52: 46 | D52: 277.7 | E52: 0 | F52: 0 | I52: 278.592 | O52: 1961.9562 | P52: 317.01 | Q52: 317.82
A53: 47 | D53: 277.6 | E53: 0 | F53: 0 | I53: 278.492 | O53: 1962.0411 | P53: 317.94 | Q53: 317.93
A54: 48 | D54: 277.6 | E54: 0 | F54: 0 | I54: 278.492 | O54: 1962.126 | P54: 318.55 | Q54: 317.92
A55: 49 | D55: 277.6 | E55: 0 | F55: 0 | I55: 278.492 | O55: 1962.2027 | P55: 319.68 | Q55: 318.37
A56: 50 | D56: 277.5 | E56: 0 | F56: 0 | I56: 278.392 | O56: 1962.2877 | P56: 320.63 | Q56: 318.3
A57: 51 | D57: 277.5 | E57: 0 | F57: 0 | I57: 278.392 | O57: 1962.3699 | P57: 321.01 | Q57: 318.19
A58: 52 | D58: 277.5 | E58: 0 | F58: 0 | I58: 278.392 | O58: 1962.4548 | P58: 320.55 | Q58: 318.39
A59: 53 | D59: 277.5 | E59: 0 | F59: 0 | I59: 278.392 | O59: 1962.537 | P59: 319.57 | Q59: 318.84
A60: 54 | D60: 277.4 | E60: 0 | F60: 0 | I60: 278.292 | O60: 1962.6219 | P60: 317.4 | Q60: 318.63
A61: 55 | D61: 277.4 | E61: 0 | F61: 0 | I61: 278.292 | O61: 1962.7068 | P61: 316.26 | Q61: 319.17
A62: 56 | D62: 277.4 | E62: 0 | F62: 0 | I62: 278.292 | O62: 1962.789 | P62: 315.42 | Q62: 318.47
A63: 57 | D63: 277.4 | E63: 0 | F63: 0 | I63: 278.292 | O63: 1962.874 | P63: 316.69 | Q63: 318.62
A64: 58 | D64: 277.4 | E64: 0 | F64: 0 | I64: 278.292 | O64: 1962.9562 | P64: 317.7 | Q64: 318.51
A65: 59 | D65: 277.3 | E65: 0 | F65: 0 | I65: 278.192 | O65: 1963.0411 | P65: 318.74 | Q65: 318.73
A66: 60 | D66: 277.3 | E66: 0 | F66: 0 | I66: 278.192 | O66: 1963.126 | P66: 319.08 | Q66: 318.44
A67: 61 | D67: 277.3 | E67: 0 | F67: 0 | I67: 278.192 | O67: 1963.2027 | P67: 319.86 | Q67: 318.55
A68: 62 | D68: 277.3 | E68: 0 | F68: 0 | I68: 278.192 | O68: 1963.2877 | P68: 321.39 | Q68: 319.05
A69: 63 | D69: 277.3 | E69: 0 | F69: 0 | I69: 278.192 | O69: 1963.3699 | P69: 322.25 | Q69: 319.42
A70: 64 | D70: 277.3 | E70: 0 | F70: 0 | I70: 278.192 | O70: 1963.4548 | P70: 321.48 | Q70: 319.31
A71: 65 | D71: 277.3 | E71: 0 | F71: 0 | I71: =D71 + co2_offsetToMaunaLoaFromLawDome -> 278.192 | O71: 1963.537 | P71: 319.74 | Q71: 319.01
A72: 66 | D72: 277.3 | E72: 0 | F72: 0 | I72: 278.192 | O72: 1963.6219 | P72: 317.77 | Q72: 319.01
A73: 67 | D73: 277.3 | E73: 0 | F73: 0 | I73: 278.192 | O73: 1963.7068 | P73: 316.21 | Q73: 319.13
A74: 68 | D74: 277.3 | E74: 0 | F74: 0 | I74: 278.192 | O74: 1963.789 | P74: 315.99 | Q74: 319.04
A75: 69 | D75: 277.3 | E75: 0 | F75: 0 | I75: 278.192 | O75: 1963.874 | P75: 317.12 | Q75: 319.06
A76: 70 | D76: 277.3 | E76: 0 | F76: 0 | I76: 278.192 | O76: 1963.9562 | P76: 318.31 | Q76: 319.13
A77: 71 | D77: 277.3 | E77: 0 | F77: 0 | I77: 278.192 | O77: 1964.041 | P77: 319.57 | Q77: 319.56
A78: 72 | D78: 277.2 | E78: 0 | F78: 0 | I78: 278.092 | O78: 1964.1257 | P78: =P77 + (P81-P77) / 4 -> 320.24 | Q78: =Q77 + (Q81-Q77) / 4 -> 319.5225
A79: 73 | D79: 277.3 | E79: 0 | F79: 0 | I79: 278.192 | O79: 1964.2049 | P79: =P77 + 2 * (P81-P77) / 4 -> 320.91 | Q79: =Q77 + 2 * (Q81-Q77) / 4 -> 319.485
A80: 74 | D80: 277.3 | E80: 0 | F80: 0 | I80: 278.192 | O80: 1964.2896 | P80: =P77 + 3 * (P81-P77) / 4 -> 321.58 | Q80: =Q77 + 3 * (Q81-Q77) / 4 -> 319.4475
A81: 75 | D81: 277.3 | E81: 0 | F81: 0 | I81: 278.192 | O81: 1964.3716 | P81: 322.25 | Q81: 319.41
A82: 76 | D82: 277.3 | E82: 0 | F82: 0 | I82: 278.192 | O82: 1964.4563 | P82: 321.89 | Q82: 319.74
A83: 77 | D83: 277.3 | E83: 0 | F83: 0 | I83: 278.192 | O83: 1964.5383 | P83: 320.44 | Q83: 319.73
A84: 78 | D84: 277.3 | E84: 0 | F84: 0 | I84: 278.192 | O84: 1964.623 | P84: 318.7 | Q84: 319.97
A85: 79 | D85: 277.3 | E85: 0 | F85: 0 | I85: 278.192 | O85: 1964.7077 | P85: 316.7 | Q85: 319.64
A86: 80 | D86: 277.3 | E86: 0 | F86: 0 | I86: 278.192 | O86: 1964.7896 | P86: 316.79 | Q86: 319.85
A87: 81 | D87: 277.3 | E87: 0 | F87: 0 | I87: 278.192 | O87: 1964.8743 | P87: 317.79 | Q87: 319.73
A88: 82 | D88: 277.3 | E88: 0 | F88: 0 | I88: 278.192 | O88: 1964.9563 | P88: 318.71 | Q88: 319.53
A89: 83 | D89: 277.3 | E89: 0 | F89: 0 | I89: 278.192 | O89: 1965.0411 | P89: 319.44 | Q89: 319.43
A90: 84 | D90: 277.3 | E90: 0 | F90: 0 | I90: 278.192 | O90: 1965.126 | P90: 320.44 | Q90: 319.8
A91: 85 | D91: 277.3 | E91: 0 | F91: 0 | I91: 278.192 | O91: 1965.2027 | P91: 320.89 | Q91: 319.57
A92: 86 | D92: 277.3 | E92: 0 | F92: 0 | I92: 278.192 | O92: 1965.2877 | P92: 322.13 | Q92: 319.78
A93: 87 | D93: 277.3 | E93: 0 | F93: 0 | I93: 278.192 | O93: 1965.3699 | P93: 322.16 | Q93: 319.32
A94: 88 | D94: 277.3 | E94: 0 | F94: 0 | I94: 278.192 | O94: 1965.4548 | P94: 321.87 | Q94: 319.69
A95: 89 | D95: 277.3 | E95: 0 | F95: 0 | I95: 278.192 | O95: 1965.537 | P95: 321.39 | Q95: 320.65
A96: 90 | D96: 277.4 | E96: 0 | F96: 0 | I96: 278.292 | O96: 1965.6219 | P96: 318.81 | Q96: 320.05
A97: 91 | D97: 277.4 | E97: 0 | F97: 0 | I97: 278.292 | O97: 1965.7068 | P97: 317.81 | Q97: 320.75
A98: 92 | D98: 277.4 | E98: 0 | F98: 0 | I98: 278.292 | O98: 1965.789 | P98: 317.3 | Q98: 320.38
A99: 93 | D99: 277.4 | E99: 0 | F99: 0 | I99: 278.292 | O99: 1965.874 | P99: 318.87 | Q99: 320.81
A100: 94 | D100: 277.4 | E100: 0 | F100: 0 | I100: 278.292 | O100: 1965.9562 | P100: 319.42 | Q100: 320.24
A101: 95 | D101: 277.4 | E101: 0 | F101: 0 | I101: 278.292 | O101: 1966.0411 | P101: 320.62 | Q101: 320.61
A102: 96 | D102: 277.4 | E102: 0 | F102: 0 | I102: 278.292 | O102: 1966.126 | P102: 321.6 | Q102: 320.95
A103: 97 | D103: 277.4 | E103: 0 | F103: 0 | I103: 278.292 | O103: 1966.2027 | P103: 322.39 | Q103: 321.06
A104: 98 | D104: 277.4 | E104: 0 | F104: 0 | I104: 278.292 | O104: 1966.2877 | P104: 323.87 | Q104: 321.51
A105: 99 | D105: 277.4 | E105: 0 | F105: 0 | I105: 278.292 | O105: 1966.3699 | P105: 324.01 | Q105: 321.15
A106: 100 | D106: 277.5 | E106: 0 | F106: 0 | I106: 278.392 | O106: 1966.4548 | P106: 323.75 | Q106: 321.57
A107: 101 | D107: 277.5 | E107: 0 | F107: 0 | I107: 278.392 | O107: 1966.537 | P107: 322.39 | Q107: 321.65
A108: 102 | D108: 277.5 | E108: 0 | F108: 0 | I108: 278.392 | O108: 1966.6219 | P108: 320.37 | Q108: 321.61
A109: 103 | D109: 277.5 | E109: 0 | F109: 0 | I109: 278.392 | O109: 1966.7068 | P109: 318.64 | Q109: 321.59
A110: 104 | D110: 277.5 | E110: 0 | F110: 0 | I110: 278.392 | O110: 1966.789 | P110: 318.1 | Q110: 321.19
A111: 105 | D111: 277.5 | E111: 0 | F111: 0 | I111: 278.392 | O111: 1966.874 | P111: 319.78 | Q111: 321.74
A112: 106 | D112: 277.5 | E112: 0 | F112: 0 | I112: 278.392 | O112: 1966.9562 | P112: 321.08 | Q112: 321.91
A113: 107 | D113: 277.5 | E113: 0 | F113: 0 | I113: 278.392 | O113: 1967.0411 | P113: 322.07 | Q113: 322.06
A114: 108 | D114: 277.5 | E114: 0 | F114: 0 | I114: 278.392 | O114: 1967.126 | P114: 322.5 | Q114: 321.85
A115: 109 | D115: 277.5 | E115: 0 | F115: 0 | I115: 278.392 | O115: 1967.2027 | P115: 323.04 | Q115: 321.71
A116: 110 | D116: 277.5 | E116: 0 | F116: 0 | I116: 278.392 | O116: 1967.2877 | P116: 324.42 | Q116: 322.04
A117: 111 | D117: 277.5 | E117: 0 | F117: 0 | I117: 278.392 | O117: 1967.3699 | P117: 325 | Q117: 322.13
A118: 112 | D118: 277.6 | E118: 0 | F118: 0 | I118: 278.492 | O118: 1967.4548 | P118: 324.09 | Q118: 321.9
A119: 113 | D119: 277.6 | E119: 0 | F119: 0 | I119: 278.492 | O119: 1967.537 | P119: 322.55 | Q119: 321.8
A120: 114 | D120: 277.6 | E120: 0 | F120: 0 | I120: 278.492 | O120: 1967.6219 | P120: 320.92 | Q120: 322.17
A121: 115 | D121: 277.6 | E121: 0 | F121: 0 | I121: 278.492 | O121: 1967.7068 | P121: 319.31 | Q121: 322.27
A122: 116 | D122: 277.6 | E122: 0 | F122: 0 | I122: 278.492 | O122: 1967.789 | P122: 319.31 | Q122: 322.41
A123: 117 | D123: 277.6 | E123: 0 | F123: 0 | I123: 278.492 | O123: 1967.874 | P123: 320.72 | Q123: 322.69
A124: 118 | D124: 277.6 | E124: 0 | F124: 0 | I124: 278.492 | O124: 1967.9562 | P124: 321.96 | Q124: 322.78
A125: 119 | D125: 277.6 | E125: 0 | F125: 0 | I125: 278.492 | O125: 1968.041 | P125: 322.57 | Q125: 322.56
A126: 120 | D126: 277.6 | E126: 0 | F126: 0 | I126: 278.492 | O126: 1968.1257 | P126: 323.15 | Q126: 322.5
A127: 121 | D127: 277.7 | E127: 0 | F127: 0 | I127: 278.592 | O127: 1968.2049 | P127: 323.89 | Q127: 322.53
A128: 122 | D128: 277.7 | E128: 0 | F128: 0 | I128: 278.592 | O128: 1968.2896 | P128: 325.02 | Q128: 322.62
A129: 123 | D129: 277.7 | E129: 0 | F129: 0 | I129: 278.592 | O129: 1968.3716 | P129: 325.57 | Q129: 322.69
A130: 124 | D130: 277.7 | E130: 0 | F130: 0 | I130: 278.592 | O130: 1968.4563 | P130: 325.36 | Q130: 323.18
A131: 125 | D131: 277.7 | E131: 0 | F131: 0 | I131: 278.592 | O131: 1968.5383 | P131: 324.14 | Q131: 323.42
A132: 126 | D132: 277.8 | E132: 0 | F132: 0 | I132: 278.692 | O132: 1968.623 | P132: 322.03 | Q132: 323.31
A133: 127 | D133: 277.8 | E133: 0 | F133: 0 | I133: 278.692 | O133: 1968.7077 | P133: 320.41 | Q133: 323.39
A134: 128 | D134: 277.8 | E134: 0 | F134: 0 | I134: 278.692 | O134: 1968.7896 | P134: 320.25 | Q134: 323.35
A135: 129 | D135: 277.8 | E135: 0 | F135: 0 | I135: =D135 + co2_offsetToMaunaLoaFromLawDome -> 278.692 | O135: 1968.8743 | P135: 321.31 | Q135: 323.27
A136: 130 | D136: 277.9 | E136: 0 | F136: 0 | I136: 278.792 | O136: 1968.9563 | P136: 322.84 | Q136: 323.67
A137: 131 | D137: 277.9 | E137: 0 | F137: 0 | I137: 278.792 | O137: 1969.0411 | P137: 324 | Q137: 323.99
A138: 132 | D138: 277.9 | E138: 0 | F138: 0 | I138: 278.792 | O138: 1969.126 | P138: 324.42 | Q138: 323.77
A139: 133 | D139: 278 | E139: 0 | F139: 0 | I139: 278.892 | O139: 1969.2027 | P139: 325.64 | Q139: 324.3
A140: 134 | D140: 278 | E140: 0 | F140: 0 | I140: 278.892 | O140: 1969.2877 | P140: 326.66 | Q140: 324.28
A141: 135 | D141: 278.1 | E141: 0 | F141: 0 | I141: 278.992 | O141: 1969.3699 | P141: 327.34 | Q141: 324.46
A142: 136 | D142: 278.1 | E142: 0 | F142: 0 | I142: 278.992 | O142: 1969.4548 | P142: 326.76 | Q142: 324.55
A143: 137 | D143: 278.2 | E143: 0 | F143: 0 | I143: 279.092 | O143: 1969.537 | P143: 325.88 | Q143: 325.13
A144: 138 | D144: 278.2 | E144: 0 | F144: 0 | I144: 279.092 | O144: 1969.6219 | P144: 323.67 | Q144: 324.93
A145: 139 | D145: 278.3 | E145: 0 | F145: 0 | I145: 279.192 | O145: 1969.7068 | P145: 322.38 | Q145: 325.36
A146: 140 | D146: 278.3 | E146: 0 | F146: 0 | I146: 279.192 | O146: 1969.789 | P146: 321.78 | Q146: 324.9
A147: 141 | D147: 278.4 | E147: 0 | F147: 0 | I147: 279.292 | O147: 1969.874 | P147: 322.85 | Q147: 324.83
A148: 142 | D148: 278.4 | E148: 0 | F148: 0 | I148: 279.292 | O148: 1969.9562 | P148: 324.11 | Q148: 324.95
A149: 143 | D149: 278.5 | E149: 0 | F149: 0 | I149: 279.392 | O149: 1970.0411 | P149: 325.03 | Q149: 325.02
A150: 144 | D150: 278.6 | E150: 0 | F150: 0 | I150: 279.492 | O150: 1970.126 | P150: 325.99 | Q150: 325.34
A151: 145 | D151: 278.6 | E151: 0 | F151: 0 | I151: 279.492 | O151: 1970.2027 | P151: 326.87 | Q151: 325.52
A152: 146 | D152: 278.7 | E152: 0 | F152: 0 | I152: 279.592 | O152: 1970.2877 | P152: 328.13 | Q152: 325.74
A153: 147 | D153: 278.8 | E153: 0 | F153: 0 | I153: 279.692 | O153: 1970.3699 | P153: 328.07 | Q153: 325.18
A154: 148 | D154: 278.8 | E154: 0 | F154: 0 | I154: 279.692 | O154: 1970.4548 | P154: 327.67 | Q154: 325.45
A155: 149 | D155: 278.9 | E155: 0 | F155: 0 | I155: 279.792 | O155: 1970.537 | P155: 326.34 | Q155: 325.59
A156: 150 | D156: 279 | E156: 0 | F156: 0 | I156: 279.892 | O156: 1970.6219 | P156: 324.69 | Q156: 325.95
A157: 151 | D157: 279 | E157: 0 | F157: 0 | I157: 279.892 | O157: 1970.7068 | P157: 323.1 | Q157: 326.08
A158: 152 | D158: 279.1 | E158: 0 | F158: 0 | I158: 279.992 | O158: 1970.789 | P158: 323.16 | Q158: 326.29
A159: 153 | D159: 279.2 | E159: 0 | F159: 0 | I159: 280.092 | O159: 1970.874 | P159: 323.98 | Q159: 325.96
A160: 154 | D160: 279.3 | E160: 0 | F160: 0 | I160: 280.192 | O160: 1970.9562 | P160: 325.13 | Q160: 325.97
A161: 155 | D161: 279.3 | E161: 0 | F161: 0 | I161: 280.192 | O161: 1971.0411 | P161: 326.17 | Q161: 326.16
A162: 156 | D162: 279.4 | E162: 0 | F162: 0 | I162: 280.292 | O162: 1971.126 | P162: 326.68 | Q162: 326.03
A163: 157 | D163: 279.5 | E163: 0 | F163: 0 | I163: 280.392 | O163: 1971.2027 | P163: 327.18 | Q163: 325.83
A164: 158 | D164: 279.5 | E164: 0 | F164: 0 | I164: 280.392 | O164: 1971.2877 | P164: 327.78 | Q164: 325.38
A165: 159 | D165: 279.6 | E165: 0 | F165: 0 | I165: 280.492 | O165: 1971.3699 | P165: 328.92 | Q165: 326.02
A166: 160 | D166: 279.7 | E166: 0 | F166: 0 | I166: 280.592 | O166: 1971.4548 | P166: 328.57 | Q166: 326.35
A167: 161 | D167: 279.7 | E167: 0 | F167: 0 | I167: 280.592 | O167: 1971.537 | P167: 327.34 | Q167: 326.58
A168: 162 | D168: 279.8 | E168: 0 | F168: 0 | I168: 280.692 | O168: 1971.6219 | P168: 325.46 | Q168: 326.73
A169: 163 | D169: 279.8 | E169: 0 | F169: 0 | I169: 280.692 | O169: 1971.7068 | P169: 323.36 | Q169: 326.36
A170: 164 | D170: 279.9 | E170: 0 | F170: 0 | I170: 280.792 | O170: 1971.789 | P170: 323.56 | Q170: 326.7
A171: 165 | D171: 279.9 | E171: 0 | F171: 0 | I171: 280.792 | O171: 1971.874 | P171: 324.8 | Q171: 326.78
A172: 166 | D172: 280 | E172: 0 | F172: 0 | I172: 280.892 | O172: 1971.9562 | P172: 326.01 | Q172: 326.85
A173: 167 | D173: 280 | E173: 0 | F173: 0 | I173: 280.892 | O173: 1972.041 | P173: 326.77 | Q173: 326.76
A174: 168 | D174: 280.1 | E174: 0 | F174: 0 | I174: 280.992 | O174: 1972.1257 | P174: 327.63 | Q174: 326.98
A175: 169 | D175: 280.1 | E175: 0 | F175: 0 | I175: 280.992 | O175: 1972.2049 | P175: 327.75 | Q175: 326.37
A176: 170 | D176: 280.2 | E176: 0 | F176: 0 | I176: 281.092 | O176: 1972.2896 | P176: 329.72 | Q176: 327.29
A177: 171 | D177: 280.2 | E177: 0 | F177: 0 | I177: 281.092 | O177: 1972.3716 | P177: 330.07 | Q177: 327.16
A178: 172 | D178: 280.2 | E178: 0 | F178: 0 | I178: 281.092 | O178: 1972.4563 | P178: 329.09 | Q178: 326.88
A179: 173 | D179: 280.3 | E179: 0 | F179: 0 | I179: 281.192 | O179: 1972.5383 | P179: 328.05 | Q179: 327.32
A180: 174 | D180: 280.3 | E180: 0 | F180: 0 | I180: 281.192 | O180: 1972.623 | P180: 326.32 | Q180: 327.62
A181: 175 | D181: 280.3 | E181: 0 | F181: 0 | I181: 281.192 | O181: 1972.7077 | P181: 324.93 | Q181: 327.95
A182: 176 | D182: 280.3 | E182: 0 | F182: 0 | I182: 281.192 | O182: 1972.7896 | P182: 325.06 | Q182: 328.21
A183: 177 | D183: 280.4 | E183: 0 | F183: 0 | I183: 281.292 | O183: 1972.8743 | P183: 326.5 | Q183: 328.49
A184: 178 | D184: 280.4 | E184: 0 | F184: 0 | I184: 281.292 | O184: 1972.9563 | P184: 327.55 | Q184: 328.39
A185: 179 | D185: 280.4 | E185: 0 | F185: 0 | I185: 281.292 | O185: 1973.0411 | P185: 328.54 | Q185: 328.53
A186: 180 | D186: 280.4 | E186: 0 | F186: 0 | I186: 281.292 | O186: 1973.126 | P186: 329.56 | Q186: 328.9
A187: 181 | D187: 280.4 | E187: 0 | F187: 0 | I187: 281.292 | O187: 1973.2027 | P187: 330.3 | Q187: 328.95
A188: 182 | D188: 280.4 | E188: 0 | F188: 0 | I188: 281.292 | O188: 1973.2877 | P188: 331.5 | Q188: 329.08
A189: 183 | D189: 280.4 | E189: 0 | F189: 0 | I189: 281.292 | O189: 1973.3699 | P189: 332.48 | Q189: 329.56
A190: 184 | D190: 280.5 | E190: 0 | F190: 0 | I190: 281.392 | O190: 1973.4548 | P190: 332.07 | Q190: 329.83
A191: 185 | D191: 280.5 | E191: 0 | F191: 0 | I191: 281.392 | O191: 1973.537 | P191: 330.87 | Q191: 330.11
A192: 186 | D192: 280.5 | E192: 0 | F192: 0 | I192: 281.392 | O192: 1973.6219 | P192: 329.31 | Q192: 330.59
A193: 187 | D193: 280.5 | E193: 0 | F193: 0 | I193: 281.392 | O193: 1973.7068 | P193: 327.51 | Q193: 330.53
A194: 188 | D194: 280.5 | E194: 0 | F194: 0 | I194: 281.392 | O194: 1973.789 | P194: 327.18 | Q194: 330.34
A195: 189 | D195: 280.5 | E195: 0 | F195: 0 | I195: 281.392 | O195: 1973.874 | P195: 328.16 | Q195: 330.16
A196: 190 | D196: 280.5 | E196: 0 | F196: 0 | I196: 281.392 | O196: 1973.9562 | P196: 328.64 | Q196: 329.48
A197: 191 | D197: 280.5 | E197: 0 | F197: 0 | I197: 281.392 | O197: 1974.0411 | P197: 329.35 | Q197: 329.34
A198: 192 | D198: 280.5 | E198: 0 | F198: 0 | I198: 281.392 | O198: 1974.126 | P198: 330.71 | Q198: 330.05
A199: 193 | D199: 280.5 | E199: 0 | F199: 0 | I199: =D199 + co2_offsetToMaunaLoaFromLawDome -> 281.392 | O199: 1974.2027 | P199: 331.48 | Q199: 330.12
A200: 194 | D200: 280.6 | E200: 0 | F200: 0 | I200: 281.492 | O200: 1974.2877 | P200: 332.65 | Q200: 330.22
A201: 195 | D201: 280.6 | E201: 0 | F201: 0 | I201: 281.492 | O201: 1974.3699 | P201: 333.09 | Q201: 330.15
... 1832 more rows

Sheet Humidity
A1: Specific Humidity
A3: Time | C3: Downloaded Data | T3: Calculations
C4: MidLatN (50N - 20N) | F4: MidLatN (20N - 20S) | I4: MidLatS (20S - 50S) | L4: Tropics + MidLatNs (50N - 50S) | T4: World, best data, 5 year smoothed on centers | AB4: World, best data, 5 year smoothed on centers, % change from 1948 | AJ4: World, best data, 5 year smoothed on centers, % change from 1973
A5: Year AD | B5: Decimal Year | C5: 300 mb | D5: 400 mb | E5: 500 mb | F5: 300 mb | G5: 400 mb | H5: 500 mb | I5: 300 mb | J5: 400 mb | K5: 500 mb | L5: 300 mb | M5: 400 mb | N5: 500 mb | O5: 600 mb | P5: 700 mb | Q5: 850 mb | R5: 925 mb | S5: 1000 mb | T5: 300 mb Suspect. | U5: 400 mb | V5: 500 mb | W5: 600 mb | X5: 700 mb | Y5: 850 mb | Z5: 925 mb | AA5: 1000 mb | AB5: 300 mb Suspect. | AC5: 400 mb | AD5: 500 mb | AE5: 600 mb | AF5: 700 mb | AG5: 850 mb | AH5: 925 mb | AI5: 1000 mb | AJ5: 300 mb Suspect. | AK5: 400 mb | AL5: 500 mb | AM5: 600 mb | AN5: 700 mb | AO5: 850 mb | AP5: 925 mb | AQ5: 1000 mb
A6: Units --> | C6: g/kg | D6: g/kg | E6: g/kg | F6: g/kg | G6: g/kg | H6: g/kg | I6: g/kg | J6: g/kg | K6: g/kg | L6: g/kg | M6: g/kg | N6: g/kg | O6: g/kg | P6: g/kg | Q6: g/kg | R6: g/kg | S6: g/kg | T6: g/kg | U6: g/kg | V6: g/kg | W6: g/kg | X6: g/kg | Y6: g/kg | Z6: g/kg | AA6: g/kg | AB6: g/kg | AC6: g/kg | AD6: g/kg | AE6: g/kg | AF6: g/kg | AG6: g/kg | AH6: g/kg | AI6: g/kg | AJ6: g/kg | AK6: g/kg | AL6: g/kg | AM6: g/kg | AN6: g/kg | AO6: g/kg | AP6: g/kg | AQ6: g/kg
A7: 1948 | B7: =A7 + 0.5 -> 1948.5 | C7: 0.276 | D7: 0.655 | E7: 1.243 | F7: 0.469 | G7: 1.021 | H7: 1.936 | I7: 0.196 | J7: 0.492 | K7: 0.946 | L7: 0.338 | M7: 0.771 | N7: 1.471 | O7: 2.507 | P7: 3.852 | Q7: 6.718 | R7: 9.107 | S7: 11.921 | T7: =AVERAGE(F7:F9) -> 0.469 | U7: =AVERAGE(M7:M9) -> 0.7633333333 | V7: =AVERAGE(N7:N9) -> 1.454666667 | W7: 2.488333333 | X7: 3.849 | Y7: 6.758333333 | Z7: 9.179333333 | AA7: 12.00133333 | AB7: =100 * (T7 - T$7) / T$7 -> 0 | AC7: =100 * (U7 - U$7) / U$7 -> 0 | AD7: 0 | AE7: 0 | AF7: 0 | AG7: 0 | AH7: 0 | AI7: 0
A8: 1949 | B8: =A8 + 0.5 -> 1949.5 | C8: 0.273 | D8: 0.647 | E8: 1.218 | F8: 0.472 | G8: 1.015 | H8: 1.914 | I8: 0.196 | J8: 0.488 | K8: 0.945 | L8: 0.338 | M8: 0.764 | N8: 1.454 | O8: 2.47 | P8: 3.827 | Q8: 6.755 | R8: 9.189 | S8: 12.009 | T8: =AVERAGE(F7:F10) -> 0.47 | U8: =AVERAGE(M7:M10) -> 0.76075 | V8: =AVERAGE(N7:N10) -> 1.453 | W8: 2.49325 | X8: 3.85775 | Y8: 6.78775 | Z8: 9.21425 | AA8: 12.05 | AB8: =100 * (T8 - T$7) / T$7 -> 0.2132196162 | AC8: =100 * (U8 - U$7) / U$7 -> -0.3384279476 | AD8: =100 * (V8 - V$7) / V$7 -> -0.1145737855 | AE8: =100 * (W8 - W$7) / W$7 -> 0.1975887475 | AF8: =100 * (X8 - X$7) / X$7 -> 0.2273317745 | AG8: =100 * (Y8 - Y$7) / Y$7 -> 0.4352651048 | AH8: =100 * (Z8 - Z$7) / Z$7 -> 0.3803834701 | AI8: =100 * (AA8 - AA$7) / AA$7 -> 0.4055104988
A9: 1950 | B9: 1950.5 | C9: 0.271 | D9: 0.641 | E9: 1.231 | F9: 0.466 | G9: 0.993 | H9: 1.868 | I9: 0.203 | J9: 0.5 | K9: 0.963 | L9: 0.336 | M9: 0.755 | N9: 1.439 | O9: 2.488 | P9: 3.868 | Q9: 6.802 | R9: 9.242 | S9: 12.074 | T9: =AVERAGE(F7:F11) -> 0.4732 | U9: =AVERAGE(M7:M11) -> 0.7636 | V9: =AVERAGE(N7:N11) -> 1.457 | W9: 2.4998 | X9: 3.8686 | Y9: 6.8172 | Z9: 9.2526 | AA9: 12.0976 | AB9: 0.8955223881 | AC9: 0.03493449782 | AD9: 0.1604032997 | AE9: 0.4608171467 | AF9: 0.5092231749 | AG9: 0.8710234279 | AH9: 0.7981698017 | AI9: 0.8021330963
A10: 1951 | B10: 1951.5 | C10: 0.276 | D10: 0.643 | E10: 1.238 | F10: 0.473 | G10: 0.988 | H10: 1.879 | I10: 0.201 | J10: 0.497 | K10: 0.962 | L10: 0.34 | M10: 0.753 | N10: 1.448 | O10: 2.508 | P10: 3.884 | Q10: 6.876 | R10: 9.319 | S10: 12.196 | T10: =AVERAGE(F8:F12) -> 0.4762 | U10: =AVERAGE(M8:M12) -> 0.7624 | V10: =AVERAGE(N8:N12) -> 1.455 | W10: =AVERAGE(O8:O12) -> 2.4996 | X10: =AVERAGE(P8:P12) -> 3.8686 | Y10: =AVERAGE(Q8:Q12) -> 6.8488 | Z10: =AVERAGE(R8:R12) -> 9.2982 | AA10: =AVERAGE(S8:S12) -> 12.1632 | AB10: 1.535181237 | AC10: -0.1222707424 | AD10: 0.0229147571 | AE10: 0.4527796383 | AF10: 0.5092231749 | AG10: 1.338594328 | AH10: 1.294937904 | AI10: 1.348739029
A11: 1952 | B11: 1952.5 | C11: 0.282 | D11: 0.658 | E11: 1.249 | F11: 0.486 | G11: 1.015 | H11: 1.905 | I11: 0.212 | J11: 0.521 | K11: 1.005 | L11: 0.351 | M11: 0.775 | N11: 1.473 | O11: 2.526 | P11: 3.912 | Q11: 6.935 | R11: 9.406 | S11: 12.288 | T11: 0.4742 | U11: 0.7592 | V11: 1.4516 | W11: 2.4974 | X11: 3.8626 | Y11: 6.8494 | Z11: 9.303 | AA11: 12.1776 | AB11: 1.108742004 | AC11: -0.5414847162 | AD11: -0.2108157654 | AE11: 0.3643670462 | AF11: 0.3533385295 | AG11: 1.347472256 | AH11: 1.347229283 | AI11: 1.468725697
A12: 1953 | B12: 1953.5 | C12: 0.276 | D12: 0.635 | E12: 1.214 | F12: 0.484 | G12: 1.008 | H12: 1.903 | I12: 0.209 | J12: 0.514 | K12: 0.994 | L12: 0.347 | M12: 0.765 | N12: 1.461 | O12: 2.506 | P12: 3.852 | Q12: 6.876 | R12: 9.335 | S12: 12.249 | T12: 0.4722 | U12: 0.7548 | V12: 1.4462 | W12: 2.4856 | X12: 3.8432 | Y12: 6.8378 | Z12: 9.295 | AA12: 12.174 | AB12: 0.6823027719 | AC12: -1.11790393 | AD12: -0.5820348304 | AE12: -0.1098459478 | AF12: -0.1506884905 | AG12: 1.175832306 | AH12: 1.260076985 | AI12: 1.43872903
A13: 1954 | B13: =A13 + 0.5 -> 1954.5 | C13: 0.268 | D13: 0.63 | E13: 1.197 | F13: 0.462 | G13: 0.982 | H13: 1.879 | I13: 0.202 | J13: 0.498 | K13: 0.963 | L13: 0.334 | M13: 0.748 | N13: 1.437 | O13: 2.459 | P13: 3.797 | Q13: 6.758 | R13: 9.213 | S13: 12.081 | T13: 0.4674 | U13: 0.748 | V13: 1.4346 | W13: 2.4606 | X13: 3.8094 | Y13: 6.8004 | Z13: 9.2622 | AA13: 12.1376 | AB13: -0.3411513859 | AC13: -2.008733624 | AD13: -1.379468378 | AE13: -1.114534494 | AF13: -1.028838659 | AG13: 0.6224414303 | AH13: 0.9027525601 | AI13: 1.135429397
A14: 1955 | B14: =A14 + 0.5 -> 1955.5 | C14: 0.265 | D14: 0.612 | E14: 1.179 | F14: 0.456 | G14: 0.964 | H14: 1.839 | I14: 0.197 | J14: 0.487 | K14: 0.953 | L14: 0.329 | M14: 0.733 | N14: 1.412 | O14: 2.429 | P14: 3.771 | Q14: 6.744 | R14: 9.202 | S14: 12.056 | T14: 0.4674 | U14: 0.7436 | V14: 1.4302 | W14: 2.4506 | X14: 3.7878 | Y14: 6.7848 | Z14: 9.2596 | AA14: 12.1344 | AB14: -0.3411513859 | AC14: -2.585152838 | AD14: -1.681943171 | AE14: -1.516409913 | AF14: -1.590023383 | AG14: 0.3916152898 | AH14: 0.874428063 | AI14: 1.108765693
A15: 1956 | B15: 1956.5 | C15: 0.26 | D15: 0.604 | E15: 1.17 | F15: 0.449 | G15: 0.939 | H15: 1.794 | I15: 0.198 | J15: 0.49 | K15: 0.961 | L15: 0.325 | M15: 0.719 | N15: 1.39 | O15: 2.383 | P15: 3.715 | Q15: 6.689 | R15: 9.155 | S15: 12.014 | T15: 0.47 | U15: 0.7448 | V15: 1.4352 | W15: 2.453 | X15: 3.7914 | Y15: 6.8078 | Z15: 9.3004 | AA15: 12.1714 | AB15: 0.2132196162 | AC15: -2.427947598 | AD15: -1.338221815 | AE15: -1.419959812 | AF15: -1.496492595 | AG15: 0.7319358816 | AH15: 1.318904786 | AI15: 1.417064771
A16: 1957 | B16: 1957.5 | C16: 0.274 | D16: 0.623 | E16: 1.2 | F16: 0.486 | G16: 0.998 | H16: 1.9 | I16: 0.205 | J16: 0.498 | K16: 0.978 | L16: 0.347 | M16: 0.753 | N16: 1.451 | O16: 2.476 | P16: 3.804 | Q16: 6.857 | R16: 9.393 | S16: 12.272 | T16: 0.4746 | U16: 0.7462 | V16: 1.4418 | W16: 2.4594 | X16: 3.7976 | Y16: 6.8396 | Z16: 9.3512 | AA16: 12.2278 | AB16: 1.194029851 | AC16: -2.244541485 | AD16: -0.8845096242 | AE16: -1.162759545 | AF16: -1.335411795 | AG16: 1.202466091 | AH16: 1.872321882 | AI16: 1.887012554
A17: 1958 | B17: 1958.5 | C17: 0.285 | D17: 0.633 | E17: 1.217 | F17: 0.497 | G17: 1.018 | H17: 1.945 | I17: 0.222 | J17: 0.525 | K17: 1.025 | L17: 0.359 | M17: 0.771 | N17: 1.486 | O17: 2.518 | P17: 3.87 | Q17: 6.991 | R17: 9.539 | S17: 12.434 | T17: 0.4796 | U17: 0.7482 | V17: 1.449 | W17: 2.4616 | X17: 3.7954 | Y17: 6.8576 | Z17: 9.3864 | AA17: 12.2652 | AB17: 2.260127932 | AC17: -1.982532751 | AD17: -0.3895508708 | AE17: -1.074346952 | AF17: -1.392569499 | AG17: 1.468803946 | AH17: 2.255791997 | AI17: 2.198644595
A18: 1959 | B18: 1959.5 | C18: 0.275 | D18: 0.612 | E18: 1.192 | F18: 0.485 | G18: 1 | H18: 1.936 | I18: 0.215 | J18: 0.515 | K18: 1.002 | L18: 0.349 | M18: 0.755 | N18: 1.47 | O18: 2.491 | P18: 3.828 | Q18: 6.917 | R18: 9.467 | S18: 12.363 | T18: 0.4858 | U18: 0.7524 | V18: 1.4616 | W18: 2.4712 | X18: 3.804 | Y18: 6.8818 | Z18: 9.4286 | AA18: 12.31 | AB18: 3.582089552 | AC18: -1.43231441 | AD18: 0.4766269478 | AE18: -0.6885465506 | AF18: -1.16913484 | AG18: 1.826880395 | AH18: 2.715520372 | AI18: 2.571936452
A19: 1960 | B19: 1960.5 | C19: 0.271 | D19: 0.606 | E19: 1.176 | F19: 0.481 | G19: 0.989 | H19: 1.922 | I19: 0.203 | J19: 0.49 | K19: 0.958 | L19: 0.343 | M19: 0.743 | N19: 1.448 | O19: 2.44 | P19: 3.76 | Q19: 6.834 | R19: 9.378 | S19: 12.243 | T19: 0.482 | U19: 0.7452 | V19: 1.4542 | W19: 2.4508 | X19: 3.782 | Y19: 6.8626 | Z19: 9.4084 | AA19: 12.2898 | AB19: 2.771855011 | AC19: -2.375545852 | AD19: -0.03208065995 | AE19: -1.508372405 | AF19: -1.740711873 | AG19: 1.542786683 | AH19: 2.495460818 | AI19: 2.40362182
A20: 1961 | B20: 1961.5 | C20: 0.275 | D20: 0.615 | E20: 1.193 | F20: 0.48 | G20: 0.985 | H20: 1.925 | I20: 0.201 | J20: 0.483 | K20: 0.954 | L20: 0.343 | M20: 0.74 | N20: 1.453 | O20: 2.431 | P20: 3.758 | Q20: 6.81 | R20: 9.366 | S20: 12.238 | T20: 0.4768 | U20: 0.7364 | V20: 1.4426 | W20: 2.4216 | X20: 3.7454 | Y20: 6.8222 | Z20: 9.3748 | AA20: 12.2472 | AB20: 1.663113006 | AC20: -3.528384279 | AD20: -0.8295142071 | AE20: -2.681848627 | AF20: -2.69160821 | AG20: 0.9450061652 | AH20: 2.129421163 | AI20: 2.04866126
A21: 1962 | B21: 1962.5 | C21: 0.262 | D21: 0.581 | E21: 1.142 | F21: 0.467 | G21: 0.951 | H21: 1.867 | I21: 0.202 | J21: 0.486 | K21: 0.956 | L21: 0.335 | M21: 0.717 | N21: 1.414 | O21: 2.374 | P21: 3.694 | Q21: 6.761 | R21: 9.292 | S21: 12.171 | T21: 0.47 | U21: 0.7294 | V21: 1.4302 | W21: 2.3894 | X21: 3.7172 | Y21: 6.7858 | Z21: 9.3198 | AA21: 12.1918 | AB21: 0.2132196162 | AC21: -4.445414847 | AD21: -1.681943171 | AE21: -3.975887475 | AF21: -3.424266043 | AG21: 0.4064118372 | AH21: 1.53024911 | AI21: 1.587045884
A22: 1963 | B22: 1963.5 | C22: 0.267 | D22: 0.591 | E22: 1.153 | F22: 0.471 | G22: 0.972 | H22: 1.899 | I22: 0.2 | J22: 0.481 | K22: 0.947 | L22: 0.337 | M22: 0.727 | N22: 1.428 | O22: 2.372 | P22: 3.687 | Q22: 6.789 | R22: 9.371 | S22: 12.221 | T22: 0.4608 | U22: 0.718 | V22: 1.4122 | W22: 2.3576 | X22: 3.693 | Y22: 6.762 | Z22: 9.2768 | AA22: 12.155 | AB22: -1.748400853 | AC22: -5.938864629 | AD22: -2.919340055 | AE22: -5.253851306 | AF22: -4.053000779 | AG22: 0.0542540074 | AH22: 1.061805505 | AI22: 1.280413287
A23: 1964 | B23: 1964.5 | C23: 0.258 | D23: 0.585 | E23: 1.135 | F23: 0.451 | G23: 0.966 | H23: 1.884 | I23: 0.195 | J23: 0.47 | K23: 0.915 | L23: 0.324 | M23: 0.72 | N23: 1.408 | O23: 2.33 | P23: 3.687 | Q23: 6.735 | R23: 9.192 | S23: 12.086 | T23: 0.4556 | U23: 0.7118 | V23: 1.4028 | W23: 2.3376 | X23: 3.6824 | Y23: 6.7674 | Z23: 9.2692 | AA23: 12.156 | AB23: -2.857142857 | AC23: -6.751091703 | AD23: -3.565536205 | AE23: -6.057602143 | AF23: -4.328396986 | AG23: 0.1341553637 | AH23: 0.9790108214 | AI23: 1.288745695
A24: 1965 | B24: 1965.5 | C24: 0.248 | D24: 0.56 | E24: 1.097 | F24: 0.435 | G24: 0.916 | H24: 1.807 | I24: 0.188 | J24: 0.452 | K24: 0.892 | L24: 0.313 | M24: 0.686 | N24: 1.358 | O24: 2.281 | P24: 3.639 | Q24: 6.715 | R24: 9.163 | S24: 12.059 | T24: 0.4508 | U24: 0.7092 | V24: 1.4004 | W24: 2.3274 | X24: 3.6798 | Y24: 6.7624 | Z24: 9.2466 | AA24: 12.143 | AB24: -3.880597015 | AC24: -7.091703057 | AD24: -3.730522456 | AE24: -6.46751507 | AF24: -4.395946999 | AG24: 0.06017262639 | AH24: 0.7328055777 | AI24: 1.180424397
A25: 1966 | B25: 1966.5 | C25: 0.264 | D25: 0.588 | E25: 1.149 | F25: 0.454 | G25: 0.946 | H25: 1.879 | I25: 0.195 | J25: 0.459 | K25: 0.896 | L25: 0.327 | M25: 0.709 | N25: 1.406 | O25: 2.331 | P25: 3.705 | Q25: 6.837 | R25: 9.328 | S25: 12.243 | T25: 0.4446 | U25: 0.7022 | V25: 1.3886 | W25: 2.3096 | X25: 3.6704 | Y25: 6.7484 | Z25: 9.2046 | AA25: 12.1106 | AB25: -5.202558635 | AC25: -8.008733624 | AD25: -4.541704858 | AE25: -7.182853315 | AF25: -4.640166277 | AG25: -0.1469790382 | AH25: 0.2752560099 | AI25: 0.910454394
A26: 1967 | B26: 1967.5 | C26: 0.254 | D26: 0.572 | E26: 1.124 | F26: 0.443 | G26: 0.934 | H26: 1.858 | I26: 0.199 | J26: 0.476 | K26: 0.944 | L26: 0.321 | M26: 0.704 | N26: 1.402 | O26: 2.323 | P26: 3.681 | Q26: 6.736 | R26: 9.179 | S26: 12.106 | T26: 0.4478 | U26: 0.7036 | V26: 1.3964 | W26: 2.3228 | X26: 3.6856 | Y26: 6.7782 | Z26: 9.2418 | AA26: 12.157 | AB26: -4.520255864 | AC26: -7.825327511 | AD26: -4.005499542 | AE26: -6.652377763 | AF26: -4.245258509 | AG26: 0.2939580764 | AH26: 0.6805141986 | AI26: 1.297078102
A27: 1968 | B27: 1968.5 | C27: 0.246 | D27: 0.561 | E27: 1.093 | F27: 0.44 | G27: 0.914 | H27: 1.805 | I27: 0.196 | J27: 0.471 | K27: 0.932 | L27: 0.317 | M27: 0.692 | N27: 1.369 | O27: 2.283 | P27: 3.64 | Q27: 6.719 | R27: 9.161 | S27: 12.059 | T27: 0.4534 | U27: 0.7106 | V27: 1.4126 | W27: 2.3436 | X27: 3.7082 | Y27: 6.7986 | Z27: 9.2622 | AA27: 12.1824 | AB27: -3.326226013 | AC27: -6.908296943 | AD27: -2.891842346 | AE27: -5.816476892 | AF27: -3.658093011 | AG27: 0.5958076449 | AH27: 0.9027525601 | AI27: 1.508721253
A28: 1969 | B28: 1969.5 | C28: 0.261 | D28: 0.59 | E28: 1.146 | F28: 0.467 | G28: 0.964 | H28: 1.929 | I28: 0.208 | J28: 0.49 | K28: 0.963 | L28: 0.336 | M28: 0.727 | N28: 1.447 | O28: 2.396 | P28: 3.763 | Q28: 6.884 | R28: 9.378 | S28: 12.318 | T28: 0.4472 | U28: 0.7052 | V28: 1.4054 | W28: 2.336 | X28: 3.6998 | Y28: 6.7656 | Z28: 9.2084 | AA28: 12.1268 | AB28: -4.648187633 | AC28: -7.615720524 | AD28: -3.3868011 | AE28: -6.12190221 | AF28: -3.876331515 | AG28: 0.1075215783 | AH28: 0.3166533517 | AI28: 1.045439396
A29: 1970 | B29: 1970.5 | C29: 0.253 | D29: 0.576 | E29: 1.133 | F29: 0.463 | G29: 0.962 | H29: 1.922 | I29: 0.207 | J29: 0.484 | K29: 0.958 | L29: 0.332 | M29: 0.721 | N29: 1.439 | O29: 2.385 | P29: 3.752 | Q29: 6.817 | R29: 9.265 | S29: 12.186 | T29: 0.4484 | U29: 0.7048 | V29: 1.4072 | W29: 2.3422 | X29: 3.7068 | Y29: 6.7766 | Z29: 9.2186 | AA29: 12.142 | AB29: -4.392324094 | AC29: -7.668122271 | AD29: -3.263061412 | AE29: -5.872739451 | AF29: -3.694466095 | AG29: 0.2702836005 | AH29: 0.4277725325 | AI29: 1.17209199
A30: 1971 | B30: 1971.5 | C30: 0.239 | D30: 0.554 | E30: 1.104 | F30: 0.423 | G30: 0.898 | H30: 1.798 | I30: 0.196 | J30: 0.47 | K30: 0.942 | L30: 0.307 | M30: 0.682 | N30: 1.37 | O30: 2.293 | P30: 3.663 | Q30: 6.672 | R30: 9.059 | S30: 11.965 | T30: 0.45 | U30: 0.7096 | V30: 1.4232 | W30: 2.3708 | X30: 3.7366 | Y30: 6.8076 | Z30: 9.2542 | AA30: 12.1872 | AB30: -4.051172708 | AC30: -7.03930131 | AD30: -2.163153071 | AE30: -4.723375754 | AF30: -2.920239023 | AG30: 0.7289765721 | AH30: 0.8156002615 | AI30: 1.548716809
A31: 1972 | B31: 1972.5 | C31: 0.247 | D31: 0.568 | E31: 1.112 | F31: 0.449 | G31: 0.928 | H31: 1.866 | I31: 0.201 | J31: 0.481 | K31: 0.973 | L31: 0.322 | M31: 0.702 | N31: 1.411 | O31: 2.354 | P31: 3.716 | Q31: 6.791 | R31: 9.23 | S31: 12.182 | T31: 0.4392 | U31: 0.6996 | V31: 1.41 | W31: 2.3556 | X31: 3.7172 | Y31: 6.7776 | Z31: 9.2086 | AA31: 12.137 | AB31: -6.353944563 | AC31: -8.349344978 | AD31: -3.070577452 | AE31: -5.33422639 | AF31: -3.424266043 | AG31: 0.285080148 | AH31: 0.3188321592 | AI31: 1.130429952
A32: 1973 | B32: 1973.5 | C32: 0.248 | D32: 0.566 | E32: 1.122 | F32: 0.448 | G32: 0.944 | H32: 1.927 | I32: 0.217 | J32: 0.508 | K32: 1.002 | L32: 0.326 | M32: 0.716 | N32: 1.449 | O32: 2.426 | P32: 3.789 | Q32: 6.874 | R32: 9.339 | S32: 12.285 | T32: 0.4314 | U32: 0.691 | V32: 1.394 | W32: 2.3412 | X32: 3.7066 | Y32: 6.7654 | Z32: 9.1874 | AA32: 12.1136 | AB32: -8.017057569 | AC32: -9.475982533 | AD32: -4.170485793 | AE32: -5.912926993 | AF32: -3.69966225 | AG32: 0.1045622688 | AH32: 0.0878785678 | AI32: 0.9354516165 | AJ32: =100 * (T32 - T$32) / T$32 -> 0 | AK32: =100 * (U32 - U$32) / U$32 -> 0 | AL32: 0 | AM32: 0 | AN32: 0 | AO32: 0 | AP32: 0 | AQ32: 0
A33: 1974 | B33: 1974.5 | C33: 0.235 | D33: 0.548 | E33: 1.098 | F33: 0.413 | G33: 0.879 | H33: 1.81 | I33: 0.203 | J33: 0.488 | K33: 0.966 | L33: 0.304 | M33: 0.677 | N33: 1.381 | O33: 2.32 | P33: 3.666 | Q33: 6.734 | R33: 9.15 | S33: 12.067 | T33: 0.4316 | U33: 0.691 | V33: 1.3896 | W33: 2.3472 | X33: 3.7192 | Y33: 6.7828 | Z33: 9.2014 | AA33: 12.1366 | AB33: -7.974413646 | AC33: -9.475982533 | AD33: -4.472960587 | AE33: -5.671801741 | AF33: -3.372304495 | AG33: 0.3620221948 | AH33: 0.2403950904 | AI33: 1.127096989 | AJ33: =100 * (T33 - T$32) / T$32 -> 0.04636068614 | AK33: =100 * (U33 - U$32) / U$32 -> 0 | AL33: =100 * (V33 - V$32) / V$32 -> -0.3156384505 | AM33: =100 * (W33 - W$32) / W$32 -> 0.2562788314 | AN33: =100 * (X33 - X$32) / X$32 -> 0.3399341715 | AO33: =100 * (Y33 - Y$32) / Y$32 -> 0.2571910013 | AP33: =100 * (Z33 - Z$32) / Z$32 -> 0.152382611 | AQ33: =100 * (AA33 - AA$32) / AA$32 -> 0.1898692379
A34: 1975 | B34: 1975.5 | C34: 0.241 | D34: 0.55 | E34: 1.09 | F34: 0.424 | G34: 0.88 | H34: 1.77 | I34: 0.205 | J34: 0.483 | K34: 0.955 | L34: 0.311 | M34: 0.678 | N34: 1.359 | O34: 2.313 | P34: 3.699 | Q34: 6.756 | R34: 9.159 | S34: 12.069 | T34: 0.429 | U34: 0.6908 | V34: 1.3876 | W34: 2.349 | X34: 3.731 | Y34: 6.8024 | Z34: 9.2184 | AA34: 12.16 | AB34: -8.528784648 | AC34: -9.502183406 | AD34: -4.610449129 | AE34: -5.599464166 | AF34: -3.065731359 | AG34: 0.6520345253 | AH34: 0.425593725 | AI34: 1.322075325 | AJ34: -0.5563282337 | AK34: -0.02894356006 | AL34: -0.4591104735 | AM34: 0.3331624808 | AN34: 0.658285221 | AO34: 0.546900405 | AP34: 0.3374186386 | AQ34: 0.3830405495
A35: 1976 | B35: 1976.5 | C35: 0.24 | D35: 0.555 | E35: 1.095 | F35: 0.424 | G35: 0.895 | H35: 1.757 | I35: 0.2 | J35: 0.47 | K35: 0.931 | L35: 0.309 | M35: 0.682 | N35: 1.348 | O35: 2.323 | P35: 3.726 | Q35: 6.759 | R35: 9.129 | S35: 12.08 | T35: 0.428 | U35: 0.6884 | V35: 1.3746 | W35: 2.3354 | X35: 3.728 | Y35: 6.8008 | Z35: 9.203 | AA35: 12.1536 | AB35: -8.742004264 | AC35: -9.816593886 | AD35: -5.504124656 | AE35: -6.146014735 | AF35: -3.143673681 | AG35: 0.6283600493 | AH35: 0.2578255501 | AI35: 1.268747917 | AJ35: -0.7881316643 | AK35: -0.3762662808 | AL35: -1.391678623 | AM35: -0.2477362037 | AN35: 0.5773485135 | AO35: 0.5232506578 | AP35: 0.1697977665 | AQ35: 0.3302073702
A36: 1977 | B36: 1977.5 | C36: 0.251 | D36: 0.571 | E36: 1.119 | F36: 0.436 | G36: 0.915 | H36: 1.843 | I36: 0.213 | J36: 0.493 | K36: 0.961 | L36: 0.321 | M36: 0.701 | N36: 1.401 | O36: 2.363 | P36: 3.775 | Q36: 6.889 | R36: 9.315 | S36: 12.299 | T36: 0.4422 | U36: 0.6942 | V36: 1.3794 | W36: 2.3426 | X36: 3.7476 | Y36: 6.8254 | Z36: 9.2388 | AA36: 12.2252 | AB36: -5.714285714 | AC36: -9.056768559 | AD36: -5.174152154 | AE36: -5.856664434 | AF36: -2.634450507 | AG36: 0.9923551171 | AH36: 0.6478320866 | AI36: 1.865348295 | AJ36: 2.503477051 | AK36: 0.4630969609 | AL36: -1.047345768 | AM36: 0.05979839399 | AN36: 1.106135002 | AO36: 0.8868655216 | AP36: 0.5594618717 | AQ36: 0.9212785629
A37: 1978 | B37: 1978.5 | C37: 0.253 | D37: 0.572 | E37: 1.119 | F37: 0.443 | G37: 0.924 | H37: 1.812 | I37: 0.21 | J37: 0.487 | K37: 0.953 | L37: 0.323 | M37: 0.704 | N37: 1.384 | O37: 2.358 | P37: 3.774 | Q37: 6.866 | R37: 9.262 | S37: 12.253 | T37: 0.4564 | U37: 0.7036 | V37: 1.387 | W37: 2.3468 | X37: 3.7624 | Y37: 6.845 | Z37: 9.2706 | AA37: 12.2876 | AB37: -2.686567164 | AC37: -7.825327511 | AD37: -4.651695692 | AE37: -5.687876758 | AF37: -2.249935048 | AG37: 1.282367448 | AH37: 0.9942624737 | AI37: 2.385290523 | AJ37: 5.795085767 | AK37: 1.823444284 | AL37: -0.5021520803 | AM37: 0.2391935759 | AN37: 1.505422759 | AO37: 1.176574925 | AP37: 0.905588088 | AQ37: 1.43640206
A38: 1979 | B38: 1979.5 | C38: 0.254 | D38: 0.568 | E38: 1.143 | F38: 0.484 | G38: 0.924 | H38: 1.818 | I38: 0.219 | J38: 0.501 | K38: 1.001 | L38: 0.344 | M38: 0.706 | N38: 1.405 | O38: 2.356 | P38: 3.764 | Q38: 6.857 | R38: 9.329 | S38: 12.425 | T38: 0.4684 | U38: 0.7086 | V38: 1.3912 | W38: 2.3398 | X38: 3.7616 | Y38: 6.854 | Z38: 9.2966 | AA38: 12.3368 | AB38: -0.1279317697 | AC38: -7.170305677 | AD38: -4.362969753 | AE38: -5.969189551 | AF38: -2.270719667 | AG38: 1.415536375 | AH38: 1.277507444 | AI38: 2.795244973 | AJ38: 8.576726936 | AK38: 2.547033285 | AL38: -0.2008608321 | AM38: -0.05979839399 | AN38: 1.483839637 | AO38: 1.309604754 | AP38: 1.188584366 | AQ38: 1.842557126
A39: 1980 | B39: 1980.5 | C39: 0.259 | D39: 0.572 | E39: 1.115 | F39: 0.495 | G39: 0.966 | H39: 1.839 | I39: 0.222 | J39: 0.494 | K39: 0.958 | L39: 0.352 | M39: 0.725 | N39: 1.397 | O39: 2.334 | P39: 3.773 | Q39: 6.854 | R39: 9.318 | S39: 12.381 | T39: 0.4792 | U39: 0.7088 | V39: 1.3818 | W39: 2.3204 | X39: 3.7418 | Y39: 6.824 | Z39: 9.28 | AA39: 12.3426 | AB39: 2.174840085 | AC39: -7.144104803 | AD39: -5.009165903 | AE39: -6.748827863 | AF39: -2.785138997 | AG39: 0.9716399507 | AH39: 1.096666425 | AI39: 2.843572936 | AJ39: 11.08020399 | AK39: 2.575976845 | AL39: -0.87517934 | AM39: -0.8884332821 | AN39: 0.9496573679 | AO39: 0.8661719928 | AP39: 1.007902127 | AQ39: 1.890437195
A40: 1981 | B40: 1981.5 | C40: 0.26 | D40: 0.572 | E40: 1.119 | F40: 0.484 | G40: 0.936 | H40: 1.789 | I40: 0.212 | J40: 0.477 | K40: 0.929 | L40: 0.344 | M40: 0.707 | N40: 1.369 | O40: 2.288 | P40: 3.722 | Q40: 6.804 | R40: 9.259 | S40: 12.326 | T40: 0.4898 | U40: 0.7114 | V40: 1.3822 | W40: 2.3104 | X40: 3.733 | Y40: 6.8214 | Z40: 9.295 | AA40: 12.3786 | AB40: 4.434968017 | AC40: -6.80349345 | AD40: -4.981668194 | AE40: -7.150703282 | AF40: -3.01376981 | AG40: 0.9331689273 | AH40: 1.260076985 | AI40: 3.143539607 | AJ40: 13.53732035 | AK40: 2.952243126 | AL40: -0.8464849354 | AM40: -1.315564668 | AN40: 0.712243026 | AO40: 0.8277411535 | AP40: 1.17116921 | AQ40: 2.187623828
A41: 1982 | B41: 1982.5 | C41: 0.259 | D41: 0.571 | E41: 1.109 | F41: 0.49 | G41: 0.922 | H41: 1.747 | I41: 0.215 | J41: 0.487 | K41: 0.956 | L41: 0.347 | M41: 0.702 | N41: 1.354 | O41: 2.266 | P41: 3.676 | Q41: 6.739 | R41: 9.232 | S41: 12.328 | T41: 0.485 | U41: 0.7062 | V41: 1.3728 | W41: 2.2994 | X41: 3.7182 | Y41: 6.7968 | Z41: 9.2688 | AA41: 12.346 | AB41: 3.411513859 | AC41: -7.484716157 | AD41: -5.627864345 | AE41: -7.592766242 | AF41: -3.398285269 | AG41: 0.5691738594 | AH41: 0.9746532065 | AI41: 2.871903122 | AJ41: 12.42466389 | AK41: 2.199710564 | AL41: -1.520803443 | AM41: -1.785409192 | AN41: 0.312955269 | AO41: 0.4641262897 | AP41: 0.8859960381 | AQ41: 1.918504821
A42: 1983 | B42: 1983.5 | C42: 0.258 | D42: 0.563 | E42: 1.107 | F42: 0.496 | G42: 0.948 | H42: 1.813 | I42: 0.231 | J42: 0.504 | K42: 0.966 | L42: 0.354 | M42: 0.717 | N42: 1.386 | O42: 2.308 | P42: 3.73 | Q42: 6.853 | R42: 9.337 | S42: 12.433 | T42: 0.4774 | U42: 0.6992 | V42: 1.3668 | W42: 2.296 | X42: 3.706 | Y42: 6.77 | Z42: 9.2372 | AA42: 12.3172 | AB42: 1.791044776 | AC42: -8.401746725 | AD42: -6.040329973 | AE42: -7.729403885 | AF42: -3.715250714 | AG42: 0.1726263872 | AH42: 0.6304016268 | AI42: 2.631929786 | AJ42: 10.66295781 | AK42: 1.186685962 | AL42: -1.951219512 | AM42: -1.930633863 | AN42: -0.0161873415 | AO42: 0.06799302332 | AP42: 0.5420467162 | AQ42: 1.680755514
A43: 1984 | B43: 1984.5 | C43: 0.246 | D43: 0.548 | E43: 1.094 | F43: 0.46 | G43: 0.889 | H43: 1.765 | I43: 0.215 | J43: 0.482 | K43: 0.958 | L43: 0.33 | M43: 0.68 | N43: 1.358 | O43: 2.301 | P43: 3.69 | Q43: 6.734 | R43: 9.198 | S43: 12.262 | T43: 0.4702 | U43: 0.6948 | V43: 1.368 | W43: 2.2996 | X43: 3.6982 | Y43: 6.7514 | Z43: 9.2306 | AA43: 12.3 | AB43: 0.2558635394 | AC43: -8.978165939 | AD43: -5.957836847 | AE43: -7.584728734 | AF43: -3.917900753 | AG43: -0.1025893958 | AH43: 0.5585009805 | AI43: 2.488612376 | AJ43: 8.993973111 | AK43: 0.5499276411 | AL43: -1.865136298 | AM43: -1.776866564 | AN43: -0.226622781 | AO43: -0.2069352884 | AP43: 0.4702091996 | AQ43: 1.538766345
A44: 1985 | B44: 1985.5 | C44: 0.252 | D44: 0.564 | E44: 1.115 | F44: 0.457 | G44: 0.896 | H44: 1.764 | I44: 0.214 | J44: 0.49 | K44: 0.971 | L44: 0.331 | M44: 0.69 | N44: 1.367 | O44: 2.317 | P44: 3.712 | Q44: 6.72 | R44: 9.16 | S44: 12.237 | T44: 0.4666 | U44: 0.6944 | V44: 1.3812 | W44: 2.3186 | X44: 3.7126 | Y44: 6.775 | Z44: 9.2602 | AA44: 12.3224 | AB44: -0.5117270789 | AC44: -9.030567686 | AD44: -5.050412466 | AE44: -6.821165439 | AF44: -3.543777605 | AG44: 0.2466091245 | AH44: 0.8809644854 | AI44: 2.675258305 | AJ44: 8.15948076 | AK44: 0.492040521 | AL44: -0.9182209469 | AM44: -0.9653169315 | AN44: 0.161873415 | AO44: 0.1418984835 | AP44: 0.792389577 | AQ44: 1.723682473
A45: 1986 | B45: 1986.5 | C45: 0.239 | D45: 0.552 | E45: 1.111 | F45: 0.448 | G45: 0.897 | H45: 1.784 | I45: 0.199 | J45: 0.483 | K45: 0.972 | L45: 0.319 | M45: 0.685 | N45: 1.375 | O45: 2.306 | P45: 3.683 | Q45: 6.711 | R45: 9.226 | S45: 12.24 | T45: 0.4622 | U45: 0.691 | V45: 1.3838 | W45: 2.3222 | X45: 3.7084 | Y45: 6.7628 | Z45: 9.26 | AA45: 12.3118 | AB45: -1.44989339 | AC45: -9.475982533 | AD45: -4.87167736 | AE45: -6.676490288 | AF45: -3.652896856 | AG45: 0.06609124538 | AH45: 0.878785678 | AI45: 2.586934785 | AJ45: 7.139545665 | AK45: 1.60669034e-14 | AL45: -0.7317073171 | AM45: -0.8115496327 | AN45: 0.0485620245 | AO45: -0.03843083927 | AP45: 0.7902126826 | AQ45: 1.636177519
A46: 1987 | B46: 1987.5 | C46: 0.254 | D46: 0.567 | E46: 1.11 | F46: 0.472 | G46: 0.911 | H46: 1.87 | I46: 0.216 | J46: 0.498 | K46: 0.993 | L46: 0.338 | M46: 0.7 | N46: 1.42 | O46: 2.361 | P46: 3.748 | Q46: 6.857 | R46: 9.38 | S46: 12.44 | T46: 0.4636 | U46: 0.6916 | V46: 1.3834 | W46: 2.3176 | X46: 3.6962 | Y46: 6.741 | Z46: 9.2568 | AA46: 12.3112 | AB46: -1.151385928 | AC46: -9.397379913 | AD46: -4.899175069 | AE46: -6.861352981 | AF46: -3.969862302 | AG46: -0.2564734895 | AH46: 0.8439247585 | AI46: 2.581935341 | AJ46: 7.464070468 | AK46: 0.08683068017 | AL46: -0.7604017217 | AM46: -1.00803007 | AN46: -0.280580586 | AO46: -0.3606586455 | AP46: 0.7553823715 | AQ46: 1.631224409
A47: 1988 | B47: 1988.5 | C47: 0.256 | D47: 0.572 | E47: 1.123 | F47: 0.474 | G47: 0.915 | H47: 1.836 | I47: 0.209 | J47: 0.486 | K47: 0.96 | L47: 0.338 | M47: 0.7 | N47: 1.399 | O47: 2.326 | P47: 3.709 | Q47: 6.792 | R47: 9.336 | S47: 12.38 | T47: 0.4734 | U47: 0.6982 | V47: 1.3924 | W47: 2.3264 | X47: 3.7072 | Y47: 6.7582 | Z47: 9.2912 | AA47: 12.3522 | AB47: 0.9381663113 | AC47: -8.532751092 | AD47: -4.280476627 | AE47: -6.507702612 | AF47: -3.684073785 | AG47: -0.001972872996 | AH47: 1.218679643 | AI47: 2.923564048 | AJ47: 9.735744089 | AK47: 1.041968162 | AL47: -0.1147776184 | AM47: -0.6321544507 | AN47: 0.0161873415 | AO47: -0.1064238626 | AP47: 1.129808216 | AQ47: 1.969686963
A48: 1989 | B48: 1989.5 | C48: 0.244 | D48: 0.553 | E48: 1.099 | F48: 0.467 | G48: 0.89 | H48: 1.75 | I48: 0.21 | J48: 0.486 | K48: 0.969 | L48: 0.332 | M48: 0.683 | N48: 1.356 | O48: 2.278 | P48: 3.629 | Q48: 6.625 | R48: 9.182 | S48: 12.259 | T48: 0.4822 | U48: 0.7042 | V48: 1.3974 | W48: 2.3348 | X48: 3.722 | Y48: 6.7746 | Z48: 9.308 | AA48: 12.3846 | AB48: 2.814498934 | AC48: -7.746724891 | AD48: -3.93675527 | AE48: -6.170127261 | AF48: -3.299558327 | AG48: 0.2406905055 | AH48: 1.40169947 | AI48: 3.193534052 | AJ48: 11.77561428 | AK48: 1.910274964 | AL48: 0.243902439 | AM48: -0.2733640868 | AN48: 0.4154750985 | AO48: 0.1359860466 | AP48: 1.312667349 | AQ48: 2.237154933
A49: 1990 | B49: 1990.5 | C49: 0.261 | D49: 0.578 | E49: 1.134 | F49: 0.506 | G49: 0.957 | H49: 1.852 | I49: 0.224 | J49: 0.499 | K49: 0.977 | L49: 0.358 | M49: 0.723 | N49: 1.412 | O49: 2.361 | P49: 3.767 | Q49: 6.806 | R49: 9.332 | S49: 12.442 | T49: 0.4804 | U49: 0.6998 | V49: 1.383 | W49: 2.3194 | X49: 3.703 | Y49: 6.7402 | Z49: 9.27 | AA49: 12.3468 | AB49: 2.430703625 | AC49: -8.323144105 | AD49: -4.926672777 | AE49: -6.789015405 | AF49: -3.793193037 | AG49: -0.2683107275 | AH49: 0.9877260513 | AI49: 2.878569048 | AJ49: 11.3583681 | AK49: 1.273516643 | AL49: -0.7890961263 | AM49: -0.9311464206 | AN49: -0.09712404899 | AO49: -0.3724835191 | AP49: 0.8990574047 | AQ49: 1.925108968
A50: 1991 | B50: 1991.5 | C50: 0.261 | D50: 0.574 | E50: 1.123 | F50: 0.492 | G50: 0.939 | H50: 1.826 | I50: 0.22 | J50: 0.501 | K50: 0.982 | L50: 0.35 | M50: 0.715 | N50: 1.4 | O50: 2.348 | P50: 3.757 | Q50: 6.793 | R50: 9.31 | S50: 12.402 | T50: 0.4758 | U50: 0.6936 | V50: 1.3734 | W50: 2.3146 | X50: 3.698 | Y50: 6.7216 | Z50: 9.242 | AA50: 12.3166 | AB50: 1.44989339 | AC50: -9.135371179 | AD50: -5.586617782 | AE50: -6.981915606 | AF50: -3.923096908 | AG50: -0.5435265105 | AH50: 0.682693006 | AI50: 2.626930341 | AJ50: 10.29207232 | AK50: 0.3762662808 | AL50: -1.477761836 | AM50: -1.136169486 | AN50: -0.2320185615 | AO50: -0.6474118308 | AP50: 0.5942921828 | AQ50: 1.675802404
A51: 1992 | B51: 1992.5 | C51: 0.239 | D51: 0.538 | E51: 1.075 | F51: 0.463 | G51: 0.889 | H51: 1.752 | I51: 0.214 | J51: 0.484 | K51: 0.956 | L51: 0.33 | M51: 0.678 | N51: 1.348 | O51: 2.284 | P51: 3.653 | Q51: 6.685 | R51: 9.19 | S51: 12.251 | T51: 0.473 | U51: 0.6914 | V51: 1.374 | W51: 2.3232 | X51: 3.7114 | Y51: 6.7352 | Z51: 9.2502 | AA51: 12.3178 | AB51: 0.8528784648 | AC51: -9.423580786 | AD51: -5.545371219 | AE51: -6.636302746 | AF51: -3.574954534 | AG51: -0.3422934649 | AH51: 0.7720241121 | AI51: 2.63692923 | AJ51: 9.643022717 | AK51: 0.05788712012 | AL51: -1.43472023 | AM51: -0.7688364941 | AN51: 0.129498732 | AO51: -0.4463889792 | AP51: 0.6835448549 | AQ51: 1.685708625
A52: 1993 | B52: 1993.5 | C52: 0.238 | D52: 0.539 | E52: 1.082 | F52: 0.451 | G52: 0.871 | H52: 1.763 | I52: 0.208 | J52: 0.474 | K52: 0.945 | L52: 0.323 | M52: 0.669 | N52: 1.351 | O52: 2.302 | P52: 3.684 | Q52: 6.699 | R52: 9.196 | S52: 12.229 | T52: 0.4632 | U52: 0.6808 | V52: 1.3632 | W52: 2.315 | X52: 3.6946 | Y52: 6.7234 | Z52: 9.2422 | AA52: 12.302 | AB52: -1.236673774 | AC52: -10.81222707 | AD52: -6.287809349 | AE52: -6.965840589 | AF52: -4.011431541 | AG52: -0.516892725 | AH52: 0.6848718135 | AI52: 2.505277191 | AJ52: 7.371349096 | AK52: -1.476121563 | AL52: -2.209469154 | AM52: -1.11908423 | AN52: -0.32374683 | AO52: -0.6208058651 | AP52: 0.5964690772 | AQ52: 1.555276714
A53: 1994 | B53: 1994.5 | C53: 0.246 | D53: 0.553 | E53: 1.112 | F53: 0.453 | G53: 0.873 | H53: 1.769 | I53: 0.206 | J53: 0.47 | K53: 0.932 | L53: 0.325 | M53: 0.672 | N53: 1.359 | O53: 2.321 | P53: 3.696 | Q53: 6.693 | R53: 9.223 | S53: 12.265 | T53: 0.4546 | U53: 0.671 | V53: 1.3512 | W53: 2.3018 | X53: 3.6728 | Y53: 6.6944 | Z53: 9.2276 | AA53: 12.2806 | AB53: -3.070362473 | AC53: -12.09606987 | AD53: -7.112740605 | AE53: -7.496316142 | AF53: -4.577812419 | AG53: -0.9459926017 | AH53: 0.5258188685 | AI53: 2.326963671 | AJ53: 5.377839592 | AK53: -2.894356006 | AL53: -3.070301291 | AM53: -1.682897659 | AN53: -0.9118869044 | AO53: -1.049457534 | AP53: 0.4375557829 | AQ53: 1.378615771
A54: 1995 | B54: 1995.5 | C54: 0.243 | D54: 0.546 | E54: 1.096 | F54: 0.457 | G54: 0.864 | H54: 1.763 | I54: 0.212 | J54: 0.482 | K54: 0.953 | L54: 0.328 | M54: 0.67 | N54: 1.358 | O54: 2.32 | P54: 3.683 | Q54: 6.747 | R54: 9.292 | S54: 12.363 | T54: 0.4508 | U54: 0.6708 | V54: 1.3516 | W54: 2.303 | X54: 3.6734 | Y54: 6.7066 | Z54: 9.256 | AA54: 12.3166 | AB54: -3.880597015 | AC54: -12.12227074 | AD54: -7.085242896 | AE54: -7.448091092 | AF54: -4.562223954 | AG54: -0.7654747226 | AH54: 0.8352095287 | AI54: 2.626930341 | AJ54: 4.496986555 | AK54: -2.923299566 | AL54: -3.041606887 | AM54: -1.631641893 | AN54: -0.8956995629 | AO54: -0.8691282112 | AP54: 0.7466747937 | AQ54: 1.675802404
A55: 1996 | B55: 1996.5 | C55: 0.239 | D55: 0.547 | E55: 1.105 | F55: 0.449 | G55: 0.852 | H55: 1.712 | I55: 0.214 | J55: 0.491 | K55: 0.964 | L55: 0.324 | M55: 0.666 | N55: 1.34 | O55: 2.282 | P55: 3.648 | Q55: 6.648 | R55: 9.237 | S55: 12.295 | T55: 0.4496 | U55: 0.6786 | V55: 1.3632 | W55: 2.3152 | X55: 3.6924 | Y55: 6.757 | Z55: 9.3324 | AA55: 12.3968 | AB55: -4.136460554 | AC55: -11.10043668 | AD55: -6.287809349 | AE55: -6.957803081 | AF55: -4.068589244 | AG55: -0.01972872996 | AH55: 1.667513981 | AI55: 3.295189423 | AJ55: 4.218822439 | AK55: -1.794500724 | AL55: -2.209469154 | AM55: -1.110541603 | AN55: -0.3831004155 | AO55: -0.124161173 | AP55: 1.578248471 | AQ55: 2.337868181
A56: 1997 | B56: 1997.5 | C56: 0.228 | D56: 0.541 | E56: 1.109 | F56: 0.444 | G56: 0.881 | H56: 1.725 | I56: 0.201 | J56: 0.486 | K56: 0.981 | L56: 0.315 | M56: 0.677 | N56: 1.35 | O56: 2.29 | P56: 3.656 | Q56: 6.746 | R56: 9.332 | S56: 12.431 | T56: 0.4392 | U56: 0.6758 | V56: 1.3632 | W56: 2.3126 | X56: 3.6794 | Y56: 6.7542 | Z56: 9.3464 | AA56: 12.3998 | AB56: -6.353944563 | AC56: -11.46724891 | AD56: -6.287809349 | AE56: -7.06229069 | AF56: -4.406339309 | AG56: -0.06115906289 | AH56: 1.820030503 | AI56: 3.320186646 | AJ56: 1.808066759 | AK56: -2.199710564 | AL56: -2.209469154 | AM56: -1.221595763 | AN56: -0.733826148 | AO56: -0.1655482307 | AP56: 1.730631082 | AQ56: 2.362633734
A57: 1998 | B57: 1998.5 | C57: 0.245 | D57: 0.572 | E57: 1.148 | F57: 0.445 | G57: 0.915 | H57: 1.822 | I57: 0.223 | J57: 0.509 | K57: 0.993 | L57: 0.326 | M57: 0.708 | N57: 1.409 | O57: 2.363 | P57: 3.779 | Q57: 6.951 | R57: 9.578 | S57: 12.63 | T57: 0.4272 | U57: 0.673 | V57: 1.3638 | W57: 2.3104 | X57: 3.6648 | Y57: 6.7408 | Z57: 9.3512 | AA57: 12.3844 | AB57: -8.912579957 | AC57: -11.83406114 | AD57: -6.246562786 | AE57: -7.150703282 | AF57: -4.785658613 | AG57: -0.259432799 | AH57: 1.872321882 | AI57: 3.19186757 | AJ57: -0.9735744089 | AK57: -2.604920405 | AL57: -2.166427547 | AM57: -1.315564668 | AN57: -1.127718124 | AO57: -0.3636148639 | AP57: 1.782876548 | AQ57: 2.235503896
A58: 1999 | B58: 1999.5 | C58: 0.227 | D58: 0.549 | E58: 1.13 | F58: 0.401 | G58: 0.835 | H58: 1.746 | I58: 0.202 | J58: 0.482 | K58: 0.955 | L58: 0.296 | M58: 0.658 | N58: 1.359 | O58: 2.308 | P58: 3.631 | Q58: 6.679 | R58: 9.293 | S58: 12.28 | T58: 0.42 | U58: 0.6718 | V58: 1.369 | W58: 2.318 | X58: 3.6672 | Y58: 6.763 | Z58: 9.383 | AA58: 12.409 | AB58: -10.44776119 | AC58: -11.99126638 | AD58: -5.889092576 | AE58: -6.845277964 | AF58: -4.723304754 | AG58: 0.06905055487 | AH58: 2.21875227 | AI58: 3.396844795 | AJ58: -2.64255911 | AK58: -2.778581766 | AL58: -1.793400287 | AM58: -0.9909448146 | AN58: -1.062968758 | AO58: -0.03547462086 | AP58: 2.129002765 | AQ58: 2.438581429
A59: 2000 | B59: 2000.5 | C59: 0.218 | D59: 0.525 | E59: 1.083 | F59: 0.397 | G59: 0.846 | H59: 1.779 | I59: 0.203 | J59: 0.481 | K59: 0.954 | L59: 0.292 | M59: 0.656 | N59: 1.361 | O59: 2.309 | P59: 3.61 | Q59: 6.68 | R59: 9.316 | S59: 12.286 | T59: 0.4168 | U59: 0.6698 | V59: 1.3712 | W59: 2.3248 | X59: 3.6712 | Y59: 6.7622 | Z59: 9.3956 | AA59: 12.4084 | AB59: -11.13006397 | AC59: -12.25327511 | AD59: -5.737855179 | AE59: -6.572002679 | AF59: -4.619381658 | AG59: 0.05721331689 | AH59: 2.35601714 | AI59: 3.391845351 | AJ59: -3.384330088 | AK59: -3.068017366 | AL59: -1.635581062 | AM59: -0.7004954724 | AN59: -0.9550531484 | AO59: -0.04729949449 | AP59: 2.266147115 | AQ59: 2.433628319
A60: 2001 | B60: 2001.5 | C60: 0.226 | D60: 0.535 | E60: 1.106 | F60: 0.413 | G60: 0.841 | H60: 1.757 | I60: 0.21 | J60: 0.495 | K60: 0.981 | L60: 0.303 | M60: 0.66 | N60: 1.366 | O60: 2.32 | P60: 3.66 | Q60: 6.759 | R60: 9.396 | S60: 12.418 | T60: 0.413 | U60: 0.66 | V60: 1.3594 | W60: 2.315 | X60: 3.6486 | Y60: 6.7246 | Z60: 9.361 | AA60: 12.3732 | AB60: -11.94029851 | AC60: -13.5371179 | AD60: -6.54903758 | AE60: -6.965840589 | AF60: -5.206547155 | AG60: -0.4991368681 | AH60: 1.979083448 | AI60: 3.098544606 | AJ60: -4.265183125 | AK60: -4.486251809 | AL60: -2.482065997 | AM60: -1.11908423 | AN60: -1.564776345 | AO60: -0.6030685547 | AP60: 1.889544376 | AQ60: 2.143045833
A61: 2002 | B61: 2002.5 | C61: 0.228 | D61: 0.534 | E61: 1.106 | F61: 0.428 | G61: 0.86 | H61: 1.752 | I61: 0.208 | J61: 0.486 | K61: 0.968 | L61: 0.31 | M61: 0.667 | N61: 1.361 | O61: 2.324 | P61: 3.676 | Q61: 6.742 | R61: 9.395 | S61: 12.428 | T61: 0.417 | U61: 0.659 | V61: 1.3546 | W61: 2.3086 | X61: 3.649 | Y61: 6.7368 | Z61: 9.3784 | AA61: 12.4014 | AB61: -11.08742004 | AC61: -13.66812227 | AD61: -6.879010082 | AE61: -7.223040857 | AF61: -5.196154845 | AG61: -0.3186189889 | AH61: 2.168639698 | AI61: 3.333518498 | AJ61: -3.337969402 | AK61: -4.630969609 | AL61: -2.826398852 | AM61: -1.392448317 | AN61: -1.553984784 | AO61: -0.422739232 | AP61: 2.078934192 | AQ61: 2.375842029
A62: 2003 | B62: 2003.5 | C62: 0.231 | D62: 0.54 | E62: 1.102 | F62: 0.426 | G62: 0.838 | H62: 1.731 | I62: 0.209 | J62: 0.491 | K62: 0.97 | L62: 0.31 | M62: 0.659 | N62: 1.35 | O62: 2.314 | P62: 3.666 | Q62: 6.763 | R62: 9.405 | S62: 12.454 | T62: 0.418 | U62: 0.6584 | V62: 1.3546 | W62: 2.315 | X62: 3.6758 | Y62: 6.7756 | Z62: 9.4108 | AA62: 12.4482 | AB62: -10.87420043 | AC62: -13.74672489 | AD62: -6.879010082 | AE62: -6.965840589 | AF62: -4.499870096 | AG62: 0.255487053 | AH62: 2.521606507 | AI62: 3.723475169 | AJ62: -3.106165971 | AK62: -4.717800289 | AL62: -2.826398852 | AM62: -1.11908423 | AN62: -0.8309501969 | AO62: 0.1507671387 | AP62: 2.431591092 | AQ62: 2.762184652
A63: 2004 | B63: 2004.5 | C63: 0.23 | D63: 0.538 | E63: 1.097 | F63: 0.421 | G63: 0.825 | H63: 1.702 | I63: 0.207 | J63: 0.49 | K63: 0.972 | L63: 0.307 | M63: 0.653 | N63: 1.335 | O63: 2.276 | P63: 3.633 | Q63: 6.74 | R63: 9.38 | S63: 12.421 | T63: 0.4138 | U63: 0.6588 | V63: 1.3604 | W63: 2.3248 | X63: 3.695 | Y63: 6.8004 | Z63: 9.4272 | AA63: 12.469 | AB63: -11.76972281 | AC63: -13.69432314 | AD63: -6.480293309 | AE63: -6.572002679 | AF63: -4.001039231 | AG63: 0.6224414303 | AH63: 2.70026872 | AI63: 3.896789246 | AJ63: -4.07974038 | AK63: -4.659913169 | AL63: -2.410329986 | AM63: -0.7004954724 | AN63: -0.312955269 | AO63: 0.5173382209 | AP63: 2.610096436 | AQ63: 2.933892484
A64: 2005 | B64: 2005.5 | C64: 0.234 | D64: 0.546 | E64: 1.114 | F64: 0.402 | G64: 0.821 | H64: 1.749 | I64: 0.209 | J64: 0.492 | K64: 0.972 | L64: 0.3 | M64: 0.653 | N64: 1.361 | O64: 2.341 | P64: 3.744 | Q64: 6.874 | R64: 9.478 | S64: 12.52 | T64: 0.406 | U64: 0.6564 | V64: 1.3688 | W64: 2.3428 | X64: 3.7136 | Y64: 6.827 | Z64: 9.4462 | AA64: 12.4836 | AB64: -13.43283582 | AC64: -14.00873362 | AD64: -5.90284143 | AE64: -5.848626926 | AF64: -3.51779683 | AG64: 1.016029593 | AH64: 2.907255429 | AI64: 4.018442395 | AJ64: -5.88780714 | AK64: -5.00723589 | AL64: -1.807747489 | AM64: 0.0683410217 | AN64: 0.1888523175 | AO64: 0.9105152689 | AP64: 2.816901408 | AQ64: 3.054418175
A65: 2006 | B65: 2006.5 | C65: 0.233 | D65: 0.554 | E65: 1.123 | F65: 0.392 | G65: 0.842 | H65: 1.827 | I65: 0.204 | J65: 0.483 | K65: 0.959 | L65: 0.294 | M65: 0.662 | N65: 1.395 | O65: 2.369 | P65: 3.756 | Q65: 6.883 | R65: 9.478 | S65: 12.522 | T65: 0.3972 | U65: 0.6516 | V65: 1.368 | W65: 2.3482 | X65: 3.7214 | Y65: 6.8284 | Z65: 9.4382 | AA65: 12.4738 | AB65: -15.30916844 | AC65: -14.63755459 | AD65: -5.957836847 | AE65: -5.6316142 | AF65: -3.315146791 | AG65: 1.03674476 | AH65: 2.82010313 | AI65: 3.936784802 | AJ65: -7.92767733 | AK65: -5.701881331 | AL65: -1.865136298 | AM65: 0.2989919699 | AN65: 0.399287757 | AO65: 0.9312087977 | AP65: 2.729825631 | AQ65: 2.973517369
A66: 2007 | B66: 2007.5 | C66: 0.228 | D66: 0.542 | E66: 1.116 | F66: 0.389 | G66: 0.829 | H66: 1.84 | I66: 0.205 | J66: 0.489 | K66: 0.972 | L66: 0.292 | M66: 0.655 | N66: 1.403 | O66: 2.414 | P66: 3.769 | Q66: 6.875 | R66: 9.49 | S66: 12.501 | T66: 0.3936 | U66: 0.6526 | V66: 1.3774 | W66: 2.3734 | X66: 3.7512 | Y66: 6.8556 | Z66: 9.461 | AA66: 12.502 | AB66: -16.07675906 | AC66: -14.50655022 | AD66: -5.311640697 | AE66: -4.618888145 | AF66: -2.540919719 | AG66: 1.439210851 | AH66: 3.068487181 | AI66: 4.171758693 | AJ66: -8.76216968 | AK66: -5.557163531 | AL66: -1.190817791 | AM66: 1.375363062 | AN66: 1.203259051 | AO66: 1.333254501 | AP66: 2.977991597 | AQ66: 3.206313565
A67: 2008 | B67: 2008.5 | C67: 0.222 | D67: 0.534 | E67: 1.108 | F67: 0.382 | G67: 0.799 | H67: 1.731 | I67: 0.2 | J67: 0.476 | K67: 0.956 | L67: 0.286 | M67: 0.635 | N67: 1.346 | O67: 2.341 | P67: 3.705 | Q67: 6.77 | R67: 9.365 | S67: 12.405 | T67: 0.3964 | U67: 0.6552 | V67: 1.385 | W67: 2.3914 | X67: 3.7742 | Y67: 6.8818 | Z67: 9.4928 | AA67: 12.5298 | AB67: -15.47974414 | AC67: -14.16593886 | AD67: -4.789184235 | AE67: -3.895512391 | AF67: -1.943361912 | AG67: 1.826880395 | AH67: 3.414917568 | AI67: 4.403399622 | AJ67: -8.113120074 | AK67: -5.18089725 | AL67: -0.6456241033 | AM67: 2.144199556 | AN67: 1.823773809 | AO67: 1.720519112 | AP67: 3.324117814 | AQ67: 3.435807687
A68: 2009 | B68: 2009.5 | C68: 0.228 | D68: 0.541 | E68: 1.11 | F68: 0.403 | G68: 0.833 | H68: 1.79 | I68: 0.212 | J68: 0.496 | K68: 0.987 | L68: 0.3 | M68: 0.658 | N68: 1.382 | O68: 2.402 | P68: 3.782 | Q68: 6.876 | R68: 9.494 | S68: 12.562 | T68: 0.3958 | U68: 0.6516 | V68: 1.3772 | W68: 2.3924 | X68: 3.772 | Y68: 6.8712 | Z68: 9.4866 | AA68: 12.5158 | AB68: -15.60767591 | AC68: -14.63755459 | AD68: -5.325389551 | AE68: -3.855324849 | AF68: -2.000519615 | AG68: 1.670036991 | AH68: 3.347374537 | AI68: 4.286745917 | AJ68: -8.252202133 | AK68: -5.701881331 | AL68: -1.205164993 | AM68: 2.186912694 | AN68: 1.764420223 | AO68: 1.563839536 | AP68: 3.256634086 | AQ68: 3.320235108
A69: 2010 | B69: 2010.5 | C69: 0.236 | D69: 0.551 | E69: 1.141 | F69: 0.416 | G69: 0.838 | H69: 1.799 | I69: 0.219 | J69: 0.503 | K69: 0.999 | L69: 0.31 | M69: 0.666 | N69: 1.399 | O69: 2.431 | P69: 3.859 | Q69: 7.005 | R69: 9.637 | S69: 12.659 | T69: 0.3948 | U69: 0.6496 | V69: 1.3696 | W69: 2.386 | X69: 3.7668 | Y69: 6.8648 | Z69: 9.482 | AA69: 12.5142 | AB69: -15.82089552 | AC69: -14.89956332 | AD69: -5.847846013 | AE69: -4.112525117 | AF69: -2.135619641 | AG69: 1.575339088 | AH69: 3.297261965 | AI69: 4.273414065 | AJ69: -8.484005563 | AK69: -5.991316932 | AL69: -1.75035868 | AM69: 1.913548608 | AN69: 1.62412993 | AO69: 1.469240547 | AP69: 3.206565514 | AQ69: 3.307026813
A70: 2011 | B70: 2011.5 | C70: 0.224 | D70: 0.538 | E70: 1.121 | F70: 0.389 | G70: 0.809 | H70: 1.732 | I70: 0.205 | J70: 0.49 | K70: 0.98 | L70: 0.291 | M70: 0.644 | N70: 1.356 | O70: 2.374 | P70: 3.745 | Q70: 6.83 | R70: 9.447 | S70: 12.452 | T70: 0.3976 | U70: 0.6546 | V70: 1.374 | W70: 2.3948 | X70: 3.7816 | Y70: 6.8886 | Z70: 9.5168 | AA70: 12.5456 | AB70: -15.2238806 | AC70: -14.24454148 | AD70: -5.545371219 | AE70: -3.758874749 | AF70: -1.751104183 | AG70: 1.927496917 | AH70: 3.676374464 | AI70: 4.535051661 | AJ70: -7.834955957 | AK70: -5.267727931 | AL70: -1.43472023 | AM70: 2.289424227 | AN70: 2.023417687 | AO70: 1.821030538 | AP70: 3.585345147 | AQ70: 3.566239598
A71: 2012 | B71: 2012.5 | C71: 0.224 | D71: 0.538 | E71: 1.124 | F71: 0.384 | G71: 0.809 | H71: 1.749 | I71: 0.205 | J71: 0.489 | K71: 0.983 | L71: 0.288 | M71: 0.645 | N71: 1.365 | O71: 2.382 | P71: 3.743 | Q71: 6.843 | R71: 9.467 | S71: 12.493 | T71: 0.39625 | U71: 0.65375 | V71: 1.372 | W71: 2.393 | X71: 3.7815 | Y71: 6.89175 | Z71: 9.5225 | AA71: 12.5415 | AB71: -15.51172708 | AC71: -14.3558952 | AD71: -5.682859762 | AE71: -3.831212324 | AF71: -1.75370226 | AG71: 1.974106042 | AH71: 3.738470477 | AI71: 4.50088879 | AJ71: -8.147890589 | AK71: -5.390738061 | AL71: -1.578192253 | AM71: 2.212540577 | AN71: 2.020719797 | AO71: 1.867590978 | AP71: 3.647386638 | AQ71: 3.532393343
A72: 2013 | B72: 2013.5 | C72: 0.232 | D72: 0.547 | E72: 1.128 | F72: 0.396 | G72: 0.832 | H72: 1.749 | I72: 0.21 | J72: 0.499 | K72: 0.991 | L72: 0.297 | M72: 0.66 | N72: 1.368 | O72: 2.385 | P72: 3.779 | Q72: 6.889 | R72: 9.539 | S72: 12.562 | T72: 0.3896666667 | U72: 0.6496666667 | V72: 1.363 | W72: 2.380333333 | X72: 3.755666667 | Y72: 6.854 | Z72: 9.484333333 | AA72: 12.50233333 | AB72: =100 * (T72 - T$7) / T$7 -> -16.91542289 | AC72: =100 * (U72 - U$7) / U$7 -> -14.89082969 | AD72: =100 * (V72 - V$7) / V$7 -> -6.301558203 | AE72: =100 * (W72 - W$7) / W$7 -> -4.340254521 | AF72: =100 * (X72 - X$7) / X$7 -> -2.424872261 | AG72: =100 * (Y72 - Y$7) / Y$7 -> 1.415536375 | AH72: =100 * (Z72 - Z$7) / Z$7 -> 3.322681386 | AI72: =100 * (AA72 - AA$7) / AA$7 -> 4.174536163 | AJ72: -9.673929841 | AK72: -5.981669079 | AL72: -2.223816356 | AM72: 1.671507489 | AN72: 1.323764816 | AO72: 1.309604754 | AP72: 3.231962615 | AQ72: 3.209065293
A73: 2014 | B73: 2014.5
A74: 2015 | B74: 2015.5
A75: 2016 | B75: 2016.5
A76: 2017 | B76: 2017.5
A77: 2018 | B77: 2018.5
A78: 2019 | B78: =A78 + 0.5 -> 2019.5
B79: average from 1948 | C79: =AVERAGE(C7:C78) -> 0.2499393939 | D79: 0.5727878788 | E79: 1.134636364 | F79: 0.4488333333 | G79: 0.9135606061 | H79: 1.820757576 | I79: 0.2073787879 | J79: 0.4889848485 | K79: 0.9637878788 | L79: 0.3246666667 | M79: 0.6999090909 | N79: 1.395257576 | O79: 2.364530303 | P79: 3.734409091 | Q79: 6.794212121 | R79: 9.310757576 | S79: 12.28892424
B80: average from 1973 | C80: =AVERAGE(C32:C78) -> 0.2407317073 | D80: =AVERAGE(D32:D78) -> 0.5527804878 | E80: 1.111731707 | F80: 0.4393658537 | G80: 0.8787560976 | H80: 1.783195122 | I80: 0.2107317073 | J80: 0.4891463415 | K80: 0.9678780488 | L80: 0.3189756098 | M80: 0.6795609756 | N80: 1.374195122 | O80: 2.334268293 | P80: 3.715756098 | Q80: 6.790243902 | R80: 9.331243902 | S80: 12.36670732
A82: Notes
A111: Graphs

Sheet Sea Level
A1: Global Sea Level
A3: Time | B3: Downloaded Data | C3: Calculations
A4: Year AD | B4: Sea level rise | C4: Sea level rise
A5: Units --> | B5: meters | C5: mm
A6: 2003.976717 | B6: 0.4875074 | C6: =(B6 - $B$6) * 1000 -> 0
A7: 2004.000625 | B7: 0.4881399 | C7: =(B7 - $B$6) * 1000 -> 0.6325
A8: 2004.024533 | B8: 0.4885554 | C8: 1.048
A9: 2004.048442 | B9: 0.4886255 | C9: 1.1181
A10: 2004.07235 | B10: 0.4881118 | C10: 0.6044
A11: 2004.096258 | B11: 0.4869031 | C11: -0.6043
A12: 2004.120167 | B12: 0.4852814 | C12: -2.226
A13: 2004.144075 | B13: 0.4837383 | C13: -3.7691
A14: 2004.167984 | B14: 0.4826391 | C14: -4.8683
A15: 2004.191892 | B15: 0.4821543 | C15: -5.3531
A16: 2004.2158 | B16: 0.4821924 | C16: -5.315
A17: 2004.239709 | B17: 0.4823339 | C17: -5.1735
A18: 2004.263617 | B18: 0.4820727 | C18: -5.4347
A19: 2004.287525 | B19: 0.4812006 | C19: -6.3068
A20: 2004.311434 | B20: 0.4798808 | C20: -7.6266
A21: 2004.335342 | B21: 0.4783766 | C21: -9.1308
A22: 2004.359251 | B22: 0.4768087 | C22: -10.6987
A23: 2004.383159 | B23: 0.4752253 | C23: -12.2821
A24: 2004.407068 | B24: 0.4738451 | C24: -13.6623
A25: 2004.430976 | B25: 0.4730599 | C25: -14.4475
A26: 2004.454884 | B26: 0.4730533 | C26: -14.4541
A27: 2004.478793 | B27: 0.4734448 | C27: -14.0626
A28: 2004.502701 | B28: 0.4734932 | C28: -14.0142
A29: 2004.526609 | B29: 0.4727525 | C29: -14.7549
A30: 2004.550518 | B30: 0.4714985 | C30: -16.0089
A31: 2004.574426 | B31: 0.4704714 | C31: -17.036
A32: 2004.597263 | B32: 0.4702212 | C32: -17.2862
A33: 2004.622312 | B33: 0.4707578 | C33: -16.7496
A34: 2004.646151 | B34: 0.4717951 | C34: -15.7123
A35: 2004.67006 | B35: 0.4731763 | C35: -14.3311
A36: 2004.693968 | B36: 0.4749322 | C36: -12.5752
A37: 2004.717876 | B37: 0.4769584 | C37: -10.549
A38: 2004.741785 | B38: 0.4788113 | C38: -8.6961
A39: 2004.765693 | B39: 0.4799445 | C39: -7.5629
A40: 2004.789602 | B40: 0.4801774 | C40: -7.33
A41: 2004.81351 | B41: 0.4799356 | C41: -7.5718
A42: 2004.837418 | B42: 0.4800357 | C42: -7.4717
A43: 2004.861327 | B43: 0.4811324 | C43: -6.375
A44: 2004.884361 | B44: 0.4832005 | C44: -4.3069
A45: 2004.909681 | B45: 0.4854507 | C45: -2.0567
A46: 2004.933052 | B46: 0.4868054 | C46: -0.702
A47: 2004.95696 | B47: 0.4866602 | C47: -0.8472
A48: 2004.980916 | B48: 0.4853717 | C48: -2.1357
A49: 2005.004777 | B49: 0.4840557 | C49: -3.4517
A50: 2005.028685 | B50: 0.4838215 | C50: -3.6859
A51: 2005.052594 | B51: 0.4850278 | C51: -2.4796
A52: 2005.076395 | B52: 0.4871129 | C52: -0.3945
A53: 2005.100683 | B53: 0.4890726 | C53: 1.5652
A54: 2005.124319 | B54: 0.4901281 | C54: 2.6207
A55: 2005.148227 | B55: 0.4900615 | C55: 2.5541
A56: 2005.172135 | B56: 0.4890827 | C56: 1.5753
A57: 2005.196044 | B57: 0.4875358 | C57: 0.0284
A58: 2005.219952 | B58: 0.4857602 | C58: -1.7472
A59: 2005.243861 | B59: 0.4840983 | C59: -3.4091
A60: 2005.267769 | B60: 0.4828448 | C60: -4.6626
A61: 2005.291678 | B61: 0.4820873 | C61: -5.4201
A62: 2005.315586 | B62: 0.4816507 | C62: -5.8567
A63: 2005.339494 | B63: 0.4812591 | C63: -6.2483
A64: 2005.363403 | B64: 0.48074 | C64: -6.7674
A65: 2005.387311 | B65: 0.4800344 | C65: -7.473
A66: 2005.411219 | B66: 0.4790687 | C66: -8.4387
A67: 2005.435128 | B67: 0.4777898 | C67: -9.7176
A68: 2005.459036 | B68: 0.4763977 | C68: -11.1097
A69: 2005.482945 | B69: 0.4754322 | C69: -12.0752
A70: 2005.506853 | B70: 0.4754454 | C70: -12.062
A71: 2005.530761 | B71: 0.4764816 | C71: =(B71 - $B$6) * 1000 -> -11.0258
A72: 2005.55467 | B72: 0.4779375 | C72: -9.5699
A73: 2005.578578 | B73: 0.4790107 | C73: -8.4967
A74: 2005.602486 | B74: 0.4793212 | C74: -8.1862
A75: 2005.626395 | B75: 0.4791246 | C75: -8.3828
A76: 2005.650303 | B76: 0.4789611 | C76: -8.5463
A77: 2005.674211 | B77: 0.4791169 | C77: -8.3905
A78: 2005.69812 | B78: 0.4794016 | C78: -8.1058
A79: 2005.722028 | B79: 0.4794251 | C79: -8.0823
A80: 2005.745886 | B80: 0.479082 | C80: -8.4254
A81: 2005.770013 | B81: 0.4787719 | C81: -8.7355
A82: 2005.79367 | B82: 0.4791659 | C82: -8.3415
A83: 2005.817742 | B83: 0.4807529 | C83: -6.7545
A84: 2005.84157 | B84: 0.4835299 | C84: -3.9775
A85: 2005.865479 | B85: 0.4869808 | C85: -0.5266
A86: 2005.889387 | B86: 0.4902628 | C86: 2.7554
A87: 2005.913295 | B87: 0.4925348 | C87: 5.0274
A88: 2005.937203 | B88: 0.49334 | C88: 5.8326
A89: 2005.961112 | B89: 0.4928545 | C89: 5.3471
A90: 2005.98502 | B90: 0.4917667 | C90: 4.2593
A91: 2006.008928 | B91: 0.4908014 | C91: 3.294
A92: 2006.032837 | B92: 0.4902732 | C92: 2.7658
A93: 2006.056745 | B93: 0.4900166 | C93: 2.5092
A94: 2006.080654 | B94: 0.4896868 | C94: 2.1794
A95: 2006.104562 | B95: 0.4890966 | C95: 1.5892
A96: 2006.12847 | B96: 0.4883137 | C96: 0.8063
A97: 2006.152379 | B97: 0.4875178 | C97: 0.0104
A98: 2006.176287 | B98: 0.4868142 | C98: -0.6932
A99: 2006.200195 | B99: 0.486179 | C99: -1.3284
A100: 2006.224104 | B100: 0.4855288 | C100: -1.9786
A101: 2006.248012 | B101: 0.484816 | C101: -2.6914
A102: 2006.271921 | B102: 0.4840261 | C102: -3.4813
A103: 2006.295829 | B103: 0.483093 | C103: -4.4144
A104: 2006.319737 | B104: 0.4818845 | C104: -5.6229
A105: 2006.343646 | B105: 0.4803263 | C105: -7.1811
A106: 2006.367538 | B106: 0.47854 | C106: -8.9674
A107: 2006.38928 | B107: 0.4767856 | C107: -10.7218
A108: 2006.416876 | B108: 0.475219 | C108: -12.2884
A109: 2006.439279 | B109: 0.4737719 | C109: -13.7355
A110: 2006.463188 | B110: 0.4723509 | C110: -15.1565
A111: 2006.487096 | B111: 0.4711546 | C111: -16.3528
A112: 2006.511005 | B112: 0.4706922 | C112: -16.8152
A113: 2006.534913 | B113: 0.4713677 | C113: -16.1397
A114: 2006.558821 | B114: 0.4730159 | C114: -14.4915
A115: 2006.58273 | B115: 0.474899 | C115: -12.6084
A116: 2006.606638 | B116: 0.4762773 | C116: -11.2301
A117: 2006.630547 | B117: 0.4770605 | C117: -10.4469
A118: 2006.654455 | B118: 0.4778781 | C118: -9.6293
A119: 2006.674967 | B119: 0.479415 | C119: -8.0924
A120: 2006.703072 | B120: 0.4816212 | C120: -5.8862
A121: 2006.72618 | B121: 0.4836191 | C121: -3.8883
A122: 2006.750088 | B122: 0.484449 | C122: -3.0584
A123: 2006.773997 | B123: 0.4839676 | C123: -3.5398
A124: 2006.797905 | B124: 0.4830448 | C124: -4.4626
A125: 2006.821814 | B125: 0.4828564 | C125: -4.651
A126: 2006.845722 | B126: 0.4839361 | C126: -3.5713
A127: 2006.86963 | B127: 0.4857917 | C127: -1.7157
A128: 2006.893539 | B128: 0.487373 | C128: -0.1344
A129: 2006.917447 | B129: 0.4879272 | C129: 0.4198
A130: 2006.937956 | B130: 0.4875151 | C130: 0.0077
A131: 2006.966585 | B131: 0.4868293 | C131: -0.6781
A132: 2006.989172 | B132: 0.4865575 | C132: -0.9499
A133: 2007.01308 | B133: 0.4869046 | C133: -0.6028
A134: 2007.036989 | B134: 0.4876264 | C134: 0.119
A135: 2007.060897 | B135: 0.4883948 | C135: =(B135 - $B$6) * 1000 -> 0.8874
A136: 2007.084805 | B136: 0.489024 | C136: 1.5166
A137: 2007.108714 | B137: 0.4893552 | C137: 1.8478
A138: 2007.132622 | B138: 0.4890629 | C138: 1.5555
A139: 2007.156531 | B139: 0.4877583 | C139: 0.2509
A140: 2007.180439 | B140: 0.4854048 | C140: -2.1026
A141: 2007.204347 | B141: 0.4826177 | C141: -4.8897
A142: 2007.228256 | B142: 0.4804431 | C142: -7.0643
A143: 2007.252164 | B143: 0.47971 | C143: -7.7974
A144: 2007.276073 | B144: 0.4804632 | C144: -7.0442
A145: 2007.299981 | B145: 0.4819415 | C145: -5.5659
A146: 2007.323889 | B146: 0.4830955 | C146: -4.4119
A147: 2007.347798 | B147: 0.4832047 | C147: -4.3027
A148: 2007.371706 | B148: 0.482184 | C148: -5.3234
A149: 2007.395615 | B149: 0.4804872 | C149: -7.0202
A150: 2007.419523 | B150: 0.4787943 | C150: -8.7131
A151: 2007.443431 | B151: 0.4776944 | C151: -9.813
A152: 2007.46734 | B152: 0.4774432 | C152: -10.0642
A153: 2007.491248 | B153: 0.4778583 | C153: -9.6491
A154: 2007.515156 | B154: 0.4783961 | C154: -9.1113
A155: 2007.539065 | B155: 0.4784346 | C155: -9.0728
A156: 2007.562973 | B156: 0.4776386 | C156: -9.8688
A157: 2007.586882 | B157: 0.4762005 | C157: -11.3069
A158: 2007.61079 | B158: 0.4747946 | C158: -12.7128
A159: 2007.634698 | B159: 0.474238 | C159: -13.2694
A160: 2007.658607 | B160: 0.4750294 | C160: -12.478
A161: 2007.682515 | B161: 0.4770345 | C161: -10.4729
A162: 2007.706423 | B162: 0.4795482 | C162: -7.9592
A163: 2007.730332 | B163: 0.4817388 | C163: -5.7686
A164: 2007.75424 | B164: 0.4831961 | C164: -4.3113
A165: 2007.778148 | B165: 0.4841838 | C165: -3.3236
A166: 2007.802057 | B166: 0.4853487 | C166: -2.1587
A167: 2007.825965 | B167: 0.4870805 | C167: -0.4269
A168: 2007.849874 | B168: 0.4890886 | C168: 1.5812
A169: 2007.873782 | B169: 0.490596 | C169: 3.0886
A170: 2007.89769 | B170: 0.4910121 | C170: 3.5047
A171: 2007.921599 | B171: 0.4904719 | C171: 2.9645
A172: 2007.945507 | B172: 0.4897372 | C172: 2.2298
A173: 2007.969415 | B173: 0.4895568 | C173: 2.0494
A174: 2007.993324 | B174: 0.4900473 | C174: 2.5399
A175: 2008.017232 | B175: 0.4906402 | C175: 3.1328
A176: 2008.041141 | B176: 0.4906242 | C176: 3.1168
A177: 2008.065049 | B177: 0.4897905 | C177: 2.2831
A178: 2008.088957 | B178: 0.4886555 | C178: 1.1481
A179: 2008.112866 | B179: 0.4880598 | C179: 0.5524
A180: 2008.136774 | B180: 0.4884644 | C180: 0.957
A181: 2008.160682 | B181: 0.4895057 | C181: 1.9983
A182: 2008.184591 | B182: 0.4902054 | C182: 2.698
A183: 2008.208499 | B183: 0.4897259 | C183: 2.2185
A184: 2008.232408 | B184: 0.4880838 | C184: 0.5764
A185: 2008.256316 | B185: 0.4862034 | C185: -1.304
A186: 2008.280224 | B186: 0.4852097 | C186: -2.2977
A187: 2008.304133 | B187: 0.4855084 | C187: -1.999
A188: 2008.328041 | B188: 0.4864131 | C188: -1.0943
A189: 2008.351949 | B189: 0.4866642 | C189: -0.8432
A190: 2008.375858 | B190: 0.4854277 | C190: -2.0797
A191: 2008.399766 | B191: 0.4829509 | C191: -4.5565
A192: 2008.423675 | B192: 0.4803405 | C192: -7.1669
A193: 2008.447583 | B193: 0.478709 | C193: -8.7984
A194: 2008.471491 | B194: 0.4784324 | C194: -9.075
A195: 2008.4954 | B195: 0.4790836 | C195: -8.4238
A196: 2008.519308 | B196: 0.4799354 | C196: -7.572
A197: 2008.543217 | B197: 0.4805049 | C197: -7.0025
A198: 2008.567125 | B198: 0.4807551 | C198: -6.7523
A199: 2008.591033 | B199: 0.4809226 | C199: =(B199 - $B$6) * 1000 -> -6.5848
A200: 2008.614942 | B200: 0.4812269 | C200: -6.2805
A201: 2008.63885 | B201: 0.4816906 | C201: -5.8168
... 143 more rows

Sheet ENSO
A1: ENSO (El Niño - Southern Oscillation)
A3: Time | D3: Downloaded Data
A4: Year AD | B4: Month | C4: Decimal Year | D4: SOI ENSO Index (Troup system) | E4: SOI ENSO Index (US system) | F4: NINO 3.4 ENSO Index | G4: MEI ENSO Index
A5: Source--> | D5: BOM | E5: NCEP | F5: - | G5: -
A6: From--> | D6: 1876 | E6: 1933 | F6: 1854 | G6: 1950
A7: Units --> | D7: - | E7: - | F7: - | G7: -
A8: 1854 | B8: 1 | C8: =A8 + B8/12 - 1/24 -> 1854.041667 | F8: -0.258204
A9: 1854 | B9: 2 | C9: 1854.125 | F9: -0.205336
A10: 1854 | B10: 3 | C10: 1854.208333 | F10: -0.609402
A11: 1854 | B11: 4 | C11: 1854.291667 | F11: -0.768929
A12: 1854 | B12: 5 | C12: 1854.375 | F12: -0.874006
A13: 1854 | B13: 6 | C13: 1854.458333 | F13: -0.658094
A14: 1854 | B14: 7 | C14: 1854.541667 | F14: -0.670422
A15: 1854 | B15: 8 | C15: 1854.625 | F15: -1.247
A16: 1854 | B16: 9 | C16: 1854.708333 | F16: -0.538361
A17: 1854 | B17: 10 | C17: 1854.791667 | F17: -0.653151
A18: 1854 | B18: 11 | C18: 1854.875 | F18: -1.01569
A19: 1854 | B19: 12 | C19: 1854.958333 | F19: -0.930721
A20: 1855 | B20: 1 | C20: 1855.041667 | F20: -0.249084
A21: 1855 | B21: 2 | C21: 1855.125 | F21: 0.427055
A22: 1855 | B22: 3 | C22: 1855.208333 | F22: 0.212408
A23: 1855 | B23: 4 | C23: 1855.291667 | F23: 0.0142612
A24: 1855 | B24: 5 | C24: 1855.375 | F24: 0.0177746
A25: 1855 | B25: 6 | C25: 1855.458333 | F25: -0.377985
A26: 1855 | B26: 7 | C26: 1855.541667 | F26: -0.29215
A27: 1855 | B27: 8 | C27: 1855.625 | F27: -0.0343781
A28: 1855 | B28: 9 | C28: 1855.708333 | F28: 0.901009
A29: 1855 | B29: 10 | C29: 1855.791667 | F29: 0.736769
A30: 1855 | B30: 11 | C30: 1855.875 | F30: 0.57406
A31: 1855 | B31: 12 | C31: 1855.958333 | F31: 0.463268
A32: 1856 | B32: 1 | C32: 1856.041667 | F32: 0.477615
A33: 1856 | B33: 2 | C33: 1856.125 | F33: 0.375875
A34: 1856 | B34: 3 | C34: 1856.208333 | F34: 0.741268
A35: 1856 | B35: 4 | C35: 1856.291667 | F35: -0.205149
A36: 1856 | B36: 5 | C36: 1856.375 | F36: -0.474066
A37: 1856 | B37: 6 | C37: 1856.458333 | F37: -0.547565
A38: 1856 | B38: 7 | C38: 1856.541667 | F38: -0.783812
A39: 1856 | B39: 8 | C39: 1856.625 | F39: -1.29601
A40: 1856 | B40: 9 | C40: 1856.708333 | F40: -1.67722
A41: 1856 | B41: 10 | C41: 1856.791667 | F41: -1.97893
A42: 1856 | B42: 11 | C42: 1856.875 | F42: -1.78628
A43: 1856 | B43: 12 | C43: 1856.958333 | F43: -1.75664
A44: 1857 | B44: 1 | C44: 1857.041667 | F44: -1.84532
A45: 1857 | B45: 2 | C45: 1857.125 | F45: -1.56615
A46: 1857 | B46: 3 | C46: 1857.208333 | F46: -1.21738
A47: 1857 | B47: 4 | C47: 1857.291667 | F47: -1.02534
A48: 1857 | B48: 5 | C48: 1857.375 | F48: -0.260006
A49: 1857 | B49: 6 | C49: 1857.458333 | F49: 0.129795
A50: 1857 | B50: 7 | C50: 1857.541667 | F50: 0.11639
A51: 1857 | B51: 8 | C51: 1857.625 | F51: 0.120502
A52: 1857 | B52: 9 | C52: 1857.708333 | F52: 0.0690498
A53: 1857 | B53: 10 | C53: 1857.791667 | F53: -0.00150108
A54: 1857 | B54: 11 | C54: 1857.875 | F54: -0.0661697
A55: 1857 | B55: 12 | C55: 1857.958333 | F55: -0.190971
A56: 1858 | B56: 1 | C56: 1858.041667 | F56: -0.174583
A57: 1858 | B57: 2 | C57: 1858.125 | F57: -0.311584
A58: 1858 | B58: 3 | C58: 1858.208333 | F58: -0.551521
A59: 1858 | B59: 4 | C59: 1858.291667 | F59: -0.518799
A60: 1858 | B60: 5 | C60: 1858.375 | F60: -0.251305
A61: 1858 | B61: 6 | C61: 1858.458333 | F61: -0.592396
A62: 1858 | B62: 7 | C62: 1858.541667 | F62: -0.55018
A63: 1858 | B63: 8 | C63: 1858.625 | F63: -0.605629
A64: 1858 | B64: 9 | C64: 1858.708333 | F64: -0.50342
A65: 1858 | B65: 10 | C65: 1858.791667 | F65: -0.38829
A66: 1858 | B66: 11 | C66: =A66 + B66/12 - 1/24 -> 1858.875 | F66: -0.183701
A67: 1858 | B67: 12 | C67: 1858.958333 | F67: -0.290722
A68: 1859 | B68: 1 | C68: 1859.041667 | F68: -0.390114
A69: 1859 | B69: 2 | C69: 1859.125 | F69: -0.585455
A70: 1859 | B70: 3 | C70: 1859.208333 | F70: -0.680391
A71: 1859 | B71: 4 | C71: 1859.291667 | F71: -0.72551
A72: 1859 | B72: 5 | C72: 1859.375 | F72: -0.742136
A73: 1859 | B73: 6 | C73: 1859.458333 | F73: -0.209435
A74: 1859 | B74: 7 | C74: 1859.541667 | F74: -0.143171
A75: 1859 | B75: 8 | C75: 1859.625 | F75: -0.493748
A76: 1859 | B76: 9 | C76: 1859.708333 | F76: -0.590219
A77: 1859 | B77: 10 | C77: 1859.791667 | F77: -0.67576
A78: 1859 | B78: 11 | C78: 1859.875 | F78: -0.88619
A79: 1859 | B79: 12 | C79: 1859.958333 | F79: -0.512661
A80: 1860 | B80: 1 | C80: 1860.041667 | F80: -0.551584
A81: 1860 | B81: 2 | C81: 1860.125 | F81: -0.617125
A82: 1860 | B82: 3 | C82: 1860.208333 | F82: -0.923483
A83: 1860 | B83: 4 | C83: 1860.291667 | F83: -0.9653
A84: 1860 | B84: 5 | C84: 1860.375 | F84: -0.892576
A85: 1860 | B85: 6 | C85: 1860.458333 | F85: -1.18174
A86: 1860 | B86: 7 | C86: 1860.541667 | F86: -0.96121
A87: 1860 | B87: 8 | C87: 1860.625 | F87: -0.921749
A88: 1860 | B88: 9 | C88: 1860.708333 | F88: -0.848141
A89: 1860 | B89: 10 | C89: 1860.791667 | F89: -0.85284
A90: 1860 | B90: 11 | C90: 1860.875 | F90: -0.820421
A91: 1860 | B91: 12 | C91: 1860.958333 | F91: -0.770922
A92: 1861 | B92: 1 | C92: 1861.041667 | F92: -0.740484
A93: 1861 | B93: 2 | C93: 1861.125 | F93: -0.772064
A94: 1861 | B94: 3 | C94: 1861.208333 | F94: -0.730001
A95: 1861 | B95: 4 | C95: 1861.291667 | F95: -0.745739
A96: 1861 | B96: 5 | C96: 1861.375 | F96: -0.690016
A97: 1861 | B97: 6 | C97: 1861.458333 | F97: -0.661625
A98: 1861 | B98: 7 | C98: 1861.541667 | F98: -0.63534
A99: 1861 | B99: 8 | C99: 1861.625 | F99: -0.644268
A100: 1861 | B100: 9 | C100: 1861.708333 | F100: -0.614351
A101: 1861 | B101: 10 | C101: 1861.791667 | F101: -0.659351
A102: 1861 | B102: 11 | C102: 1861.875 | F102: -0.53266
A103: 1861 | B103: 12 | C103: 1861.958333 | F103: -0.549381
A104: 1862 | B104: 1 | C104: 1862.041667 | F104: -0.581764
A105: 1862 | B105: 2 | C105: 1862.125 | F105: -0.580385
A106: 1862 | B106: 3 | C106: 1862.208333 | F106: -0.570702
A107: 1862 | B107: 4 | C107: 1862.291667 | F107: -0.587429
A108: 1862 | B108: 5 | C108: 1862.375 | F108: -0.579395
A109: 1862 | B109: 6 | C109: 1862.458333 | F109: -0.561855
A110: 1862 | B110: 7 | C110: 1862.541667 | F110: -0.55665
A111: 1862 | B111: 8 | C111: 1862.625 | F111: -0.519808
A112: 1862 | B112: 9 | C112: 1862.708333 | F112: -0.56135
A113: 1862 | B113: 10 | C113: 1862.791667 | F113: -0.620901
A114: 1862 | B114: 11 | C114: 1862.875 | F114: -0.6238
A115: 1862 | B115: 12 | C115: 1862.958333 | F115: -0.708122
A116: 1863 | B116: 1 | C116: 1863.041667 | F116: -0.627363
A117: 1863 | B117: 2 | C117: 1863.125 | F117: -0.687965
A118: 1863 | B118: 3 | C118: 1863.208333 | F118: -0.638292
A119: 1863 | B119: 4 | C119: 1863.291667 | F119: -0.639648
A120: 1863 | B120: 5 | C120: 1863.375 | F120: -0.570616
A121: 1863 | B121: 6 | C121: 1863.458333 | F121: -0.474316
A122: 1863 | B122: 7 | C122: 1863.541667 | F122: -0.484261
A123: 1863 | B123: 8 | C123: 1863.625 | F123: -0.510498
A124: 1863 | B124: 9 | C124: 1863.708333 | F124: -0.51012
A125: 1863 | B125: 10 | C125: 1863.791667 | F125: -0.529972
A126: 1863 | B126: 11 | C126: 1863.875 | F126: -0.54257
A127: 1863 | B127: 12 | C127: 1863.958333 | F127: -0.636822
A128: 1864 | B128: 1 | C128: 1864.041667 | F128: -0.492144
A129: 1864 | B129: 2 | C129: 1864.125 | F129: -0.492136
A130: 1864 | B130: 3 | C130: =A130 + B130/12 - 1/24 -> 1864.208333 | F130: -0.480692
A131: 1864 | B131: 4 | C131: 1864.291667 | F131: -0.478739
A132: 1864 | B132: 5 | C132: 1864.375 | F132: -0.484625
A133: 1864 | B133: 6 | C133: 1864.458333 | F133: -0.460094
A134: 1864 | B134: 7 | C134: 1864.541667 | F134: -0.38406
A135: 1864 | B135: 8 | C135: 1864.625 | F135: -0.293818
A136: 1864 | B136: 9 | C136: 1864.708333 | F136: -0.11796
A137: 1864 | B137: 10 | C137: 1864.791667 | F137: 0.378439
A138: 1864 | B138: 11 | C138: 1864.875 | F138: 0.28569
A139: 1864 | B139: 12 | C139: 1864.958333 | F139: 0.257359
A140: 1865 | B140: 1 | C140: 1865.041667 | F140: 0.0250454
A141: 1865 | B141: 2 | C141: 1865.125 | F141: 0.00319481
A142: 1865 | B142: 3 | C142: 1865.208333 | F142: -0.107363
A143: 1865 | B143: 4 | C143: 1865.291667 | F143: -0.168638
A144: 1865 | B144: 5 | C144: 1865.375 | F144: -0.228216
A145: 1865 | B145: 6 | C145: 1865.458333 | F145: -0.226986
A146: 1865 | B146: 7 | C146: 1865.541667 | F146: -0.284391
A147: 1865 | B147: 8 | C147: 1865.625 | F147: -0.161028
A148: 1865 | B148: 9 | C148: 1865.708333 | F148: -0.231581
A149: 1865 | B149: 10 | C149: 1865.791667 | F149: -0.282511
A150: 1865 | B150: 11 | C150: 1865.875 | F150: -0.31987
A151: 1865 | B151: 12 | C151: 1865.958333 | F151: -0.393591
A152: 1866 | B152: 1 | C152: 1866.041667 | F152: -0.365984
A153: 1866 | B153: 2 | C153: 1866.125 | F153: -0.381216
A154: 1866 | B154: 3 | C154: 1866.208333 | F154: -0.408072
A155: 1866 | B155: 4 | C155: 1866.291667 | F155: -0.441809
A156: 1866 | B156: 5 | C156: 1866.375 | F156: -0.468845
A157: 1866 | B157: 6 | C157: 1866.458333 | F157: -0.497995
A158: 1866 | B158: 7 | C158: 1866.541667 | F158: -0.47579
A159: 1866 | B159: 8 | C159: 1866.625 | F159: -0.452948
A160: 1866 | B160: 9 | C160: 1866.708333 | F160: -0.44981
A161: 1866 | B161: 10 | C161: 1866.791667 | F161: -0.468592
A162: 1866 | B162: 11 | C162: 1866.875 | F162: -0.485031
A163: 1866 | B163: 12 | C163: 1866.958333 | F163: -0.521751
A164: 1867 | B164: 1 | C164: 1867.041667 | F164: -0.552614
A165: 1867 | B165: 2 | C165: 1867.125 | F165: -0.549456
A166: 1867 | B166: 3 | C166: 1867.208333 | F166: -0.572083
A167: 1867 | B167: 4 | C167: 1867.291667 | F167: -0.605049
A168: 1867 | B168: 5 | C168: 1867.375 | F168: -0.603546
A169: 1867 | B169: 6 | C169: 1867.458333 | F169: -0.612545
A170: 1867 | B170: 7 | C170: 1867.541667 | F170: -0.5965
A171: 1867 | B171: 8 | C171: 1867.625 | F171: -0.553278
A172: 1867 | B172: 9 | C172: 1867.708333 | F172: -0.53837
A173: 1867 | B173: 10 | C173: 1867.791667 | F173: -0.550371
A174: 1867 | B174: 11 | C174: 1867.875 | F174: -0.55097
A175: 1867 | B175: 12 | C175: 1867.958333 | F175: -0.596302
A176: 1868 | B176: 1 | C176: 1868.041667 | F176: -0.572073
A177: 1868 | B177: 2 | C177: 1868.125 | F177: -0.572004
A178: 1868 | B178: 3 | C178: 1868.208333 | F178: -0.593323
A179: 1868 | B179: 4 | C179: 1868.291667 | F179: -0.61237
A180: 1868 | B180: 5 | C180: 1868.375 | F180: -0.583315
A181: 1868 | B181: 6 | C181: 1868.458333 | F181: -0.499395
A182: 1868 | B182: 7 | C182: 1868.541667 | F182: -0.33242
A183: 1868 | B183: 8 | C183: 1868.625 | F183: 0.0429821
A184: 1868 | B184: 9 | C184: 1868.708333 | F184: 0.908249
A185: 1868 | B185: 10 | C185: 1868.791667 | F185: 0.662428
A186: 1868 | B186: 11 | C186: 1868.875 | F186: 0.790169
A187: 1868 | B187: 12 | C187: 1868.958333 | F187: 0.834358
A188: 1869 | B188: 1 | C188: 1869.041667 | F188: 0.377037
A189: 1869 | B189: 2 | C189: 1869.125 | F189: 0.348036
A190: 1869 | B190: 3 | C190: 1869.208333 | F190: 0.204477
A191: 1869 | B191: 4 | C191: 1869.291667 | F191: -0.00732803
A192: 1869 | B192: 5 | C192: 1869.375 | F192: -0.105375
A193: 1869 | B193: 6 | C193: 1869.458333 | F193: -0.313595
A194: 1869 | B194: 7 | C194: =A194 + B194/12 - 1/24 -> 1869.541667 | F194: -0.603531
A195: 1869 | B195: 8 | C195: 1869.625 | F195: -1.71366
A196: 1869 | B196: 9 | C196: 1869.708333 | F196: -1.79592
A197: 1869 | B197: 10 | C197: 1869.791667 | F197: -1.8247
A198: 1869 | B198: 11 | C198: 1869.875 | F198: -1.31218
A199: 1869 | B199: 12 | C199: 1869.958333 | F199: -1.71921
A200: 1870 | B200: 1 | C200: 1870.041667 | F200: -1.14752
A201: 1870 | B201: 2 | C201: 1870.125 | F201: -1.33196
... 1801 more rows

Sheet SST
A1: SST (Sea-Surface Temperature)
A3: Time | D3: Downloaded Data | E3: Calculations
A4: Year AD | B4: Month | C4: Decimal Year | D4: HadSST3 Change in sea surface temperature, Global | E4: HadSST3 5 year centered averages
A5: Source--> | D5: UK Met Office Surface thermo's | E5: HadSST 3
A6: Units --> | D6: deg C | E6: deg C
A7: 1850 | B7: 1 | C7: =A7 + B7/12 - 1/24 -> 1850.041667 | D7: -0.371 | E7: =AVERAGE(D$7:D36) -> -0.2760666667
A8: 1850 | B8: 2 | C8: =A8 + B8/12 - 1/24 -> 1850.125 | D8: -0.346 | E8: =AVERAGE(D$7:D37) -> -0.2690645161
A9: 1850 | B9: 3 | C9: =A9 + B9/12 - 1/24 -> 1850.208333 | D9: -0.607 | E9: =AVERAGE(D$7:D38) -> -0.268125
A10: 1850 | B10: 4 | C10: 1850.291667 | D10: -0.419 | E10: =AVERAGE(D$7:D39) -> -0.2632121212
A11: 1850 | B11: 5 | C11: 1850.375 | D11: -0.246 | E11: =AVERAGE(D$7:D40) -> -0.2596470588
A12: 1850 | B12: 6 | C12: 1850.458333 | D12: -0.24 | E12: =AVERAGE(D$7:D41) -> -0.2552857143
A13: 1850 | B13: 7 | C13: 1850.541667 | D13: -0.207 | E13: =AVERAGE(D$7:D42) -> -0.2495
A14: 1850 | B14: 8 | C14: 1850.625 | D14: -0.344 | E14: =AVERAGE(D$7:D43) -> -0.25
A15: 1850 | B15: 9 | C15: 1850.708333 | D15: -0.404 | E15: =AVERAGE(D$7:D44) -> -0.2486842105
A16: 1850 | B16: 10 | C16: 1850.791667 | D16: -0.374 | E16: =AVERAGE(D$7:D45) -> -0.2458717949
A17: 1850 | B17: 11 | C17: 1850.875 | D17: -0.188 | E17: =AVERAGE(D$7:D46) -> -0.24545
A18: 1850 | B18: 12 | C18: 1850.958333 | D18: -0.265 | E18: =AVERAGE(D$7:D47) -> -0.2455121951
A19: 1851 | B19: 1 | C19: 1851.041667 | D19: -0.353 | E19: =AVERAGE(D$7:D48) -> -0.2441190476
A20: 1851 | B20: 2 | C20: 1851.125 | D20: -0.334 | E20: =AVERAGE(D$7:D49) -> -0.2412790698
A21: 1851 | B21: 3 | C21: 1851.208333 | D21: -0.313 | E21: =AVERAGE(D$7:D50) -> -0.2404772727
A22: 1851 | B22: 4 | C22: 1851.291667 | D22: -0.397 | E22: =AVERAGE(D$7:D51) -> -0.2436444444
A23: 1851 | B23: 5 | C23: 1851.375 | D23: -0.285 | E23: =AVERAGE(D$7:D52) -> -0.2471521739
A24: 1851 | B24: 6 | C24: 1851.458333 | D24: -0.22 | E24: =AVERAGE(D$7:D53) -> -0.2456170213
A25: 1851 | B25: 7 | C25: 1851.541667 | D25: -0.228 | E25: =AVERAGE(D$7:D54) -> -0.24625
A26: 1851 | B26: 8 | C26: 1851.625 | D26: -0.23 | E26: =AVERAGE(D$7:D55) -> -0.2466326531
A27: 1851 | B27: 9 | C27: 1851.708333 | D27: -0.122 | E27: =AVERAGE(D$7:D56) -> -0.24748
A28: 1851 | B28: 10 | C28: 1851.791667 | D28: -0.086 | E28: =AVERAGE(D$7:D57) -> -0.2479607843
A29: 1851 | B29: 11 | C29: 1851.875 | D29: 0.063 | E29: =AVERAGE(D$7:D58) -> -0.2479615385
A30: 1851 | B30: 12 | C30: 1851.958333 | D30: -0.013 | E30: =AVERAGE(D$7:D59) -> -0.248245283
A31: 1852 | B31: 1 | C31: 1852.041667 | D31: -0.333 | E31: =AVERAGE(D$7:D60) -> -0.2473148148
A32: 1852 | B32: 2 | C32: 1852.125 | D32: -0.463 | E32: =AVERAGE(D$7:D61) -> -0.2484909091
A33: 1852 | B33: 3 | C33: 1852.208333 | D33: -0.358 | E33: =AVERAGE(D$7:D62) -> -0.2481964286
A34: 1852 | B34: 4 | C34: 1852.291667 | D34: -0.342 | E34: =AVERAGE(D$7:D63) -> -0.2460350877
A35: 1852 | B35: 5 | C35: 1852.375 | D35: -0.23 | E35: =AVERAGE(D$7:D64) -> -0.2468793103
A36: 1852 | B36: 6 | C36: 1852.458333 | D36: -0.027 | E36: =AVERAGE(D$7:D65) -> -0.2484576271
A37: 1852 | B37: 7 | C37: 1852.541667 | D37: -0.059 | E37: =AVERAGE(D7:D66) -> -0.2499166667
A38: 1852 | B38: 8 | C38: 1852.625 | D38: -0.239 | E38: =AVERAGE(D8:D67) -> -0.2459833333
A39: 1852 | B39: 9 | C39: 1852.708333 | D39: -0.106 | E39: -0.24375
A40: 1852 | B40: 10 | C40: 1852.791667 | D40: -0.142 | E40: -0.2371833333
A41: 1852 | B41: 11 | C41: 1852.875 | D41: -0.107 | E41: -0.2349
A42: 1852 | B42: 12 | C42: 1852.958333 | D42: -0.047 | E42: -0.2376
A43: 1853 | B43: 1 | C43: 1853.041667 | D43: -0.268 | E43: -0.2367333333
A44: 1853 | B44: 2 | C44: 1853.125 | D44: -0.2 | E44: -0.2386166667
A45: 1853 | B45: 3 | C45: 1853.208333 | D45: -0.139 | E45: -0.2361333333
A46: 1853 | B46: 4 | C46: 1853.291667 | D46: -0.229 | E46: -0.2345333333
A47: 1853 | B47: 5 | C47: 1853.375 | D47: -0.248 | E47: -0.2323333333
A48: 1853 | B48: 6 | C48: 1853.458333 | D48: -0.187 | E48: -0.23105
A49: 1853 | B49: 7 | C49: 1853.541667 | D49: -0.122 | E49: -0.2297166667
A50: 1853 | B50: 8 | C50: 1853.625 | D50: -0.206 | E50: -0.2263166667
A51: 1853 | B51: 9 | C51: 1853.708333 | D51: -0.383 | E51: -0.2257666667
A52: 1853 | B52: 10 | C52: 1853.791667 | D52: -0.405 | E52: -0.2256666667
A53: 1853 | B53: 11 | C53: 1853.875 | D53: -0.175 | E53: -0.2252
A54: 1853 | B54: 12 | C54: 1853.958333 | D54: -0.276 | E54: -0.2212666667
A55: 1854 | B55: 1 | C55: 1854.041667 | D55: -0.265 | E55: -0.22415
A56: 1854 | B56: 2 | C56: 1854.125 | D56: -0.289 | E56: -0.2257666667
A57: 1854 | B57: 3 | C57: 1854.208333 | D57: -0.272 | E57: -0.2269
A58: 1854 | B58: 4 | C58: 1854.291667 | D58: -0.248 | E58: -0.2318333333
A59: 1854 | B59: 5 | C59: 1854.375 | D59: -0.263 | E59: -0.2361166667
A60: 1854 | B60: 6 | C60: 1854.458333 | D60: -0.198 | E60: -0.2452166667
A61: 1854 | B61: 7 | C61: 1854.541667 | D61: -0.312 | E61: -0.2529666667
A62: 1854 | B62: 8 | C62: 1854.625 | D62: -0.232 | E62: -0.2546666667
A63: 1854 | B63: 9 | C63: 1854.708333 | D63: -0.125 | E63: -0.25345
A64: 1854 | B64: 10 | C64: 1854.791667 | D64: -0.295 | E64: -0.2537833333
A65: 1854 | B65: 11 | C65: 1854.875 | D65: -0.34 | E65: -0.2558
A66: 1854 | B66: 12 | C66: 1854.958333 | D66: -0.336 | E66: -0.2601
A67: 1855 | B67: 1 | C67: 1855.041667 | D67: -0.135 | E67: -0.2647
A68: 1855 | B68: 2 | C68: 1855.125 | D68: -0.212 | E68: -0.2739333333
A69: 1855 | B69: 3 | C69: 1855.208333 | D69: -0.213 | E69: -0.27665
A70: 1855 | B70: 4 | C70: 1855.291667 | D70: -0.282 | E70: -0.28055
A71: 1855 | B71: 5 | C71: 1855.375 | D71: -0.408 | E71: -0.2860833333
A72: 1855 | B72: 6 | C72: 1855.458333 | D72: -0.188 | E72: -0.29395
A73: 1855 | B73: 7 | C73: =A73 + B73/12 - 1/24 -> 1855.541667 | D73: -0.32 | E73: -0.30265
A74: 1855 | B74: 8 | C74: 1855.625 | D74: -0.195 | E74: -0.3088333333
A75: 1855 | B75: 9 | C75: 1855.708333 | D75: -0.308 | E75: -0.3142
A76: 1855 | B76: 10 | C76: 1855.791667 | D76: -0.242 | E76: -0.3196833333
A77: 1855 | B77: 11 | C77: 1855.875 | D77: -0.111 | E77: -0.3246333333
A78: 1855 | B78: 12 | C78: 1855.958333 | D78: -0.185 | E78: -0.3323833333
A79: 1856 | B79: 1 | C79: 1856.041667 | D79: -0.149 | E79: -0.3416666667
A80: 1856 | B80: 2 | C80: 1856.125 | D80: -0.301 | E80: -0.3468
A81: 1856 | B81: 3 | C81: 1856.208333 | D81: -0.307 | E81: -0.3484666667
A82: 1856 | B82: 4 | C82: 1856.291667 | D82: -0.369 | E82: -0.3482833333
A83: 1856 | B83: 5 | C83: 1856.375 | D83: -0.049 | E83: -0.3459166667
A84: 1856 | B84: 6 | C84: 1856.458333 | D84: -0.393 | E84: -0.3492
A85: 1856 | B85: 7 | C85: 1856.541667 | D85: -0.325 | E85: -0.3497666667
A86: 1856 | B86: 8 | C86: 1856.625 | D86: -0.298 | E86: -0.3523333333
A87: 1856 | B87: 9 | C87: 1856.708333 | D87: -0.418 | E87: -0.3536833333
A88: 1856 | B88: 10 | C88: 1856.791667 | D88: -0.343 | E88: -0.3559666667
A89: 1856 | B89: 11 | C89: 1856.875 | D89: -0.483 | E89: -0.3553166667
A90: 1856 | B90: 12 | C90: 1856.958333 | D90: -0.478 | E90: -0.3574833333
A91: 1857 | B91: 1 | C91: 1857.041667 | D91: -0.435 | E91: -0.3596833333
A92: 1857 | B92: 2 | C92: 1857.125 | D92: -0.39 | E92: -0.3613166667
A93: 1857 | B93: 3 | C93: 1857.208333 | D93: -0.378 | E93: -0.36125
A94: 1857 | B94: 4 | C94: 1857.291667 | D94: -0.463 | E94: -0.3694
A95: 1857 | B95: 5 | C95: 1857.375 | D95: -0.488 | E95: -0.3686
A96: 1857 | B96: 6 | C96: 1857.458333 | D96: -0.303 | E96: -0.3686166667
A97: 1857 | B97: 7 | C97: 1857.541667 | D97: -0.613 | E97: -0.3663666667
A98: 1857 | B98: 8 | C98: 1857.625 | D98: -0.402 | E98: -0.3678
A99: 1857 | B99: 9 | C99: 1857.708333 | D99: -0.34 | E99: -0.3687333333
A100: 1857 | B100: 10 | C100: 1857.791667 | D100: -0.474 | E100: -0.3705833333
A101: 1857 | B101: 11 | C101: 1857.875 | D101: -0.579 | E101: -0.3711166667
A102: 1857 | B102: 12 | C102: 1857.958333 | D102: -0.569 | E102: =AVERAGE(D72:D131) -> -0.3701333333
A103: 1858 | B103: 1 | C103: 1858.041667 | D103: -0.639 | E103: -0.3744833333
A104: 1858 | B104: 2 | C104: 1858.125 | D104: -0.522 | E104: -0.3712166667
A105: 1858 | B105: 3 | C105: 1858.208333 | D105: -0.468 | E105: -0.3718166667
A106: 1858 | B106: 4 | C106: 1858.291667 | D106: -0.526 | E106: -0.3708333333
A107: 1858 | B107: 5 | C107: 1858.375 | D107: -0.713 | E107: -0.3694
A108: 1858 | B108: 6 | C108: 1858.458333 | D108: -0.744 | E108: -0.3715166667
A109: 1858 | B109: 7 | C109: 1858.541667 | D109: -0.43 | E109: -0.3744833333
A110: 1858 | B110: 8 | C110: 1858.625 | D110: -0.306 | E110: -0.3787333333
A111: 1858 | B111: 9 | C111: 1858.708333 | D111: -0.372 | E111: -0.3860333333
A112: 1858 | B112: 10 | C112: 1858.791667 | D112: -0.263 | E112: -0.39225
A113: 1858 | B113: 11 | C113: 1858.875 | D113: -0.372 | E113: -0.38835
A114: 1858 | B114: 12 | C114: 1858.958333 | D114: -0.31 | E114: -0.3975833333
A115: 1859 | B115: 1 | C115: 1859.041667 | D115: -0.419 | E115: -0.3969333333
A116: 1859 | B116: 2 | C116: 1859.125 | D116: -0.37 | E116: -0.3995333333
A117: 1859 | B117: 3 | C117: 1859.208333 | D117: -0.409 | E117: -0.3979166667
A118: 1859 | B118: 4 | C118: 1859.291667 | D118: -0.209 | E118: -0.3968333333
A119: 1859 | B119: 5 | C119: 1859.375 | D119: -0.393 | E119: -0.3979166667
A120: 1859 | B120: 6 | C120: 1859.458333 | D120: -0.33 | E120: -0.3967333333
A121: 1859 | B121: 7 | C121: 1859.541667 | D121: -0.41 | E121: -0.39335
A122: 1859 | B122: 8 | C122: 1859.625 | D122: -0.228 | E122: -0.3937
A123: 1859 | B123: 9 | C123: 1859.708333 | D123: -0.614 | E123: -0.39355
A124: 1859 | B124: 10 | C124: 1859.791667 | D124: -0.247 | E124: -0.3924
A125: 1859 | B125: 11 | C125: 1859.875 | D125: -0.341 | E125: -0.3887166667
A126: 1859 | B126: 12 | C126: 1859.958333 | D126: -0.201 | E126: -0.3837333333
A127: 1860 | B127: 1 | C127: 1860.041667 | D127: -0.221 | E127: -0.38385
A128: 1860 | B128: 2 | C128: 1860.125 | D128: -0.268 | E128: -0.3798666667
A129: 1860 | B129: 3 | C129: 1860.208333 | D129: -0.324 | E129: -0.3854666667
A130: 1860 | B130: 4 | C130: 1860.291667 | D130: -0.314 | E130: -0.3877833333
A131: 1860 | B131: 5 | C131: 1860.375 | D131: -0.349 | E131: -0.3867
A132: 1860 | B132: 6 | C132: 1860.458333 | D132: -0.449 | E132: -0.3859166667
A133: 1860 | B133: 7 | C133: 1860.541667 | D133: -0.124 | E133: -0.3859333333
A134: 1860 | B134: 8 | C134: 1860.625 | D134: -0.231 | E134: -0.3815833333
A135: 1860 | B135: 9 | C135: 1860.708333 | D135: -0.249 | E135: -0.3778666667
A136: 1860 | B136: 10 | C136: 1860.791667 | D136: -0.156 | E136: -0.3768
A137: 1860 | B137: 11 | C137: =A137 + B137/12 - 1/24 -> 1860.875 | D137: -0.238 | E137: -0.37165
A138: 1860 | B138: 12 | C138: 1860.958333 | D138: -0.363 | E138: -0.3669333333
A139: 1861 | B139: 1 | C139: 1861.041667 | D139: -0.404 | E139: -0.3616
A140: 1861 | B140: 2 | C140: 1861.125 | D140: -0.739 | E140: -0.3608166667
A141: 1861 | B141: 3 | C141: 1861.208333 | D141: -0.68 | E141: -0.3625833333
A142: 1861 | B142: 4 | C142: 1861.291667 | D142: -0.135 | E142: -0.3640666667
A143: 1861 | B143: 5 | C143: 1861.375 | D143: -0.603 | E143: -0.3652666667
A144: 1861 | B144: 6 | C144: 1861.458333 | D144: -0.354 | E144: -0.36565
A145: 1861 | B145: 7 | C145: 1861.541667 | D145: -0.481 | E145: -0.3663166667
A146: 1861 | B146: 8 | C146: 1861.625 | D146: -0.201 | E146: -0.37095
A147: 1861 | B147: 9 | C147: 1861.708333 | D147: -0.353 | E147: -0.3757
A148: 1861 | B148: 10 | C148: 1861.791667 | D148: -0.408 | E148: -0.37815
A149: 1861 | B149: 11 | C149: 1861.875 | D149: -0.412 | E149: -0.3824
A150: 1861 | B150: 12 | C150: 1861.958333 | D150: -0.275 | E150: -0.3802
A151: 1862 | B151: 1 | C151: 1862.041667 | D151: -0.456 | E151: -0.3804333333
A152: 1862 | B152: 2 | C152: 1862.125 | D152: -0.381 | E152: -0.3779333333
A153: 1862 | B153: 3 | C153: 1862.208333 | D153: -0.309 | E153: -0.3811833333
A154: 1862 | B154: 4 | C154: 1862.291667 | D154: -0.242 | E154: -0.3788333333
A155: 1862 | B155: 5 | C155: 1862.375 | D155: -0.189 | E155: -0.3814833333
A156: 1862 | B156: 6 | C156: 1862.458333 | D156: -0.31 | E156: -0.3774166667
A157: 1862 | B157: 7 | C157: 1862.541667 | D157: -0.374 | E157: -0.3778166667
A158: 1862 | B158: 8 | C158: 1862.625 | D158: -0.738 | E158: -0.37785
A159: 1862 | B159: 9 | C159: 1862.708333 | D159: -0.479 | E159: -0.3757333333
A160: 1862 | B160: 10 | C160: 1862.791667 | D160: -0.409 | E160: -0.3730666667
A161: 1862 | B161: 11 | C161: 1862.875 | D161: -0.532 | E161: -0.37095
A162: 1862 | B162: 12 | C162: 1862.958333 | D162: -0.57 | E162: -0.3707333333
A163: 1863 | B163: 1 | C163: 1863.041667 | D163: -0.378 | E163: -0.3683166667
A164: 1863 | B164: 2 | C164: 1863.125 | D164: -0.299 | E164: -0.371
A165: 1863 | B165: 3 | C165: 1863.208333 | D165: -0.404 | E165: -0.3705
A166: 1863 | B166: 4 | C166: 1863.291667 | D166: -0.217 | E166: =AVERAGE(D136:D195) -> -0.3714166667
A167: 1863 | B167: 5 | C167: 1863.375 | D167: -0.43 | E167: -0.37235
A168: 1863 | B168: 6 | C168: 1863.458333 | D168: -0.424 | E168: -0.3746
A169: 1863 | B169: 7 | C169: 1863.541667 | D169: -0.383 | E169: -0.3728833333
A170: 1863 | B170: 8 | C170: 1863.625 | D170: -0.412 | E170: -0.3713
A171: 1863 | B171: 9 | C171: 1863.708333 | D171: -0.461 | E171: -0.3604833333
A172: 1863 | B172: 10 | C172: 1863.791667 | D172: -0.335 | E172: -0.3571166667
A173: 1863 | B173: 11 | C173: 1863.875 | D173: -0.395 | E173: -0.35985
A174: 1863 | B174: 12 | C174: 1863.958333 | D174: -0.35 | E174: -0.3554
A175: 1864 | B175: 1 | C175: 1864.041667 | D175: -0.697 | E175: -0.3488833333
A176: 1864 | B176: 2 | C176: 1864.125 | D176: -0.655 | E176: -0.3413333333
A177: 1864 | B177: 3 | C177: 1864.208333 | D177: -0.556 | E177: -0.34115
A178: 1864 | B178: 4 | C178: 1864.291667 | D178: -0.464 | E178: -0.3411333333
A179: 1864 | B179: 5 | C179: 1864.375 | D179: -0.261 | E179: -0.3369833333
A180: 1864 | B180: 6 | C180: 1864.458333 | D180: -0.344 | E180: -0.3327166667
A181: 1864 | B181: 7 | C181: 1864.541667 | D181: -0.26 | E181: -0.3345666667
A182: 1864 | B182: 8 | C182: 1864.625 | D182: -0.423 | E182: -0.32925
A183: 1864 | B183: 9 | C183: 1864.708333 | D183: -0.473 | E183: -0.328
A184: 1864 | B184: 10 | C184: 1864.791667 | D184: -0.406 | E184: -0.32505
A185: 1864 | B185: 11 | C185: 1864.875 | D185: -0.097 | E185: -0.3233833333
A186: 1864 | B186: 12 | C186: 1864.958333 | D186: -0.225 | E186: -0.3240333333
A187: 1865 | B187: 1 | C187: 1865.041667 | D187: -0.223 | E187: -0.3244166667
A188: 1865 | B188: 2 | C188: 1865.125 | D188: -0.141 | E188: -0.3214833333
A189: 1865 | B189: 3 | C189: 1865.208333 | D189: -0.164 | E189: -0.3139166667
A190: 1865 | B190: 4 | C190: 1865.291667 | D190: -0.187 | E190: -0.3080666667
A191: 1865 | B191: 5 | C191: 1865.375 | D191: -0.336 | E191: -0.3053666667
A192: 1865 | B192: 6 | C192: 1865.458333 | D192: -0.304 | E192: -0.2993666667
A193: 1865 | B193: 7 | C193: 1865.541667 | D193: -0.285 | E193: -0.2975
A194: 1865 | B194: 8 | C194: 1865.625 | D194: -0.201 | E194: -0.2980166667
A195: 1865 | B195: 9 | C195: 1865.708333 | D195: -0.304 | E195: -0.29755
A196: 1865 | B196: 10 | C196: 1865.791667 | D196: -0.212 | E196: -0.2914833333
A197: 1865 | B197: 11 | C197: 1865.875 | D197: -0.373 | E197: -0.2921333333
A198: 1865 | B198: 12 | C198: 1865.958333 | D198: -0.26 | E198: -0.2890166667
A199: 1866 | B199: 1 | C199: 1866.041667 | D199: -0.309 | E199: -0.28935
A200: 1866 | B200: 2 | C200: 1866.125 | D200: -0.09 | E200: -0.2846666667
A201: 1866 | B201: 3 | C201: =A201 + B201/12 - 1/24 -> 1866.208333 | D201: -0.478 | E201: -0.2810666667
... 1848 more rows

Sheet Comp Solar
A1: Composite TSI
T3: Composite TSI with ongoing data | AB3: Composite TSI with data to Aug 2013 | AF3: Change in TSI - 11 Year Smoothing
A4: Time | D4: Absolute TSI - With 1-Year Smoothing | L4: Change in TSI - With Equalized Overlapping Averages, 1-Year Smoothing | T4: Composite | X4: Extension | Z4: 5-Yearly | AB4: Composite
A5: Year AD | B5: Month | C5: Decimal Year | D5: TSI (1-AU) | E5: TSI (1-AU) | F5: TSI (1-AU) | G5: TSI (1-AU) | H5: TSI (1-AU) | I5: TSI (1-AU) | J5: TSI (1-AU) | K5: TSI (1-AU) | L5: Change in TSI (1-AU) | M5: Change in TSI (1-AU) | N5: Change in TSI (1-AU) | O5: Change in TSI (1-AU) | P5: Change in TSI (1-AU) | Q5: Change in TSI (1-AU) | R5: Change in TSI (1-AU) | S5: Change in TSI (1-AU) | T5: Composite Change in TSI (1-AU) | U5: Composite Change in TSI (1-AU) | V5: Composite Change in TSI (1-AU) | W5: Composite Change in TSI (1-AU) | X5: Composite Change in TSI (1-AU) | Y5: Composite Change in TSI (1-AU) | Z5: Year AD | AA5: 5-Yearly Change in TSI (1-AU) | AB5: Composite Change in TSI (1-AU) | AC5: Composite Change in TSI (1-AU) | AD5: Composite Change in TSI (1-AU) | AE5: Composite Change in TSI (1-AU) | AF5: Change in TSI (1-AU) | AG5: Change in TSI (1-AU) | AH5: Change in TSI (1-AU) | AI5: Change in TSI (1-AU)
D6: Steinhilber 2009 | E6: Steinhilber 2012 | F6: Delaygue & Bard 2010 | G6: Sunspots SIDC | H6: Lean 2000 Yearly | I6: Lean 2000 Monthy | J6: PMOD | K6: ACRIM | L6: Steinhilber 2009 | M6: Steinhilber 2012 | N6: Delaygue & Bard 2010 | O6: Sunspots SIDC | P6: Lean 2000 Yearly | Q6: Lean 2000 Monthy | R6: PMOD | S6: ACRIM | T6: Sources: See notes below | U6: 1-year smoothed | V6: 11-year smoothed | W6: 11-year smoothed, 11-year delayed | X6: Extensions For smoothed end | Y6: Extensions WIth 11-year smoothing | AA6: Sources: See notes below | AB6: Sources: See notes below | AC6: 1-year smoothed | AD6: 11-year smoothed | AE6: 11-year smoothed, 11-year delayed | AF6: Sunspots SIDC | AG6: Lean 2000 Monthy | AH6: PMOD | AI6: ACRIM
D7: W / m2 | E7: W / m2 | F7: W / m2 | G7: W / m2 | H7: W / m2 | I7: W / m2 | J7: W / m2 | K7: W / m2 | L7: W / m2 | M7: W / m2 | N7: W / m2 | O7: W / m2 | P7: W / m2 | Q7: W / m2 | R7: W / m2 | S7: W / m2 | T7: W / m2 | U7: W / m2 | V7: W / m2 | W7: W / m2 | X7: W / m2 | Y7: W / m2 | AA7: W / m2 | AB7: W / m2 | AC7: W / m2 | AD7: W / m2 | AE7: W / m2 | AF7: W / m2 | AG7: W / m2 | AH7: W / m2 | AI7: W / m2
A8: -97.5 | C8: =A8 -> -97.5 | T8: 0.2344875 | U8: 0.2344875 | V8: 0.2294875 | Z8: -97.5 | AA8: 0.2344875 | AB8: 0.2344875 | AC8: 0.2344875 | AD8: 0.2294875
A9: -92.5 | C9: =A9 -> -92.5 | T9: 0.2244875 | U9: 0.2244875 | V9: 0.2178208333 | Z9: -92.5 | AA9: 0.2244875 | AB9: 0.2244875 | AC9: 0.2244875 | AD9: 0.2178208333
A10: -87.5 | C10: -87.5 | T10: 0.1944875 | U10: 0.1944875 | V10: 0.1894875 | W10: 0.2294875 | Z10: -87.5 | AA10: 0.1944875 | AB10: 0.1944875 | AC10: 0.1944875 | AD10: 0.1894875 | AE10: 0.2294875
A11: -82.5 | C11: -82.5 | T11: 0.1494875 | U11: 0.1494875 | V11: 0.1594875 | W11: 0.2294875 | Z11: -82.5 | AA11: 0.1494875 | AB11: 0.1494875 | AC11: 0.1494875 | AD11: 0.1594875 | AE11: 0.2294875
A12: -77.5 | C12: -77.5 | T12: 0.1344875 | U12: 0.1344875 | V12: 0.1344875 | W12: 0.1951541667 | Z12: -77.5 | AA12: 0.1344875 | AB12: 0.1344875 | AC12: 0.1344875 | AD12: 0.1344875 | AE12: 0.1951541667
A13: -72.5 | C13: -72.5 | T13: 0.1194875 | U13: 0.1194875 | V13: 0.1278208333 | W13: 0.1654875 | Z13: -72.5 | AA13: 0.1194875 | AB13: 0.1194875 | AC13: 0.1194875 | AD13: 0.1278208333 | AE13: 0.1654875
A14: -67.5 | C14: -67.5 | T14: 0.1294875 | U14: 0.1294875 | V14: 0.1394875 | W14: 0.1394875 | Z14: -67.5 | AA14: 0.1294875 | AB14: 0.1294875 | AC14: 0.1294875 | AD14: 0.1394875 | AE14: 0.1394875
A15: -62.5 | C15: -62.5 | T15: 0.1694875 | U15: 0.1694875 | V15: 0.1578208333 | W15: 0.1291541667 | Z15: -62.5 | AA15: 0.1694875 | AB15: 0.1694875 | AC15: 0.1694875 | AD15: 0.1578208333 | AE15: 0.1291541667
A16: -57.5 | C16: -57.5 | T16: 0.1744875 | U16: 0.1744875 | V16: 0.1778208333 | W16: 0.1371541667 | Z16: -57.5 | AA16: 0.1744875 | AB16: 0.1744875 | AC16: 0.1744875 | AD16: 0.1778208333 | AE16: 0.1371541667
A17: -52.5 | C17: -52.5 | T17: 0.1894875 | U17: 0.1894875 | V17: 0.1911541667 | W17: 0.1541541667 | Z17: -52.5 | AA17: 0.1894875 | AB17: 0.1894875 | AC17: 0.1894875 | AD17: 0.1911541667 | AE17: 0.1541541667
A18: -47.5 | C18: -47.5 | T18: 0.2094875 | U18: 0.2094875 | V18: 0.2028208333 | W18: 0.1738208333 | Z18: -47.5 | AA18: 0.2094875 | AB18: 0.2094875 | AC18: 0.2094875 | AD18: 0.2028208333 | AE18: 0.1738208333
A19: -42.5 | C19: -42.5 | T19: 0.2094875 | U19: 0.2094875 | V19: 0.2034875 | W19: 0.1884875 | Z19: -42.5 | AA19: 0.2094875 | AB19: 0.2094875 | AC19: 0.2094875 | AD19: 0.2034875 | AE19: 0.1884875
A20: -37.5 | C20: -37.5 | T20: 0.1914875 | U20: 0.1914875 | V20: 0.1851541667 | W20: 0.2004875 | Z20: -37.5 | AA20: 0.1914875 | AB20: 0.1914875 | AC20: 0.1914875 | AD20: 0.1851541667 | AE20: 0.2004875
A21: -32.5 | C21: -32.5 | T21: 0.1544875 | U21: 0.1544875 | V21: 0.1534875 | W21: 0.2033541667 | Z21: -32.5 | AA21: 0.1544875 | AB21: 0.1544875 | AC21: 0.1544875 | AD21: 0.1534875 | AE21: 0.2033541667
A22: -27.5 | C22: -27.5 | T22: 0.1144875 | U22: 0.1144875 | V22: 0.1194875 | W22: 0.1888208333 | Z22: -27.5 | AA22: 0.1144875 | AB22: 0.1144875 | AC22: 0.1144875 | AD22: 0.1194875 | AE22: 0.1888208333
A23: -22.5 | C23: -22.5 | T23: 0.0894875 | U23: 0.0894875 | V23: 0.0944875 | W23: 0.1598208333 | Z23: -22.5 | AA23: 0.0894875 | AB23: 0.0894875 | AC23: 0.0894875 | AD23: 0.0944875 | AE23: 0.1598208333
A24: -17.5 | C24: -17.5 | T24: 0.0794875 | U24: 0.0794875 | V24: 0.1048208333 | W24: 0.1262875 | Z24: -17.5 | AA24: 0.0794875 | AB24: 0.0794875 | AC24: 0.0794875 | AD24: 0.1048208333 | AE24: 0.1262875
A25: -12.5 | C25: -12.5 | T25: 0.1454875 | U25: 0.1454875 | V25: 0.1448208333 | W25: 0.0994875 | Z25: -12.5 | AA25: 0.1454875 | AB25: 0.1454875 | AC25: 0.1454875 | AD25: 0.1448208333 | AE25: 0.0994875
A26: -7.5 | C26: -7.5 | T26: 0.2094875 | U26: 0.2094875 | V26: 0.2064875 | W26: 0.1027541667 | Z26: -7.5 | AA26: 0.2094875 | AB26: 0.2094875 | AC26: 0.2094875 | AD26: 0.2064875 | AE26: 0.1027541667
A27: -2.5 | C27: -2.5 | T27: 0.2644875 | U27: 0.2644875 | V27: 0.2561541667 | W27: 0.1368208333 | Z27: -2.5 | AA27: 0.2644875 | AB27: 0.2644875 | AC27: 0.2644875 | AD27: 0.2561541667 | AE27: 0.1368208333
A28: 2.5 | C28: 2.5 | T28: 0.2944875 | U28: 0.2944875 | V28: 0.2844875 | W28: 0.1941541667 | Z28: 2.5 | AA28: 0.2944875 | AB28: 0.2944875 | AC28: 0.2944875 | AD28: 0.2844875 | AE28: 0.1941541667
A29: 7.5 | C29: 7.5 | T29: 0.2944875 | U29: 0.2944875 | V29: 0.2861541667 | W29: 0.2462208333 | Z29: 7.5 | AA29: 0.2944875 | AB29: 0.2944875 | AC29: 0.2944875 | AD29: 0.2861541667 | AE29: 0.2462208333
